Workbook

Sheet Instructions
B1: Welcome to the
B2: Quality of Life in Your Neighbourhood Survey Database
B3: If you know what to do - Click here to go to data
B5: IMPORTANT If you’re having problems using the database: • make sure you ‘Enable Editing’ or ‘Enable Content’ if asked • if you’re using a Bristol City Council computer, save this file to your H: or S: drive and then open the file from the location where you saved it
B6: The Quality of Life (QoL) Survey provides an annual snapshot of quality of life in Bristol. It is an annual survey that gives Bristol residents an opportunity to voice their opinions about quality of life issues and their views on local public services. The results are analysed by the new Bristol City Council electoral wards (effective May 2016) and also by age, gender, ethnicity, and other characteristics. This tool contains the results for all indicators from the 2015 survey, including 5 years trend data at the city of Bristol level, where available. N.B. This final version of the 2015/16 QoL database tool (v2) replaces the previously published 2015/16 QoL priority indicators tool (v1). Non-response weighting The method of selecting the sample and weighting results changed in 2014 and this new methodology was repeated in 2015. 29,000 households were randomly selected (from the Land and Property Gazetteer) and posted a letter in September inviting participation in an online survey, followed by a reminder letter including a paper survey form. Each year the size of the survey and response rate varies slightly as indicated by the sample size figure for each analysis. Due to a lower response rate in 2014, there were concerns that some groups and wards were under-represented despite attempts to stratify the sample. The responses were reweighted according to sex, age and ward to help compensate for any bias, and confidence intervals were constructed using bootstrapped standard errors, which are more robust against violations of the underlying assumptions of the normal based method. These changes mean that the 2014 and 2015 results are not directly comparable to QoL data published in 2013 and earlier years. To provide a comparison, the results for 2010 to 2013 have been recalculated in the same way as outlined above (at Bristol level only) and included in this tool, although these figures may be different to previously published. Please note – for questions new to the survey in 2015, there is no past trend data. The previously published data for 2005 – 2013 is still available through the separate on-line Excel tool (also available via http://www.bristol.gov.uk/qualityoflife) Additional Data Releases We will release recalculated 5 year trend data for each of the new wards in May / June 2016
B8: How to use this database
B9: Click the link to the list of questions at the top of this page. To make it easier to find the question you are interested in each has been categorised by a theme. If needed, you can use "Ctrl-F" to search for a specific question. When you have found a question of interest, place the cursor in the cell with the title and click the results button at the top of the page to show the results.
B11: All of the data for this question will appear on the summary sheet which is formatted to print on A4 as shown below. Depending on your screen resolution you might want to zoom out by clicking View then zoom
B33: The radio buttons under the graphs allow you to add or remove the confidence interval bars and sort the ward data by size or name.
B34: Some cells have additional comments which can be seen by hovering the cursor over the red triangle comment mark.
B36: What are confidence intervals?
B37: A 95 per cent confidence interval is a range within which the true population would fall for 95 per cent of the times the sample survey was repeated. It depends on the amount of variation in the underlying population and the sample size, and is a standard way of expressing the statistical accuracy of a survey based estimate. If an estimate has a high error level,(because the number of respondants to a particular question are very low for example) the corresponding confidence interval will be very wide.This is shown on the graphs as the vertical bars shown as I. In other words, we are confident of the accuracy within the upper and lower confidence limits. Not all faiths were sufficiently represented to give accurate statistics. The number of Muslim responders for some questions was also quite low.
B38: Printing
B39: The summary page is formatted to A4 so selecting File and Print will show everything on one page.
B40: You can select and individual graph and print or copy into another application. To copy the map click the Copy Map button and then use Paste Special and select picture when pasting into another application.
B41: You can also copy and paste the text into another application but use paste special and select unformatted text.
B42: Deprived Areas Respondents living in lower super output areas in Bristol which are the 10% most deprived in England, according to the 2015 Index of Multiple Deprivation (English Indices of Deprivation 2015).
B44: Wards New electoral ward arrangements for Bristol come into force at the local elections on 6 May 2016. The number of wards has reduced from 35 to 34. The boundaries changed for all but one of the wards. The data in this tool refers to these new wards.
B46: Older people People aged 50 years and over.
B48: BME Black and minority ethnic. People of 'non-white' descent.
B50: LGBT Lesbian, gay, bisexual or transgender people.
B52: For further information please contact
B53: Phil Chan
B54: Strategic Intelligence Team, Bristol City Council
B55: Tel: 0117 92 24447

Sheet comparison_graph (hidden)
O1: <- select one indicator
O3: <- select a second indicator from the same year
O5: <- click refresh graph

Sheet import (hidden)
B1: S:\PPE\IQOL\QoL_2013 survey\Stata log files\your local area | E1: How to import QOL results into this database
A2: UIN241 rQ2 2013.csv | C2: =IF(ISERROR(VALUE(MID(A2,FIND("Q",A2,1)+1,2))),VALUE(MID(A2,FIND("Q",A2,1)+1,1)),VALUE(MID(A2,FIND("Q",A2,1)+1,2))) -> 2
A3: UIN184 rQ3 2013.csv | C3: 3 | E3: Put the full path of the folder in B1. The easiest way is to copy the string from Explorer.
A4: UIN207 rQ4a 2013.csv | C4: 4 | E4: Click the first macro button to delete the existing list and list all the files in the new folder.
A5: UIN160 rQ4b 2013.csv | C5: 4 | E5: Click the Sort files button to put them into roughly the right order to make it easier to manage.
A6: UIN208 rQ4c 2013.csv | C6: 4
A7: UIN161 rQ4d 2013.csv | C7: 4 | E7: Put the cursor in the cell with the file name you want to import and click the second macro button.
A8: UIN933 UIN934 UIN935 UIN936 UIN937 Q5a 2013.csv | C8: 5 | E8: This opens up the results file.
A9: UIN928 UIN929 UIN930 UIN931 UIN932 Q5b 2013.csv | C9: 5 | E9: Check in the results file the criterion column you want to copy e.g. "satisfied"
A10: UIN1258 Q6j 2013.csv | C10: 6 | E10: If it is a long and complex criterion heading you might find it easier to copy it from the results file into the clipboard.
A11: UIN775 rQ6d 2013.csv | C11: 6
A12: UIN1259 Q6k 2013.csv | C12: 6 | E12: Click the third macro button. This opens up a dialogue box into which you enter the criterion.
A13: UIN1234 rQ6l 2013.csv | C13: 6 | E13: You can paste the long string you have copied or just type it in directly.
A14: UIN1069 rQ6m 2013.csv | C14: 6 | E14: Click enter
A15: UIN1166 rQ6o 2013.csv | C15: 6 | E15: This should copy all the data from the correct column onto the relevant sheets for the next entry.
A16: UIN268 rQ6a 2013.csv | C16: 6
A17: UIN776 rQ6e 2013.csv | C17: 6 | E17: On the INDICATORS sheet enter the title in Column B for the record entry.
A18: UIN289 rQ6f 2013.csv | C18: 6 | E18: A short cut is to click the Find UIN macro button. This opens a box for you to enter the UIN from the file name.
A19: UIN286 rQ6g 2013.csv | C19: 6 | E19: It will search the records above for the number and copies the title of a previous year and pastes at the bottom.
A20: UIN60 rQ6h 2013.csv | C20: 6 | E20: This is where you will see if the file name has got the right UIN, otherwise you will have to correct it.
A21: UIN777 rQ6i 2013.csv | C21: 6
A22: UIN774 rQ6b 2013.csv | C22: 6 | E22: An alternative way is to search the records using a key word and copy the indicator name from a previous year.
A23: UIN1066 rQ6j 2013.csv | C23: 6
A24: UIN269 rQ6c 2013.csv | C24: 6 | E24: When you have imported the data the cell with the file name will be highlighted yellow.
A25: UIN1233 rQ6k 2013.csv | C25: 6 | E25: You can then close the results file UNLESS there are more criteria you need to copy from that file.
A26: UIN1261 Q6m 2013.csv | C26: 6 | E26: If that is the case MAKE SURE that the cursor goes back into the cell with the correct file name.
A27: UIN1262 Q6n 2013.csv | C27: 6
A28: UIN1260 Q6l 2013.csv | C28: 6 | E28: IMPORTANT
A29: UIN1235 rQ6n 2013.csv | C29: 6 | E29: These are the section names in the Stata expeorted file for the different section
A30: UIN749 Q7a 2013.csv | C30: 7 | E30: NRA
A31: UIN750 Q7b 2013.csv | C31: 7 | E31: 50 years and older
A32: UIN751 Q7c 2013.csv | C32: 7 | E32: disabled
A33: UIN752 Q7d 2013.csv | C33: 7 | E33: bme
A34: UIN753 Q7e 2013.csv | C34: =IF(ISERROR(VALUE(MID(A34,FIND("Q",A34,1)+1,2))),VALUE(MID(A34,FIND("Q",A34,1)+1,1)),VALUE(MID(A34,FIND("Q",A34,1)+1,2))) -> 7 | E34: LGBT
A35: UIN1077 Q7f 2013.csv | C35: 7 | E35: carer
A36: UIN748 Q8b 2013.csv | C36: 8 | E36: sex
A37: UIN747 Q8a 2013.csv | C37: 8 | E37: religion/faith
A38: UIN283 rQ9 2013.csv | C38: 9 | E38: ward
A39: UIN1098 rQ10ii 2013.csv | C39: 10 | E39: np_ref
A40: UIN1099 rQ10iii 2013.csv | C40: 10
A41: UIN1100 rQ10iv 2013.csv | C41: 10 | E41: If Phil changes these for any reason then they need to be changed in column E on the Workings page
A42: UIN1186 rrQ10vi 2013.csv | C42: 10 | E42: otherwise the data will not be found and copied across
A43: UIN1097 rQ10i 2013.csv | C43: 10
A44: UIN1101 rQ10v 2013.csv | C44: 10
A45: UIN1102 rQ10vi 2013.csv | C45: 10
A46: UIN1054 rQ11 2013.csv | C46: 11
A47: UIN1191 UIN1192 UIN1193 UIN1194 Q12bii 2013.csv | C47: 12
A48: UIN1187 UIN1188 UIN1189 UIN1190 Q12bi 2013.csv | C48: 12

Sheet Indicators
C1: Click here to return to instructions | D1: formula for column B INDEX($B$4:$B$1210,MATCH(C1496,$C$4:$C$1936,0))
A2: # | B2: Theme | C2: Title | D2: year | E2: Question number | F2: filename | G2: criterion | H2: obs | I2: Proportion | J2: Std. Err. | K2: lower conf | L2: upper conf | M2: +/-
A3: 0 | E3: x | F3: x | G3: x | H3: x | I3: x | J3: x | K3: x | L3: x | M3: x
B4: Neighbourhood & Community | C4: % respondents satisfied with life | D4: 2009 | E4: 47 | F4: UIN239 | G4: satisfied | H4: 5458 | I4: 73.4 | J4: 0.7241 | K4: 72 | L4: 74.84 | M4: =L4-K4 -> 2.84
B5: Health & Social Services | C5: % respondents who say their health has been good/fairly good in the last 12 months | D5: 2009 | E5: 35 | F5: UIN130 | G5: good | H5: 5490 | I5: 87.6 | J5: 0.5028 | K5: 86.6 | L5: 88.57 | M5: 1.97
B6: Health & Social Services | C6: % respondents taking exercise at least 5 times a week | D6: 2009 | E6: 23 | F6: UIN256 | G6: at least 5 times a week | H6: 5485 | I6: 34 | J6: 0.8023 | K6: 32.43 | L6: 35.57 | M6: 3.14
B7: Culture & Leisure | C7: % respondents who take part in active sport at least once a week | D7: 2009 | E7: 24 | G7: at least once a week | H7: 5432 | I7: 46.7 | J7: 0.8155 | K7: 45.05 | L7: 48.25 | M7: 3.2
B8: Health & Social Services | C8: % respondents who live in households with a smoker | D8: 2009 | E8: 38a | F8: UIN77 | G8: yes | H8: 5483 | I8: 27.1 | J8: 0.7663 | K8: 25.67 | L8: 28.67 | M8: 3
B9: Health & Social Services | C9: % respondents who have 5+ portions of fruit or veg per day | D9: 2009 | E9: 39 | F9: UIN294 | G9: at least 5 portions fruit & veg | H9: 4853 | I9: 52.1 | J9: 0.8701 | K9: 50.43 | L9: 53.84 | M9: 3.41
B10: Crime & Safety | C10: % respondents whose day to day life is affected by fear of crime | D10: 2009 | E10: 6j | F10: UIN60 | G10: agree | H10: 5331 | I10: 26 | J10: 0.7125 | K10: 24.62 | L10: 27.41 | M10: 2.79
B11: Crime & Safety | C11: % respondents who agree locally, antisocial behaviour is a problem | D11: 2009 | E11: 6i | F11: UIN286 | G11: agree | H11: 5305 | I11: 37.6 | J11: 0.7748 | K11: 36.12 | L11: 39.15 | M11: 3.03
B12: Human Environment | C12: % respondents who think noise from neighbours is a problem | D12: 2009 | E12: 17b | F12: UIN302 | G12: problem | H12: 5273 | I12: 32.1 | J12: 0.7981 | K12: 30.59 | L12: 33.72 | M12: 3.13
B13: Crime & Safety | C13: % respondents who agree that domestic abuse is a private matter | D13: 2009 | E13: 6l | F13: UIN1066 | G13: agree | H13: 5280 | I13: 14.1 | J13: 0.5538 | K13: 13.09 | L13: 15.26 | M13: 2.17
B14: Neighbourhood & Community | C14: % respondents who feel they belong to neighbourhood | D14: 2009 | E14: 6g | F14: UIN289 | G14: agree | H14: 5387 | I14: 56.6 | J14: 0.8142 | K14: 55 | L14: 58.19 | M14: 3.19
B15: Neighbourhood & Community | C15: % respondents who agree people from different backgrounds get on well together | D15: 2009 | E15: 6c | F15: UIN269 | G15: agree | H15: 5315 | I15: 58.9 | J15: 0.8157 | K15: 57.27 | L15: 60.46 | M15: 3.19
B16: Neighbourhood & Community | C16: % respondents who volunteer for charity or their local community at least 3 times a year | D16: 2009 | E16: 12a | F16: UIN1054 | G16: at least | H16: 5441 | I16: 21.8 | J16: 0.6613 | K16: 20.54 | L16: 23.13 | M16: 2.59
B17: Economy & Employment | C17: % respondents in receipt of a means tested benefit | D17: 2009 | E17: 55a | F17: UIN906 | G17: yes | H17: 5230 | I17: 17.9 | J17: 0.6015 | K17: 16.73 | L17: 19.09 | M17: 2.36
B18: Transport | C18: % respondents who ride a bicycle- at least once a week | D18: 2009 | E18: 25 | F18: UIN1091 | G18: at least | H18: 5362 | I18: 19.3 | J18: 0.6764 | K18: 17.96 | L18: 20.61 | M18: 2.65
B19: Transport | C19: % respondents who travel to work (as driver) by car | D19: 2009 | E19: 28ai | F19: UIN811 | G19: car (as driver) | H19: 3525 | I19: 53.8 | J19: 0.9449 | K19: 51.96 | L19: 55.66 | M19: 3.7
B20: Transport | C20: % respondents who travel to work by bus | D20: 2009 | E20: 28ai | F20: UIN811 | G20: bus | H20: 3525 | I20: 9.1 | J20: 0.5431 | K20: 8.056 | L20: 10.19 | M20: 2.134
B21: Transport | C21: % respondents who travel to work by bicycle | D21: 2009 | E21: 28ai | F21: UIN811 | G21: cycle | H21: 3525 | I21: 8.9 | J21: 0.5276 | K21: 7.943 | L21: 10.01 | M21: 2.067
B22: Transport | C22: % respondents who travel to work by walking | D22: 2009 | E22: 28ai | F22: UIN811 | G22: walk | H22: 3525 | I22: 18.3 | J22: 0.701 | K22: 16.99 | L22: 19.74 | M22: 2.75
B23: Transport | C23: % respondents who travel to work by train | D23: 2009 | E23: 28ai | F23: UIN811 | G23: train | H23: 3525 | I23: 1.4 | J23: 0.2396 | K23: 0.9744 | L23: 1.931 | M23: 0.9566
B24: Transport | C24: % respondents who travel to work by moped/motorbike | D24: 2009 | E24: 28ai | F24: UIN811 | G24: motorbike | H24: 3525 | I24: 1.2 | J24: 0.2237 | K24: 0.7962 | L24: 1.693 | M24: 0.8968
B25: Transport | C25: % respondents who travel to work by another mode | D25: 2009 | E25: 28ai | F25: UIN811 | G25: other mode | H25: 3525 | I25: 2.3 | J25: 0.2868 | K25: 1.826 | L25: 2.96 | M25: 1.134
B26: Transport | C26: % respondents who travel to work by car | D26: 2009 | E26: 28ai | F26: UIN811 | G26: car | H26: 3525 | I26: 58.6 | J26: 1.3271 | K26: 56.051 | L26: 61.254 | M26: 5.203
B27: Transport | C27: % respondents who travel to work by foot or bike | D27: 2009 | E27: 28ai | F27: UIN811 | G27: cycle/walk | H27: 3525 | I27: 27.3 | J27: 1.2286 | K27: 24.933 | L27: 29.75 | M27: 4.817
B28: Transport | C28: % respondents satisfied with the bus service | D28: 2009 | E28: 18k | F28: UIN251 | G28: satisfied | H28: 4956 | I28: 52.8 | J28: 0.8958 | K28: 51.08 | L28: 54.59 | M28: =L28-K28 -> 3.51
B29: Transport | C29: % respondents satisfied with neighbourhood | D29: 2009 | E29: 2 | F29: UIN241 | G29: satisfied | H29: 5445 | I29: 79.2 | J29: 0.6504 | K29: 77.88 | L29: 80.43 | M29: 2.55
B30: Neighbourhood & Community | C30: % respondents who think their neighbourhood has got better over the last 2 years | D30: 2009 | G30: better | H30: 5162 | I30: 15.2 | J30: 0.6053 | K30: 14 | L30: 16.37 | M30: 2.37
B31: Neighbourhood & Community | C31: % respondents who think their neighbourhood has got worse over the last 2 years | D31: 2009 | G31: worse | H31: 5162 | I31: 23.6 | J31: 0.7195 | K31: 22.25 | L31: 25.07 | M31: 2.82
B32: Natural Environment | C32: % respondents satisfied with quality of parks and green spaces | D32: 2009 | E32: 18h | F32: UIN244 | G32: satisfied | H32: 5110 | I32: 77.3 | J32: 0.6865 | K32: 75.88 | L32: 78.57 | M32: 2.69
B33: Human Environment | C33: % respondents who think street litter is a problem | D33: 2009 | E33: 16b | F33: UIN333 | G33: problem | H33: 5397 | I33: 79.6 | J33: 0.6786 | K33: 78.2 | L33: 80.86 | M33: 2.66
B34: Human Environment | C34: % respondents who are fairly and very concerned about the impact of climate change in the UK | D34: 2009 | E34: 29a | F34: UIN1198 | G34: fairly & very concerned | H34: 5496 | I34: 78 | J34: 0.6939 | K34: 76.56 | L34: 79.28 | M34: 2.72
B35: Culture & Leisure | C35: % respondents satisfied with the range and quality of outdoor events in Bristol | D35: 2009 | E35: 20 | F35: UIN252 | G35: satisfied | H35: 5431 | I35: 78.5 | J35: 0.6602 | K35: 77.21 | L35: 79.8 | M35: 2.59
B36: Neighbourhood & Community | C36: % respondents who are dissatisfied with the way the council runs things | D36: 2009 | G36: dissatisfied | H36: 5149 | I36: 38.7 | J36: 0.7908 | K36: 37.14 | L36: 40.24 | M36: 3.1
B37: Neighbourhood & Community | C37: % respondents who are satisfied with the way the council runs things | D37: 2009 | E37: 19b | F37: UIN1073 | G37: satisfied | H37: 5149 | I37: 32.5 | J37: 0.7732 | K37: 30.95 | L37: 33.98 | M37: 3.03
B38: Neighbourhood & Community | C38: % respondents who disagree that the council provides value for money | D38: 2009 | G38: disagree | H38: 4841 | I38: 44.5 | J38: 0.8482 | K38: 42.88 | L38: 46.21 | M38: 3.33
B39: Neighbourhood & Community | C39: % respondents who agree that the council provides value for money | D39: 2009 | E39: 19a | F39: UIN1072 | G39: agree | H39: 4841 | I39: 25.7 | J39: 0.7848 | K39: 24.18 | L39: 27.26 | M39: 3.08
B40: Culture & Leisure | C40: % respondents who agree they can influence decisions that affect their local area | D40: 2009 | E40: 6a | F40: UIN290 | G40: agree | H40: 5321 | I40: 22.9 | J40: 0.6887 | K40: 21.55 | L40: 24.25 | M40: 2.7
C41: % respondents who agree people using drugs is a problem in their area | D41: 2010 | H41: 4839 | I41: 28.6 | J41: 0.7 | K41: 27.2 | L41: 30.1 | M41: 2.9
C42: % respondents who feel crime has got better over last 3 years | D42: 2010 | H42: 4845 | I42: 17.2 | J42: 0.7 | K42: 15.9 | L42: 18.5 | M42: 2.6
C43: % respondents who travel to work (as passenger) by car | D43: 2010 | H43: 3141 | I43: 4.5 | J43: 0.4 | K43: 3.7 | L43: 5.4 | M43: 1.7
C44: % respondents who travel to work by train | D44: 2010 | H44: 3141 | I44: 1.5 | J44: 0.3 | K44: 1.1 | L44: 2.1 | M44: 1
C45: % respondents who travel to work by moped/motorbike | D45: 2010 | H45: 3141 | I45: 0.8 | J45: 0.2 | K45: 0.5 | L45: 1.2 | M45: 0.7
C46: % respondents who live in households with a smoker | D46: 2010 | H46: 4992 | I46: 27.7 | J46: 0.8 | K46: 26.2 | L46: 29.2 | M46: 3
C47: % respondents who are overweight and obese | D47: 2010 | H47: 4362 | I47: 46.7 | J47: 0.9 | K47: 44.9 | L47: 48.5 | M47: 3.6
C48: % respondents satisfied with children's playgrounds and play areas | D48: 2010 | H48: 3423 | I48: 65.7 | J48: 1 | K48: 63.7 | L48: 67.7 | M48: 4
C49: % respondents who meet family and friends most days | D49: 2010 | H49: 4992 | I49: 37.9 | J49: 0.8 | K49: 36.3 | L49: 39.5 | M49: 3.2
C50: % respondents who meet family and friends every week | D50: 2010 | H50: 4992 | I50: 44.6 | J50: 0.9 | K50: 42.9 | L50: 46.3 | M50: 3.4
C51: % respondents who meet family and friends every month | D51: 2010 | H51: 4992 | I51: 10.2 | J51: 0.5 | K51: 9.2 | L51: 11.3 | M51: 2.1
C52: % respondents who meet family and friends a few times a year | D52: 2010 | H52: 4992 | I52: 6.2 | J52: 0.4 | K52: 5.5 | L52: 7 | M52: 1.5
C53: % respondents who never meet family and friends | D53: 2010 | H53: 4992 | I53: 1.1 | J53: 0.2 | K53: 0.8 | L53: 1.5 | M53: 0.7
C54: % respondents who agree they can influence decisions that affect public services they use | D54: 2010 | H54: 4811 | I54: 16.5 | J54: 0.7 | K54: 15.2 | L54: 17.8 | M54: 2.6
C55: % respondents who agree that people treat other people with respect in their neighbourhood | D55: 2010 | H55: 4894 | I55: 63.4 | J55: 0.8 | K55: 61.8 | L55: 65 | M55: 3.2
C56: % respondents who agree that women's behaviour can attract and provoke domestic abuse | D56: 2010 | H56: 4750 | I56: 19.7 | J56: 0.7 | K56: 18.4 | L56: 21.1 | M56: 2.7
C57: % respondents who have been discriminated against or harassed because of age | D57: 2010 | H57: 4789 | I57: 3.9 | J57: 0.3 | K57: 3.3 | L57: 4.5 | M57: 1.2
C58: % respondents who have been discriminated against or harassed because of disability | D58: 2010 | H58: 4620 | I58: 2.2 | J58: 0.2 | K58: 1.8 | L58: 2.7 | M58: 0.9
C59: % respondents who have been discriminated against or harassed because of religion | D59: 2010 | H59: 4597 | I59: 1.2 | J59: 0.2 | K59: 0.9 | L59: 1.7 | M59: 0.8
C60: % respondents who have been discriminated against or harassed because of sexual orientation | D60: 2010 | H60: 4583 | I60: 1.7 | J60: 0.3 | K60: 1.2 | L60: 2.3 | M60: 1.1
C61: % respondents who have been discriminated against or harassed because of ethnicity/race | D61: 2010 | H61: 4617 | I61: 3.9 | J61: 0.4 | K61: 3.2 | L61: 4.7 | M61: 1.5
C62: % respondents who have been discriminated against or harassed because of gender | D62: 2010 | H62: 4593 | I62: 3.3 | J62: 0.3 | K62: 2.7 | L62: 4 | M62: 1.3
C63: % respondents who feel crime has got worse over last 3 years | D63: 2010 | H63: 4845 | I63: 19.5 | J63: 0.7 | K63: 18.2 | L63: 20.9 | M63: 2.7
C64: % respondents who feel safe when outdoors in their neighbourhood after dark | D64: 2010 | H64: 4926 | I64: 57.2 | J64: 0.8 | K64: 55.5 | L64: 58.8 | M64: 3.3
C65: % respondents who feel safe when outdoors in their neighbourhood during the day | D65: 2010 | H65: 4941 | I65: 90.7 | J65: 0.5 | K65: 89.7 | L65: 91.7 | M65: 2
C66: % respondents who visit parks and open spaces at least once a week | D66: 2010 | H66: 4986 | I66: 37.2 | J66: 0.8 | K66: 35.5 | L66: 38.8 | M66: 3.3
C67: % respondents who think dog fouling is a problem in local area | D67: 2010 | H67: 4849 | I67: 74.7 | J67: 0.8 | K67: 73.1 | L67: 76.2 | M67: 3.1
C68: % respondents who have participated in creative activities in the last 12 months | D68: 2010 | H68: 4788 | I68: 31.9 | J68: 0.8 | K68: 30.2 | L68: 33.5 | M68: 3.3
C69: % who have participated in dance in the last 12 months | D69: 2010 | H69: 4788 | I69: 8 | J69: 0.5 | K69: 7 | L69: 9 | M69: 2
C70: % who have participated in drama or theatre in the last 12 months | D70: 2010 | H70: 4788 | I70: 7.5 | J70: 0.5 | K70: 6.6 | L70: 8.5 | M70: 1.9
C71: % who have participated in art - design - craft in the last 12 months | D71: 2010 | H71: 4788 | I71: 13.7 | J71: 0.6 | K71: 12.5 | L71: 15 | M71: 2.5
C72: % who have played an instrument or sung in the last 12 months | D72: 2010 | H72: 4788 | I72: 10.9 | J72: 0.6 | K72: 9.8 | L72: 12.1 | M72: 2.3
C73: % who have participated in photography, film, video or editing | D73: 2010 | H73: 4788 | I73: 7.6 | J73: 0.5 | K73: 6.6 | L73: 8.7 | M73: 2.1
C74: % who have participated in spoken word - creative writing in the last 12 months | D74: 2010 | H74: 4788 | I74: 4.6 | J74: 0.4 | K74: 3.9 | L74: 5.5 | M74: 1.6
C75: % respondents who say that nothing prevents them from leaving their house when they want to | D75: 2010 | H75: 4863 | I75: 73.1 | J75: 0.8 | K75: 71.6 | L75: 74.6 | M75: 3
C76: % respondents who say that fear of crime prevents them from leaving their house when they want to | D76: 2010 | H76: 4863 | I76: 7.1 | J76: 0.5 | K76: 6.2 | L76: 8.1 | M76: 1.9
C77: % respondents who say that lack of confidence prevents them from leaving their house when they want to | D77: 2010 | H77: 4863 | I77: 4.1 | J77: 0.4 | K77: 3.4 | L77: 4.8 | M77: 1.4
C78: % respondents who say that inaccessible public transport prevents them from leaving their house when they want to | D78: 2010 | H78: 4863 | I78: 4.8 | J78: 0.4 | K78: 4.1 | L78: 5.5 | M78: 1.4
C79: % respondents who say that lack of support and assistance prevents them from leaving their house when they want to | D79: 2010 | H79: 4863 | I79: 1.5 | J79: 0.2 | K79: 1.1 | L79: 2 | M79: 0.9
C80: % respondents who say that financial circumstances prevents them from leaving their house when they want to | D80: 2010 | H80: 4863 | I80: 9.5 | J80: 0.6 | K80: 8.5 | L80: 10.6 | M80: 2.1
C81: % respondents who say that disability prevents them from leaving their house when they want to | D81: 2010 | H81: 4863 | I81: 5.6 | J81: 0.3 | K81: 5 | L81: 6.3 | M81: 1.3
C82: % respondents who say that poor health prevents them from leaving their house when they want to | D82: 2010 | H82: 4863 | I82: 6.1 | J82: 0.3 | K82: 5.5 | L82: 6.8 | M82: 1.3
C83: % respondents who say that caring responsibilities prevents them from leaving their house when they want to | D83: 2010 | H83: 4863 | I83: 2.1 | J83: 0.2 | K83: 1.7 | L83: 2.6 | M83: 0.9
C84: % respondents who are very concerned about the impact of climate change in the UK | D84: 2010 | H84: 4988 | I84: 27.1 | J84: 0.8 | K84: 25.5 | L84: 28.7 | M84: 3.2
C85: % respondents who think that Bristol's weather will be affected by climate change | D85: 2010 | H85: 4812 | I85: 71.6 | J85: 0.8 | K85: 70.1 | L85: 73.1 | M85: 3
C86: % respondents who think that Bristol's economy will be affected by climate change | D86: 2010 | H86: 4812 | I86: 38.1 | J86: 0.9 | K86: 36.4 | L86: 39.8 | M86: 3.4
C87: % respondents who think that their health will be affected by climate change | D87: 2010 | H87: 4812 | I87: 44.4 | J87: 0.9 | K87: 42.6 | L87: 46.1 | M87: 3.5
C88: % respondents who think that their work will be affected by climate change | D88: 2010 | H88: 4812 | I88: 14.1 | J88: 0.7 | K88: 12.8 | L88: 15.4 | M88: 2.6
C89: % respondents who think that their neighbourhood will be affected by climate change | D89: 2010 | H89: 4812 | I89: 17.9 | J89: 0.7 | K89: 16.6 | L89: 19.3 | M89: 2.7
C90: % respondents who eat food grown by themselves or by people they know | D90: 2010 | H90: 4792 | I90: 66.6 | J90: 0.9 | K90: 64.9 | L90: 68.3 | M90: 3.4
C91: % respondents who live alone | D91: 2010 | H91: 4965 | I91: 19.4 | J91: 0.7 | K91: 18.2 | L91: 20.7 | M91: 2.5
C92: % respondents with a limiting long-term illness, health problem or disability | D92: 2010 | H92: 4974 | I92: 23.1 | J92: 0.6 | K92: 21.9 | L92: 24.2 | M92: 2.3
C93: % respondents who smoke | D93: 2010 | H93: 4992 | I93: 16.8 | J93: 0.7 | K93: 15.5 | L93: 18.2 | M93: 2.7
C94: % respondents who live in households with someone who smokes regularly within the home | D94: 2010 | H94: 4681 | I94: 12.1 | J94: 0.6 | K94: 11 | L94: 13.3 | M94: 2.3
C95: % Respondents who are morbidly obese | D95: 2010 | H95: 4362 | I95: 1.3 | J95: 0.2 | K95: 1 | L95: 1.8 | M95: 0.8
C96: % respondents who are obese | D96: 2010 | H96: 4362 | I96: 16 | J96: 0.7 | K96: 14.7 | L96: 17.3 | M96: 2.6
C97: % Respondents who are underweight | D97: 2010 | H97: 4362 | I97: 2.1 | J97: 0.2 | K97: 1.6 | L97: 2.6 | M97: 1
C98: % respondents with no educational or technical qualifications | D98: 2010 | H98: 4836 | I98: 18 | J98: 0.5 | K98: 17.1 | L98: 19 | M98: 1.9
B99: Neighbourhood & Community | C99: % respondents satisfied with life | D99: 2010 | E99: 45 | F99: UIN239 | G99: satisfied | H99: 4961 | I99: 74.8 | J99: 0.7743 | K99: 73.26 | L99: 76.3 | M99: 3.04
B100: Health & Social Services | C100: % respondents who say their health has been good/fairly good in the last 12 months | D100: 2010 | F100: UIN130 | G100: good | H100: 5008 | I100: 87.8 | J100: 0.4927 | K100: 86.78 | L100: 88.71 | M100: 1.93
B101: Health & Social Services | C101: % respondents taking exercise at least 5 times a week | D101: 2010 | F101: UIN256 | G101: at least 5 times a week | H101: 4958 | I101: 34.2 | J101: 0.857 | K101: 32.52 | L101: 35.88 | M101: 3.36
B102: Culture & Leisure | C102: % respondents who take part in active sport at least once a week | D102: 2010 | F102: UIN1 | G102: at least once a week | H102: 4940 | I102: 46.6 | J102: 0.8524 | K102: 44.97 | L102: 48.31 | M102: 3.34
B103: Health & Social Services | C103: % respondents who have 5+ portions of fruit or veg per day | D103: 2010 | F103: UIN294 | G103: at least 5 portions fruit & veg | H103: 4571 | I103: 50.4 | J103: 0.9224 | K103: 48.57 | L103: 52.18 | M103: 3.61
B104: Crime & Safety | C104: % respondents whose day to day life is affected by fear of crime | D104: 2010 | F104: UIN60 | G104: agree | H104: 4870 | I104: 23 | J104: 0.7331 | K104: 21.59 | L104: 24.46 | M104: 2.87
B105: Crime & Safety | C105: % respondents who agree locally, antisocial behaviour is a problem | D105: 2010 | F105: UIN286 | G105: agree | H105: 4852 | I105: 33.3 | J105: 0.792 | K105: 31.78 | L105: 34.88 | M105: 3.1
B106: Crime & Safety | C106: % who agree police and local public services are successfully dealing with issues of crime and anti-social behaviour in their area | D106: 2010 | F106: UIN1166 | G106: agree | H106: 4832 | I106: 33 | J106: 0.8229 | K106: 31.43 | L106: 34.66 | M106: 3.23
B107: Human Environment | C107: % respondents who think noise from neighbours is a problem | D107: 2010 | F107: UIN302 | G107: problem | H107: 4720 | I107: 34 | J107: 0.8629 | K107: 32.35 | L107: 35.73 | M107: 3.38
B108: Crime & Safety | C108: % respondents who agree that domestic abuse is a private matter | D108: 2010 | F108: UIN1066 | G108: agree | H108: 4792 | I108: 13.7 | J108: 0.5431 | K108: 12.69 | L108: 14.82 | M108: 2.13
B109: Neighbourhood & Community | C109: % respondents who feel they belong to neighbourhood | D109: 2010 | F109: UIN289 | G109: agree | H109: 4889 | I109: 57.4 | J109: 0.8233 | K109: 55.77 | L109: 59 | M109: 3.23
B110: Neighbourhood & Community | C110: % respondents who agree people from different backgrounds get on well together | D110: 2010 | F110: UIN269 | G110: agree | H110: 4866 | I110: 58.3 | J110: 0.8546 | K110: 56.58 | L110: 59.92 | M110: 3.34
B111: Neighbourhood & Community | C111: % respondents who volunteer for charity or their local community at least 3 times a year | D111: 2010 | F111: UIN1054 | G111: at least | H111: 4949 | I111: 23.5 | J111: 0.7219 | K111: 22.1 | L111: 24.93 | M111: 2.83
B112: Economy & Employment | C112: % respondents in receipt of a means tested benefit | D112: 2010 | F112: UIN906 | G112: yes | H112: 4855 | I112: 16.3 | J112: 0.5873 | K112: 15.17 | L112: 17.47 | M112: =L112-K112 -> 2.3
B113: Transport | C113: % respondents who ride a bicycle- at least once a week | D113: 2010 | F113: UIN1091 | G113: at least | H113: 4818 | I113: 19.5 | J113: 0.7627 | K113: 18 | L113: 20.99 | M113: 2.99
B114: Transport | C114: % respondents who travel to work (as driver) by car | D114: 2010 | F114: UIN811 | G114: car (as driver) | H114: 3141 | I114: 53.1 | J114: 1.004 | K114: 51.1 | L114: 55.03 | M114: 3.93
B115: Transport | C115: % respondents who travel to work by bus | D115: 2010 | G115: bus | H115: 3141 | I115: 9.3 | J115: 0.5921 | K115: 8.234 | L115: 10.56 | M115: 2.326
B116: Transport | C116: % respondents who travel to work by bicycle | D116: 2010 | G116: cycle | H116: 3141 | I116: 10.5 | J116: 0.6304 | K116: 9.309 | L116: 11.78 | M116: 2.471
B117: Transport | C117: % respondents who travel to work by walking | D117: 2010 | G117: walk | H117: 3141 | I117: 17.5 | J117: 0.757 | K117: 16.11 | L117: 19.08 | M117: 2.97
B118: Transport | C118: % respondents who travel to work by another mode | D118: 2010 | G118: other mode | H118: 3141 | I118: 2.8 | J118: 0.3345 | K118: 2.201 | L118: 3.523 | M118: 1.322
B119: Transport | C119: % respondents who travel to work by car | D119: 2010 | G119: car | H119: 3141 | I119: 57.6 | J119: 1.4111 | K119: 54.848 | L119: 60.381 | M119: 5.533
B120: Transport | C120: % respondents who travel to work by foot or bike | D120: 2010 | G120: cycle/walk | H120: 3141 | I120: 28 | J120: 1.3874 | K120: 25.419 | L120: 30.86 | M120: 5.441
B121: Transport | C121: % respondents satisfied with neighbourhood | D121: 2010 | G121: satisfied | H121: 4947 | I121: 79.1 | J121: 0.6809 | K121: 77.7 | L121: 80.37 | M121: 2.67
B122: Neighbourhood & Community | C122: % respondents who think their neighbourhood has got better over the last 2 years | D122: 2010 | G122: better | H122: 4648 | I122: 17.2 | J122: 0.7435 | K122: 15.78 | L122: 18.69 | M122: 2.91
B123: Neighbourhood & Community | C123: % respondents who think their neighbourhood has got worse over the last 2 years | D123: 2010 | G123: worse | H123: 4648 | I123: 22.9 | J123: 0.7687 | K123: 21.38 | L123: 24.39 | M123: 3.01
B124: Natural Environment | C124: % respondents satisfied with quality of parks and green spaces | D124: 2010 | G124: satisfied | H124: 4690 | I124: 79.8 | J124: 0.6767 | K124: 78.47 | L124: 81.13 | M124: 2.66
B125: Human Environment | C125: % respondents who think street litter is a problem | D125: 2010 | G125: problem | H125: 4940 | I125: 78.7 | J125: 0.738 | K125: 77.26 | L125: 80.15 | M125: 2.89
B126: Human Environment | C126: % respondents who are fairly and very concerned about the impact of climate change in the UK | D126: 2010 | G126: fairly & very concerned | H126: 4989 | I126: 74 | J126: 0.7643 | K126: 72.45 | L126: 75.45 | M126: 3
B127: Culture & Leisure | C127: % respondents satisfied with the range and quality of outdoor events in Bristol | D127: 2010 | G127: satisfied | H127: 4917 | I127: 80.5 | J127: 0.6674 | K127: 79.13 | L127: 81.75 | M127: =L127-K127 -> 2.62
B128: Culture & Leisure | C128: % respondents satisfied with libraries | D128: 2010 | G128: satisfied | H128: 4434 | I128: 70.9 | J128: 0.8399 | K128: 69.19 | L128: 72.48 | M128: 3.29
B129: Culture & Leisure | C129: % respondents satisfied with museums and galleries | D129: 2010 | G129: satisfied | H129: 4109 | I129: 65.6 | J129: 0.8802 | K129: 63.81 | L129: 67.26 | M129: 3.45
B130: Neighbourhood & Community | C130: % respondents who are dissatisfied with the way the council runs things | D130: 2010 | G130: dissatisfied | H130: 4633 | I130: 32.7 | J130: 0.8824 | K130: 31.01 | L130: 34.47 | M130: 3.46
B131: Neighbourhood & Community | C131: % respondents who are satisfied with the way the council runs things | D131: 2010 | G131: satisfied | H131: 4633 | I131: 38.9 | J131: 0.8849 | K131: 37.15 | L131: 40.61 | M131: 3.46
B132: Neighbourhood & Community | C132: % respondents who disagree that the council provides value for money | D132: 2010 | G132: disagree | H132: 4436 | I132: 38.9 | J132: 0.9355 | K132: 37.1 | L132: 40.76 | M132: 3.66
B133: Neighbourhood & Community | C133: % respondents who agree that the council provides value for money | D133: 2010 | G133: agree | H133: 4436 | I133: 32.8 | J133: 0.8618 | K133: 31.14 | L133: 34.51 | M133: 3.37
B134: Culture & Leisure | C134: % respondents who agree they can influence decisions that affect their local area | D134: 2010 | G134: agree | H134: 4841 | I134: 21.9 | J134: 0.7282 | K134: 20.53 | L134: 23.38 | M134: 2.85
C135: % respondents who agree people using drugs is a problem in their area | D135: 2011 | G135: agree | H135: 5229 | I135: 27.4 | J135: 0.7 | K135: 26.1 | L135: 28.8 | M135: 2.7
C136: % respondents who feel crime has got better over last 3 years | D136: 2011 | G136: better | H136: 5247 | I136: 17.1 | J136: 0.7 | K136: 15.8 | L136: 18.4 | M136: 2.6
C137: % respondents who travel to work (as passenger) by car | D137: 2011 | G137: car (as passenger) | H137: 4372 | I137: 6.4 | J137: 0.4 | K137: 5.7 | L137: 7.2 | M137: 1.5
C138: % respondents who travel to work by train | D138: 2011 | G138: train | H138: 4372 | I138: 1.2 | J138: 0.2 | K138: 0.9 | L138: 1.7 | M138: 0.8
C139: % respondents who travel to work by moped/motorbike | D139: 2011 | G139: motorbike/moped | H139: 4372 | I139: 1.3 | J139: 0.2 | K139: 0.9 | L139: 1.8 | M139: 0.9
C140: % respondents who are overweight and obese | D140: 2011 | G140: overweight or obese | H140: 4866 | I140: 47.7 | J140: 0.9 | K140: 46 | L140: 49.4 | M140: 3.4
B141: Neighbourhood & Community | C141: % respondents satisfied with life | D141: 2011 | E141: 45 | F141: UIN239 | G141: satisfied | H141: 5413 | I141: 74.9 | J141: 0.6838 | K141: 73.58 | L141: 76.26 | M141: =L141-K141 -> 2.68
B142: Health & Social Services | C142: % respondents who say their health has been good/fairly good in the last 12 months | D142: 2011 | G142: good | H142: 5444 | I142: 89.1 | J142: 0.4749 | K142: 88.13 | L142: 90 | M142: 1.87
B143: Health & Social Services | C143: % respondents taking exercise at least 5 times a week | D143: 2011 | G143: at least 5 times a week | H143: 5423 | I143: 33 | J143: 0.8104 | K143: 31.43 | L143: 34.6 | M143: 3.17
B144: Culture & Leisure | C144: % respondents who take part in active sport at least once a week | D144: 2011 | G144: at least once a week | H144: 5367 | I144: 44.3 | J144: 0.8435 | K144: 42.66 | L144: 45.96 | M144: 3.3
B145: Health & Social Services | C145: % respondents who have 5+ portions of fruit or veg per day | D145: 2011 | G145: at least 5 portions fruit & veg | H145: 4915 | I145: 47.2 | J145: 0.8955 | K145: 45.45 | L145: 48.96 | M145: 3.51
B146: Crime & Safety | C146: % respondents whose day to day life is affected by fear of crime | D146: 2011 | G146: agree | H146: 5246 | I146: 21.7 | J146: 0.6739 | K146: 20.37 | L146: 23.01 | M146: 2.64
B147: Crime & Safety | C147: % respondents who agree locally, antisocial behaviour is a problem | D147: 2011 | G147: agree | H147: 5217 | I147: 32.3 | J147: 0.7798 | K147: 30.77 | L147: 33.83 | M147: 3.06
B148: Crime & Safety | C148: % who agree police and local public services are successfully dealing with issues of crime and anti-social behaviour in their area | D148: 2011 | G148: agree | H148: 5255 | I148: 37.2 | J148: 0.8601 | K148: 35.54 | L148: 38.91 | M148: 3.37
B149: Human Environment | C149: % respondents who think noise from neighbours is a problem | D149: 2011 | G149: problem | H149: 5049 | I149: 35 | J149: 0.8622 | K149: 33.34 | L149: 36.71 | M149: 3.37
B150: Crime & Safety | C150: % respondents who agree that domestic abuse is a private matter | D150: 2011 | G150: agree | H150: 5174 | I150: 16 | J150: 0.5838 | K150: 14.91 | L150: 17.2 | M150: 2.29
B151: Neighbourhood & Community | C151: % respondents who feel they belong to neighbourhood | D151: 2011 | G151: agree | H151: 5291 | I151: 59.4 | J151: 0.8763 | K151: 57.7 | L151: 61.14 | M151: 3.44
B152: Neighbourhood & Community | C152: % respondents who agree people from different backgrounds get on well together | D152: 2011 | G152: agree | H152: 5262 | I152: 59 | J152: 0.8774 | K152: 57.3 | L152: 60.74 | M152: 3.44
B153: Neighbourhood & Community | C153: % respondents who volunteer for charity or their local community at least 3 times a year | D153: 2011 | G153: at least | H153: 5329 | I153: 24.1 | J153: 0.7526 | K153: 22.69 | L153: 25.64 | M153: 2.95
B154: Economy & Employment | C154: % respondents in receipt of a means tested benefit | D154: 2011 | G154: yes | H154: 5340 | I154: 15.8 | J154: 0.571 | K154: 14.72 | L154: 16.96 | M154: 2.24
B155: Transport | C155: % respondents who ride a bicycle- at least once a week | D155: 2011 | G155: at least | H155: 5260 | I155: 18.4 | J155: 0.7036 | K155: 17.01 | L155: 19.77 | M155: 2.76
B156: Transport | C156: % respondents who travel to work (as driver) by car | D156: 2011 | G156: car (as driver) | H156: 4372 | I156: 46.7 | J156: 0.847 | K156: 45.03 | L156: 48.35 | M156: 3.32
B157: Transport | C157: % respondents who travel to work by bus | D157: 2011 | G157: bus | H157: 4372 | I157: 12.8 | J157: 0.5525 | K157: 11.71 | L157: 13.88 | M157: 2.17
B158: Transport | C158: % respondents who travel to work by bicycle | D158: 2011 | G158: cycle | H158: 4372 | I158: 8.4 | J158: 0.5034 | K158: 7.459 | L158: 9.435 | M158: 1.976
B159: Transport | C159: % respondents who travel to work by walking | D159: 2011 | G159: walk | H159: 4372 | I159: 19.5 | J159: 0.7038 | K159: 18.13 | L159: 20.89 | M159: 2.76
B160: Transport | C160: % respondents who travel to work by another mode | D160: 2011 | G160: other mode | H160: 4372 | I160: 3.8 | J160: 0.322 | K160: 3.183 | L160: 4.45 | M160: 1.267
B161: Transport | C161: % respondents who travel to work by car | D161: 2011 | G161: car | H161: 4372 | I161: 53.1 | J161: 1.2198 | K161: 50.777 | L161: 55.56 | M161: 4.783
B162: Transport | C162: % respondents who travel to work by foot or bike | D162: 2011 | G162: cycle/walk | H162: 4372 | I162: 27.9 | J162: 1.2072 | K162: 25.589 | L162: 30.325 | M162: 4.736
B163: Transport | C163: % respondents satisfied with the bus service | D163: 2011 | G163: satisfied | H163: 4989 | I163: 54.2 | J163: 0.9033 | K163: 52.42 | L163: 55.96 | M163: 3.54
B164: Neighbourhood & Community | C164: % respondents satisfied with neighbourhood | D164: 2011 | G164: satisfied | H164: 5373 | I164: 81.4 | J164: 0.6311 | K164: 80.15 | L164: 82.63 | M164: 2.48
B165: Neighbourhood & Community | C165: % respondents who feel safe when outdoors in their neighbourhood after dark | D165: 2011 | G165: feel safe | H165: 5319 | I165: 58.6 | J165: 0.7935141996 | K165: 57.03 | L165: 60.14 | M165: 3.11
B166: Neighbourhood & Community | C166: % respondents who think their neighbourhood has got better over the last 2 years | D166: 2011 | G166: better | H166: 5063 | I166: 19.3 | J166: 0.8075 | K166: 17.78 | L166: 20.94 | M166: =L166-K166 -> 3.16
B167: Neighbourhood & Community | C167: % respondents who think their neighbourhood has got worse over the last 2 years | D167: 2011 | G167: worse | H167: 5063 | I167: 21.9 | J167: 0.7519 | K167: 20.5 | L167: 23.44 | M167: 2.94
B168: Natural Environment | C168: % respondents satisfied with quality of parks and green spaces | D168: 2011 | G168: satisfied | H168: 5166 | I168: 82.4 | J168: 0.6533 | K168: 81.06 | L168: 83.62 | M168: 2.56
B169: Human Environment | C169: % respondents who think street litter is a problem | D169: 2011 | G169: problem | H169: 5258 | I169: 76.2 | J169: 0.8046 | K169: 74.58 | L169: 77.73 | M169: 3.15
B170: Human Environment | C170: % respondents satisfied with general household waste collection | D170: 2011 | G170: satisfied | H170: 5319 | I170: 69.2 | J170: 0.8436 | K170: 67.48 | L170: 70.79 | M170: 3.31
B171: Human Environment | C171: % respondents who are fairly and very concerned about the impact of climate change in the UK | D171: 2011 | G171: fairly & very concerned | H171: 5441 | I171: 70.9 | J171: 0.7575 | K171: 69.36 | L171: 72.33 | M171: 2.97
B172: Culture & Leisure | C172: % respondents satisfied with the range and quality of outdoor events in Bristol | D172: 2011 | G172: satisfied | H172: 5375 | I172: 84.4 | J172: 0.591 | K172: 83.22 | L172: 85.54 | M172: 2.32
B173: Culture & Leisure | C173: % respondents satisfied with museums and galleries | D173: 2011 | G173: satisfied | H173: 4687 | I173: 76.2 | J173: 0.7605 | K173: 74.68 | L173: 77.66 | M173: 2.98
B174: Culture & Leisure | C174: % respondents satisfied with libraries | D174: 2011 | G174: satisfied | H174: 4829 | I174: 74.1 | J174: 0.8111 | K174: 72.5 | L174: 75.67 | M174: 3.17
B175: Neighbourhood & Community | C175: % respondents who are dissatisfied with the way the council runs things | D175: 2011 | G175: dissatisfied | H175: 5063 | I175: 29.6 | J175: 0.803 | K175: 28.08 | L175: 31.23 | M175: 3.15
B176: Neighbourhood & Community | C176: % respondents who are satisfied with the way the council runs things | D176: 2011 | G176: satisfied | H176: 5063 | I176: 37.3 | J176: 0.8921 | K176: 35.58 | L176: 39.08 | M176: 3.5
B177: Neighbourhood & Community | C177: % respondents who disagree that the council provides value for money | D177: 2011 | G177: disagree | H177: 4872 | I177: 33.5 | J177: 0.8566 | K177: 31.82 | L177: 35.17 | M177: 3.35
B178: Neighbourhood & Community | C178: % respondents who agree that the council provides value for money | D178: 2011 | G178: agree | H178: 4872 | I178: 34.9 | J178: 0.8669 | K178: 33.24 | L178: 36.64 | M178: 3.4
B179: Culture & Leisure | C179: % respondents who agree they can influence decisions that affect their local area | D179: 2011 | G179: agree | H179: 5239 | I179: 25 | J179: 0.7208 | K179: 23.64 | L179: 26.47 | M179: 2.83
C180: % respondents who meet family and friends most days | D180: 2011 | H180: 5414 | I180: 35.8 | J180: 0.8 | K180: 34.2 | L180: 37.4 | M180: 3.2
C181: % respondents who meet family and friends every week | D181: 2011 | H181: 5414 | I181: 46.9 | J181: 0.8 | K181: 45.3 | L181: 48.6 | M181: 3.3
C182: % respondents who meet family and friends every month | D182: 2011 | H182: 5414 | I182: 10.2 | J182: 0.5 | K182: 9.2 | L182: 11.3 | M182: 2.1
C183: % respondents who meet family and friends a few times a year | D183: 2011 | H183: 5414 | I183: 6.2 | J183: 0.4 | K183: 5.4 | L183: 7 | M183: 1.6
C184: % respondents who never meet family and friends | D184: 2011 | H184: 5414 | I184: 0.9 | J184: 0.1 | K184: 0.7 | L184: 1.2 | M184: 0.5
C185: % respondents who agree they can influence decisions that affect public services they use | D185: 2011 | H185: 5213 | I185: 19 | J185: 0.6 | K185: 17.8 | L185: 20.3 | M185: 2.5
C186: % respondents who agree that people treat other people with respect in their neighbourhood | D186: 2011 | H186: 5291 | I186: 65.6 | J186: 0.8 | K186: 64 | L186: 67.3 | M186: 3.3
C187: % respondents who agree that women's behaviour can attract and provoke domestic abuse | D187: 2011 | H187: 5150 | I187: 19.3 | J187: 0.6 | K187: 18.1 | L187: 20.5 | M187: 2.4
C188: % respondents who have been discriminated against or harassed because of age | D188: 2011 | H188: 5237 | I188: 3.9 | J188: 0.3 | K188: 3.3 | L188: 4.6 | M188: 1.3
C189: % respondents who have been discriminated against or harassed because of disability | D189: 2011 | H189: 5091 | I189: 2.3 | J189: 0.3 | K189: 1.9 | L189: 2.9 | M189: 1
C190: % respondents who have been discriminated against or harassed because of religion | D190: 2011 | H190: 5084 | I190: 1.7 | J190: 0.2 | K190: 1.2 | L190: 2.2 | M190: 1
C191: % respondents who have been discriminated against or harassed because of sexual orientation | D191: 2011 | H191: 5044 | I191: 1.1 | J191: 0.2 | K191: 0.8 | L191: 1.5 | M191: 0.7
C192: % respondents who have been discriminated against or harassed because of ethnicity/race | D192: 2011 | H192: 5078 | I192: 3.7 | J192: 0.3 | K192: 3.1 | L192: 4.4 | M192: 1.3
C193: % respondents who have been discriminated against or harassed because of gender | D193: 2011 | H193: 5046 | I193: 3.1 | J193: 0.3 | K193: 2.5 | L193: 3.8 | M193: 1.3
C194: % respondents who feel crime has got worse over last 3 years | D194: 2011 | H194: 5247 | I194: 18.3 | J194: 0.7 | K194: 17.1 | L194: 19.7 | M194: 2.6
C195: % respondents who feel safe when outdoors in their neighbourhood during the day | D195: 2011 | H195: 5310 | I195: 90.2 | J195: 0.5 | K195: 89.3 | L195: 91.1 | M195: 1.8
C196: % respondents who visit parks and open spaces at least once a week | D196: 2011 | H196: 5375 | I196: 37 | J196: 0.9 | K196: 35.4 | L196: 38.8 | M196: 3.4
C197: % respondents who think dog fouling is a problem in local area | D197: 2011 | H197: 5198 | I197: 76.2 | J197: 0.8 | K197: 74.6 | L197: 77.7 | M197: 3.1
C198: % respondents who think noise from pubs, clubs and entertainment is a problem | D198: 2011 | H198: 4597 | I198: 20.5 | J198: 0.8 | K198: 19.1 | L198: 22.1 | M198: 3
C199: % respondents satisfied with information on local bus services | D199: 2011 | H199: 4883 | I199: 49.6 | J199: 0.9 | K199: 47.9 | L199: 51.3 | M199: 3.4
C200: % respondents who have participated in creative activities in the last 12 months | D200: 2011 | H200: 5185 | I200: 31.1 | J200: 0.9 | K200: 29.5 | L200: 32.8 | M200: 3.3
... 667 more rows

Sheet summary
B1: Click here to go to Indicators | C1: Return to the instructions | S1: INSTRUCTIONS FOR THE TOOLS BELOW
B2: =workings!AF41 -> Quality of Life in Your Neighbourhood Survey 2015
B3: =workings!H3 -> % respondents who think the state of repair of roads has got worse | S3: Copy the map area to paste into another application
B4: Ward | C4: % | E4: +/- | F4: lower confidence limit | G4: upper confidence limit | S4: This creates a spreadsheet based on the template S:\PPE\IQOL\database\MultiIndicatorExport.xls
B5: Ashley | C5: =IF(MAX(E4:E38)>0,ROUND(workings!H9,0),workings!H9) -> 26 | E5: =workings!L9 -> 9.303173987 | F5: =IF(workings!J9<0,0,workings!J9) -> 18.23935581 | G5: =IF(workings!K9>100,100,workings!K9) -> 36.36170599 | S5: If you have already created a spreadsheet enter the name (without the path) in the cell below
B6: Avonmouth & Lawrence Weston | C6: =IF(MAX(E5:E39)>0,ROUND(workings!H10,0),workings!H10) -> 39 | E6: =workings!L10 -> 10.44375674 | F6: =IF(workings!J10<0,0,workings!J10) -> 29.81813702 | G6: =IF(workings!K10>100,100,workings!K10) -> 50.02036811 | S6: and open it. Otherwise, click the button and create a new file from the template.
B7: Bedminster | C7: =IF(MAX(E6:E40)>0,ROUND(workings!H11,0),workings!H11) -> 31 | E7: =workings!L11 -> 11.1504571 | F7: =IF(workings!J11<0,0,workings!J11) -> 21.05593508 | G7: =IF(workings!K11>100,100,workings!K11) -> 42.64459115 | S7: SaferBristol2013QOLresults.xls
B8: Bishopston & Ashley Down | C8: =IF(MAX(E7:E41)>0,ROUND(workings!H12,0),workings!H12) -> 47 | E8: =workings!L12 -> 11.9613936 | F8: =IF(workings!J12<0,0,workings!J12) -> 35.59254797 | G8: =IF(workings!K12>100,100,workings!K12) -> 58.61809318
B9: Bishopsworth | C9: =IF(MAX(E8:E42)>0,ROUND(workings!H13,0),workings!H13) -> 62 | E9: =workings!L13 -> 12.91116448 | F9: =IF(workings!J13<0,0,workings!J13) -> 48.83610546 | G9: =IF(workings!K13>100,100,workings!K13) -> 73.64926221
B10: Brislington East | C10: =IF(MAX(E9:E43)>0,ROUND(workings!H14,0),workings!H14) -> 47 | E10: =workings!L14 -> 11.32171303 | F10: =IF(workings!J14<0,0,workings!J14) -> 35.78605628 | G10: =IF(workings!K14>100,100,workings!K14) -> 57.62106593
B11: Brislington West | C11: =IF(MAX(E10:E44)>0,ROUND(workings!H15,0),workings!H15) -> 39 | E11: =workings!L15 -> 12.74553864 | F11: =IF(workings!J15<0,0,workings!J15) -> 27.36030141 | G11: =IF(workings!K15>100,100,workings!K15) -> 51.86167277
B12: Central | C12: =IF(MAX(E11:E45)>0,ROUND(workings!H16,0),workings!H16) -> 22 | E12: =workings!L16 -> 11.44882863 | F12: =IF(workings!J16<0,0,workings!J16) -> 12.69420385 | G12: =IF(workings!K16>100,100,workings!K16) -> 35.07182124 | W12: 255 | X12: 255 | Y12: 183
B13: Clifton | C13: =IF(MAX(E12:E46)>0,ROUND(workings!H17,0),workings!H17) -> 32 | E13: =workings!L17 -> 13.15609496 | F13: =IF(workings!J17<0,0,workings!J17) -> 21.03279407 | G13: =IF(workings!K17>100,100,workings!K17) -> 46.35560518
B14: Clifton Down | C14: =IF(MAX(E13:E47)>0,ROUND(workings!H18,0),workings!H18) -> 26 | E14: =workings!L18 -> 12.90716325 | F14: =IF(workings!J18<0,0,workings!J18) -> 15.42260332 | G14: =IF(workings!K18>100,100,workings!K18) -> 40.42666977 | S14: Use this button to quickly scroll through the indicators and viewed on the summary sheet | T14: 255255204 | W14: 254 | X14: 211 | Y14: 126
B15: Cotham | C15: =IF(MAX(E14:E48)>0,ROUND(workings!H19,0),workings!H19) -> 24 | E15: =workings!L19 -> 11.75330539 | F15: =IF(workings!J19<0,0,workings!J19) -> 14.32373914 | G15: =IF(workings!K19>100,100,workings!K19) -> 37.20419763 | S15: Or use the shortcut Ctrl J to do the same
B16: Easton | C16: =IF(MAX(E15:E49)>0,ROUND(workings!H20,0),workings!H20) -> 31 | E16: =workings!L20 -> 9.408419112 | F16: =IF(workings!J20<0,0,workings!J20) -> 22.95134023 | G16: =IF(workings!K20>100,100,workings!K20) -> 41.22793488 | T16: 255204102
B17: Eastville | C17: =IF(MAX(E16:E50)>0,ROUND(workings!H21,0),workings!H21) -> 34 | E17: =workings!L21 -> 10.42820375 | F17: =IF(workings!J21<0,0,workings!J21) -> 24.86687422 | G17: =IF(workings!K21>100,100,workings!K21) -> 45.06214617 | W17: 254 | X17: 153 | Y17: 41
B18: Filwood | C18: =IF(MAX(E17:E51)>0,ROUND(workings!H22,0),workings!H22) -> 45 | E18: =workings!L22 -> 11.31045735 | F18: =IF(workings!J22<0,0,workings!J22) -> 34.38148038 | G18: =IF(workings!K22>100,100,workings!K22) -> 56.19724536 | T18: 204,102,51
B19: Frome Vale | C19: =IF(MAX(E18:E52)>0,ROUND(workings!H23,0),workings!H23) -> 38 | E19: =workings!L23 -> 12.326396 | F19: =IF(workings!J23<0,0,workings!J23) -> 27.01808612 | G19: =IF(workings!K23>100,100,workings!K23) -> 50.74710324 | S19: Export the results to a PDF called the indicator name in the folder below | W19: 165 | X19: 73 | Y19: 11
B20: Hartcliffe & Withywood | C20: =IF(MAX(E19:E53)>0,ROUND(workings!H24,0),workings!H24) -> 54 | E20: =workings!L24 -> 11.0062219 | F20: =IF(workings!J24<0,0,workings!J24) -> 43.09836996 | G20: =IF(workings!K24>100,100,workings!K24) -> 64.34399238
B21: Henbury & Brentry | C21: =IF(MAX(E20:E54)>0,ROUND(workings!H25,0),workings!H25) -> 36 | E21: =workings!L25 -> 10.5688318 | F21: =IF(workings!J25<0,0,workings!J25) -> 26.26625954 | G21: =IF(workings!K25>100,100,workings!K25) -> 46.71831518 | T21: 102,0,0 | W21: 94 | X21: 33 | Y21: 2
B22: Hengrove & Whitchurch Park | C22: =IF(MAX(E21:E55)>0,ROUND(workings!H26,0),workings!H26) -> 55 | E22: =workings!L26 -> 10.98602949 | F22: =IF(workings!J26<0,0,workings!J26) -> 44.17895675 | G22: =IF(workings!K26>100,100,workings!K26) -> 65.38807271 | S22: Export the results to a spreadsheet called the indicator name in the folder below
B23: Hillfields | C23: =IF(MAX(E22:E56)>0,ROUND(workings!H27,0),workings!H27) -> 36 | E23: =workings!L27 -> 11.67039719 | F23: =IF(workings!J27<0,0,workings!J27) -> 25.87044942 | G23: =IF(workings!K27>100,100,workings!K27) -> 48.38801319 | S23: ENTER FOLDER PATH NAME IN THE CELL BELOW
B24: Horfield | C24: =IF(MAX(E23:E57)>0,ROUND(workings!H28,0),workings!H28) -> 43 | E24: =workings!L28 -> 13.32952132 | F24: =IF(workings!J28<0,0,workings!J28) -> 30.26871832 | G24: =IF(workings!K28>100,100,workings!K28) -> 55.82877189 | S24: S:\PPE\IQOL\QoL_2014 survey\results
B25: Hotwells & Harbourside | C25: =IF(MAX(E24:E58)>0,ROUND(workings!H29,0),workings!H29) -> 33 | E25: =workings!L29 -> 13.29781012 | F25: =IF(workings!J29<0,0,workings!J29) -> 21.51702908 | G25: =IF(workings!K29>100,100,workings!K29) -> 47.09321455
B26: Knowle | C26: =IF(MAX(E25:E59)>0,ROUND(workings!H30,0),workings!H30) -> 58 | E26: =workings!L30 -> 10.94347946 | F26: =IF(workings!J30<0,0,workings!J30) -> 47.38142644 | G26: =IF(workings!K30>100,100,workings!K30) -> 68.51695764
B27: Lawrence Hill | C27: =IF(MAX(E26:E60)>0,ROUND(workings!H31,0),workings!H31) -> 30 | E27: =workings!L31 -> 9.774240802 | F27: =IF(workings!J31<0,0,workings!J31) -> 21.20784137 | G27: =IF(workings!K31>100,100,workings!K31) -> 40.19406675
B28: Lockleaze | C28: =IF(MAX(E27:E61)>0,ROUND(workings!H32,0),workings!H32) -> 42 | E28: =workings!L32 -> 11.70012228 | F28: =IF(workings!J32<0,0,workings!J32) -> 30.89963572 | G28: =IF(workings!K32>100,100,workings!K32) -> 53.4492131
B29: Redland | C29: =IF(MAX(E28:E62)>0,ROUND(workings!H33,0),workings!H33) -> 38 | E29: =workings!L33 -> 9.976270979 | F29: =IF(workings!J33<0,0,workings!J33) -> 28.52343458 | G29: =IF(workings!K33>100,100,workings!K33) -> 47.84863102
B30: St George Central | C30: =IF(MAX(E29:E63)>0,ROUND(workings!H34,0),workings!H34) -> 50 | E30: =workings!L34 -> 10.56464572 | F30: =IF(workings!J34<0,0,workings!J34) -> 39.93505883 | G30: =IF(workings!K34>100,100,workings!K34) -> 60.35081048
B31: St George Troopers Hill | C31: =IF(MAX(E30:E64)>0,ROUND(workings!H35,0),workings!H35) -> 40 | E31: =workings!L35 -> 16.39437676 | F31: =IF(workings!J35<0,0,workings!J35) -> 25.08734378 | G31: =IF(workings!K35>100,100,workings!K35) -> 56.20538441
B32: St George West | C32: =IF(MAX(E31:E65)>0,ROUND(workings!H36,0),workings!H36) -> 56 | E32: =workings!L36 -> 11.12244516 | F32: =IF(workings!J36<0,0,workings!J36) -> 44.53322931 | G32: =IF(workings!K36>100,100,workings!K36) -> 65.99841253 | S32: BATCH PDFS
B33: Southmead | C33: =IF(MAX(E32:E66)>0,ROUND(workings!H37,0),workings!H37) -> 48 | E33: =workings!L37 -> 12.29323683 | F33: =IF(workings!J37<0,0,workings!J37) -> 36.18062257 | G33: =IF(workings!K37>100,100,workings!K37) -> 59.82044351
B34: Southville | C34: =IF(MAX(E33:E67)>0,ROUND(workings!H38,0),workings!H38) -> 40 | E34: =workings!L38 -> 10.3875625 | F34: =IF(workings!J38<0,0,workings!J38) -> 30.27668141 | G34: =IF(workings!K38>100,100,workings!K38) -> 50.37182108
B35: Stockwood | C35: =IF(MAX(E34:E68)>0,ROUND(workings!H39,0),workings!H39) -> 52 | E35: =workings!L39 -> 16.98599955 | F35: =IF(workings!J39<0,0,workings!J39) -> 36.02473846 | G35: =IF(workings!K39>100,100,workings!K39) -> 68.14174337
B36: Stoke Bishop | C36: =IF(MAX(E35:E69)>0,ROUND(workings!H40,0),workings!H40) -> 32 | E36: =workings!L40 -> 10.11336342 | F36: =IF(workings!J40<0,0,workings!J40) -> 23.1528897 | G36: =IF(workings!K40>100,100,workings!K40) -> 42.76546033
B37: Westbury-on-Trym & Henleaze | C37: =IF(MAX(E36:E70)>0,ROUND(workings!H41,0),workings!H41) -> 43 | E37: =workings!L41 -> 7.612297024 | F37: =IF(workings!J41<0,0,workings!J41) -> 35.74136163 | G37: =IF(workings!K41>100,100,workings!K41) -> 50.55396581
B38: Windmill Hill | C38: =IF(MAX(E37:E71)>0,ROUND(workings!H42,0),workings!H42) -> 50 | E38: =workings!L42 -> 11.83585482 | F38: =IF(workings!J42<0,0,workings!J42) -> 38.46024314 | G38: =IF(workings!K42>100,100,workings!K42) -> 61.25114321
B40: Bristol | C40: =IF(E40>5,ROUND(VLOOKUP(workings!$H$1,Indicators!$A$2:$K$873,9,FALSE),1),ROUND(VLOOKUP(workings!$H$1,Indicators!$A$2:$K$873,9,FALSE),1)) -> 40.1 | E40: =VLOOKUP(workings!$H$1,Indicators!$A$2:$O$873,13,FALSE) -> 2 | F40: =VLOOKUP(workings!$H$1,Indicators!$A$2:$O$873,11,FALSE) -> 38.2 | G40: =VLOOKUP(workings!$H$1,Indicators!$A$2:$O$873,12,FALSE) -> 42.1
B41: Question number | F41: =workings!H5 -> rQ3c
B42: Sample size | F42: =(workings!$H$8) -> 3523 | T42: All
B43: Year | F43: =(workings!$H$4) -> 2015 | T43: Deprived areas
B44: Deprived Areas | C44: =IF(E44>5,ROUND(VLOOKUP(workings!$H$1,nra!$A$2:$O$2898,9,FALSE),0),ROUND(VLOOKUP(workings!$H$1,nra!$A$2:$O$2898,9,FALSE),1)) -> 40.4 | E44: =VLOOKUP(workings!$H$1,nra!$A$2:$O$2898,13,FALSE) -> 4.474579087 | F44: =VLOOKUP(workings!$H$1,nra!$A$2:$O$2898,11,FALSE) -> 36.03442615 | G44: =VLOOKUP(workings!$H$1,nra!$A$2:$O$2898,12,FALSE) -> 44.98358432 | T44: Older people
B45: Older people | C45: =IF(E45>5,ROUND(VLOOKUP(workings!$H$1,older50!$A$2:$O$2898,9,FALSE),0),ROUND(VLOOKUP(workings!$H$1,older50!$A$2:$O$2898,9,FALSE),1)) -> 47.9 | E45: =VLOOKUP(workings!$H$1,older50!$A$2:$O$2898,13,FALSE) -> 2.3 | F45: =VLOOKUP(workings!$H$1,older50!$A$2:$O$2898,11,FALSE) -> 45.6 | G45: =VLOOKUP(workings!$H$1,older50!$A$2:$O$2898,12,FALSE) -> 50.1 | T45: Disabled people
B46: Disabled people | C46: =IF(E46>5,ROUND(VLOOKUP(workings!$H$1,disabled!$A$2:$O$2898,9,FALSE),0),ROUND(VLOOKUP(workings!$H$1,disabled!$A$2:$O$2898,9,FALSE),1)) -> 51 | E46: =VLOOKUP(workings!$H$1,disabled!$A$2:$O$2898,13,FALSE) -> 5.5 | F46: =VLOOKUP(workings!$H$1,disabled!$A$2:$O$2898,11,FALSE) -> 45.42430359 | G46: =VLOOKUP(workings!$H$1,disabled!$A$2:$O$2898,12,FALSE) -> 56.38250423 | T46: BME
B47: BME | C47: =IF(E47>5,ROUND(VLOOKUP(workings!$H$1,bme!$A$2:$O$2898,9,FALSE),0),ROUND(VLOOKUP(workings!$H$1,bme!$A$2:$O$2898,9,FALSE),1)) -> 24 | E47: =VLOOKUP(workings!$H$1,bme!$A$2:$O$2898,13,FALSE) -> 6.3 | F47: =VLOOKUP(workings!$H$1,bme!$A$2:$O$2898,11,FALSE) -> 18.4257152 | G47: =VLOOKUP(workings!$H$1,bme!$A$2:$O$2898,12,FALSE) -> 31.08621126 | T47: Carer
B48: Carer | C48: =IF(E48>5,ROUND(VLOOKUP(workings!$H$1,carer!$A$2:$O$2896,9,FALSE),0),ROUND(VLOOKUP(workings!$H$1,carer!$A$2:$O$2896,9,FALSE),1)) -> 50 | E48: =VLOOKUP(workings!$H$1,carer!$A$2:$O$2896,13,FALSE) -> 8.265674661 | F48: =VLOOKUP(workings!$H$1,carer!$A$2:$O$2896,11,FALSE) -> 45.58167901 | G48: =VLOOKUP(workings!$H$1,carer!$A$2:$O$2896,12,FALSE) -> 53.84735367 | T48: LGBT
B49: LGBT | C49: =IF(E49>5,ROUND(VLOOKUP(workings!$H$1,lgb!$A$2:$O$2898,9,FALSE),0),ROUND(VLOOKUP(workings!$H$1,lgb!$A$2:$O$2898,9,FALSE),1)) -> 51 | E49: =VLOOKUP(workings!$H$1,lgb!$A$2:$O$2898,13,FALSE) -> 10.37746994 | F49: =VLOOKUP(workings!$H$1,lgb!$A$2:$O$2898,11,FALSE) -> 40.36088069 | G49: =VLOOKUP(workings!$H$1,lgb!$A$2:$O$2898,12,FALSE) -> 61.11582057 | T49: Male
B50: Male | C50: =IF(E50>5,ROUND(VLOOKUP(workings!$H$1,sex!$A$2:$O$2898,9,FALSE),0),ROUND(VLOOKUP(workings!$H$1,sex!$A$2:$O$2898,9,FALSE),1)) -> 42.6 | E50: =VLOOKUP(workings!$H$1,sex!$A$2:$R$2898,13,FALSE) -> 3.121409908 | F50: =VLOOKUP(workings!$H$1,sex!$A$2:$R$2898,11,FALSE) -> 39.49637885 | G50: =VLOOKUP(workings!$H$1,sex!$A$2:$R$2898,12,FALSE) -> 45.73919867 | T50: Female
B51: Female | C51: =IF(E51>5,ROUND(VLOOKUP(workings!$H$1,sex!$A$2:$O$2898,14,FALSE),0),ROUND(VLOOKUP(workings!$H$1,sex!$A$2:$O$2898,14,FALSE),1)) -> 37.7 | E51: =VLOOKUP(workings!$H$1,sex!$A$2:$R$2898,18,FALSE) -> 2.377965762 | F51: =VLOOKUP(workings!$H$1,sex!$A$2:$R$2898,16,FALSE) -> 35.34246509 | G51: =VLOOKUP(workings!$H$1,sex!$A$2:$R$2898,17,FALSE) -> 40.09839661 | T51: Christian
B52: Christian | C52: =IF(E52>5,ROUND(VLOOKUP(workings!$H$1,faith!$A$2:$O$2898,11,FALSE),0),(VLOOKUP(workings!$H$1,faith!$A$2:$O$2898,11,FALSE))) -> 43.63688641 | E52: =VLOOKUP(workings!$H$1,faith!$A$2:$AU$2898,43,FALSE) -> 0 | F52: =VLOOKUP(workings!$H$1,faith!$A$2:$AU$2898,27,FALSE) -> 41.2374916 | G52: =VLOOKUP(workings!$H$1,faith!$A$2:$AU$2898,35,FALSE) -> 46.0664446 | T52: Muslim
B53: Muslim | C53: =IF(E53>5,ROUND(VLOOKUP(workings!$H$1,faith!$A$2:$O$2898,14,FALSE),0),(VLOOKUP(workings!$H$1,faith!$A$2:$O$2898,14,FALSE))) -> 22.46596633 | E53: =VLOOKUP(workings!$H$1,faith!$A$2:$AU$2898,46,FALSE) -> 0 | F53: =VLOOKUP(workings!$H$1,faith!$A$2:$AU$2898,30,FALSE) -> 11.21438566 | G53: =VLOOKUP(workings!$H$1,faith!$A$2:$AU$2898,38,FALSE) -> 39.92949677 | T53: No faith
B54: No faith | C54: =IF(E54>5,ROUND(VLOOKUP(workings!$H$1,faith!$A$2:$O$2898,9,FALSE),0),(VLOOKUP(workings!$H$1,faith!$A$2:$O$2898,9,FALSE))) -> 43.00315535 | E54: =VLOOKUP(workings!$H$1,faith!$A$2:$AU$2898,41,FALSE) -> 0 | F54: =VLOOKUP(workings!$H$1,faith!$A$2:$AU$2898,25,FALSE) -> 40.37234625 | G54: =VLOOKUP(workings!$H$1,faith!$A$2:$AU$2898,33,FALSE) -> 45.6740818
B55: Please note - these are for the new wards for Bristol City Council, effective May 2016. Also, a few indicators are new or have been re-worded such that there is no previous trend data available.
B57: =workings!H3 -> % respondents who think the state of repair of roads has got worse
B85: Return to the list of QUESTIONS | M85: Go to top of page
B89: =workings!H3 -> % respondents who think the state of repair of roads has got worse
B90: By Neighbourhood Partnership Area | H90: % | I90: +/- | J90: lower confidence limit | K90: upper confidence limit
B92: Avonmouth and Kingsweston | G92: NP1602 | H92: =VLOOKUP(workings!$H$1,NPA!$A$2:$V$2898,9,FALSE) -> 39.47045492 | I92: =VLOOKUP(workings!$H$1,NPA!$A$2:$BZ$2898,65,FALSE) -> 10.10111554 | J92: =VLOOKUP(workings!$H$1,NPA!$A$2:$BZ$2898,37,FALSE) -> 29.81813702 | K92: =VLOOKUP(workings!$H$1,NPA!$A$2:$BZ$2898,51,FALSE) -> 50.02036811
B93: Henbury, Brentry & Southmead | G93: NP1610 | H93: =VLOOKUP(workings!$H$1,NPA!$A$2:$V$2898,10,FALSE) -> 41.88385971 | I93: =VLOOKUP(workings!$H$1,NPA!$A$2:$BZ$2898,66,FALSE) -> 7.90775453 | J93: =VLOOKUP(workings!$H$1,NPA!$A$2:$BZ$2898,38,FALSE) -> 34.18446349 | K93: =VLOOKUP(workings!$H$1,NPA!$A$2:$BZ$2898,52,FALSE) -> 49.99997255
B94: Henleaze, Stoke Bishop and Westbury-on-Trym | G94: NP1612 | H94: =VLOOKUP(workings!$H$1,NPA!$A$2:$V$2898,11,FALSE) -> 38.73177516 | I94: =VLOOKUP(workings!$H$1,NPA!$A$2:$BZ$2898,67,FALSE) -> 6.193634401 | J94: =VLOOKUP(workings!$H$1,NPA!$A$2:$BZ$2898,39,FALSE) -> 32.72013967 | K94: =VLOOKUP(workings!$H$1,NPA!$A$2:$BZ$2898,53,FALSE) -> 45.10740847
B95: Horfield and Lockleaze | G95: NP1613 | H95: =VLOOKUP(workings!$H$1,NPA!$A$2:$V$2898,12,FALSE) -> 42.16121858 | I95: =VLOOKUP(workings!$H$1,NPA!$A$2:$BZ$2898,68,FALSE) -> 8.67376949 | J95: =VLOOKUP(workings!$H$1,NPA!$A$2:$BZ$2898,40,FALSE) -> 33.72910354 | K95: =VLOOKUP(workings!$H$1,NPA!$A$2:$BZ$2898,54,FALSE) -> 51.07664252
B96: Greater Fishponds | G96: NP1609 | H96: =VLOOKUP(workings!$H$1,NPA!$A$2:$V$2898,13,FALSE) -> 36.24413218 | I96: =VLOOKUP(workings!$H$1,NPA!$A$2:$BZ$2898,69,FALSE) -> 6.415861261 | J96: =VLOOKUP(workings!$H$1,NPA!$A$2:$BZ$2898,41,FALSE) -> 30.07295624 | K96: =VLOOKUP(workings!$H$1,NPA!$A$2:$BZ$2898,55,FALSE) -> 42.90467876
B97: Bishopston, Cotham and Redland | G97: NP1603 | H97: =VLOOKUP(workings!$H$1,NPA!$A$2:$V$2898,14,FALSE) -> 36.03830299 | I97: =VLOOKUP(workings!$H$1,NPA!$A$2:$BZ$2898,70,FALSE) -> 6.497080846 | J97: =VLOOKUP(workings!$H$1,NPA!$A$2:$BZ$2898,42,FALSE) -> 29.7965037 | K97: =VLOOKUP(workings!$H$1,NPA!$A$2:$BZ$2898,56,FALSE) -> 42.79066539
B98: Cabot, Clifton and Clifton East | G98: NP1604 | H98: =VLOOKUP(workings!$H$1,NPA!$A$2:$V$2898,15,FALSE) -> 27.27606444 | I98: =VLOOKUP(workings!$H$1,NPA!$A$2:$BZ$2898,71,FALSE) -> 6.360256193 | J98: =VLOOKUP(workings!$H$1,NPA!$A$2:$BZ$2898,43,FALSE) -> 21.37679266 | K98: =VLOOKUP(workings!$H$1,NPA!$A$2:$BZ$2898,57,FALSE) -> 34.09730505
B99: Ashley, Easton and Lawrence Hill | G99: NP1601 | H99: =VLOOKUP(workings!$H$1,NPA!$A$2:$V$2898,16,FALSE) -> 28.91277077 | I99: =VLOOKUP(workings!$H$1,NPA!$A$2:$BZ$2898,72,FALSE) -> 5.346347036 | J99: =VLOOKUP(workings!$H$1,NPA!$A$2:$BZ$2898,44,FALSE) -> 23.85880644 | K99: =VLOOKUP(workings!$H$1,NPA!$A$2:$BZ$2898,58,FALSE) -> 34.55150051
B100: St George | G100: NP1614 | H100: =VLOOKUP(workings!$H$1,NPA!$A$2:$V$2898,17,FALSE) -> 49.00398958 | I100: =VLOOKUP(workings!$H$1,NPA!$A$2:$BZ$2898,73,FALSE) -> 7.017185026 | J100: =VLOOKUP(workings!$H$1,NPA!$A$2:$BZ$2898,45,FALSE) -> 42.00642997 | K100: =VLOOKUP(workings!$H$1,NPA!$A$2:$BZ$2898,59,FALSE) -> 56.04080002
B101: Greater Bedminster | G101: NP1607 | H101: =VLOOKUP(workings!$H$1,NPA!$A$2:$V$2898,18,FALSE) -> 35.34334935 | I101: =VLOOKUP(workings!$H$1,NPA!$A$2:$BZ$2898,74,FALSE) -> 7.481871215 | J101: =VLOOKUP(workings!$H$1,NPA!$A$2:$BZ$2898,46,FALSE) -> 28.21968809 | K101: =VLOOKUP(workings!$H$1,NPA!$A$2:$BZ$2898,60,FALSE) -> 43.18343052
B102: Filwood, Knowle and Windmill Hill | G102: NP1606 | H102: =VLOOKUP(workings!$H$1,NPA!$A$2:$V$2898,19,FALSE) -> 51.19364079 | I102: =VLOOKUP(workings!$H$1,NPA!$A$2:$BZ$2898,75,FALSE) -> 6.382574374 | J102: =VLOOKUP(workings!$H$1,NPA!$A$2:$BZ$2898,47,FALSE) -> 44.79160525 | K102: =VLOOKUP(workings!$H$1,NPA!$A$2:$BZ$2898,61,FALSE) -> 57.556754
B103: Greater Brislington | G103: NP1608 | H103: =VLOOKUP(workings!$H$1,NPA!$A$2:$V$2898,20,FALSE) -> 42.81944443 | I103: =VLOOKUP(workings!$H$1,NPA!$A$2:$BZ$2898,76,FALSE) -> 8.189975338 | J103: =VLOOKUP(workings!$H$1,NPA!$A$2:$BZ$2898,48,FALSE) -> 34.82606909 | K103: =VLOOKUP(workings!$H$1,NPA!$A$2:$BZ$2898,62,FALSE) -> 51.20601977
B104: Dundry View | G104: NP1605 | H104: =VLOOKUP(workings!$H$1,NPA!$A$2:$V$2898,21,FALSE) -> 57.14206071 | I104: =VLOOKUP(workings!$H$1,NPA!$A$2:$BZ$2898,77,FALSE) -> 8.178617199 | J104: =VLOOKUP(workings!$H$1,NPA!$A$2:$BZ$2898,49,FALSE) -> 48.76848183 | K104: =VLOOKUP(workings!$H$1,NPA!$A$2:$BZ$2898,63,FALSE) -> 65.12571622
B105: Hengrove, Stockwood & Whitchurch | G105: NP1611 | H105: =VLOOKUP(workings!$H$1,NPA!$A$2:$V$2898,22,FALSE) -> 53.91863862 | I105: =VLOOKUP(workings!$H$1,NPA!$A$2:$BZ$2898,78,FALSE) -> 8.952907954 | J105: =VLOOKUP(workings!$H$1,NPA!$A$2:$BZ$2898,50,FALSE) -> 44.83934068 | K105: =VLOOKUP(workings!$H$1,NPA!$A$2:$BZ$2898,64,FALSE) -> 62.74515659
AR114: `

Sheet summary breakdown (hidden)
B1: Go to instructions | E1: Go to indiators | H1: To Summary page | K1: To ward summary | N1: To NPA summary | U1: up | V1: - | W1: down
B2: Click on a title on the row below to quickly move to that graph The trend tables indicate if there is a statistically significant trend | U2: é | V2: ó | W2: ê | X2: 0
C3: F | D3: Total | E3: Priority Nhoods | F3: Gender | G3: Older 50 | H3: Disabled | I3: BME | J3: Carer | K3: LGBT | L3: Faith | M3: Gap analysis
B4: These graphs show the long term trend for each of the equalities groups. Where the confidence intervals do not overlap between years there is a statistically significant difference. This is indicated by the up or down label in the trend table.
B5: =workings!H3 -> % respondents who think the state of repair of roads has got worse
B6: Total | R6: LC | S6: UC
C7: % | D7: LC | E7: UC | G7: 2yr | H7: 3yr | I7: 4yr | J7: 5yr | K7: 6yr | L7: 7yr | M7: 8yr | N7: 9yr | O7: 10yr
B8: 2005 | C8: =INDIRECT(ADDRESS(record2005,9,,,"Indicators")) ->  | D8: =INDIRECT(ADDRESS(record2005,11,,,"Indicators")) ->  | E8: =INDIRECT(ADDRESS(record2005,12,,,"Indicators")) ->  | R8: =C8-D8 ->  | S8: =E8-C8 -> 
B9: 2006 | C9: =INDIRECT(ADDRESS(record2006,9,,,"Indicators")) ->  | D9: =INDIRECT(ADDRESS(record2006,11,,,"Indicators")) ->  | E9: =INDIRECT(ADDRESS(record2006,12,,,"Indicators")) ->  | G9: =IF(D9>E8,"é",IF(E9<D8,"ê","ó")) -> 
B10: 2007 | C10: =INDIRECT(ADDRESS(record2007,9,,,"Indicators")) ->  | D10: =INDIRECT(ADDRESS(record2007,11,,,"Indicators")) ->  | E10: =INDIRECT(ADDRESS(record2007,12,,,"Indicators")) ->  | G10: =IF(B10>1,IF(D10>E9,"é",IF(E10<D9,"ê","ó")),0) ->  | H10: =IF(B10>1,IF(D10>E8,"é",IF(E10<D8,"ê","ó")),0) -> 
B11: 2008 | C11: =INDIRECT(ADDRESS(record2008,9,,,"Indicators")) ->  | D11: =INDIRECT(ADDRESS(record2008,11,,,"Indicators")) ->  | E11: =INDIRECT(ADDRESS(record2008,12,,,"Indicators")) ->  | I11: =IF(B11>1,IF(D11>E8,"é",IF(E11<D8,"ê","ó")),0) -> 
B12: 2009 | C12: =INDIRECT(ADDRESS(record2009,9,,,"Indicators")) ->  | D12: =INDIRECT(ADDRESS(record2009,11,,,"Indicators")) ->  | E12: =INDIRECT(ADDRESS(record2009,12,,,"Indicators")) ->  | J12: =IF(B12>1,IF(D12>E8,"é",IF(E12<D8,"ê","ó")),0) -> 
B13: 2010 | C13: =INDIRECT(ADDRESS(record2010,9,,,"Indicators")) ->  | D13: =INDIRECT(ADDRESS(record2010,11,,,"Indicators")) ->  | E13: =INDIRECT(ADDRESS(record2010,12,,,"Indicators")) ->  | K13: =IF(B13>1,IF(D13>E8,"é",IF(E13<D8,"ê","ó")),0) -> 
B14: 2011 | C14: =INDIRECT(ADDRESS(record2011,9,,,"Indicators")) ->  | D14: =INDIRECT(ADDRESS(record2011,11,,,"Indicators")) ->  | E14: =INDIRECT(ADDRESS(record2011,12,,,"Indicators")) ->  | K14: =IF(B14>1,IF(D14>E9,"é",IF(E14<D9,"ê","ó")),0) ->  | L14: =IF(B14>1,IF(D14>E8,"é",IF(E14<D8,"ê","ó")),0) -> 
B15: 2012 | C15: =INDIRECT(ADDRESS(record2012,9,,,"Indicators")) ->  | D15: =INDIRECT(ADDRESS(record2012,11,,,"Indicators")) ->  | E15: =INDIRECT(ADDRESS(record2012,12,,,"Indicators")) ->  | K15: =IF(B15>1,IF(D15>E10,"é",IF(E15<D10,"ê","ó")),0) ->  | L15: =IF(B15>1,IF(D15>E9,"é",IF(E15<D9,"ê","ó")),0) ->  | M15: =IF(B15>1,IF(D15>E8,"é",IF(E15<D8,"ê","ó")),0) -> 
B16: 2013 | C16: =INDIRECT(ADDRESS(record2013,9,,,"Indicators")) ->  | D16: =INDIRECT(ADDRESS(record2013,11,,,"Indicators")) ->  | E16: =INDIRECT(ADDRESS(record2013,12,,,"Indicators")) ->  | K16: =IF(B16>1,IF(D16>E11,"é",IF(E16<D11,"ê","ó")),0) ->  | L16: =IF(B16>1,IF(D16>E10,"é",IF(E16<D10,"ê","ó")),0) ->  | M16: =IF(B16>1,IF(D16>E9,"é",IF(E16<D9,"ê","ó")),0) ->  | N16: =IF(B16>1,IF(D16>E8,"é",IF(E16<D8,"ê","ó")),0) -> 
B17: 2014 | C17: =INDIRECT(ADDRESS(record2014,9,,,"Indicators")) ->  | D17: =INDIRECT(ADDRESS(record2014,11,,,"Indicators")) ->  | E17: =INDIRECT(ADDRESS(record2014,12,,,"Indicators")) ->  | K17: =IF(B17>1,IF(D17>E12,"é",IF(E17<D12,"ê","ó")),0) ->  | L17: =IF(B17>1,IF(D17>E11,"é",IF(E17<D11,"ê","ó")),0) ->  | M17: =IF(B17>1,IF(D17>E10,"é",IF(E17<D10,"ê","ó")),0) ->  | N17: =IF(B17>1,IF(D17>E9,"é",IF(E17<D9,"ê","ó")),0) ->  | O17: =IF(B17>1,IF(D17>E8,"é",IF(E17<D8,"ê","ó")),0) -> 
B30: Priority Neighbourhoods
C31: % | D31: LC | E31: UC | F31: Trend | G31: 2yr | H31: 3yr | I31: 4yr | J31: 5yr | K31: 6yr | L31: 7yr | M31: 8yr | N31: 9yr | O31: 10yr
B32: 2005 | C32: =INDIRECT(ADDRESS(record2005,9,,,"nra")) ->  | D32: =INDIRECT(ADDRESS(record2005,11,,,"nra")) ->  | E32: =INDIRECT(ADDRESS(record2005,12,,,"nra")) ->  | R32: =C32-D32 ->  | S32: =E32-C32 -> 
B33: 2006 | C33: =INDIRECT(ADDRESS(record2006,9,,,"nra")) ->  | D33: =INDIRECT(ADDRESS(record2006,11,,,"nra")) ->  | E33: =INDIRECT(ADDRESS(record2006,12,,,"nra")) ->  | G33: =IF(D33>E32,"é",IF(E33<D32,"ê","ó")) -> 
B34: 2007 | C34: =INDIRECT(ADDRESS(record2007,9,,,"nra")) ->  | D34: =INDIRECT(ADDRESS(record2007,11,,,"nra")) ->  | E34: =INDIRECT(ADDRESS(record2007,12,,,"nra")) ->  | G34: =IF(B34>1,IF(D34>E33,"é",IF(E34<D33,"ê","ó")),0) ->  | H34: =IF(B34>1,IF(D34>E32,"é",IF(E34<D32,"ê","ó")),0) -> 
B35: 2008 | C35: =INDIRECT(ADDRESS(record2008,9,,,"nra")) ->  | D35: =INDIRECT(ADDRESS(record2008,11,,,"nra")) ->  | E35: =INDIRECT(ADDRESS(record2008,12,,,"nra")) ->  | I35: =IF(B35>1,IF(D35>E32,"é",IF(E35<D32,"ê","ó")),0) -> 
B36: 2009 | C36: =INDIRECT(ADDRESS(record2009,9,,,"nra")) ->  | D36: =INDIRECT(ADDRESS(record2009,11,,,"nra")) ->  | E36: =INDIRECT(ADDRESS(record2009,12,,,"nra")) ->  | J36: =IF(B36>1,IF(D36>E32,"é",IF(E36<D32,"ê","ó")),0) -> 
B37: 2010 | C37: =INDIRECT(ADDRESS(record2010,9,,,"nra")) ->  | D37: =INDIRECT(ADDRESS(record2010,11,,,"nra")) ->  | E37: =INDIRECT(ADDRESS(record2010,12,,,"nra")) ->  | K37: =IF(B37>1,IF(D37>E32,"é",IF(E37<D32,"ê","ó")),0) -> 
B38: 2011 | C38: =INDIRECT(ADDRESS(record2011,9,,,"nra")) ->  | D38: =INDIRECT(ADDRESS(record2011,11,,,"nra")) ->  | E38: =INDIRECT(ADDRESS(record2011,12,,,"nra")) ->  | K38: =IF(B38>1,IF(D38>E33,"é",IF(E38<D33,"ê","ó")),0) ->  | L38: =IF(B38>1,IF(D38>E32,"é",IF(E38<D32,"ê","ó")),0) -> 
B39: 2012 | C39: =INDIRECT(ADDRESS(record2012,9,,,"nra")) ->  | D39: =INDIRECT(ADDRESS(record2012,11,,,"nra")) ->  | E39: =INDIRECT(ADDRESS(record2012,12,,,"nra")) ->  | K39: =IF(B39>1,IF(D39>E34,"é",IF(E39<D34,"ê","ó")),0) ->  | L39: =IF(B39>1,IF(D39>E33,"é",IF(E39<D33,"ê","ó")),0) ->  | M39: =IF(B39>1,IF(D39>E32,"é",IF(E39<D32,"ê","ó")),0) -> 
B40: 2013 | C40: =INDIRECT(ADDRESS(record2013,9,,,"nra")) ->  | D40: =INDIRECT(ADDRESS(record2013,11,,,"nra")) ->  | E40: =INDIRECT(ADDRESS(record2013,12,,,"nra")) ->  | K40: =IF(B40>1,IF(D40>E35,"é",IF(E40<D35,"ê","ó")),0) ->  | L40: =IF(B40>1,IF(D40>E34,"é",IF(E40<D34,"ê","ó")),0) ->  | M40: =IF(B40>1,IF(D40>E33,"é",IF(E40<D33,"ê","ó")),0) ->  | N40: =IF(B40>1,IF(D40>E32,"é",IF(E40<D32,"ê","ó")),0) -> 
B41: 2014 | C41: =INDIRECT(ADDRESS(record2014,9,,,"nra")) ->  | D41: =INDIRECT(ADDRESS(record2014,11,,,"nra")) ->  | E41: =INDIRECT(ADDRESS(record2014,12,,,"nra")) ->  | K41: =IF(B41>1,IF(D41>E36,"é",IF(E41<D36,"ê","ó")),0) ->  | L41: =IF(B41>1,IF(D41>E35,"é",IF(E41<D35,"ê","ó")),0) ->  | M41: =IF(B41>1,IF(D41>E34,"é",IF(E41<D34,"ê","ó")),0) ->  | N41: =IF(B41>1,IF(D41>E33,"é",IF(E41<D33,"ê","ó")),0) ->  | O41: =IF(B41>1,IF(D41>E32,"é",IF(E41<D32,"ê","ó")),0) -> 
B54: Gender
B55: Male% | D55: LC | E55: UC | F55: Trend | G55: 2yr | H55: 3yr | I55: 4yr | J55: 5yr | K55: 6yr | L55: 7yr | M55: 8yr | N55: 9yr | O55: 10yr
B56: 2005 | C56: =INDIRECT(ADDRESS(record2005,9,,,"sex")) ->  | D56: =INDIRECT(ADDRESS(record2005,11,,,"sex")) ->  | E56: =INDIRECT(ADDRESS(record2005,12,,,"sex")) ->  | R56: =C56-D56 ->  | S56: =E56-C56 -> 
B57: 2006 | C57: =INDIRECT(ADDRESS(record2006,9,,,"sex")) ->  | D57: =INDIRECT(ADDRESS(record2006,11,,,"sex")) ->  | E57: =INDIRECT(ADDRESS(record2006,12,,,"sex")) ->  | G57: =IF(D57>E56,"é",IF(E57<D56,"ê","ó")) -> 
B58: 2007 | C58: =INDIRECT(ADDRESS(record2007,9,,,"sex")) ->  | D58: =INDIRECT(ADDRESS(record2007,11,,,"sex")) ->  | E58: =INDIRECT(ADDRESS(record2007,12,,,"sex")) ->  | G58: =IF(B58>1,IF(D58>E57,"é",IF(E58<D57,"ê","ó")),0) ->  | H58: =IF(B58>1,IF(D58>E56,"é",IF(E58<D56,"ê","ó")),0) -> 
B59: 2008 | C59: =INDIRECT(ADDRESS(record2008,9,,,"sex")) ->  | D59: =INDIRECT(ADDRESS(record2008,11,,,"sex")) ->  | E59: =INDIRECT(ADDRESS(record2008,12,,,"sex")) ->  | I59: =IF(B59>1,IF(D59>E56,"é",IF(E59<D56,"ê","ó")),0) -> 
B60: 2009 | C60: =INDIRECT(ADDRESS(record2009,9,,,"sex")) ->  | D60: =INDIRECT(ADDRESS(record2009,11,,,"sex")) ->  | E60: =INDIRECT(ADDRESS(record2009,12,,,"sex")) ->  | J60: =IF(B60>1,IF(D60>E56,"é",IF(E60<D56,"ê","ó")),0) -> 
B61: 2010 | C61: =INDIRECT(ADDRESS(record2010,9,,,"sex")) ->  | D61: =INDIRECT(ADDRESS(record2010,11,,,"sex")) ->  | E61: =INDIRECT(ADDRESS(record2010,12,,,"sex")) ->  | K61: =IF(B61>1,IF(D61>E56,"é",IF(E61<D56,"ê","ó")),0) -> 
B62: 2011 | C62: =INDIRECT(ADDRESS(record2011,9,,,"sex")) ->  | D62: =INDIRECT(ADDRESS(record2011,11,,,"sex")) ->  | E62: =INDIRECT(ADDRESS(record2011,12,,,"sex")) ->  | K62: =IF(B62>1,IF(D62>E57,"é",IF(E62<D57,"ê","ó")),0) ->  | L62: =IF(B62>1,IF(D62>E56,"é",IF(E62<D56,"ê","ó")),0) -> 
B63: 2012 | C63: =INDIRECT(ADDRESS(record2012,9,,,"sex")) ->  | D63: =INDIRECT(ADDRESS(record2012,11,,,"sex")) ->  | E63: =INDIRECT(ADDRESS(record2012,12,,,"sex")) ->  | K63: =IF(B63>1,IF(D63>E58,"é",IF(E63<D58,"ê","ó")),0) ->  | L63: =IF(B63>1,IF(D63>E57,"é",IF(E63<D57,"ê","ó")),0) ->  | M63: =IF(B63>1,IF(D63>E56,"é",IF(E63<D56,"ê","ó")),0) -> 
B64: 2013 | C64: =INDIRECT(ADDRESS(record2013,9,,,"sex")) ->  | D64: =INDIRECT(ADDRESS(record2013,11,,,"sex")) ->  | E64: =INDIRECT(ADDRESS(record2013,12,,,"sex")) ->  | K64: =IF(B64>1,IF(D64>E59,"é",IF(E64<D59,"ê","ó")),0) ->  | L64: =IF(B64>1,IF(D64>E58,"é",IF(E64<D58,"ê","ó")),0) ->  | M64: =IF(B64>1,IF(D64>E57,"é",IF(E64<D57,"ê","ó")),0) ->  | N64: =IF(B64>1,IF(D64>E56,"é",IF(E64<D56,"ê","ó")),0) -> 
B65: 2014 | C65: =INDIRECT(ADDRESS(record2014,9,,,"sex")) ->  | D65: =INDIRECT(ADDRESS(record2014,11,,,"sex")) ->  | E65: =INDIRECT(ADDRESS(record2014,12,,,"sex")) ->  | K65: =IF(B65>1,IF(D65>E60,"é",IF(E65<D60,"ê","ó")),0) ->  | L65: =IF(B65>1,IF(D65>E59,"é",IF(E65<D59,"ê","ó")),0) ->  | M65: =IF(B65>1,IF(D65>E58,"é",IF(E65<D58,"ê","ó")),0) ->  | N65: =IF(B65>1,IF(D65>E57,"é",IF(E65<D57,"ê","ó")),0) ->  | O65: =IF(B65>1,IF(D65>E56,"é",IF(E65<D56,"ê","ó")),0) -> 
B66: Female% | D66: LC | E66: UC | F66: Trend | G66: 2yr | H66: 3yr | I66: 4yr | J66: 5yr | K66: 6yr | L66: 7yr | M66: 8yr | N66: 9yr | O66: 10yr
B67: 2005 | C67: =INDIRECT(ADDRESS(record2005,14,,,"sex")) ->  | D67: =INDIRECT(ADDRESS(record2005,16,,,"sex")) ->  | E67: =INDIRECT(ADDRESS(record2005,17,,,"sex")) ->  | R67: =C67-D67 ->  | S67: =E67-C67 -> 
B68: 2006 | C68: =INDIRECT(ADDRESS(record2006,14,,,"sex")) ->  | D68: =INDIRECT(ADDRESS(record2006,16,,,"sex")) ->  | E68: =INDIRECT(ADDRESS(record2006,17,,,"sex")) ->  | G68: =IF(D68>E67,"é",IF(E68<D67,"ê","ó")) -> 
B69: 2007 | C69: =INDIRECT(ADDRESS(record2007,14,,,"sex")) ->  | D69: =INDIRECT(ADDRESS(record2007,16,,,"sex")) ->  | E69: =INDIRECT(ADDRESS(record2007,17,,,"sex")) ->  | G69: =IF(B69>1,IF(D69>E68,"é",IF(E69<D68,"ê","ó")),0) ->  | H69: =IF(B69>1,IF(D69>E67,"é",IF(E69<D67,"ê","ó")),0) -> 
B70: 2008 | C70: =INDIRECT(ADDRESS(record2008,14,,,"sex")) ->  | D70: =INDIRECT(ADDRESS(record2008,16,,,"sex")) ->  | E70: =INDIRECT(ADDRESS(record2008,17,,,"sex")) ->  | I70: =IF(B70>1,IF(D70>E67,"é",IF(E70<D67,"ê","ó")),0) -> 
B71: 2009 | C71: =INDIRECT(ADDRESS(record2009,14,,,"sex")) ->  | D71: =INDIRECT(ADDRESS(record2009,16,,,"sex")) ->  | E71: =INDIRECT(ADDRESS(record2009,17,,,"sex")) ->  | J71: =IF(B71>1,IF(D71>E67,"é",IF(E71<D67,"ê","ó")),0) -> 
B72: 2010 | C72: =INDIRECT(ADDRESS(record2010,14,,,"sex")) ->  | D72: =INDIRECT(ADDRESS(record2010,16,,,"sex")) ->  | E72: =INDIRECT(ADDRESS(record2010,17,,,"sex")) ->  | K72: =IF(B72>1,IF(D72>E67,"é",IF(E72<D67,"ê","ó")),0) -> 
B73: 2011 | C73: =INDIRECT(ADDRESS(record2011,14,,,"sex")) ->  | D73: =INDIRECT(ADDRESS(record2011,16,,,"sex")) ->  | E73: =INDIRECT(ADDRESS(record2011,17,,,"sex")) ->  | K73: =IF(B73>1,IF(D73>E68,"é",IF(E73<D68,"ê","ó")),0) ->  | L73: =IF(B73>1,IF(D73>E67,"é",IF(E73<D67,"ê","ó")),0) -> 
B74: 2012 | C74: =INDIRECT(ADDRESS(record2012,14,,,"sex")) ->  | D74: =INDIRECT(ADDRESS(record2012,16,,,"sex")) ->  | E74: =INDIRECT(ADDRESS(record2012,17,,,"sex")) ->  | K74: =IF(B74>1,IF(D74>E69,"é",IF(E74<D69,"ê","ó")),0) ->  | L74: =IF(B74>1,IF(D74>E68,"é",IF(E74<D68,"ê","ó")),0) ->  | M74: =IF(B74>1,IF(D74>E67,"é",IF(E74<D67,"ê","ó")),0) -> 
B75: 2013 | C75: =INDIRECT(ADDRESS(record2013,14,,,"sex")) ->  | D75: =INDIRECT(ADDRESS(record2013,16,,,"sex")) ->  | E75: =INDIRECT(ADDRESS(record2013,17,,,"sex")) ->  | K75: =IF(B75>1,IF(D75>E70,"é",IF(E75<D70,"ê","ó")),0) ->  | L75: =IF(B75>1,IF(D75>E69,"é",IF(E75<D69,"ê","ó")),0) ->  | M75: =IF(B75>1,IF(D75>E68,"é",IF(E75<D68,"ê","ó")),0) ->  | N75: =IF(B75>1,IF(D75>E67,"é",IF(E75<D67,"ê","ó")),0) -> 
B76: 2014 | C76: =INDIRECT(ADDRESS(record2014,14,,,"sex")) ->  | D76: =INDIRECT(ADDRESS(record2014,16,,,"sex")) ->  | E76: =INDIRECT(ADDRESS(record2014,17,,,"sex")) ->  | K76: =IF(B76>1,IF(D76>E71,"é",IF(E76<D71,"ê","ó")),0) ->  | L76: =IF(B76>1,IF(D76>E70,"é",IF(E76<D70,"ê","ó")),0) ->  | M76: =IF(B76>1,IF(D76>E69,"é",IF(E76<D69,"ê","ó")),0) ->  | N76: =IF(B76>1,IF(D76>E68,"é",IF(E76<D68,"ê","ó")),0) ->  | O76: =IF(B76>1,IF(D76>E67,"é",IF(E76<D67,"ê","ó")),0) -> 
B90: Older 50
C92: % | D92: LC | E92: UC | F92: Trend | G92: 2yr | H92: 3yr | I92: 4yr | J92: 5yr | K92: 6yr | L92: 7yr | M92: 8yr | N92: 9yr | O92: 10yr
B93: 2005 | C93: =INDIRECT(ADDRESS(record2005,9,,,"older50")) ->  | D93: =INDIRECT(ADDRESS(record2005,11,,,"older50")) ->  | E93: =INDIRECT(ADDRESS(record2005,12,,,"older50")) ->  | R93: =C93-D93 ->  | S93: =E93-C93 -> 
B94: 2006 | C94: =INDIRECT(ADDRESS(record2006,9,,,"older50")) ->  | D94: =INDIRECT(ADDRESS(record2006,11,,,"older50")) ->  | E94: =INDIRECT(ADDRESS(record2006,12,,,"older50")) ->  | G94: =IF(D94>E93,"é",IF(E94<D93,"ê","ó")) -> 
B95: 2007 | C95: =INDIRECT(ADDRESS(record2007,9,,,"older50")) ->  | D95: =INDIRECT(ADDRESS(record2007,11,,,"older50")) ->  | E95: =INDIRECT(ADDRESS(record2007,12,,,"older50")) ->  | G95: =IF(B95>1,IF(D95>E94,"é",IF(E95<D94,"ê","ó")),0) ->  | H95: =IF(B95>1,IF(D95>E93,"é",IF(E95<D93,"ê","ó")),0) -> 
B96: 2008 | C96: =INDIRECT(ADDRESS(record2008,9,,,"older50")) ->  | D96: =INDIRECT(ADDRESS(record2008,11,,,"older50")) ->  | E96: =INDIRECT(ADDRESS(record2008,12,,,"older50")) ->  | I96: =IF(B96>1,IF(D96>E93,"é",IF(E96<D93,"ê","ó")),0) -> 
B97: 2009 | C97: =INDIRECT(ADDRESS(record2009,9,,,"older50")) ->  | D97: =INDIRECT(ADDRESS(record2009,11,,,"older50")) ->  | E97: =INDIRECT(ADDRESS(record2009,12,,,"older50")) ->  | J97: =IF(B97>1,IF(D97>E93,"é",IF(E97<D93,"ê","ó")),0) -> 
B98: 2010 | C98: =INDIRECT(ADDRESS(record2010,9,,,"older50")) ->  | D98: =INDIRECT(ADDRESS(record2010,11,,,"older50")) ->  | E98: =INDIRECT(ADDRESS(record2010,12,,,"older50")) ->  | K98: =IF(B98>1,IF(D98>E93,"é",IF(E98<D93,"ê","ó")),0) -> 
B99: 2011 | C99: =INDIRECT(ADDRESS(record2011,9,,,"older50")) ->  | D99: =INDIRECT(ADDRESS(record2011,11,,,"older50")) ->  | E99: =INDIRECT(ADDRESS(record2011,12,,,"older50")) ->  | K99: =IF(B99>1,IF(D99>E94,"é",IF(E99<D94,"ê","ó")),0) ->  | L99: =IF(B99>1,IF(D99>E93,"é",IF(E99<D93,"ê","ó")),0) -> 
B100: 2012 | C100: =INDIRECT(ADDRESS(record2012,9,,,"older50")) ->  | D100: =INDIRECT(ADDRESS(record2012,11,,,"older50")) ->  | E100: =INDIRECT(ADDRESS(record2012,12,,,"older50")) ->  | K100: =IF(B100>1,IF(D100>E95,"é",IF(E100<D95,"ê","ó")),0) ->  | L100: =IF(B100>1,IF(D100>E94,"é",IF(E100<D94,"ê","ó")),0) ->  | M100: =IF(B100>1,IF(D100>E93,"é",IF(E100<D93,"ê","ó")),0) -> 
B101: 2013 | C101: =INDIRECT(ADDRESS(record2013,9,,,"older50")) ->  | D101: =INDIRECT(ADDRESS(record2013,11,,,"older50")) ->  | E101: =INDIRECT(ADDRESS(record2013,12,,,"older50")) ->  | K101: =IF(B101>1,IF(D101>E96,"é",IF(E101<D96,"ê","ó")),0) ->  | L101: =IF(B101>1,IF(D101>E95,"é",IF(E101<D95,"ê","ó")),0) ->  | M101: =IF(B101>1,IF(D101>E94,"é",IF(E101<D94,"ê","ó")),0) ->  | N101: =IF(B101>1,IF(D101>E93,"é",IF(E101<D93,"ê","ó")),0) -> 
B102: 2014 | C102: =INDIRECT(ADDRESS(record2014,9,,,"older50")) ->  | D102: =INDIRECT(ADDRESS(record2014,11,,,"older50")) ->  | E102: =INDIRECT(ADDRESS(record2014,12,,,"older50")) ->  | K102: =IF(B102>1,IF(D102>E97,"é",IF(E102<D97,"ê","ó")),0) ->  | L102: =IF(B102>1,IF(D102>E96,"é",IF(E102<D96,"ê","ó")),0) ->  | M102: =IF(B102>1,IF(D102>E95,"é",IF(E102<D95,"ê","ó")),0) ->  | N102: =IF(B102>1,IF(D102>E94,"é",IF(E102<D94,"ê","ó")),0) ->  | O102: =IF(E102>1,IF(D102>E93,"é",IF(E102<D93,"ê","ó")),0) -> 
B116: Disabled
C118: % | D118: LC | E118: UC | F118: Trend | G118: 2yr | H118: 3yr | I118: 4yr | J118: 5yr | K118: 6yr | L118: 7yr | M118: 8yr | N118: 9yr | O118: 10yr
B119: 2005 | C119: =INDIRECT(ADDRESS(record2005,9,,,"disabled")) ->  | D119: =INDIRECT(ADDRESS(record2005,11,,,"disabled")) ->  | E119: =INDIRECT(ADDRESS(record2005,12,,,"disabled")) ->  | R119: =C119-D119 ->  | S119: =E119-C119 -> 
B120: 2006 | C120: =INDIRECT(ADDRESS(record2006,9,,,"disabled")) ->  | D120: =INDIRECT(ADDRESS(record2006,11,,,"disabled")) ->  | E120: =INDIRECT(ADDRESS(record2006,12,,,"disabled")) ->  | G120: =IF(D120>E119,"é",IF(E120<D119,"ê","ó")) -> 
B121: 2007 | C121: =INDIRECT(ADDRESS(record2007,9,,,"disabled")) ->  | D121: =INDIRECT(ADDRESS(record2007,11,,,"disabled")) ->  | E121: =INDIRECT(ADDRESS(record2007,12,,,"disabled")) ->  | G121: =IF(B121>1,IF(D121>E120,"é",IF(E121<D120,"ê","ó")),0) ->  | H121: =IF(B121>1,IF(D121>E119,"é",IF(E121<D119,"ê","ó")),0) -> 
B122: 2008 | C122: =INDIRECT(ADDRESS(record2008,9,,,"disabled")) ->  | D122: =INDIRECT(ADDRESS(record2008,11,,,"disabled")) ->  | E122: =INDIRECT(ADDRESS(record2008,12,,,"disabled")) ->  | I122: =IF(B122>1,IF(D122>E119,"é",IF(E122<D119,"ê","ó")),0) -> 
B123: 2009 | C123: =INDIRECT(ADDRESS(record2009,9,,,"disabled")) ->  | D123: =INDIRECT(ADDRESS(record2009,11,,,"disabled")) ->  | E123: =INDIRECT(ADDRESS(record2009,12,,,"disabled")) ->  | J123: =IF(B123>1,IF(D123>E119,"é",IF(E123<D119,"ê","ó")),0) -> 
B124: 2010 | C124: =INDIRECT(ADDRESS(record2010,9,,,"disabled")) ->  | D124: =INDIRECT(ADDRESS(record2010,11,,,"disabled")) ->  | E124: =INDIRECT(ADDRESS(record2010,12,,,"disabled")) ->  | K124: =IF(B124>1,IF(D124>E119,"é",IF(E124<D119,"ê","ó")),0) -> 
B125: 2011 | C125: =INDIRECT(ADDRESS(record2011,9,,,"disabled")) ->  | D125: =INDIRECT(ADDRESS(record2011,11,,,"disabled")) ->  | E125: =INDIRECT(ADDRESS(record2011,12,,,"disabled")) ->  | K125: =IF(B125>1,IF(D125>E120,"é",IF(E125<D120,"ê","ó")),0) ->  | L125: =IF(B125>1,IF(D125>E119,"é",IF(E125<D119,"ê","ó")),0) -> 
B126: 2012 | C126: =INDIRECT(ADDRESS(record2012,9,,,"disabled")) ->  | D126: =INDIRECT(ADDRESS(record2012,11,,,"disabled")) ->  | E126: =INDIRECT(ADDRESS(record2012,12,,,"disabled")) ->  | K126: =IF(B126>1,IF(D126>E121,"é",IF(E126<D121,"ê","ó")),0) ->  | L126: =IF(B126>1,IF(D126>E120,"é",IF(E126<D120,"ê","ó")),0) ->  | M126: =IF(B126>1,IF(D126>E119,"é",IF(E126<D119,"ê","ó")),0) -> 
B127: 2013 | C127: =INDIRECT(ADDRESS(record2013,9,,,"disabled")) ->  | D127: =INDIRECT(ADDRESS(record2013,11,,,"disabled")) ->  | E127: =INDIRECT(ADDRESS(record2013,12,,,"disabled")) ->  | K127: =IF(B127>1,IF(D127>E122,"é",IF(E127<D122,"ê","ó")),0) ->  | L127: =IF(B127>1,IF(D127>E121,"é",IF(E127<D121,"ê","ó")),0) ->  | M127: =IF(B127>1,IF(D127>E120,"é",IF(E127<D120,"ê","ó")),0) ->  | N127: =IF(B127>1,IF(D127>E119,"é",IF(E127<D119,"ê","ó")),0) -> 
B128: 2014 | C128: =INDIRECT(ADDRESS(record2014,9,,,"disabled")) ->  | D128: =INDIRECT(ADDRESS(record2014,11,,,"disabled")) ->  | E128: =INDIRECT(ADDRESS(record2014,12,,,"disabled")) ->  | K128: =IF(B128>1,IF(D128>E123,"é",IF(E128<D123,"ê","ó")),0) ->  | L128: =IF(B128>1,IF(D128>E122,"é",IF(E128<D122,"ê","ó")),0) ->  | M128: =IF(B128>1,IF(D128>E121,"é",IF(E128<D121,"ê","ó")),0) ->  | N128: =IF(B128>1,IF(D128>E120,"é",IF(E128<D120,"ê","ó")),0) ->  | O128: =IF(B128>1,IF(D128>E119,"é",IF(E128<D119,"ê","ó")),0) -> 
B142: BME
C144: % | D144: LC | E144: UC | F144: Trend | G144: 2yr | H144: 3yr | I144: 4yr | J144: 5yr | K144: 6yr | L144: 7yr | M144: 8yr | N144: 9yr | O144: 10yr
B145: 2005 | C145: =INDIRECT(ADDRESS(record2005,9,,,"bme")) ->  | D145: =INDIRECT(ADDRESS(record2005,11,,,"bme")) ->  | E145: =INDIRECT(ADDRESS(record2005,12,,,"bme")) ->  | R145: =C145-D145 ->  | S145: =E145-C145 -> 
B146: 2006 | C146: =INDIRECT(ADDRESS(record2006,9,,,"bme")) ->  | D146: =INDIRECT(ADDRESS(record2006,11,,,"bme")) ->  | E146: =INDIRECT(ADDRESS(record2006,12,,,"bme")) ->  | G146: =IF(D146>E145,"é",IF(E146<D145,"ê","ó")) -> 
B147: 2007 | C147: =INDIRECT(ADDRESS(record2007,9,,,"bme")) ->  | D147: =INDIRECT(ADDRESS(record2007,11,,,"bme")) ->  | E147: =INDIRECT(ADDRESS(record2007,12,,,"bme")) ->  | G147: =IF(B147>1,IF(D147>E146,"é",IF(E147<D146,"ê","ó")),0) ->  | H147: =IF(B147>1,IF(D147>E145,"é",IF(E147<D145,"ê","ó")),0) -> 
B148: 2008 | C148: =INDIRECT(ADDRESS(record2008,9,,,"bme")) ->  | D148: =INDIRECT(ADDRESS(record2008,11,,,"bme")) ->  | E148: =INDIRECT(ADDRESS(record2008,12,,,"bme")) ->  | I148: =IF(B148>1,IF(D148>E145,"é",IF(E148<D145,"ê","ó")),0) -> 
B149: 2009 | C149: =INDIRECT(ADDRESS(record2009,9,,,"bme")) ->  | D149: =INDIRECT(ADDRESS(record2009,11,,,"bme")) ->  | E149: =INDIRECT(ADDRESS(record2009,12,,,"bme")) ->  | J149: =IF(B149>1,IF(D149>E145,"é",IF(E149<D145,"ê","ó")),0) -> 
B150: 2010 | C150: =INDIRECT(ADDRESS(record2010,9,,,"bme")) ->  | D150: =INDIRECT(ADDRESS(record2010,11,,,"bme")) ->  | E150: =INDIRECT(ADDRESS(record2010,12,,,"bme")) ->  | K150: =IF(B150>1,IF(D150>E145,"é",IF(E150<D145,"ê","ó")),0) -> 
B151: 2011 | C151: =INDIRECT(ADDRESS(record2011,9,,,"bme")) ->  | D151: =INDIRECT(ADDRESS(record2011,11,,,"bme")) ->  | E151: =INDIRECT(ADDRESS(record2011,12,,,"bme")) ->  | K151: =IF(B151>1,IF(D151>E146,"é",IF(E151<D146,"ê","ó")),0) ->  | L151: =IF(B151>1,IF(D151>E145,"é",IF(E151<D145,"ê","ó")),0) -> 
B152: 2012 | C152: =INDIRECT(ADDRESS(record2012,9,,,"bme")) ->  | D152: =INDIRECT(ADDRESS(record2012,11,,,"bme")) ->  | E152: =INDIRECT(ADDRESS(record2012,12,,,"bme")) ->  | K152: =IF(B152>1,IF(D152>E147,"é",IF(E152<D147,"ê","ó")),0) ->  | L152: =IF(B152>1,IF(D152>E146,"é",IF(E152<D146,"ê","ó")),0) ->  | M152: =IF(B152>1,IF(D152>E145,"é",IF(E152<D145,"ê","ó")),0) -> 
B153: 2013 | C153: =INDIRECT(ADDRESS(record2013,9,,,"bme")) ->  | D153: =INDIRECT(ADDRESS(record2013,11,,,"bme")) ->  | E153: =INDIRECT(ADDRESS(record2013,12,,,"bme")) ->  | K153: =IF(B153>1,IF(D153>E148,"é",IF(E153<D148,"ê","ó")),0) ->  | L153: =IF(B153>1,IF(D153>E147,"é",IF(E153<D147,"ê","ó")),0) ->  | M153: =IF(B153>1,IF(D153>E146,"é",IF(E153<D146,"ê","ó")),0) ->  | N153: =IF(B153>1,IF(D153>E145,"é",IF(E153<D145,"ê","ó")),0) -> 
B154: 2014 | C154: =INDIRECT(ADDRESS(record2014,9,,,"bme")) ->  | D154: =INDIRECT(ADDRESS(record2014,11,,,"bme")) ->  | E154: =INDIRECT(ADDRESS(record2014,12,,,"bme")) ->  | K154: =IF(B154>1,IF(D154>E149,"é",IF(E154<D149,"ê","ó")),0) ->  | L154: =IF(B154>1,IF(D154>E148,"é",IF(E154<D148,"ê","ó")),0) ->  | M154: =IF(B154>1,IF(D154>E147,"é",IF(E154<D147,"ê","ó")),0) ->  | N154: =IF(B154>1,IF(D154>E146,"é",IF(E154<D146,"ê","ó")),0) ->  | O154: =IF(B154>1,IF(D154>E145,"é",IF(E154<D145,"ê","ó")),0) -> 
B168: Carer
C170: % | D170: LC | E170: UC | F170: Trend | G170: 2yr | H170: 3yr | I170: 4yr | J170: 5yr | K170: 6yr | L170: 7yr | M170: 8yr | N170: 9yr | O170: 10yr
B171: 2005 | C171: =IF(INDIRECT(ADDRESS(record2005,9,,,"carer"))=0,#N/A,INDIRECT(ADDRESS(record2005,9,,,"carer"))) ->  | D171: =IF(INDIRECT(ADDRESS(record2005,11,,,"carer"))=0,#N/A,INDIRECT(ADDRESS(record2005,11,,,"carer"))) ->  | E171: =IF(INDIRECT(ADDRESS(record2005,12,,,"carer"))=0,#N/A,INDIRECT(ADDRESS(record2005,12,,,"carer"))) ->  | R171: =C171-D171 ->  | S171: =E171-C171 -> 
B172: 2006 | C172: =INDIRECT(ADDRESS(record2006,9,,,"carer")) ->  | D172: =INDIRECT(ADDRESS(record2006,11,,,"carer")) ->  | E172: =INDIRECT(ADDRESS(record2006,12,,,"carer")) ->  | G172: =IF(D172>E171,"é",IF(E172<D171,"ê","ó")) -> 
B173: 2007 | C173: =INDIRECT(ADDRESS(record2007,9,,,"carer")) ->  | D173: =INDIRECT(ADDRESS(record2007,11,,,"carer")) ->  | E173: =INDIRECT(ADDRESS(record2007,12,,,"carer")) ->  | G173: =IF(B173>1,IF(D173>E172,"é",IF(E173<D172,"ê","ó")),0) ->  | H173: =IF(B173>1,IF(D173>E171,"é",IF(E173<D171,"ê","ó")),0) -> 
B174: 2008 | C174: =INDIRECT(ADDRESS(record2008,9,,,"carer")) ->  | D174: =INDIRECT(ADDRESS(record2008,11,,,"carer")) ->  | E174: =INDIRECT(ADDRESS(record2008,12,,,"carer")) ->  | I174: =IF(B174>1,IF(D174>E171,"é",IF(E174<D171,"ê","ó")),0) -> 
B175: 2009 | C175: =INDIRECT(ADDRESS(record2009,9,,,"carer")) ->  | D175: =INDIRECT(ADDRESS(record2009,11,,,"carer")) ->  | E175: =INDIRECT(ADDRESS(record2009,12,,,"carer")) ->  | J175: =IF(B175>1,IF(D175>E171,"é",IF(E175<D171,"ê","ó")),0) -> 
B176: 2010 | C176: =INDIRECT(ADDRESS(record2010,9,,,"carer")) ->  | D176: =INDIRECT(ADDRESS(record2010,11,,,"carer")) ->  | E176: =INDIRECT(ADDRESS(record2010,12,,,"carer")) ->  | K176: =IF(B176>1,IF(D176>E171,"é",IF(E176<D171,"ê","ó")),0) -> 
B177: 2011 | C177: =INDIRECT(ADDRESS(record2011,9,,,"carer")) ->  | D177: =INDIRECT(ADDRESS(record2011,11,,,"carer")) ->  | E177: =INDIRECT(ADDRESS(record2011,12,,,"carer")) ->  | K177: =IF(B177>1,IF(D177>E172,"é",IF(E177<D172,"ê","ó")),0) ->  | L177: =IF(B177>1,IF(D177>E171,"é",IF(E177<D171,"ê","ó")),0) -> 
B178: 2012 | C178: =INDIRECT(ADDRESS(record2012,9,,,"carer")) ->  | D178: =INDIRECT(ADDRESS(record2012,11,,,"carer")) ->  | E178: =INDIRECT(ADDRESS(record2012,12,,,"carer")) ->  | K178: =IF(B178>1,IF(D178>E173,"é",IF(E178<D173,"ê","ó")),0) ->  | L178: =IF(B178>1,IF(D178>E172,"é",IF(E178<D172,"ê","ó")),0) ->  | M178: =IF(B178>1,IF(D178>E171,"é",IF(E178<D171,"ê","ó")),0) -> 
B179: 2013 | C179: =INDIRECT(ADDRESS(record2013,9,,,"carer")) ->  | D179: =INDIRECT(ADDRESS(record2013,11,,,"carer")) ->  | E179: =INDIRECT(ADDRESS(record2013,12,,,"carer")) ->  | K179: =IF(B179>1,IF(D179>E174,"é",IF(E179<D174,"ê","ó")),0) ->  | L179: =IF(B179>1,IF(D179>E173,"é",IF(E179<D173,"ê","ó")),0) ->  | M179: =IF(B179>1,IF(D179>E172,"é",IF(E179<D172,"ê","ó")),0) ->  | N179: =IF(B179>1,IF(D179>E171,"é",IF(E179<D171,"ê","ó")),0) -> 
B180: 2014 | C180: =INDIRECT(ADDRESS(record2014,9,,,"carer")) ->  | D180: =INDIRECT(ADDRESS(record2014,11,,,"carer")) ->  | E180: =INDIRECT(ADDRESS(record2014,12,,,"carer")) ->  | K180: =IF(B180>1,IF(D180>E175,"é",IF(E180<D175,"ê","ó")),0) ->  | L180: =IF(B180>1,IF(D180>E174,"é",IF(E180<D174,"ê","ó")),0) ->  | M180: =IF(B180>1,IF(D180>E173,"é",IF(E180<D173,"ê","ó")),0) ->  | N180: =IF(B180>1,IF(D180>E172,"é",IF(E180<D172,"ê","ó")),0) ->  | O180: =IF(B180>1,IF(D180>E171,"é",IF(E180<D171,"ê","ó")),0) -> 
B193: LGBT
C195: % | D195: LC | E195: UC | F195: Trend | G195: 2yr | H195: 3yr | I195: 4yr | J195: 5yr | K195: 6yr | L195: 7yr | M195: 8yr | N195: 9yr | O195: 10yr
B196: 2005 | C196: =IF(INDIRECT(ADDRESS(record2005,9,,,"lgb"))=0,#N/A,INDIRECT(ADDRESS(record2005,9,,,"lgb"))) ->  | D196: =IF(INDIRECT(ADDRESS(record2005,11,,,"lgb"))=0,#N/A,INDIRECT(ADDRESS(record2005,11,,,"lgb"))) ->  | E196: =IF(INDIRECT(ADDRESS(record2005,12,,,"lgb"))=0,#N/A,INDIRECT(ADDRESS(record2005,12,,,"lgb"))) ->  | R196: =C196-D196 ->  | S196: =E196-C196 -> 
B197: 2006 | C197: =INDIRECT(ADDRESS(record2006,9,,,"lgb")) ->  | D197: =INDIRECT(ADDRESS(record2006,11,,,"lgb")) ->  | E197: =INDIRECT(ADDRESS(record2006,12,,,"lgb")) ->  | G197: =IF(D197>E196,"é",IF(E197<D196,"ê","ó")) -> 
B198: 2007 | C198: =INDIRECT(ADDRESS(record2007,9,,,"lgb")) ->  | D198: =INDIRECT(ADDRESS(record2007,11,,,"lgb")) ->  | E198: =INDIRECT(ADDRESS(record2007,12,,,"lgb")) ->  | G198: =IF(B198>1,IF(D198>E197,"é",IF(E198<D197,"ê","ó")),0) ->  | H198: =IF(B198>1,IF(D198>E196,"é",IF(E198<D196,"ê","ó")),0) -> 
B199: 2008 | C199: =INDIRECT(ADDRESS(record2008,9,,,"lgb")) ->  | D199: =INDIRECT(ADDRESS(record2008,11,,,"lgb")) ->  | E199: =INDIRECT(ADDRESS(record2008,12,,,"lgb")) ->  | I199: =IF(B199>1,IF(D199>E196,"é",IF(E199<D196,"ê","ó")),0) -> 
B200: 2009 | C200: =INDIRECT(ADDRESS(record2009,9,,,"lgb")) ->  | D200: =INDIRECT(ADDRESS(record2009,11,,,"lgb")) ->  | E200: =INDIRECT(ADDRESS(record2009,12,,,"lgb")) ->  | J200: =IF(B200>1,IF(D200>E196,"é",IF(E200<D196,"ê","ó")),0) -> 
B201: 2010 | C201: =INDIRECT(ADDRESS(record2010,9,,,"lgb")) ->  | D201: =INDIRECT(ADDRESS(record2010,11,,,"lgb")) ->  | E201: =INDIRECT(ADDRESS(record2010,12,,,"lgb")) ->  | K201: =IF(B201>1,IF(D201>E196,"é",IF(E201<D196,"ê","ó")),0) -> 
B202: 2011 | C202: =INDIRECT(ADDRESS(record2011,9,,,"lgb")) ->  | D202: =INDIRECT(ADDRESS(record2011,11,,,"lgb")) ->  | E202: =INDIRECT(ADDRESS(record2011,12,,,"lgb")) ->  | K202: =IF(B202>1,IF(D202>E197,"é",IF(E202<D197,"ê","ó")),0) ->  | L202: =IF(B202>1,IF(D202>E196,"é",IF(E202<D196,"ê","ó")),0) -> 
B203: 2012 | C203: =INDIRECT(ADDRESS(record2012,9,,,"lgb")) ->  | D203: =INDIRECT(ADDRESS(record2012,11,,,"lgb")) ->  | E203: =INDIRECT(ADDRESS(record2012,12,,,"lgb")) ->  | K203: =IF(B203>1,IF(D203>E198,"é",IF(E203<D198,"ê","ó")),0) ->  | L203: =IF(B203>1,IF(D203>E197,"é",IF(E203<D197,"ê","ó")),0) ->  | M203: =IF(B203>1,IF(D203>E196,"é",IF(E203<D196,"ê","ó")),0) -> 
B204: 2013 | C204: =INDIRECT(ADDRESS(record2013,9,,,"lgb")) ->  | D204: =INDIRECT(ADDRESS(record2013,11,,,"lgb")) ->  | E204: =INDIRECT(ADDRESS(record2013,12,,,"lgb")) ->  | K204: =IF(B204>1,IF(D204>E199,"é",IF(E204<D199,"ê","ó")),0) ->  | L204: =IF(B204>1,IF(D204>E198,"é",IF(E204<D198,"ê","ó")),0) ->  | M204: =IF(B204>1,IF(D204>E197,"é",IF(E204<D197,"ê","ó")),0) ->  | N204: =IF(B204>1,IF(D204>E196,"é",IF(E204<D196,"ê","ó")),0) -> 
B205: 2014 | C205: =INDIRECT(ADDRESS(record2014,9,,,"lgb")) ->  | D205: =INDIRECT(ADDRESS(record2014,11,,,"lgb")) ->  | E205: =INDIRECT(ADDRESS(record2014,12,,,"lgb")) ->  | K205: =IF(B205>1,IF(D205>E200,"é",IF(E205<D200,"ê","ó")),0) ->  | L205: =IF(B205>1,IF(D205>E199,"é",IF(E205<D199,"ê","ó")),0) ->  | M205: =IF(B205>1,IF(D205>E198,"é",IF(E205<D198,"ê","ó")),0) ->  | N205: =IF(B205>1,IF(D205>E197,"é",IF(E205<D197,"ê","ó")),0) ->  | O205: =IF(B205>1,IF(D205>E196,"é",IF(E205<D196,"ê","ó")),0) -> 
B219: Faith
B221: % none | D221: LC | E221: UC | F221: Trend | G221: 2yr | H221: 3yr | I221: 4yr | J221: 5yr | K221: 6yr | L221: 7yr | M221: 8yr | N221: 9yr | O221: 10yr
B222: 2005 | C222: =IF(INDIRECT(ADDRESS(record2005,9,,,"faith"))="",#N/A,INDIRECT(ADDRESS(record2005,9,,,"faith"))) ->  | D222: =IF(INDIRECT(ADDRESS(record2005,25,,,"faith"))=0,#N/A,INDIRECT(ADDRESS(record2005,25,,,"faith"))) ->  | E222: =IF(INDIRECT(ADDRESS(record2005,33,,,"faith"))=0,#N/A,INDIRECT(ADDRESS(record2005,33,,,"faith"))) ->  | R222: =C222-D222 ->  | S222: =E222-C222 -> 
B223: 2006 | C223: =INDIRECT(ADDRESS(record2006,9,,,"faith")) ->  | D223: =INDIRECT(ADDRESS(record2006,25,,,"faith")) ->  | E223: =INDIRECT(ADDRESS(record2006,33,,,"faith")) ->  | G223: =IF(D223>E222,"é",IF(E223<D222,"ê","ó")) -> 
B224: 2007 | C224: =INDIRECT(ADDRESS(record2007,9,,,"faith")) ->  | D224: =INDIRECT(ADDRESS(record2007,25,,,"faith")) ->  | E224: =INDIRECT(ADDRESS(record2007,33,,,"faith")) ->  | G224: =IF(B224>1,IF(D224>E223,"é",IF(E224<D223,"ê","ó")),0) ->  | H224: =IF(B224>1,IF(D224>E222,"é",IF(E224<D222,"ê","ó")),0) -> 
B225: 2008 | C225: =INDIRECT(ADDRESS(record2008,9,,,"faith")) ->  | D225: =INDIRECT(ADDRESS(record2008,25,,,"faith")) ->  | E225: =INDIRECT(ADDRESS(record2008,33,,,"faith")) ->  | I225: =IF(B225>1,IF(D225>E222,"é",IF(E225<D222,"ê","ó")),0) -> 
B226: 2009 | C226: =INDIRECT(ADDRESS(record2009,9,,,"faith")) ->  | D226: =INDIRECT(ADDRESS(record2009,25,,,"faith")) ->  | E226: =INDIRECT(ADDRESS(record2009,33,,,"faith")) ->  | J226: =IF(B226>1,IF(D226>E222,"é",IF(E226<D222,"ê","ó")),0) -> 
B227: 2010 | C227: =INDIRECT(ADDRESS(record2010,9,,,"faith")) ->  | D227: =INDIRECT(ADDRESS(record2010,25,,,"faith")) ->  | E227: =INDIRECT(ADDRESS(record2010,33,,,"faith")) ->  | K227: =IF(B227>1,IF(D227>E222,"é",IF(E227<D222,"ê","ó")),0) -> 
B228: 2011 | C228: =INDIRECT(ADDRESS(record2011,9,,,"faith")) ->  | D228: =INDIRECT(ADDRESS(record2011,25,,,"faith")) ->  | E228: =INDIRECT(ADDRESS(record2011,33,,,"faith")) ->  | K228: =IF(B228>1,IF(D228>E223,"é",IF(E228<D223,"ê","ó")),0) ->  | L228: =IF(B228>1,IF(D228>E222,"é",IF(E228<D222,"ê","ó")),0) -> 
B229: 2012 | C229: =INDIRECT(ADDRESS(record2012,9,,,"faith")) ->  | D229: =INDIRECT(ADDRESS(record2012,25,,,"faith")) ->  | E229: =INDIRECT(ADDRESS(record2012,33,,,"faith")) ->  | K229: =IF(B229>1,IF(D229>E224,"é",IF(E229<D224,"ê","ó")),0) ->  | L229: =IF(B229>1,IF(D229>E223,"é",IF(E229<D223,"ê","ó")),0) ->  | M229: =IF(B229>1,IF(D229>E222,"é",IF(E229<D222,"ê","ó")),0) -> 
B230: 2013 | C230: =INDIRECT(ADDRESS(record2013,9,,,"faith")) ->  | D230: =INDIRECT(ADDRESS(record2013,25,,,"faith")) ->  | E230: =INDIRECT(ADDRESS(record2013,33,,,"faith")) ->  | K230: =IF(B230>1,IF(D230>E225,"é",IF(E230<D225,"ê","ó")),0) ->  | L230: =IF(B230>1,IF(D230>E224,"é",IF(E230<D224,"ê","ó")),0) ->  | M230: =IF(B230>1,IF(D230>E223,"é",IF(E230<D223,"ê","ó")),0) ->  | N230: =IF(B230>1,IF(D230>E222,"é",IF(E230<D222,"ê","ó")),0) -> 
B231: 2014 | C231: =INDIRECT(ADDRESS(record2014,9,,,"faith")) ->  | D231: =INDIRECT(ADDRESS(record2014,25,,,"faith")) ->  | E231: =INDIRECT(ADDRESS(record2014,33,,,"faith")) ->  | K231: =IF(B231>1,IF(D231>E226,"é",IF(E231<D226,"ê","ó")),0) ->  | L231: =IF(B231>1,IF(D231>E225,"é",IF(E231<D225,"ê","ó")),0) ->  | M231: =IF(B231>1,IF(D231>E224,"é",IF(E231<D224,"ê","ó")),0) ->  | N231: =IF(B231>1,IF(D231>E223,"é",IF(E231<D223,"ê","ó")),0) ->  | O231: =IF(B231>1,IF(D231>E222,"é",IF(E231<D222,"ê","ó")),0) -> 
B232: % christian | D232: LC | E232: UC | F232: Trend | G232: 2yr | H232: 3yr | I232: 4yr | J232: 5yr | K232: 6yr | L232: 7yr | M232: 8yr | N232: 9yr | O232: 10yr
B233: 2005 | C233: =IF(INDIRECT(ADDRESS(record2005,11,,,"faith"))=0,#N/A,INDIRECT(ADDRESS(record2005,11,,,"faith"))) ->  | D233: =IF(INDIRECT(ADDRESS(record2005,27,,,"faith"))=0,#N/A,INDIRECT(ADDRESS(record2005,27,,,"faith"))) ->  | E233: =IF(INDIRECT(ADDRESS(record2005,35,,,"faith"))=0,#N/A,INDIRECT(ADDRESS(record2005,35,,,"faith"))) ->  | R233: =C233-D233 ->  | S233: =E233-C233 -> 
B234: 2006 | C234: =INDIRECT(ADDRESS(record2006,11,,,"faith")) ->  | D234: =INDIRECT(ADDRESS(record2006,27,,,"faith")) ->  | E234: =INDIRECT(ADDRESS(record2006,35,,,"faith")) ->  | G234: =IF(D234>E233,"é",IF(E234<D233,"ê","ó")) -> 
B235: 2007 | C235: =INDIRECT(ADDRESS(record2007,11,,,"faith")) ->  | D235: =INDIRECT(ADDRESS(record2007,27,,,"faith")) ->  | E235: =INDIRECT(ADDRESS(record2007,35,,,"faith")) ->  | G235: =IF(B235>1,IF(D235>E234,"é",IF(E235<D234,"ê","ó")),0) ->  | H235: =IF(B235>1,IF(D235>E233,"é",IF(E235<D233,"ê","ó")),0) -> 
B236: 2008 | C236: =INDIRECT(ADDRESS(record2008,11,,,"faith")) ->  | D236: =INDIRECT(ADDRESS(record2008,27,,,"faith")) ->  | E236: =INDIRECT(ADDRESS(record2008,35,,,"faith")) ->  | I236: =IF(B236>1,IF(D236>E233,"é",IF(E236<D233,"ê","ó")),0) -> 
B237: 2009 | C237: =INDIRECT(ADDRESS(record2009,11,,,"faith")) ->  | D237: =INDIRECT(ADDRESS(record2009,27,,,"faith")) ->  | E237: =INDIRECT(ADDRESS(record2009,35,,,"faith")) ->  | J237: =IF(B237>1,IF(D237>E233,"é",IF(E237<D233,"ê","ó")),0) -> 
B238: 2010 | C238: =INDIRECT(ADDRESS(record2010,11,,,"faith")) ->  | D238: =INDIRECT(ADDRESS(record2010,27,,,"faith")) ->  | E238: =INDIRECT(ADDRESS(record2010,35,,,"faith")) ->  | K238: =IF(B238>1,IF(D238>E233,"é",IF(E238<D233,"ê","ó")),0) -> 
B239: 2011 | C239: =INDIRECT(ADDRESS(record2011,11,,,"faith")) ->  | D239: =INDIRECT(ADDRESS(record2011,27,,,"faith")) ->  | E239: =INDIRECT(ADDRESS(record2011,35,,,"faith")) ->  | K239: =IF(B239>1,IF(D239>E234,"é",IF(E239<D234,"ê","ó")),0) ->  | L239: =IF(B239>1,IF(D239>E233,"é",IF(E239<D233,"ê","ó")),0) -> 
B240: 2012 | C240: =INDIRECT(ADDRESS(record2012,11,,,"faith")) ->  | D240: =INDIRECT(ADDRESS(record2012,27,,,"faith")) ->  | E240: =INDIRECT(ADDRESS(record2012,35,,,"faith")) ->  | K240: =IF(B240>1,IF(D240>E235,"é",IF(E240<D235,"ê","ó")),0) ->  | L240: =IF(B240>1,IF(D240>E234,"é",IF(E240<D234,"ê","ó")),0) ->  | M240: =IF(B240>1,IF(D240>E233,"é",IF(E240<D233,"ê","ó")),0) -> 
B241: 2013 | C241: =INDIRECT(ADDRESS(record2013,11,,,"faith")) ->  | D241: =INDIRECT(ADDRESS(record2013,27,,,"faith")) ->  | E241: =INDIRECT(ADDRESS(record2013,35,,,"faith")) ->  | K241: =IF(B241>1,IF(D241>E236,"é",IF(E241<D236,"ê","ó")),0) ->  | L241: =IF(B241>1,IF(D241>E235,"é",IF(E241<D235,"ê","ó")),0) ->  | M241: =IF(B241>1,IF(D241>E234,"é",IF(E241<D234,"ê","ó")),0) ->  | N241: =IF(B241>1,IF(D241>E233,"é",IF(E241<D233,"ê","ó")),0) -> 
B242: 2014 | C242: =INDIRECT(ADDRESS(record2014,11,,,"faith")) ->  | D242: =INDIRECT(ADDRESS(record2014,27,,,"faith")) ->  | E242: =INDIRECT(ADDRESS(record2014,35,,,"faith")) ->  | K242: =IF(B242>1,IF(D242>E237,"é",IF(E242<D237,"ê","ó")),0) ->  | L242: =IF(B242>1,IF(D242>E236,"é",IF(E242<D236,"ê","ó")),0) ->  | M242: =IF(B242>1,IF(D242>E235,"é",IF(E242<D235,"ê","ó")),0) ->  | N242: =IF(B242>1,IF(D242>E234,"é",IF(E242<D234,"ê","ó")),0) ->  | O242: =IF(B242>1,IF(D242>E233,"é",IF(E242<D233,"ê","ó")),0) -> 
B243: % muslim | D243: LC | E243: UC | F243: Trend | G243: 2yr | H243: 3yr | I243: 4yr | J243: 5yr | K243: 6yr | L243: 7yr | M243: 8yr | N243: 9yr | O243: 10yr
B244: 2005 | C244: =IF(INDIRECT(ADDRESS(record2005,14,,,"faith"))=0,#N/A,INDIRECT(ADDRESS(record2005,14,,,"faith"))) ->  | D244: =IF(INDIRECT(ADDRESS(record2005,30,,,"faith"))=0,#N/A,INDIRECT(ADDRESS(record2005,30,,,"faith"))) ->  | E244: =IF(INDIRECT(ADDRESS(record2005,38,,,"faith"))=0,#N/A,INDIRECT(ADDRESS(record2005,38,,,"faith"))) ->  | R244: =C244-D244 ->  | S244: =E244-C244 -> 
B245: 2006 | C245: =INDIRECT(ADDRESS(record2006,14,,,"faith")) ->  | D245: =INDIRECT(ADDRESS(record2006,30,,,"faith")) ->  | E245: =INDIRECT(ADDRESS(record2006,38,,,"faith")) ->  | G245: =IF(D245>E244,"é",IF(E245<D244,"ê","ó")) -> 
B246: 2007 | C246: =INDIRECT(ADDRESS(record2007,14,,,"faith")) ->  | D246: =INDIRECT(ADDRESS(record2007,30,,,"faith")) ->  | E246: =INDIRECT(ADDRESS(record2007,38,,,"faith")) ->  | G246: =IF(B246>1,IF(D246>E245,"é",IF(E246<D245,"ê","ó")),0) ->  | H246: =IF(B246>1,IF(D246>E244,"é",IF(E246<D244,"ê","ó")),0) -> 
B247: 2008 | C247: =INDIRECT(ADDRESS(record2008,14,,,"faith")) ->  | D247: =INDIRECT(ADDRESS(record2008,30,,,"faith")) ->  | E247: =INDIRECT(ADDRESS(record2008,38,,,"faith")) ->  | I247: =IF(B247>1,IF(D247>E244,"é",IF(E247<D244,"ê","ó")),0) -> 
B248: 2009 | C248: =INDIRECT(ADDRESS(record2009,14,,,"faith")) ->  | D248: =INDIRECT(ADDRESS(record2009,30,,,"faith")) ->  | E248: =INDIRECT(ADDRESS(record2009,38,,,"faith")) ->  | J248: =IF(B248>1,IF(D248>E244,"é",IF(E248<D244,"ê","ó")),0) -> 
B249: 2010 | C249: =INDIRECT(ADDRESS(record2010,14,,,"faith")) ->  | D249: =INDIRECT(ADDRESS(record2010,30,,,"faith")) ->  | E249: =INDIRECT(ADDRESS(record2010,38,,,"faith")) ->  | K249: =IF(B249>1,IF(D249>E244,"é",IF(E249<D244,"ê","ó")),0) -> 
B250: 2011 | C250: =INDIRECT(ADDRESS(record2011,14,,,"faith")) ->  | D250: =INDIRECT(ADDRESS(record2011,30,,,"faith")) ->  | E250: =INDIRECT(ADDRESS(record2011,38,,,"faith")) ->  | K250: =IF(B250>1,IF(D250>E245,"é",IF(E250<D245,"ê","ó")),0) ->  | L250: =IF(B250>1,IF(D250>E244,"é",IF(E250<D244,"ê","ó")),0) -> 
B251: 2012 | C251: =INDIRECT(ADDRESS(record2012,14,,,"faith")) ->  | D251: =INDIRECT(ADDRESS(record2012,30,,,"faith")) ->  | E251: =INDIRECT(ADDRESS(record2012,38,,,"faith")) ->  | K251: =IF(B251>1,IF(D251>E246,"é",IF(E251<D246,"ê","ó")),0) ->  | L251: =IF(B251>1,IF(D251>E245,"é",IF(E251<D245,"ê","ó")),0) ->  | M251: =IF(B251>1,IF(D251>E244,"é",IF(E251<D244,"ê","ó")),0) -> 
B252: 2013 | C252: =INDIRECT(ADDRESS(record2013,14,,,"faith")) ->  | D252: =INDIRECT(ADDRESS(record2013,30,,,"faith")) ->  | E252: =INDIRECT(ADDRESS(record2013,38,,,"faith")) ->  | K252: =IF(B252>1,IF(D252>E247,"é",IF(E252<D247,"ê","ó")),0) ->  | L252: =IF(B252>1,IF(D252>E246,"é",IF(E252<D246,"ê","ó")),0) ->  | M252: =IF(B252>1,IF(D252>E245,"é",IF(E252<D245,"ê","ó")),0) ->  | N252: =IF(B252>1,IF(D252>E244,"é",IF(E252<D244,"ê","ó")),0) -> 
B253: 2014 | C253: =INDIRECT(ADDRESS(record2014,14,,,"faith")) ->  | D253: =INDIRECT(ADDRESS(record2014,30,,,"faith")) ->  | E253: =INDIRECT(ADDRESS(record2014,38,,,"faith")) ->  | K253: =IF(B253>1,IF(D253>E248,"é",IF(E253<D248,"ê","ó")),0) ->  | L253: =IF(B253>1,IF(D253>E247,"é",IF(E253<D247,"ê","ó")),0) ->  | M253: =IF(B253>1,IF(D253>E246,"é",IF(E253<D246,"ê","ó")),0) ->  | N253: =IF(B253>1,IF(D253>E245,"é",IF(E253<D245,"ê","ó")),0) ->  | O253: =IF(E253>1,IF(D253>E244,"é",IF(E253<D244,"ê","ó")),0) -> 
B269: Gap analysis
C303: 2005 | D303: 2006 | E303: 2007 | F303: 2008 | G303: 2009 | H303: 2010 | I303: 2011 | J303: 2012 | K303: 2013 | L303: 2014
B304: Max | C304: =workings!$CE$3 ->  | D304: =workings!$CE$4 ->  | E304: =workings!$CE$5 ->  | F304: =workings!$CE$6 ->  | G304: =workings!$CE$7 ->  | H304: =workings!$CE$8 ->  | I304: =workings!$CE$9 ->  | J304: =workings!$CE$10 ->  | K304: =workings!$CE$11 ->  | L304: =workings!$CE$12 -> 
B305: Min | C305: =workings!$CG$3 ->  | D305: =workings!$CG$4 ->  | E305: =workings!$CG$5 ->  | F305: =workings!$CG$6 ->  | G305: =workings!$CG$7 ->  | H305: =workings!$CG$8 ->  | I305: =workings!$CG$9 ->  | J305: =workings!$CG$10 ->  | K305: =workings!$CG$11 ->  | L305: =workings!$CG$12 -> 

Sheet ward summary (hidden)
B1: Go to instructions | D1: Go to list of indicators | F1: Go to Summary page | I1: Go to equalities breakdown | S1: up | T1: - | U1: down
S2: é | T2: ó | U2: ê | V2: 0
B3: These tables show the long term trend for each ward. Where the confidence intervals do not overlap between years there is a statistically significant difference. This is indicated by the up or down label in the trend table.
B4: =workings!H3 -> % respondents who think the state of repair of roads has got worse | V4: Error bars
D5: % | E5: LC | F5: UC | G5: 2 yr trend | H5: 3 yr trend | I5: 4 yr trend | J5: 5 yr trend | K5: 6 yr trend | L5: 7 yr trend | M5: 8 yr trend | N5: 9 yr trend | O5: 10 yr trend | P5: Up | Q5: é | R5: None | S5: ó | T5: Down | U5: ê | V5: LC | W5: UC
A6: 1 | B6: Ashley | C6: 2005 | D6: =INDIRECT(ADDRESS(record2005,8+A6,,,"ward")) ->  | E6: =INDIRECT(ADDRESS(record2005,8+A6+70,,,"ward")) ->  | F6: =INDIRECT(ADDRESS(record2005,8+A6+105,,,"ward")) ->  | V6: =D6-E6 ->  | W6: =F6-D6 -> 
C7: 2006 | D7: =INDIRECT(ADDRESS(record2006,8+A6,,,"ward")) ->  | E7: =INDIRECT(ADDRESS(record2006,8+A6+70,,,"ward")) ->  | F7: =INDIRECT(ADDRESS(record2006,8+A6+105,,,"ward")) ->  | G7: =IF(E7>F6,"é",IF(F7<E6,"ê","ó")) -> 
C8: 2007 | D8: =INDIRECT(ADDRESS(record2007,8+A6,,,"ward")) ->  | E8: =INDIRECT(ADDRESS(record2007,8+A6+70,,,"ward")) ->  | F8: =INDIRECT(ADDRESS(record2007,8+A6+105,,,"ward")) ->  | G8: =IF(E8>F7,"é",IF(F8<E7,"ê","ó")) ->  | H8: =IF(E8>F6,"é",IF(F8<E6,"ê","ó")) -> 
C9: 2008 | D9: =INDIRECT(ADDRESS(record2008,8+A6,,,"ward")) ->  | E9: =INDIRECT(ADDRESS(record2008,8+A6+70,,,"ward")) ->  | F9: =INDIRECT(ADDRESS(record2008,8+A6+105,,,"ward")) ->  | G9: =IF(C9=2008,IF(E9>F8,"é",IF(F9<E8,"ê","ó")),0) ->  | H9: =IF(C9=2008,IF(E9>F7,"é",IF(F9<E7,"ê","ó")),0) ->  | I9: =IF(C9=2008,IF(E9>F6,"é",IF(F9<E6,"ê","ó")),0) -> 
C10: 2009 | D10: =INDIRECT(ADDRESS(record2009,8+A6,,,"ward")) ->  | E10: =INDIRECT(ADDRESS(record2009,8+A6+70,,,"ward")) ->  | F10: =INDIRECT(ADDRESS(record2009,8+A6+105,,,"ward")) ->  | G10: =IF(C10=2009,IF(E10>F9,"é",IF(F10<E9,"ê","ó")),0) ->  | H10: =IF(C10=2009,IF(E10>F8,"é",IF(F10<E8,"ê","ó")),0) ->  | I10: =IF(C10=2009,IF(E10>F7,"é",IF(F10<E7,"ê","ó")),0) ->  | J10: =IF(C10=2009,IF(E10>F6,"é",IF(F10<E6,"ê","ó")),0) -> 
C11: 2010 | D11: =INDIRECT(ADDRESS(record2010,8+A6,,,"ward")) ->  | E11: =INDIRECT(ADDRESS(record2010,8+A6+70,,,"ward")) ->  | F11: =INDIRECT(ADDRESS(record2010,8+A6+105,,,"ward")) ->  | G11: =IF(C11=2010,IF(E11>F10,"é",IF(F11<E10,"ê","ó")),0) ->  | H11: =IF(C11=2010,IF(E11>F9,"é",IF(F11<E9,"ê","ó")),0) ->  | I11: =IF(C11=2010,IF(E11>F8,"é",IF(F11<E8,"ê","ó")),0) ->  | J11: =IF(C11=2010,IF(E11>F7,"é",IF(F11<E7,"ê","ó")),0) ->  | K11: =IF(C11=2010,IF(E11>F6,"é",IF(F11<E6,"ê","ó")),0) -> 
C12: 2011 | D12: =INDIRECT(ADDRESS(record2011,8+A6,,,"ward")) ->  | E12: =INDIRECT(ADDRESS(record2011,8+A6+70,,,"ward")) ->  | F12: =INDIRECT(ADDRESS(record2011,8+A6+105,,,"ward")) ->  | G12: =IF(C12=2011,IF(E12>F11,"é",IF(F12<E11,"ê","ó")),0) ->  | H12: =IF(C12=2011,IF(E12>F10,"é",IF(F12<E10,"ê","ó")),0) ->  | I12: =IF(C12=2011,IF(E12>F9,"é",IF(F12<E9,"ê","ó")),0) ->  | J12: =IF(C12=2011,IF(E12>F8,"é",IF(F12<E8,"ê","ó")),0) ->  | K12: =IF(C12=2011,IF(E12>F7,"é",IF(F12<E7,"ê","ó")),0) ->  | L12: =IF(C12=2011,IF(E12>F6,"é",IF(F12<E6,"ê","ó")),0) -> 
C13: 2012 | D13: =INDIRECT(ADDRESS(record2012,8+$A$6,,,"ward")) ->  | E13: =INDIRECT(ADDRESS(record2012,8+$A$6+70,,,"ward")) ->  | F13: =INDIRECT(ADDRESS(record2012,8+$A$6+105,,,"ward")) ->  | G13: =IF(C13=2012,IF(E13>F12,"é",IF(F13<E12,"ê","ó")),0) ->  | H13: =IF(C13=2012,IF(E13>F11,"é",IF(F13<E11,"ê","ó")),0) ->  | I13: =IF(C13=2012,IF(E13>F10,"é",IF(F13<E10,"ê","ó")),0) ->  | J13: =IF(C13=2012,IF(E13>F9,"é",IF(F13<E9,"ê","ó")),0) ->  | K13: =IF(C13=2012,IF(E13>F8,"é",IF(F13<E8,"ê","ó")),0) ->  | L13: =IF(C13=2012,IF(E13>F7,"é",IF(F13<E7,"ê","ó")),0) ->  | M13: =IF(C13=2012,IF(E13>F6,"é",IF(F13<E6,"ê","ó")),0) -> 
C14: 2013 | D14: =INDIRECT(ADDRESS(record2013,8+$A$6,,,"ward")) ->  | E14: =INDIRECT(ADDRESS(record2013,8+$A$6+70,,,"ward")) ->  | F14: =INDIRECT(ADDRESS(record2013,8+$A$6+105,,,"ward")) ->  | G14: =IF(C14=2013,IF(E14>F13,"é",IF(F14<E13,"ê","ó")),0) ->  | H14: =IF(C14=2013,IF(E14>F12,"é",IF(F14<E12,"ê","ó")),0) ->  | I14: =IF(C14=2013,IF(E14>F11,"é",IF(F14<E11,"ê","ó")),0) ->  | J14: =IF(C14=2013,IF(E14>F10,"é",IF(F14<E10,"ê","ó")),0) ->  | K14: =IF(C14=2013,IF(E14>F9,"é",IF(F14<E9,"ê","ó")),0) ->  | L14: =IF(C14=2013,IF(E14>F8,"é",IF(F14<E8,"ê","ó")),0) ->  | M14: =IF(C14=2013,IF(E14>F7,"é",IF(F14<E7,"ê","ó")),0) ->  | N14: =IF(C14=2013,IF(E14>F6,"é",IF(F14<E6,"ê","ó")),0) -> 
C15: 2014 | D15: =INDIRECT(ADDRESS(record2014,8+$A$6,,,"ward")) ->  | E15: =INDIRECT(ADDRESS(record2014,8+$A$6+70,,,"ward")) ->  | F15: =INDIRECT(ADDRESS(record2014,8+$A$6+105,,,"ward")) ->  | G15: =IF(C15=2014,IF(E15>F14,"é",IF(F15<E14,"ê","ó")),0) ->  | H15: =IF(C15=2014,IF(E15>F13,"é",IF(F15<E13,"ê","ó")),0) ->  | I15: =IF(C15=2014,IF(E15>F12,"é",IF(F15<E12,"ê","ó")),0) ->  | J15: =IF(C15=2014,IF(E15>F11,"é",IF(F15<E11,"ê","ó")),0) ->  | K15: =IF(C15=2014,IF(E15>F10,"é",IF(F15<E10,"ê","ó")),0) ->  | L15: =IF(C15=2014,IF(E15>F9,"é",IF(F15<E9,"ê","ó")),0) ->  | M15: =IF(C15=2014,IF(E15>F8,"é",IF(F15<E8,"ê","ó")),0) ->  | N15: =IF(C15=2014,IF(E15>F7,"é",IF(F15<E7,"ê","ó")),0) ->  | O15: =IF(C15=2014,IF(E15>F6,"é",IF(F15<E6,"ê","ó")),0) -> 
A16: 2 | B16: Avonmouth | C16: 2005 | D16: =INDIRECT(ADDRESS(record2005,8+A16,,,"ward")) ->  | E16: =INDIRECT(ADDRESS(record2005,8+A16+70,,,"ward")) ->  | F16: =INDIRECT(ADDRESS(record2005,8+A16+105,,,"ward")) -> 
C17: 2006 | D17: =INDIRECT(ADDRESS(record2006,8+A16,,,"ward")) ->  | E17: =INDIRECT(ADDRESS(record2006,8+A16+70,,,"ward")) ->  | F17: =INDIRECT(ADDRESS(record2006,8+A16+105,,,"ward")) ->  | G17: =IF(E17>F16,"é",IF(F17<E16,"ê","ó")) -> 
C18: 2007 | D18: =INDIRECT(ADDRESS(record2007,8+A16,,,"ward")) ->  | E18: =INDIRECT(ADDRESS(record2007,8+A16+70,,,"ward")) ->  | F18: =INDIRECT(ADDRESS(record2007,8+A16+105,,,"ward")) ->  | G18: =IF(E18>F17,"é",IF(F18<E17,"ê","ó")) ->  | H18: =IF(E18>F16,"é",IF(F18<E16,"ê","ó")) -> 
C19: 2008 | D19: =INDIRECT(ADDRESS(record2008,8+A16,,,"ward")) ->  | E19: =INDIRECT(ADDRESS(record2008,8+A16+70,,,"ward")) ->  | F19: =INDIRECT(ADDRESS(record2008,8+A16+105,,,"ward")) ->  | G19: =IF(C19=2008,IF(E19>F18,"é",IF(F19<E18,"ê","ó")),0) ->  | H19: =IF(C19=2008,IF(E19>F17,"é",IF(F19<E17,"ê","ó")),0) ->  | I19: =IF(C19=2008,IF(E19>F16,"é",IF(F19<E16,"ê","ó")),0) -> 
C20: 2009 | D20: =INDIRECT(ADDRESS(record2009,8+A16,,,"ward")) ->  | E20: =INDIRECT(ADDRESS(record2009,8+A16+70,,,"ward")) ->  | F20: =INDIRECT(ADDRESS(record2009,8+A16+105,,,"ward")) ->  | G20: =IF(C20=2009,IF(E20>F19,"é",IF(F20<E19,"ê","ó")),0) ->  | H20: =IF(C20=2009,IF(E20>F18,"é",IF(F20<E18,"ê","ó")),0) ->  | I20: =IF(C20=2009,IF(E20>F17,"é",IF(F20<E17,"ê","ó")),0) ->  | J20: =IF(C20=2009,IF(E20>F16,"é",IF(F20<E16,"ê","ó")),0) -> 
C21: 2010 | D21: =INDIRECT(ADDRESS(record2010,8+$A$16,,,"ward")) ->  | E21: =INDIRECT(ADDRESS(record2010,8+$A$16+70,,,"ward")) ->  | F21: =INDIRECT(ADDRESS(record2010,8+$A$16+105,,,"ward")) ->  | G21: =IF(C21=2010,IF(E21>F20,"é",IF(F21<E20,"ê","ó")),0) ->  | H21: =IF(C21=2010,IF(E21>F19,"é",IF(F21<E19,"ê","ó")),0) ->  | I21: =IF(C21=2010,IF(E21>F18,"é",IF(F21<E18,"ê","ó")),0) ->  | J21: =IF(C21=2010,IF(E21>F17,"é",IF(F21<E17,"ê","ó")),0) ->  | K21: =IF(C21=2010,IF(E21>F16,"é",IF(F21<E16,"ê","ó")),0) -> 
C22: 2011 | D22: =INDIRECT(ADDRESS(record2011,8+$A$16,,,"ward")) ->  | E22: =INDIRECT(ADDRESS(record2011,8+$A$16+70,,,"ward")) ->  | F22: =INDIRECT(ADDRESS(record2011,8+$A$16+105,,,"ward")) ->  | G22: =IF(C22=2011,IF(E22>F21,"é",IF(F22<E21,"ê","ó")),0) ->  | H22: =IF(C22=2011,IF(E22>F20,"é",IF(F22<E20,"ê","ó")),0) ->  | I22: =IF(C22=2011,IF(E22>F19,"é",IF(F22<E19,"ê","ó")),0) ->  | J22: =IF(C22=2011,IF(E22>F18,"é",IF(F22<E18,"ê","ó")),0) ->  | K22: =IF(C22=2011,IF(E22>F17,"é",IF(F22<E17,"ê","ó")),0) ->  | L22: =IF(C22=2011,IF(E22>F16,"é",IF(F22<E16,"ê","ó")),0) -> 
C23: 2012 | D23: =INDIRECT(ADDRESS(record2012,8+$A$16,,,"ward")) ->  | E23: =INDIRECT(ADDRESS(record2012,8+$A$16+70,,,"ward")) ->  | F23: =INDIRECT(ADDRESS(record2012,8+$A$16+105,,,"ward")) ->  | G23: =IF(C23=2012,IF(E23>F22,"é",IF(F23<E22,"ê","ó")),0) ->  | H23: =IF(C23=2012,IF(E23>F21,"é",IF(F23<E21,"ê","ó")),0) ->  | I23: =IF(C23=2012,IF(E23>F20,"é",IF(F23<E20,"ê","ó")),0) ->  | J23: =IF(C23=2012,IF(E23>F19,"é",IF(F23<E19,"ê","ó")),0) ->  | K23: =IF(C23=2012,IF(E23>F18,"é",IF(F23<E18,"ê","ó")),0) ->  | L23: =IF(C23=2012,IF(E23>F17,"é",IF(F23<E17,"ê","ó")),0) ->  | M23: =IF(C23=2012,IF(E23>F16,"é",IF(F23<E16,"ê","ó")),0) -> 
C24: 2013 | D24: =INDIRECT(ADDRESS(record2013,8+$A$16,,,"ward")) ->  | E24: =INDIRECT(ADDRESS(record2013,8+$A$16+70,,,"ward")) ->  | F24: =INDIRECT(ADDRESS(record2013,8+$A$16+105,,,"ward")) ->  | G24: =IF(C24=2013,IF(E24>F23,"é",IF(F24<E23,"ê","ó")),0) ->  | H24: =IF(C24=2013,IF(E24>F22,"é",IF(F24<E22,"ê","ó")),0) ->  | I24: =IF(C24=2013,IF(E24>F21,"é",IF(F24<E21,"ê","ó")),0) ->  | J24: =IF(C24=2013,IF(E24>F20,"é",IF(F24<E20,"ê","ó")),0) ->  | K24: =IF(C24=2013,IF(E24>F19,"é",IF(F24<E19,"ê","ó")),0) ->  | L24: =IF(C24=2013,IF(E24>F18,"é",IF(F24<E18,"ê","ó")),0) ->  | M24: =IF(C24=2013,IF(E24>F17,"é",IF(F24<E17,"ê","ó")),0) ->  | N24: =IF(C24=2013,IF(E24>F16,"é",IF(F24<E16,"ê","ó")),0) -> 
C25: 2014 | D25: =INDIRECT(ADDRESS(record2014,8+$A$16,,,"ward")) ->  | E25: =INDIRECT(ADDRESS(record2014,8+$A$16+70,,,"ward")) ->  | F25: =INDIRECT(ADDRESS(record2014,8+$A$16+105,,,"ward")) ->  | G25: =IF(C25=2014,IF(E25>F24,"é",IF(F25<E24,"ê","ó")),0) ->  | H25: =IF(C25=2014,IF(E25>F23,"é",IF(F25<E23,"ê","ó")),0) ->  | I25: =IF(C25=2014,IF(E25>F22,"é",IF(F25<E22,"ê","ó")),0) ->  | J25: =IF(C25=2014,IF(E25>F21,"é",IF(F25<E21,"ê","ó")),0) ->  | K25: =IF(C25=2014,IF(E25>F20,"é",IF(F25<E20,"ê","ó")),0) ->  | L25: =IF(C25=2014,IF(E25>F19,"é",IF(F25<E19,"ê","ó")),0) ->  | M25: =IF(C25=2014,IF(E25>F18,"é",IF(F25<E18,"ê","ó")),0) ->  | N25: =IF(C25=2014,IF(E25>F17,"é",IF(F25<E17,"ê","ó")),0) ->  | O25: =IF(C25=2014,IF(E25>F16,"é",IF(F25<E16,"ê","ó")),0) -> 
A26: 3 | B26: Bedminster | C26: 2005 | D26: =INDIRECT(ADDRESS(record2005,8+A26,,,"ward")) ->  | E26: =INDIRECT(ADDRESS(record2005,8+A26+70,,,"ward")) ->  | F26: =INDIRECT(ADDRESS(record2005,8+A26+105,,,"ward")) -> 
C27: 2006 | D27: =INDIRECT(ADDRESS(record2006,8+A26,,,"ward")) ->  | E27: =INDIRECT(ADDRESS(record2006,8+A26+70,,,"ward")) ->  | F27: =INDIRECT(ADDRESS(record2006,8+A26+105,,,"ward")) ->  | G27: =IF(E27>F26,"é",IF(F27<E26,"ê","ó")) -> 
C28: 2007 | D28: =INDIRECT(ADDRESS(record2007,8+A26,,,"ward")) ->  | E28: =INDIRECT(ADDRESS(record2007,8+A26+70,,,"ward")) ->  | F28: =INDIRECT(ADDRESS(record2007,8+A26+105,,,"ward")) ->  | G28: =IF(E28>F27,"é",IF(F28<E27,"ê","ó")) ->  | H28: =IF(E28>F26,"é",IF(F28<E26,"ê","ó")) -> 
C29: 2008 | D29: =INDIRECT(ADDRESS(record2008,8+A26,,,"ward")) ->  | E29: =INDIRECT(ADDRESS(record2008,8+A26+70,,,"ward")) ->  | F29: =INDIRECT(ADDRESS(record2008,8+A26+105,,,"ward")) ->  | G29: =IF(C29=2008,IF(E29>F28,"é",IF(F29<E28,"ê","ó")),0) ->  | H29: =IF(C29=2008,IF(E29>F27,"é",IF(F29<E27,"ê","ó")),0) ->  | I29: =IF(C29=2008,IF(E29>F26,"é",IF(F29<E26,"ê","ó")),0) -> 
C30: 2009 | D30: =INDIRECT(ADDRESS(record2009,8+A26,,,"ward")) ->  | E30: =INDIRECT(ADDRESS(record2009,8+A26+70,,,"ward")) ->  | F30: =INDIRECT(ADDRESS(record2009,8+A26+105,,,"ward")) ->  | G30: =IF(C30=2009,IF(E30>F29,"é",IF(F30<E29,"ê","ó")),0) ->  | H30: =IF(C30=2009,IF(E30>F28,"é",IF(F30<E28,"ê","ó")),0) ->  | I30: =IF(C30=2009,IF(E30>F27,"é",IF(F30<E27,"ê","ó")),0) ->  | J30: =IF(C30=2009,IF(E30>F26,"é",IF(F30<E26,"ê","ó")),0) -> 
C31: 2010 | D31: =INDIRECT(ADDRESS(record2010,8+$A$26,,,"ward")) ->  | E31: =INDIRECT(ADDRESS(record2010,8+$A$26+70,,,"ward")) ->  | F31: =INDIRECT(ADDRESS(record2010,8+$A$26+105,,,"ward")) ->  | G31: =IF(C31=2010,IF(E31>F30,"é",IF(F31<E30,"ê","ó")),0) ->  | H31: =IF(C31=2010,IF(E31>F29,"é",IF(F31<E29,"ê","ó")),0) ->  | I31: =IF(C31=2010,IF(E31>F28,"é",IF(F31<E28,"ê","ó")),0) ->  | J31: =IF(C31=2010,IF(E31>F27,"é",IF(F31<E27,"ê","ó")),0) ->  | K31: =IF(C31=2010,IF(E31>F26,"é",IF(F31<E26,"ê","ó")),0) -> 
C32: 2011 | D32: =INDIRECT(ADDRESS(record2011,8+$A$26,,,"ward")) ->  | E32: =INDIRECT(ADDRESS(record2011,8+$A$26+70,,,"ward")) ->  | F32: =INDIRECT(ADDRESS(record2011,8+$A$26+105,,,"ward")) ->  | G32: =IF(C32=2011,IF(E32>F31,"é",IF(F32<E31,"ê","ó")),0) ->  | H32: =IF(C32=2011,IF(E32>F30,"é",IF(F32<E30,"ê","ó")),0) ->  | I32: =IF(C32=2011,IF(E32>F29,"é",IF(F32<E29,"ê","ó")),0) ->  | J32: =IF(C32=2011,IF(E32>F28,"é",IF(F32<E28,"ê","ó")),0) ->  | K32: =IF(C32=2011,IF(E32>F27,"é",IF(F32<E27,"ê","ó")),0) ->  | L32: =IF(C32=2011,IF(E32>F26,"é",IF(F32<E26,"ê","ó")),0) -> 
C33: 2012 | D33: =INDIRECT(ADDRESS(record2012,8+$A$26,,,"ward")) ->  | E33: =INDIRECT(ADDRESS(record2012,8+$A$26+70,,,"ward")) ->  | F33: =INDIRECT(ADDRESS(record2012,8+$A$26+105,,,"ward")) ->  | G33: =IF(C33=2012,IF(E33>F32,"é",IF(F33<E32,"ê","ó")),0) ->  | H33: =IF(C33=2012,IF(E33>F31,"é",IF(F33<E31,"ê","ó")),0) ->  | I33: =IF(C33=2012,IF(E33>F30,"é",IF(F33<E30,"ê","ó")),0) ->  | J33: =IF(C33=2012,IF(E33>F29,"é",IF(F33<E29,"ê","ó")),0) ->  | K33: =IF(C33=2012,IF(E33>F28,"é",IF(F33<E28,"ê","ó")),0) ->  | L33: =IF(C33=2012,IF(E33>F27,"é",IF(F33<E27,"ê","ó")),0) ->  | M33: =IF(C33=2012,IF(E33>F26,"é",IF(F33<E26,"ê","ó")),0) -> 
C34: 2013 | D34: =INDIRECT(ADDRESS(record2013,8+$A$26,,,"ward")) ->  | E34: =INDIRECT(ADDRESS(record2013,8+$A$26+70,,,"ward")) ->  | F34: =INDIRECT(ADDRESS(record2013,8+$A$26+105,,,"ward")) ->  | G34: =IF(C34=2013,IF(E34>F33,"é",IF(F34<E33,"ê","ó")),0) ->  | H34: =IF(C34=2013,IF(E34>F32,"é",IF(F34<E32,"ê","ó")),0) ->  | I34: =IF(C34=2013,IF(E34>F31,"é",IF(F34<E31,"ê","ó")),0) ->  | J34: =IF(C34=2013,IF(E34>F30,"é",IF(F34<E30,"ê","ó")),0) ->  | K34: =IF(C34=2013,IF(E34>F29,"é",IF(F34<E29,"ê","ó")),0) ->  | L34: =IF(C34=2013,IF(E34>F28,"é",IF(F34<E28,"ê","ó")),0) ->  | M34: =IF(C34=2013,IF(E34>F27,"é",IF(F34<E27,"ê","ó")),0) ->  | N34: =IF(C34=2013,IF(E34>F26,"é",IF(F34<E26,"ê","ó")),0) -> 
C35: 2014 | D35: =INDIRECT(ADDRESS(record2014,8+$A$26,,,"ward")) ->  | E35: =INDIRECT(ADDRESS(record2014,8+$A$26+70,,,"ward")) ->  | F35: =INDIRECT(ADDRESS(record2014,8+$A$26+105,,,"ward")) ->  | G35: =IF(C35=2014,IF(E35>F34,"é",IF(F35<E34,"ê","ó")),0) ->  | H35: =IF(C35=2014,IF(E35>F33,"é",IF(F35<E33,"ê","ó")),0) ->  | I35: =IF(C35=2014,IF(E35>F32,"é",IF(F35<E32,"ê","ó")),0) ->  | J35: =IF(C35=2014,IF(E35>F31,"é",IF(F35<E31,"ê","ó")),0) ->  | K35: =IF(C35=2014,IF(E35>F30,"é",IF(F35<E30,"ê","ó")),0) ->  | L35: =IF(C35=2014,IF(E35>F29,"é",IF(F35<E29,"ê","ó")),0) ->  | M35: =IF(C35=2014,IF(E35>F28,"é",IF(F35<E28,"ê","ó")),0) ->  | N35: =IF(C35=2014,IF(E35>F27,"é",IF(F35<E27,"ê","ó")),0) ->  | O35: =IF(C35=2014,IF(E35>F26,"é",IF(F35<E26,"ê","ó")),0) -> 
A36: 4 | B36: Bishopston | C36: 2005 | D36: =INDIRECT(ADDRESS(record2005,8+A36,,,"ward")) ->  | E36: =INDIRECT(ADDRESS(record2005,8+A36+70,,,"ward")) ->  | F36: =INDIRECT(ADDRESS(record2005,8+A36+105,,,"ward")) -> 
C37: 2006 | D37: =INDIRECT(ADDRESS(record2006,8+A36,,,"ward")) ->  | E37: =INDIRECT(ADDRESS(record2006,8+A36+70,,,"ward")) ->  | F37: =INDIRECT(ADDRESS(record2006,8+A36+105,,,"ward")) ->  | G37: =IF(E37>F36,"é",IF(F37<E36,"ê","ó")) -> 
C38: 2007 | D38: =INDIRECT(ADDRESS(record2007,8+A36,,,"ward")) ->  | E38: =INDIRECT(ADDRESS(record2007,8+A36+70,,,"ward")) ->  | F38: =INDIRECT(ADDRESS(record2007,8+A36+105,,,"ward")) ->  | G38: =IF(E38>F37,"é",IF(F38<E37,"ê","ó")) ->  | H38: =IF(E38>F36,"é",IF(F38<E36,"ê","ó")) -> 
C39: 2008 | D39: =INDIRECT(ADDRESS(record2008,8+A36,,,"ward")) ->  | E39: =INDIRECT(ADDRESS(record2008,8+A36+70,,,"ward")) ->  | F39: =INDIRECT(ADDRESS(record2008,8+A36+105,,,"ward")) ->  | G39: =IF(C39=2008,IF(E39>F38,"é",IF(F39<E38,"ê","ó")),0) ->  | H39: =IF(C39=2008,IF(E39>F37,"é",IF(F39<E37,"ê","ó")),0) ->  | I39: =IF(C39=2008,IF(E39>F36,"é",IF(F39<E36,"ê","ó")),0) -> 
C40: 2009 | D40: =INDIRECT(ADDRESS(record2009,8+A36,,,"ward")) ->  | E40: =INDIRECT(ADDRESS(record2009,8+A36+70,,,"ward")) ->  | F40: =INDIRECT(ADDRESS(record2009,8+A36+105,,,"ward")) ->  | G40: =IF(C40=2009,IF(E40>F39,"é",IF(F40<E39,"ê","ó")),0) ->  | H40: =IF(C40=2009,IF(E40>F38,"é",IF(F40<E38,"ê","ó")),0) ->  | I40: =IF(C40=2009,IF(E40>F37,"é",IF(F40<E37,"ê","ó")),0) ->  | J40: =IF(C40=2009,IF(E40>F36,"é",IF(F40<E36,"ê","ó")),0) -> 
C41: 2010 | D41: =INDIRECT(ADDRESS(record2010,8+$A$36,,,"ward")) ->  | E41: =INDIRECT(ADDRESS(record2010,8+$A$36+70,,,"ward")) ->  | F41: =INDIRECT(ADDRESS(record2010,8+$A$36+105,,,"ward")) ->  | G41: =IF(C41=2010,IF(E41>F40,"é",IF(F41<E40,"ê","ó")),0) ->  | H41: =IF(C41=2010,IF(E41>F39,"é",IF(F41<E39,"ê","ó")),0) ->  | I41: =IF(C41=2010,IF(E41>F38,"é",IF(F41<E38,"ê","ó")),0) ->  | J41: =IF(C41=2010,IF(E41>F37,"é",IF(F41<E37,"ê","ó")),0) ->  | K41: =IF(C41=2010,IF(E41>F36,"é",IF(F41<E36,"ê","ó")),0) -> 
C42: 2011 | D42: =INDIRECT(ADDRESS(record2011,8+$A$36,,,"ward")) ->  | E42: =INDIRECT(ADDRESS(record2011,8+$A$36+70,,,"ward")) ->  | F42: =INDIRECT(ADDRESS(record2011,8+$A$36+105,,,"ward")) ->  | G42: =IF(C42=2011,IF(E42>F41,"é",IF(F42<E41,"ê","ó")),0) ->  | H42: =IF(C42=2011,IF(E42>F40,"é",IF(F42<E40,"ê","ó")),0) ->  | I42: =IF(C42=2011,IF(E42>F39,"é",IF(F42<E39,"ê","ó")),0) ->  | J42: =IF(C42=2011,IF(E42>F38,"é",IF(F42<E38,"ê","ó")),0) ->  | K42: =IF(C42=2011,IF(E42>F37,"é",IF(F42<E37,"ê","ó")),0) ->  | L42: =IF(C42=2011,IF(E42>F36,"é",IF(F42<E36,"ê","ó")),0) -> 
C43: 2012 | D43: =INDIRECT(ADDRESS(record2012,8+$A$36,,,"ward")) ->  | E43: =INDIRECT(ADDRESS(record2012,8+$A$36+70,,,"ward")) ->  | F43: =INDIRECT(ADDRESS(record2012,8+$A$36+105,,,"ward")) ->  | G43: =IF(C43=2012,IF(E43>F42,"é",IF(F43<E42,"ê","ó")),0) ->  | H43: =IF(C43=2012,IF(E43>F41,"é",IF(F43<E41,"ê","ó")),0) ->  | I43: =IF(C43=2012,IF(E43>F40,"é",IF(F43<E40,"ê","ó")),0) ->  | J43: =IF(C43=2012,IF(E43>F39,"é",IF(F43<E39,"ê","ó")),0) ->  | K43: =IF(C43=2012,IF(E43>F38,"é",IF(F43<E38,"ê","ó")),0) ->  | L43: =IF(C43=2012,IF(E43>F37,"é",IF(F43<E37,"ê","ó")),0) ->  | M43: =IF(C43=2012,IF(E43>F36,"é",IF(F43<E36,"ê","ó")),0) -> 
C44: 2013 | D44: =INDIRECT(ADDRESS(record2013,8+$A$36,,,"ward")) ->  | E44: =INDIRECT(ADDRESS(record2013,8+$A$36+70,,,"ward")) ->  | F44: =INDIRECT(ADDRESS(record2013,8+$A$36+105,,,"ward")) ->  | G44: =IF(C44=2013,IF(E44>F43,"é",IF(F44<E43,"ê","ó")),0) ->  | H44: =IF(C44=2013,IF(E44>F42,"é",IF(F44<E42,"ê","ó")),0) ->  | I44: =IF(C44=2013,IF(E44>F41,"é",IF(F44<E41,"ê","ó")),0) ->  | J44: =IF(C44=2013,IF(E44>F40,"é",IF(F44<E40,"ê","ó")),0) ->  | K44: =IF(C44=2013,IF(E44>F39,"é",IF(F44<E39,"ê","ó")),0) ->  | L44: =IF(C44=2013,IF(E44>F38,"é",IF(F44<E38,"ê","ó")),0) ->  | M44: =IF(C44=2013,IF(E44>F37,"é",IF(F44<E37,"ê","ó")),0) ->  | N44: =IF(C44=2013,IF(E44>F36,"é",IF(F44<E36,"ê","ó")),0) -> 
C45: 2014 | D45: =INDIRECT(ADDRESS(record2014,8+$A$36,,,"ward")) ->  | E45: =INDIRECT(ADDRESS(record2014,8+$A$36+70,,,"ward")) ->  | F45: =INDIRECT(ADDRESS(record2014,8+$A$36+105,,,"ward")) ->  | G45: =IF(C45=2014,IF(E45>F44,"é",IF(F45<E44,"ê","ó")),0) ->  | H45: =IF(C45=2014,IF(E45>F43,"é",IF(F45<E43,"ê","ó")),0) ->  | I45: =IF(C45=2014,IF(E45>F42,"é",IF(F45<E42,"ê","ó")),0) ->  | J45: =IF(C45=2014,IF(E45>F41,"é",IF(F45<E41,"ê","ó")),0) ->  | K45: =IF(C45=2014,IF(E45>F40,"é",IF(F45<E40,"ê","ó")),0) ->  | L45: =IF(C45=2014,IF(E45>F39,"é",IF(F45<E39,"ê","ó")),0) ->  | M45: =IF(C45=2014,IF(E45>F38,"é",IF(F45<E38,"ê","ó")),0) ->  | N45: =IF(C45=2014,IF(E45>F37,"é",IF(F45<E37,"ê","ó")),0) ->  | O45: =IF(C45=2014,IF(E45>F36,"é",IF(F45<E36,"ê","ó")),0) -> 
A46: 5 | B46: Bishopsworth | C46: 2005 | D46: =INDIRECT(ADDRESS(record2005,8+A46,,,"ward")) ->  | E46: =INDIRECT(ADDRESS(record2005,8+A46+70,,,"ward")) ->  | F46: =INDIRECT(ADDRESS(record2005,8+A46+105,,,"ward")) -> 
C47: 2006 | D47: =INDIRECT(ADDRESS(record2006,8+A46,,,"ward")) ->  | E47: =INDIRECT(ADDRESS(record2006,8+A46+70,,,"ward")) ->  | F47: =INDIRECT(ADDRESS(record2006,8+A46+105,,,"ward")) ->  | G47: =IF(E47>F46,"é",IF(F47<E46,"ê","ó")) -> 
C48: 2007 | D48: =INDIRECT(ADDRESS(record2007,8+A46,,,"ward")) ->  | E48: =INDIRECT(ADDRESS(record2007,8+A46+70,,,"ward")) ->  | F48: =INDIRECT(ADDRESS(record2007,8+A46+105,,,"ward")) ->  | G48: =IF(E48>F47,"é",IF(F48<E47,"ê","ó")) ->  | H48: =IF(E48>F46,"é",IF(F48<E46,"ê","ó")) -> 
C49: 2008 | D49: =INDIRECT(ADDRESS(record2008,8+A46,,,"ward")) ->  | E49: =INDIRECT(ADDRESS(record2008,8+A46+70,,,"ward")) ->  | F49: =INDIRECT(ADDRESS(record2008,8+A46+105,,,"ward")) ->  | G49: =IF(C49=2008,IF(E49>F48,"é",IF(F49<E48,"ê","ó")),0) ->  | H49: =IF(C49=2008,IF(E49>F47,"é",IF(F49<E47,"ê","ó")),0) ->  | I49: =IF(C49=2008,IF(E49>F46,"é",IF(F49<E46,"ê","ó")),0) -> 
C50: 2009 | D50: =INDIRECT(ADDRESS(record2009,8+A46,,,"ward")) ->  | E50: =INDIRECT(ADDRESS(record2009,8+A46+70,,,"ward")) ->  | F50: =INDIRECT(ADDRESS(record2009,8+A46+105,,,"ward")) ->  | G50: =IF(C50=2009,IF(E50>F49,"é",IF(F50<E49,"ê","ó")),0) ->  | H50: =IF(C50=2009,IF(E50>F48,"é",IF(F50<E48,"ê","ó")),0) ->  | I50: =IF(C50=2009,IF(E50>F47,"é",IF(F50<E47,"ê","ó")),0) ->  | J50: =IF(C50=2009,IF(E50>F46,"é",IF(F50<E46,"ê","ó")),0) -> 
C51: 2010 | D51: =INDIRECT(ADDRESS(record2010,8+$A$46,,,"ward")) ->  | E51: =INDIRECT(ADDRESS(record2010,8+$A$46+70,,,"ward")) ->  | F51: =INDIRECT(ADDRESS(record2010,8+$A$46+105,,,"ward")) ->  | G51: =IF(C51=2010,IF(E51>F50,"é",IF(F51<E50,"ê","ó")),0) ->  | H51: =IF(C51=2010,IF(E51>F49,"é",IF(F51<E49,"ê","ó")),0) ->  | I51: =IF(C51=2010,IF(E51>F48,"é",IF(F51<E48,"ê","ó")),0) ->  | J51: =IF(C51=2010,IF(E51>F47,"é",IF(F51<E47,"ê","ó")),0) ->  | K51: =IF(C51=2010,IF(E51>F46,"é",IF(F51<E46,"ê","ó")),0) -> 
C52: 2011 | D52: =INDIRECT(ADDRESS(record2011,8+$A$46,,,"ward")) ->  | E52: =INDIRECT(ADDRESS(record2011,8+$A$46+70,,,"ward")) ->  | F52: =INDIRECT(ADDRESS(record2011,8+$A$46+105,,,"ward")) ->  | G52: =IF(C52=2011,IF(E52>F51,"é",IF(F52<E51,"ê","ó")),0) ->  | H52: =IF(C52=2011,IF(E52>F50,"é",IF(F52<E50,"ê","ó")),0) ->  | I52: =IF(C52=2011,IF(E52>F49,"é",IF(F52<E49,"ê","ó")),0) ->  | J52: =IF(C52=2011,IF(E52>F48,"é",IF(F52<E48,"ê","ó")),0) ->  | K52: =IF(C52=2011,IF(E52>F47,"é",IF(F52<E47,"ê","ó")),0) ->  | L52: =IF(C52=2011,IF(E52>F46,"é",IF(F52<E46,"ê","ó")),0) -> 
C53: 2012 | D53: =INDIRECT(ADDRESS(record2012,8+$A$46,,,"ward")) ->  | E53: =INDIRECT(ADDRESS(record2012,8+$A$46+70,,,"ward")) ->  | F53: =INDIRECT(ADDRESS(record2012,8+$A$46+105,,,"ward")) ->  | G53: =IF(C53=2012,IF(E53>F52,"é",IF(F53<E52,"ê","ó")),0) ->  | H53: =IF(C53=2012,IF(E53>F51,"é",IF(F53<E51,"ê","ó")),0) ->  | I53: =IF(C53=2012,IF(E53>F50,"é",IF(F53<E50,"ê","ó")),0) ->  | J53: =IF(C53=2012,IF(E53>F49,"é",IF(F53<E49,"ê","ó")),0) ->  | K53: =IF(C53=2012,IF(E53>F48,"é",IF(F53<E48,"ê","ó")),0) ->  | L53: =IF(C53=2012,IF(E53>F47,"é",IF(F53<E47,"ê","ó")),0) ->  | M53: =IF(C53=2012,IF(E53>F46,"é",IF(F53<E46,"ê","ó")),0) -> 
C54: 2013 | D54: =INDIRECT(ADDRESS(record2013,8+$A$46,,,"ward")) ->  | E54: =INDIRECT(ADDRESS(record2013,8+$A$46+70,,,"ward")) ->  | F54: =INDIRECT(ADDRESS(record2013,8+$A$46+105,,,"ward")) ->  | G54: =IF(C54=2013,IF(E54>F53,"é",IF(F54<E53,"ê","ó")),0) ->  | H54: =IF(C54=2013,IF(E54>F52,"é",IF(F54<E52,"ê","ó")),0) ->  | I54: =IF(C54=2013,IF(E54>F51,"é",IF(F54<E51,"ê","ó")),0) ->  | J54: =IF(C54=2013,IF(E54>F50,"é",IF(F54<E50,"ê","ó")),0) ->  | K54: =IF(C54=2013,IF(E54>F49,"é",IF(F54<E49,"ê","ó")),0) ->  | L54: =IF(C54=2013,IF(E54>F48,"é",IF(F54<E48,"ê","ó")),0) ->  | M54: =IF(C54=2013,IF(E54>F47,"é",IF(F54<E47,"ê","ó")),0) ->  | N54: =IF(C54=2013,IF(E54>F46,"é",IF(F54<E46,"ê","ó")),0) -> 
C55: 2014 | D55: =INDIRECT(ADDRESS(record2014,8+$A$46,,,"ward")) ->  | E55: =INDIRECT(ADDRESS(record2014,8+$A$46+70,,,"ward")) ->  | F55: =INDIRECT(ADDRESS(record2014,8+$A$46+105,,,"ward")) ->  | G55: =IF(C55=2014,IF(E55>F54,"é",IF(F55<E54,"ê","ó")),0) ->  | H55: =IF(C55=2014,IF(E55>F53,"é",IF(F55<E53,"ê","ó")),0) ->  | I55: =IF(C55=2014,IF(E55>F52,"é",IF(F55<E52,"ê","ó")),0) ->  | J55: =IF(C55=2014,IF(E55>F51,"é",IF(F55<E51,"ê","ó")),0) ->  | K55: =IF(C55=2014,IF(E55>F50,"é",IF(F55<E50,"ê","ó")),0) ->  | L55: =IF(C55=2014,IF(E55>F49,"é",IF(F55<E49,"ê","ó")),0) ->  | M55: =IF(C55=2014,IF(E55>F48,"é",IF(F55<E48,"ê","ó")),0) ->  | N55: =IF(C55=2014,IF(E55>F47,"é",IF(F55<E47,"ê","ó")),0) ->  | O55: =IF(C55=2014,IF(E55>F46,"é",IF(F55<E46,"ê","ó")),0) -> 
A56: 6 | B56: Brislington East | C56: 2005 | D56: =INDIRECT(ADDRESS(record2005,8+A56,,,"ward")) ->  | E56: =INDIRECT(ADDRESS(record2005,8+A56+70,,,"ward")) ->  | F56: =INDIRECT(ADDRESS(record2005,8+A56+105,,,"ward")) -> 
B57: East | C57: 2006 | D57: =INDIRECT(ADDRESS(record2006,8+A56,,,"ward")) ->  | E57: =INDIRECT(ADDRESS(record2006,8+A56+70,,,"ward")) ->  | F57: =INDIRECT(ADDRESS(record2006,8+A56+105,,,"ward")) ->  | G57: =IF(E57>F56,"é",IF(F57<E56,"ê","ó")) -> 
C58: 2007 | D58: =INDIRECT(ADDRESS(record2007,8+A56,,,"ward")) ->  | E58: =INDIRECT(ADDRESS(record2007,8+A56+70,,,"ward")) ->  | F58: =INDIRECT(ADDRESS(record2007,8+A56+105,,,"ward")) ->  | G58: =IF(E58>F57,"é",IF(F58<E57,"ê","ó")) ->  | H58: =IF(E58>F56,"é",IF(F58<E56,"ê","ó")) -> 
C59: 2008 | D59: =INDIRECT(ADDRESS(record2008,8+A56,,,"ward")) ->  | E59: =INDIRECT(ADDRESS(record2008,8+A56+70,,,"ward")) ->  | F59: =INDIRECT(ADDRESS(record2008,8+A56+105,,,"ward")) ->  | G59: =IF(C59=2008,IF(E59>F58,"é",IF(F59<E58,"ê","ó")),0) ->  | H59: =IF(C59=2008,IF(E59>F57,"é",IF(F59<E57,"ê","ó")),0) ->  | I59: =IF(C59=2008,IF(E59>F56,"é",IF(F59<E56,"ê","ó")),0) -> 
C60: 2009 | D60: =INDIRECT(ADDRESS(record2009,8+A56,,,"ward")) ->  | E60: =INDIRECT(ADDRESS(record2009,8+A56+70,,,"ward")) ->  | F60: =INDIRECT(ADDRESS(record2009,8+A56+105,,,"ward")) ->  | G60: =IF(C60=2009,IF(E60>F59,"é",IF(F60<E59,"ê","ó")),0) ->  | H60: =IF(C60=2009,IF(E60>F58,"é",IF(F60<E58,"ê","ó")),0) ->  | I60: =IF(C60=2009,IF(E60>F57,"é",IF(F60<E57,"ê","ó")),0) ->  | J60: =IF(C60=2009,IF(E60>F56,"é",IF(F60<E56,"ê","ó")),0) -> 
C61: 2010 | D61: =INDIRECT(ADDRESS(record2010,8+$A$56,,,"ward")) ->  | E61: =INDIRECT(ADDRESS(record2010,8+$A$56+70,,,"ward")) ->  | F61: =INDIRECT(ADDRESS(record2010,8+$A$56+105,,,"ward")) ->  | G61: =IF(C61=2010,IF(E61>F60,"é",IF(F61<E60,"ê","ó")),0) ->  | H61: =IF(C61=2010,IF(E61>F59,"é",IF(F61<E59,"ê","ó")),0) ->  | I61: =IF(C61=2010,IF(E61>F58,"é",IF(F61<E58,"ê","ó")),0) ->  | J61: =IF(C61=2010,IF(E61>F57,"é",IF(F61<E57,"ê","ó")),0) ->  | K61: =IF(C61=2010,IF(E61>F56,"é",IF(F61<E56,"ê","ó")),0) -> 
C62: 2011 | D62: =INDIRECT(ADDRESS(record2011,8+$A$56,,,"ward")) ->  | E62: =INDIRECT(ADDRESS(record2011,8+$A$56+70,,,"ward")) ->  | F62: =INDIRECT(ADDRESS(record2011,8+$A$56+105,,,"ward")) ->  | G62: =IF(C62=2011,IF(E62>F61,"é",IF(F62<E61,"ê","ó")),0) ->  | H62: =IF(C62=2011,IF(E62>F60,"é",IF(F62<E60,"ê","ó")),0) ->  | I62: =IF(C62=2011,IF(E62>F59,"é",IF(F62<E59,"ê","ó")),0) ->  | J62: =IF(C62=2011,IF(E62>F58,"é",IF(F62<E58,"ê","ó")),0) ->  | K62: =IF(C62=2011,IF(E62>F57,"é",IF(F62<E57,"ê","ó")),0) ->  | L62: =IF(C62=2011,IF(E62>F56,"é",IF(F62<E56,"ê","ó")),0) -> 
C63: 2012 | D63: =INDIRECT(ADDRESS(record2012,8+$A$56,,,"ward")) ->  | E63: =INDIRECT(ADDRESS(record2012,8+$A$56+70,,,"ward")) ->  | F63: =INDIRECT(ADDRESS(record2012,8+$A$56+105,,,"ward")) ->  | G63: =IF(C63=2012,IF(E63>F62,"é",IF(F63<E62,"ê","ó")),0) ->  | H63: =IF(C63=2012,IF(E63>F61,"é",IF(F63<E61,"ê","ó")),0) ->  | I63: =IF(C63=2012,IF(E63>F60,"é",IF(F63<E60,"ê","ó")),0) ->  | J63: =IF(C63=2012,IF(E63>F59,"é",IF(F63<E59,"ê","ó")),0) ->  | K63: =IF(C63=2012,IF(E63>F58,"é",IF(F63<E58,"ê","ó")),0) ->  | L63: =IF(C63=2012,IF(E63>F57,"é",IF(F63<E57,"ê","ó")),0) ->  | M63: =IF(C63=2012,IF(E63>F56,"é",IF(F63<E56,"ê","ó")),0) -> 
C64: 2013 | D64: =INDIRECT(ADDRESS(record2013,8+$A$56,,,"ward")) ->  | E64: =INDIRECT(ADDRESS(record2013,8+$A$56+70,,,"ward")) ->  | F64: =INDIRECT(ADDRESS(record2013,8+$A$56+105,,,"ward")) ->  | G64: =IF(C64=2013,IF(E64>F63,"é",IF(F64<E63,"ê","ó")),0) ->  | H64: =IF(C64=2013,IF(E64>F62,"é",IF(F64<E62,"ê","ó")),0) ->  | I64: =IF(C64=2013,IF(E64>F61,"é",IF(F64<E61,"ê","ó")),0) ->  | J64: =IF(C64=2013,IF(E64>F60,"é",IF(F64<E60,"ê","ó")),0) ->  | K64: =IF(C64=2013,IF(E64>F59,"é",IF(F64<E59,"ê","ó")),0) ->  | L64: =IF(C64=2013,IF(E64>F58,"é",IF(F64<E58,"ê","ó")),0) ->  | M64: =IF(C64=2013,IF(E64>F57,"é",IF(F64<E57,"ê","ó")),0) ->  | N64: =IF(C64=2013,IF(E64>F56,"é",IF(F64<E56,"ê","ó")),0) -> 
C65: 2014 | D65: =INDIRECT(ADDRESS(record2014,8+$A$56,,,"ward")) ->  | E65: =INDIRECT(ADDRESS(record2014,8+$A$56+70,,,"ward")) ->  | F65: =INDIRECT(ADDRESS(record2014,8+$A$56+105,,,"ward")) ->  | G65: =IF(C65=2014,IF(E65>F64,"é",IF(F65<E64,"ê","ó")),0) ->  | H65: =IF(C65=2014,IF(E65>F63,"é",IF(F65<E63,"ê","ó")),0) ->  | I65: =IF(C65=2014,IF(E65>F62,"é",IF(F65<E62,"ê","ó")),0) ->  | J65: =IF(C65=2014,IF(E65>F61,"é",IF(F65<E61,"ê","ó")),0) ->  | K65: =IF(C65=2014,IF(E65>F60,"é",IF(F65<E60,"ê","ó")),0) ->  | L65: =IF(C65=2014,IF(E65>F59,"é",IF(F65<E59,"ê","ó")),0) ->  | M65: =IF(C65=2014,IF(E65>F58,"é",IF(F65<E58,"ê","ó")),0) ->  | N65: =IF(C65=2014,IF(E65>F57,"é",IF(F65<E57,"ê","ó")),0) ->  | O65: =IF(C65=2014,IF(E65>F56,"é",IF(F65<E56,"ê","ó")),0) -> 
A66: 7 | B66: Brislington West | C66: 2005 | D66: =INDIRECT(ADDRESS(record2005,8+A66,,,"ward")) ->  | E66: =INDIRECT(ADDRESS(record2005,8+A66+70,,,"ward")) ->  | F66: =INDIRECT(ADDRESS(record2005,8+A66+105,,,"ward")) -> 
B67: West | C67: 2006 | D67: =INDIRECT(ADDRESS(record2006,8+A66,,,"ward")) ->  | E67: =INDIRECT(ADDRESS(record2006,8+A66+70,,,"ward")) ->  | F67: =INDIRECT(ADDRESS(record2006,8+A66+105,,,"ward")) ->  | G67: =IF(E67>F66,"é",IF(F67<E66,"ê","ó")) -> 
C68: 2007 | D68: =INDIRECT(ADDRESS(record2007,8+A66,,,"ward")) ->  | E68: =INDIRECT(ADDRESS(record2007,8+A66+70,,,"ward")) ->  | F68: =INDIRECT(ADDRESS(record2007,8+A66+105,,,"ward")) ->  | G68: =IF(E68>F67,"é",IF(F68<E67,"ê","ó")) ->  | H68: =IF(E68>F66,"é",IF(F68<E66,"ê","ó")) -> 
C69: 2008 | D69: =INDIRECT(ADDRESS(record2008,8+A66,,,"ward")) ->  | E69: =INDIRECT(ADDRESS(record2008,8+A66+70,,,"ward")) ->  | F69: =INDIRECT(ADDRESS(record2008,8+A66+105,,,"ward")) ->  | G69: =IF(C69=2008,IF(E69>F68,"é",IF(F69<E68,"ê","ó")),0) ->  | H69: =IF(C69=2008,IF(E69>F67,"é",IF(F69<E67,"ê","ó")),0) ->  | I69: =IF(C69=2008,IF(E69>F66,"é",IF(F69<E66,"ê","ó")),0) -> 
C70: 2009 | D70: =INDIRECT(ADDRESS(record2009,8+A66,,,"ward")) ->  | E70: =INDIRECT(ADDRESS(record2009,8+A66+70,,,"ward")) ->  | F70: =INDIRECT(ADDRESS(record2009,8+A66+105,,,"ward")) ->  | G70: =IF(C70=2009,IF(E70>F69,"é",IF(F70<E69,"ê","ó")),0) ->  | H70: =IF(C70=2009,IF(E70>F68,"é",IF(F70<E68,"ê","ó")),0) ->  | I70: =IF(C70=2009,IF(E70>F67,"é",IF(F70<E67,"ê","ó")),0) ->  | J70: =IF(C70=2009,IF(E70>F66,"é",IF(F70<E66,"ê","ó")),0) ->  | V70: =D70-E70 ->  | W70: =F70-D70 -> 
C71: 2010 | D71: =INDIRECT(ADDRESS(record2010,8+$A$66,,,"ward")) ->  | E71: =INDIRECT(ADDRESS(record2010,8+$A$66+70,,,"ward")) ->  | F71: =INDIRECT(ADDRESS(record2010,8+$A$66+105,,,"ward")) ->  | G71: =IF(C71=2010,IF(E71>F70,"é",IF(F71<E70,"ê","ó")),0) ->  | H71: =IF(C71=2010,IF(E71>F69,"é",IF(F71<E69,"ê","ó")),0) ->  | I71: =IF(C71=2010,IF(E71>F68,"é",IF(F71<E68,"ê","ó")),0) ->  | J71: =IF(C71=2010,IF(E71>F67,"é",IF(F71<E67,"ê","ó")),0) ->  | K71: =IF(C71=2010,IF(E71>F66,"é",IF(F71<E66,"ê","ó")),0) -> 
C72: 2011 | D72: =INDIRECT(ADDRESS(record2011,8+$A$66,,,"ward")) ->  | E72: =INDIRECT(ADDRESS(record2011,8+$A$66+70,,,"ward")) ->  | F72: =INDIRECT(ADDRESS(record2011,8+$A$66+105,,,"ward")) ->  | G72: =IF(C72=2011,IF(E72>F71,"é",IF(F72<E71,"ê","ó")),0) ->  | H72: =IF(C72=2011,IF(E72>F70,"é",IF(F72<E70,"ê","ó")),0) ->  | I72: =IF(C72=2011,IF(E72>F69,"é",IF(F72<E69,"ê","ó")),0) ->  | J72: =IF(C72=2011,IF(E72>F68,"é",IF(F72<E68,"ê","ó")),0) ->  | K72: =IF(C72=2011,IF(E72>F67,"é",IF(F72<E67,"ê","ó")),0) ->  | L72: =IF(C72=2011,IF(E72>F66,"é",IF(F72<E66,"ê","ó")),0) -> 
C73: 2012 | D73: =INDIRECT(ADDRESS(record2012,8+$A$66,,,"ward")) ->  | E73: =INDIRECT(ADDRESS(record2012,8+$A$66+70,,,"ward")) ->  | F73: =INDIRECT(ADDRESS(record2012,8+$A$66+105,,,"ward")) ->  | G73: =IF(C73=2012,IF(E73>F72,"é",IF(F73<E72,"ê","ó")),0) ->  | H73: =IF(C73=2012,IF(E73>F71,"é",IF(F73<E71,"ê","ó")),0) ->  | I73: =IF(C73=2012,IF(E73>F70,"é",IF(F73<E70,"ê","ó")),0) ->  | J73: =IF(C73=2012,IF(E73>F69,"é",IF(F73<E69,"ê","ó")),0) ->  | K73: =IF(C73=2012,IF(E73>F68,"é",IF(F73<E68,"ê","ó")),0) ->  | L73: =IF(C73=2012,IF(E73>F67,"é",IF(F73<E67,"ê","ó")),0) ->  | M73: =IF(C73=2012,IF(E73>F66,"é",IF(F73<E66,"ê","ó")),0) -> 
C74: 2013 | D74: =INDIRECT(ADDRESS(record2013,8+$A$66,,,"ward")) ->  | E74: =INDIRECT(ADDRESS(record2013,8+$A$66+70,,,"ward")) ->  | F74: =INDIRECT(ADDRESS(record2013,8+$A$66+105,,,"ward")) ->  | G74: =IF(C74=2013,IF(E74>F73,"é",IF(F74<E73,"ê","ó")),0) ->  | H74: =IF(C74=2013,IF(E74>F72,"é",IF(F74<E72,"ê","ó")),0) ->  | I74: =IF(C74=2013,IF(E74>F71,"é",IF(F74<E71,"ê","ó")),0) ->  | J74: =IF(C74=2013,IF(E74>F70,"é",IF(F74<E70,"ê","ó")),0) ->  | K74: =IF(C74=2013,IF(E74>F69,"é",IF(F74<E69,"ê","ó")),0) ->  | L74: =IF(C74=2013,IF(E74>F68,"é",IF(F74<E68,"ê","ó")),0) ->  | M74: =IF(C74=2013,IF(E74>F67,"é",IF(F74<E67,"ê","ó")),0) ->  | N74: =IF(C74=2013,IF(E74>F66,"é",IF(F74<E66,"ê","ó")),0) -> 
C75: 2014 | D75: =INDIRECT(ADDRESS(record2014,8+$A$66,,,"ward")) ->  | E75: =INDIRECT(ADDRESS(record2014,8+$A$66+70,,,"ward")) ->  | F75: =INDIRECT(ADDRESS(record2014,8+$A$66+105,,,"ward")) ->  | G75: =IF(C75=2014,IF(E75>F74,"é",IF(F75<E74,"ê","ó")),0) ->  | H75: =IF(C75=2014,IF(E75>F73,"é",IF(F75<E73,"ê","ó")),0) ->  | I75: =IF(C75=2014,IF(E75>F72,"é",IF(F75<E72,"ê","ó")),0) ->  | J75: =IF(C75=2014,IF(E75>F71,"é",IF(F75<E71,"ê","ó")),0) ->  | K75: =IF(C75=2014,IF(E75>F70,"é",IF(F75<E70,"ê","ó")),0) ->  | L75: =IF(C75=2014,IF(E75>F69,"é",IF(F75<E69,"ê","ó")),0) ->  | M75: =IF(C75=2014,IF(E75>F68,"é",IF(F75<E68,"ê","ó")),0) ->  | N75: =IF(C75=2014,IF(E75>F67,"é",IF(F75<E67,"ê","ó")),0) ->  | O75: =IF(C75=2014,IF(E75>F66,"é",IF(F75<E66,"ê","ó")),0) -> 
A76: 8 | B76: Cabot | C76: 2005 | D76: =INDIRECT(ADDRESS(record2005,8+A76,,,"ward")) ->  | E76: =INDIRECT(ADDRESS(record2005,8+A76+70,,,"ward")) ->  | F76: =INDIRECT(ADDRESS(record2005,8+A76+105,,,"ward")) -> 
C77: 2006 | D77: =INDIRECT(ADDRESS(record2006,8+A76,,,"ward")) ->  | E77: =INDIRECT(ADDRESS(record2006,8+A76+70,,,"ward")) ->  | F77: =INDIRECT(ADDRESS(record2006,8+A76+105,,,"ward")) ->  | G77: =IF(E77>F76,"é",IF(F77<E76,"ê","ó")) -> 
C78: 2007 | D78: =INDIRECT(ADDRESS(record2007,8+A76,,,"ward")) ->  | E78: =INDIRECT(ADDRESS(record2007,8+A76+70,,,"ward")) ->  | F78: =INDIRECT(ADDRESS(record2007,8+A76+105,,,"ward")) ->  | G78: =IF(E78>F77,"é",IF(F78<E77,"ê","ó")) ->  | H78: =IF(E78>F76,"é",IF(F78<E76,"ê","ó")) -> 
C79: 2008 | D79: =INDIRECT(ADDRESS(record2008,8+A76,,,"ward")) ->  | E79: =INDIRECT(ADDRESS(record2008,8+A76+70,,,"ward")) ->  | F79: =INDIRECT(ADDRESS(record2008,8+A76+105,,,"ward")) ->  | G79: =IF(C79=2008,IF(E79>F78,"é",IF(F79<E78,"ê","ó")),0) ->  | H79: =IF(C79=2008,IF(E79>F77,"é",IF(F79<E77,"ê","ó")),0) ->  | I79: =IF(C79=2008,IF(E79>F76,"é",IF(F79<E76,"ê","ó")),0) -> 
C80: 2009 | D80: =INDIRECT(ADDRESS(record2009,8+A76,,,"ward")) ->  | E80: =INDIRECT(ADDRESS(record2009,8+A76+70,,,"ward")) ->  | F80: =INDIRECT(ADDRESS(record2009,8+A76+105,,,"ward")) ->  | G80: =IF(C80=2009,IF(E80>F79,"é",IF(F80<E79,"ê","ó")),0) ->  | H80: =IF(C80=2009,IF(E80>F78,"é",IF(F80<E78,"ê","ó")),0) ->  | I80: =IF(C80=2009,IF(E80>F77,"é",IF(F80<E77,"ê","ó")),0) ->  | J80: =IF(C80=2009,IF(E80>F76,"é",IF(F80<E76,"ê","ó")),0) -> 
C81: 2010 | D81: =INDIRECT(ADDRESS(record2010,8+$A$76,,,"ward")) ->  | E81: =INDIRECT(ADDRESS(record2010,8+$A$76+70,,,"ward")) ->  | F81: =INDIRECT(ADDRESS(record2010,8+$A$76+105,,,"ward")) ->  | G81: =IF(C81=2010,IF(E81>F80,"é",IF(F81<E80,"ê","ó")),0) ->  | H81: =IF(C81=2010,IF(E81>F79,"é",IF(F81<E79,"ê","ó")),0) ->  | I81: =IF(C81=2010,IF(E81>F78,"é",IF(F81<E78,"ê","ó")),0) ->  | J81: =IF(C81=2010,IF(E81>F77,"é",IF(F81<E77,"ê","ó")),0) ->  | K81: =IF(C81=2010,IF(E81>F76,"é",IF(F81<E76,"ê","ó")),0) -> 
C82: 2011 | D82: =INDIRECT(ADDRESS(record2011,8+$A$76,,,"ward")) ->  | E82: =INDIRECT(ADDRESS(record2011,8+$A$76+70,,,"ward")) ->  | F82: =INDIRECT(ADDRESS(record2011,8+$A$76+105,,,"ward")) ->  | G82: =IF(C82=2011,IF(E82>F81,"é",IF(F82<E81,"ê","ó")),0) ->  | H82: =IF(C82=2011,IF(E82>F80,"é",IF(F82<E80,"ê","ó")),0) ->  | I82: =IF(C82=2011,IF(E82>F79,"é",IF(F82<E79,"ê","ó")),0) ->  | J82: =IF(C82=2011,IF(E82>F78,"é",IF(F82<E78,"ê","ó")),0) ->  | K82: =IF(C82=2011,IF(E82>F77,"é",IF(F82<E77,"ê","ó")),0) ->  | L82: =IF(C82=2011,IF(E82>F76,"é",IF(F82<E76,"ê","ó")),0) -> 
C83: 2012 | D83: =INDIRECT(ADDRESS(record2012,8+$A$76,,,"ward")) ->  | E83: =INDIRECT(ADDRESS(record2012,8+$A$76+70,,,"ward")) ->  | F83: =INDIRECT(ADDRESS(record2012,8+$A$76+105,,,"ward")) ->  | G83: =IF(C83=2012,IF(E83>F82,"é",IF(F83<E82,"ê","ó")),0) ->  | H83: =IF(C83=2012,IF(E83>F81,"é",IF(F83<E81,"ê","ó")),0) ->  | I83: =IF(C83=2012,IF(E83>F80,"é",IF(F83<E80,"ê","ó")),0) ->  | J83: =IF(C83=2012,IF(E83>F79,"é",IF(F83<E79,"ê","ó")),0) ->  | K83: =IF(C83=2012,IF(E83>F78,"é",IF(F83<E78,"ê","ó")),0) ->  | L83: =IF(C83=2012,IF(E83>F77,"é",IF(F83<E77,"ê","ó")),0) ->  | M83: =IF(C83=2012,IF(E83>F76,"é",IF(F83<E76,"ê","ó")),0) -> 
C84: 2013 | D84: =INDIRECT(ADDRESS(record2013,8+$A$76,,,"ward")) ->  | E84: =INDIRECT(ADDRESS(record2013,8+$A$76+70,,,"ward")) ->  | F84: =INDIRECT(ADDRESS(record2013,8+$A$76+105,,,"ward")) ->  | G84: =IF(C84=2013,IF(E84>F83,"é",IF(F84<E83,"ê","ó")),0) ->  | H84: =IF(C84=2013,IF(E84>F82,"é",IF(F84<E82,"ê","ó")),0) ->  | I84: =IF(C84=2013,IF(E84>F81,"é",IF(F84<E81,"ê","ó")),0) ->  | J84: =IF(C84=2013,IF(E84>F80,"é",IF(F84<E80,"ê","ó")),0) ->  | K84: =IF(C84=2013,IF(E84>F79,"é",IF(F84<E79,"ê","ó")),0) ->  | L84: =IF(C84=2013,IF(E84>F78,"é",IF(F84<E78,"ê","ó")),0) ->  | M84: =IF(C84=2013,IF(E84>F77,"é",IF(F84<E77,"ê","ó")),0) ->  | N84: =IF(C84=2013,IF(E84>F76,"é",IF(F84<E76,"ê","ó")),0) -> 
C85: 2014 | D85: =INDIRECT(ADDRESS(record2014,8+$A$76,,,"ward")) ->  | E85: =INDIRECT(ADDRESS(record2014,8+$A$76+70,,,"ward")) ->  | F85: =INDIRECT(ADDRESS(record2014,8+$A$76+105,,,"ward")) ->  | G85: =IF(C85=2014,IF(E85>F84,"é",IF(F85<E84,"ê","ó")),0) ->  | H85: =IF(C85=2014,IF(E85>F83,"é",IF(F85<E83,"ê","ó")),0) ->  | I85: =IF(C85=2014,IF(E85>F82,"é",IF(F85<E82,"ê","ó")),0) ->  | J85: =IF(C85=2014,IF(E85>F81,"é",IF(F85<E81,"ê","ó")),0) ->  | K85: =IF(C85=2014,IF(E85>F80,"é",IF(F85<E80,"ê","ó")),0) ->  | L85: =IF(C85=2014,IF(E85>F79,"é",IF(F85<E79,"ê","ó")),0) ->  | M85: =IF(C85=2014,IF(E85>F78,"é",IF(F85<E78,"ê","ó")),0) ->  | N85: =IF(C85=2014,IF(E85>F77,"é",IF(F85<E77,"ê","ó")),0) ->  | O85: =IF(C85=2014,IF(E85>F76,"é",IF(F85<E76,"ê","ó")),0) -> 
A86: 9 | B86: Clifton | C86: 2005 | D86: =INDIRECT(ADDRESS(record2005,8+A86,,,"ward")) ->  | E86: =INDIRECT(ADDRESS(record2005,8+A86+70,,,"ward")) ->  | F86: =INDIRECT(ADDRESS(record2005,8+A86+105,,,"ward")) -> 
C87: 2006 | D87: =INDIRECT(ADDRESS(record2006,8+A86,,,"ward")) ->  | E87: =INDIRECT(ADDRESS(record2006,8+A86+70,,,"ward")) ->  | F87: =INDIRECT(ADDRESS(record2006,8+A86+105,,,"ward")) ->  | G87: =IF(E87>F86,"é",IF(F87<E86,"ê","ó")) -> 
C88: 2007 | D88: =INDIRECT(ADDRESS(record2007,8+A86,,,"ward")) ->  | E88: =INDIRECT(ADDRESS(record2007,8+A86+70,,,"ward")) ->  | F88: =INDIRECT(ADDRESS(record2007,8+A86+105,,,"ward")) ->  | G88: =IF(E88>F87,"é",IF(F88<E87,"ê","ó")) ->  | H88: =IF(E88>F86,"é",IF(F88<E86,"ê","ó")) -> 
C89: 2008 | D89: =INDIRECT(ADDRESS(record2008,8+A86,,,"ward")) ->  | E89: =INDIRECT(ADDRESS(record2008,8+A86+70,,,"ward")) ->  | F89: =INDIRECT(ADDRESS(record2008,8+A86+105,,,"ward")) ->  | G89: =IF(C89=2008,IF(E89>F88,"é",IF(F89<E88,"ê","ó")),0) ->  | H89: =IF(C89=2008,IF(E89>F87,"é",IF(F89<E87,"ê","ó")),0) ->  | I89: =IF(C89=2008,IF(E89>F86,"é",IF(F89<E86,"ê","ó")),0) -> 
C90: 2009 | D90: =INDIRECT(ADDRESS(record2009,8+A86,,,"ward")) ->  | E90: =INDIRECT(ADDRESS(record2009,8+A86+70,,,"ward")) ->  | F90: =INDIRECT(ADDRESS(record2009,8+A86+105,,,"ward")) ->  | G90: =IF(C90=2009,IF(E90>F89,"é",IF(F90<E89,"ê","ó")),0) ->  | H90: =IF(C90=2009,IF(E90>F88,"é",IF(F90<E88,"ê","ó")),0) ->  | I90: =IF(C90=2009,IF(E90>F87,"é",IF(F90<E87,"ê","ó")),0) ->  | J90: =IF(C90=2009,IF(E90>F86,"é",IF(F90<E86,"ê","ó")),0) -> 
C91: 2010 | D91: =INDIRECT(ADDRESS(record2010,8+A86,,,"ward")) ->  | E91: =INDIRECT(ADDRESS(record2010,8+A86+70,,,"ward")) ->  | F91: =INDIRECT(ADDRESS(record2010,8+A86+105,,,"ward")) ->  | G91: =IF(C91=2010,IF(E91>F90,"é",IF(F91<E90,"ê","ó")),0) ->  | H91: =IF(C91=2010,IF(E91>F89,"é",IF(F91<E89,"ê","ó")),0) ->  | I91: =IF(C91=2010,IF(E91>F88,"é",IF(F91<E88,"ê","ó")),0) ->  | J91: =IF(C91=2010,IF(E91>F87,"é",IF(F91<E87,"ê","ó")),0) ->  | K91: =IF(C91=2010,IF(E91>F86,"é",IF(F91<E86,"ê","ó")),0) -> 
C92: 2011 | D92: =INDIRECT(ADDRESS(record2011,8+$A$86,,,"ward")) ->  | E92: =INDIRECT(ADDRESS(record2011,8+$A$86+70,,,"ward")) ->  | F92: =INDIRECT(ADDRESS(record2011,8+$A$86+105,,,"ward")) ->  | G92: =IF(C92=2011,IF(E92>F91,"é",IF(F92<E91,"ê","ó")),0) ->  | H92: =IF(C92=2011,IF(E92>F90,"é",IF(F92<E90,"ê","ó")),0) ->  | I92: =IF(C92=2011,IF(E92>F89,"é",IF(F92<E89,"ê","ó")),0) ->  | J92: =IF(C92=2011,IF(E92>F88,"é",IF(F92<E88,"ê","ó")),0) ->  | K92: =IF(C92=2011,IF(E92>F87,"é",IF(F92<E87,"ê","ó")),0) ->  | L92: =IF(C92=2011,IF(E92>F86,"é",IF(F92<E86,"ê","ó")),0) -> 
C93: 2012 | D93: =INDIRECT(ADDRESS(record2012,8+$A$86,,,"ward")) ->  | E93: =INDIRECT(ADDRESS(record2012,8+$A$86+70,,,"ward")) ->  | F93: =INDIRECT(ADDRESS(record2012,8+$A$86+105,,,"ward")) ->  | G93: =IF(C93=2012,IF(E93>F92,"é",IF(F93<E92,"ê","ó")),0) ->  | H93: =IF(C93=2012,IF(E93>F91,"é",IF(F93<E91,"ê","ó")),0) ->  | I93: =IF(C93=2012,IF(E93>F90,"é",IF(F93<E90,"ê","ó")),0) ->  | J93: =IF(C93=2012,IF(E93>F89,"é",IF(F93<E89,"ê","ó")),0) ->  | K93: =IF(C93=2012,IF(E93>F88,"é",IF(F93<E88,"ê","ó")),0) ->  | L93: =IF(C93=2012,IF(E93>F87,"é",IF(F93<E87,"ê","ó")),0) ->  | M93: =IF(C93=2012,IF(E93>F86,"é",IF(F93<E86,"ê","ó")),0) -> 
C94: 2013 | D94: =INDIRECT(ADDRESS(record2013,8+$A$86,,,"ward")) ->  | E94: =INDIRECT(ADDRESS(record2013,8+$A$86+70,,,"ward")) ->  | F94: =INDIRECT(ADDRESS(record2013,8+$A$86+105,,,"ward")) ->  | G94: =IF(C94=2013,IF(E94>F93,"é",IF(F94<E93,"ê","ó")),0) ->  | H94: =IF(C94=2013,IF(E94>F92,"é",IF(F94<E92,"ê","ó")),0) ->  | I94: =IF(C94=2013,IF(E94>F91,"é",IF(F94<E91,"ê","ó")),0) ->  | J94: =IF(C94=2013,IF(E94>F90,"é",IF(F94<E90,"ê","ó")),0) ->  | K94: =IF(C94=2013,IF(E94>F89,"é",IF(F94<E89,"ê","ó")),0) ->  | L94: =IF(C94=2013,IF(E94>F88,"é",IF(F94<E88,"ê","ó")),0) ->  | M94: =IF(C94=2013,IF(E94>F87,"é",IF(F94<E87,"ê","ó")),0) ->  | N94: =IF(C94=2013,IF(E94>F86,"é",IF(F94<E86,"ê","ó")),0) -> 
C95: 2014 | D95: =INDIRECT(ADDRESS(record2014,8+$A$86,,,"ward")) ->  | E95: =INDIRECT(ADDRESS(record2014,8+$A$86+70,,,"ward")) ->  | F95: =INDIRECT(ADDRESS(record2014,8+$A$86+105,,,"ward")) ->  | G95: =IF(C95=2014,IF(E95>F94,"é",IF(F95<E94,"ê","ó")),0) ->  | H95: =IF(C95=2014,IF(E95>F93,"é",IF(F95<E93,"ê","ó")),0) ->  | I95: =IF(C95=2014,IF(E95>F92,"é",IF(F95<E92,"ê","ó")),0) ->  | J95: =IF(C95=2014,IF(E95>F91,"é",IF(F95<E91,"ê","ó")),0) ->  | K95: =IF(C95=2014,IF(E95>F90,"é",IF(F95<E90,"ê","ó")),0) ->  | L95: =IF(C95=2014,IF(E95>F89,"é",IF(F95<E89,"ê","ó")),0) ->  | M95: =IF(C95=2014,IF(E95>F88,"é",IF(F95<E88,"ê","ó")),0) ->  | N95: =IF(C95=2014,IF(E95>F87,"é",IF(F95<E87,"ê","ó")),0) ->  | O95: =IF(C95=2014,IF(E95>F86,"é",IF(F95<E86,"ê","ó")),0) -> 
A96: 10 | B96: Clifton East | C96: 2005 | D96: =INDIRECT(ADDRESS(record2005,8+A96,,,"ward")) ->  | E96: =INDIRECT(ADDRESS(record2005,8+A96+70,,,"ward")) ->  | F96: =INDIRECT(ADDRESS(record2005,8+A96+105,,,"ward")) -> 
C97: 2006 | D97: =INDIRECT(ADDRESS(record2006,8+A96,,,"ward")) ->  | E97: =INDIRECT(ADDRESS(record2006,8+A96+70,,,"ward")) ->  | F97: =INDIRECT(ADDRESS(record2006,8+A96+105,,,"ward")) ->  | G97: =IF(E97>F96,"é",IF(F97<E96,"ê","ó")) -> 
C98: 2007 | D98: =INDIRECT(ADDRESS(record2007,8+A96,,,"ward")) ->  | E98: =INDIRECT(ADDRESS(record2007,8+A96+70,,,"ward")) ->  | F98: =INDIRECT(ADDRESS(record2007,8+A96+105,,,"ward")) ->  | G98: =IF(E98>F97,"é",IF(F98<E97,"ê","ó")) ->  | H98: =IF(E98>F96,"é",IF(F98<E96,"ê","ó")) -> 
C99: 2008 | D99: =INDIRECT(ADDRESS(record2008,8+A96,,,"ward")) ->  | E99: =INDIRECT(ADDRESS(record2008,8+A96+70,,,"ward")) ->  | F99: =INDIRECT(ADDRESS(record2008,8+A96+105,,,"ward")) ->  | G99: =IF(C99=2008,IF(E99>F98,"é",IF(F99<E98,"ê","ó")),0) ->  | H99: =IF(C99=2008,IF(E99>F97,"é",IF(F99<E97,"ê","ó")),0) ->  | I99: =IF(C99=2008,IF(E99>F96,"é",IF(F99<E96,"ê","ó")),0) -> 
C100: 2009 | D100: =INDIRECT(ADDRESS(record2009,8+A96,,,"ward")) ->  | E100: =INDIRECT(ADDRESS(record2009,8+A96+70,,,"ward")) ->  | F100: =INDIRECT(ADDRESS(record2009,8+A96+105,,,"ward")) ->  | G100: =IF(C100=2009,IF(E100>F99,"é",IF(F100<E99,"ê","ó")),0) ->  | H100: =IF(C100=2009,IF(E100>F98,"é",IF(F100<E98,"ê","ó")),0) ->  | I100: =IF(C100=2009,IF(E100>F97,"é",IF(F100<E97,"ê","ó")),0) ->  | J100: =IF(C100=2009,IF(E100>F96,"é",IF(F100<E96,"ê","ó")),0) -> 
C101: 2010 | D101: =INDIRECT(ADDRESS(record2010,8+A96,,,"ward")) ->  | E101: =INDIRECT(ADDRESS(record2010,8+A96+70,,,"ward")) ->  | F101: =INDIRECT(ADDRESS(record2010,8+A96+105,,,"ward")) ->  | G101: =IF(C101=2010,IF(E101>F100,"é",IF(F101<E100,"ê","ó")),0) ->  | H101: =IF(C101=2010,IF(E101>F99,"é",IF(F101<E99,"ê","ó")),0) ->  | I101: =IF(C101=2010,IF(E101>F98,"é",IF(F101<E98,"ê","ó")),0) ->  | J101: =IF(C101=2010,IF(E101>F97,"é",IF(F101<E97,"ê","ó")),0) ->  | K101: =IF(C101=2010,IF(E101>F96,"é",IF(F101<E96,"ê","ó")),0) -> 
C102: 2011 | D102: =INDIRECT(ADDRESS(record2011,8+$A$96,,,"ward")) ->  | E102: =INDIRECT(ADDRESS(record2011,8+$A$96+70,,,"ward")) ->  | F102: =INDIRECT(ADDRESS(record2011,8+$A$96+105,,,"ward")) ->  | G102: =IF(C102=2011,IF(E102>F101,"é",IF(F102<E101,"ê","ó")),0) ->  | H102: =IF(C102=2011,IF(E102>F100,"é",IF(F102<E100,"ê","ó")),0) ->  | I102: =IF(C102=2011,IF(E102>F99,"é",IF(F102<E99,"ê","ó")),0) ->  | J102: =IF(C102=2011,IF(E102>F98,"é",IF(F102<E98,"ê","ó")),0) ->  | K102: =IF(C102=2011,IF(E102>F97,"é",IF(F102<E97,"ê","ó")),0) ->  | L102: =IF(C102=2011,IF(E102>F96,"é",IF(F102<E96,"ê","ó")),0) -> 
C103: 2012 | D103: =INDIRECT(ADDRESS(record2012,8+$A$96,,,"ward")) ->  | E103: =INDIRECT(ADDRESS(record2012,8+$A$96+70,,,"ward")) ->  | F103: =INDIRECT(ADDRESS(record2012,8+$A$96+105,,,"ward")) ->  | G103: =IF(C103=2012,IF(E103>F102,"é",IF(F103<E102,"ê","ó")),0) ->  | H103: =IF(C103=2012,IF(E103>F101,"é",IF(F103<E101,"ê","ó")),0) ->  | I103: =IF(C103=2012,IF(E103>F100,"é",IF(F103<E100,"ê","ó")),0) ->  | J103: =IF(C103=2012,IF(E103>F99,"é",IF(F103<E99,"ê","ó")),0) ->  | K103: =IF(C103=2012,IF(E103>F98,"é",IF(F103<E98,"ê","ó")),0) ->  | L103: =IF(C103=2012,IF(E103>F97,"é",IF(F103<E97,"ê","ó")),0) ->  | M103: =IF(C103=2012,IF(E103>F96,"é",IF(F103<E96,"ê","ó")),0) -> 
C104: 2013 | D104: =INDIRECT(ADDRESS(record2013,8+$A$96,,,"ward")) ->  | E104: =INDIRECT(ADDRESS(record2013,8+$A$96+70,,,"ward")) ->  | F104: =INDIRECT(ADDRESS(record2013,8+$A$96+105,,,"ward")) ->  | G104: =IF(C104=2013,IF(E104>F103,"é",IF(F104<E103,"ê","ó")),0) ->  | H104: =IF(C104=2013,IF(E104>F102,"é",IF(F104<E102,"ê","ó")),0) ->  | I104: =IF(C104=2013,IF(E104>F101,"é",IF(F104<E101,"ê","ó")),0) ->  | J104: =IF(C104=2013,IF(E104>F100,"é",IF(F104<E100,"ê","ó")),0) ->  | K104: =IF(C104=2013,IF(E104>F99,"é",IF(F104<E99,"ê","ó")),0) ->  | L104: =IF(C104=2013,IF(E104>F98,"é",IF(F104<E98,"ê","ó")),0) ->  | M104: =IF(C104=2013,IF(E104>F97,"é",IF(F104<E97,"ê","ó")),0) ->  | N104: =IF(C104=2013,IF(E104>F96,"é",IF(F104<E96,"ê","ó")),0) -> 
C105: 2014 | D105: =INDIRECT(ADDRESS(record2014,8+$A$96,,,"ward")) ->  | E105: =INDIRECT(ADDRESS(record2014,8+$A$96+70,,,"ward")) ->  | F105: =INDIRECT(ADDRESS(record2014,8+$A$96+105,,,"ward")) ->  | G105: =IF(C105=2014,IF(E105>F104,"é",IF(F105<E104,"ê","ó")),0) ->  | H105: =IF(C105=2014,IF(E105>F103,"é",IF(F105<E103,"ê","ó")),0) ->  | I105: =IF(C105=2014,IF(E105>F102,"é",IF(F105<E102,"ê","ó")),0) ->  | J105: =IF(C105=2014,IF(E105>F101,"é",IF(F105<E101,"ê","ó")),0) ->  | K105: =IF(C105=2014,IF(E105>F100,"é",IF(F105<E100,"ê","ó")),0) ->  | L105: =IF(C105=2014,IF(E105>F99,"é",IF(F105<E99,"ê","ó")),0) ->  | M105: =IF(C105=2014,IF(E105>F98,"é",IF(F105<E98,"ê","ó")),0) ->  | N105: =IF(C105=2014,IF(E105>F97,"é",IF(F105<E97,"ê","ó")),0) ->  | O105: =IF(C105=2014,IF(E105>F96,"é",IF(F105<E96,"ê","ó")),0) -> 
A106: 11 | B106: Cotham | C106: 2005 | D106: =INDIRECT(ADDRESS(record2005,8+A106,,,"ward")) ->  | E106: =INDIRECT(ADDRESS(record2005,8+A106+70,,,"ward")) ->  | F106: =INDIRECT(ADDRESS(record2005,8+A106+105,,,"ward")) -> 
C107: 2006 | D107: =INDIRECT(ADDRESS(record2006,8+A106,,,"ward")) ->  | E107: =INDIRECT(ADDRESS(record2006,8+A106+70,,,"ward")) ->  | F107: =INDIRECT(ADDRESS(record2006,8+A106+105,,,"ward")) ->  | G107: =IF(E107>F106,"é",IF(F107<E106,"ê","ó")) -> 
C108: 2007 | D108: =INDIRECT(ADDRESS(record2007,8+A106,,,"ward")) ->  | E108: =INDIRECT(ADDRESS(record2007,8+A106+70,,,"ward")) ->  | F108: =INDIRECT(ADDRESS(record2007,8+A106+105,,,"ward")) ->  | G108: =IF(E108>F107,"é",IF(F108<E107,"ê","ó")) ->  | H108: =IF(E108>F106,"é",IF(F108<E106,"ê","ó")) -> 
C109: 2008 | D109: =INDIRECT(ADDRESS(record2008,8+A106,,,"ward")) ->  | E109: =INDIRECT(ADDRESS(record2008,8+A106+70,,,"ward")) ->  | F109: =INDIRECT(ADDRESS(record2008,8+A106+105,,,"ward")) ->  | G109: =IF(C109=2008,IF(E109>F108,"é",IF(F109<E108,"ê","ó")),0) ->  | H109: =IF(C109=2008,IF(E109>F107,"é",IF(F109<E107,"ê","ó")),0) ->  | I109: =IF(C109=2008,IF(E109>F106,"é",IF(F109<E106,"ê","ó")),0) -> 
C110: 2009 | D110: =INDIRECT(ADDRESS(record2009,8+A106,,,"ward")) ->  | E110: =INDIRECT(ADDRESS(record2009,8+A106+70,,,"ward")) ->  | F110: =INDIRECT(ADDRESS(record2009,8+A106+105,,,"ward")) ->  | G110: =IF(C110=2009,IF(E110>F109,"é",IF(F110<E109,"ê","ó")),0) ->  | H110: =IF(C110=2009,IF(E110>F108,"é",IF(F110<E108,"ê","ó")),0) ->  | I110: =IF(C110=2009,IF(E110>F107,"é",IF(F110<E107,"ê","ó")),0) ->  | J110: =IF(C110=2009,IF(E110>F106,"é",IF(F110<E106,"ê","ó")),0) -> 
C111: 2010 | D111: =INDIRECT(ADDRESS(record2010,8+A106,,,"ward")) ->  | E111: =INDIRECT(ADDRESS(record2010,8+A106+70,,,"ward")) ->  | F111: =INDIRECT(ADDRESS(record2010,8+A106+105,,,"ward")) ->  | G111: =IF(C111=2010,IF(E111>F110,"é",IF(F111<E110,"ê","ó")),0) ->  | H111: =IF(C111=2010,IF(E111>F109,"é",IF(F111<E109,"ê","ó")),0) ->  | I111: =IF(C111=2010,IF(E111>F108,"é",IF(F111<E108,"ê","ó")),0) ->  | J111: =IF(C111=2010,IF(E111>F107,"é",IF(F111<E107,"ê","ó")),0) ->  | K111: =IF(C111=2010,IF(E111>F106,"é",IF(F111<E106,"ê","ó")),0) -> 
C112: 2011 | D112: =INDIRECT(ADDRESS(record2011,8+$A$106,,,"ward")) ->  | E112: =INDIRECT(ADDRESS(record2011,8+$A$106+70,,,"ward")) ->  | F112: =INDIRECT(ADDRESS(record2011,8+$A$106+105,,,"ward")) ->  | G112: =IF(C112=2011,IF(E112>F111,"é",IF(F112<E111,"ê","ó")),0) ->  | H112: =IF(C112=2011,IF(E112>F110,"é",IF(F112<E110,"ê","ó")),0) ->  | I112: =IF(C112=2011,IF(E112>F109,"é",IF(F112<E109,"ê","ó")),0) ->  | J112: =IF(C112=2011,IF(E112>F108,"é",IF(F112<E108,"ê","ó")),0) ->  | K112: =IF(C112=2011,IF(E112>F107,"é",IF(F112<E107,"ê","ó")),0) ->  | L112: =IF(C112=2011,IF(E112>F106,"é",IF(F112<E106,"ê","ó")),0) -> 
C113: 2012 | D113: =INDIRECT(ADDRESS(record2012,8+$A$106,,,"ward")) ->  | E113: =INDIRECT(ADDRESS(record2012,8+$A$106+70,,,"ward")) ->  | F113: =INDIRECT(ADDRESS(record2012,8+$A$106+105,,,"ward")) ->  | G113: =IF(C113=2012,IF(E113>F112,"é",IF(F113<E112,"ê","ó")),0) ->  | H113: =IF(C113=2012,IF(E113>F111,"é",IF(F113<E111,"ê","ó")),0) ->  | I113: =IF(C113=2012,IF(E113>F110,"é",IF(F113<E110,"ê","ó")),0) ->  | J113: =IF(C113=2012,IF(E113>F109,"é",IF(F113<E109,"ê","ó")),0) ->  | K113: =IF(C113=2012,IF(E113>F108,"é",IF(F113<E108,"ê","ó")),0) ->  | L113: =IF(C113=2012,IF(E113>F107,"é",IF(F113<E107,"ê","ó")),0) ->  | M113: =IF(C113=2012,IF(E113>F106,"é",IF(F113<E106,"ê","ó")),0) -> 
C114: 2013 | D114: =INDIRECT(ADDRESS(record2013,8+$A$106,,,"ward")) ->  | E114: =INDIRECT(ADDRESS(record2013,8+$A$106+70,,,"ward")) ->  | F114: =INDIRECT(ADDRESS(record2013,8+$A$106+105,,,"ward")) ->  | G114: =IF(C114=2013,IF(E114>F113,"é",IF(F114<E113,"ê","ó")),0) ->  | H114: =IF(C114=2013,IF(E114>F112,"é",IF(F114<E112,"ê","ó")),0) ->  | I114: =IF(C114=2013,IF(E114>F111,"é",IF(F114<E111,"ê","ó")),0) ->  | J114: =IF(C114=2013,IF(E114>F110,"é",IF(F114<E110,"ê","ó")),0) ->  | K114: =IF(C114=2013,IF(E114>F109,"é",IF(F114<E109,"ê","ó")),0) ->  | L114: =IF(C114=2013,IF(E114>F108,"é",IF(F114<E108,"ê","ó")),0) ->  | M114: =IF(C114=2013,IF(E114>F107,"é",IF(F114<E107,"ê","ó")),0) ->  | N114: =IF(C114=2013,IF(E114>F106,"é",IF(F114<E106,"ê","ó")),0) -> 
C115: 2014 | D115: =INDIRECT(ADDRESS(record2014,8+$A$106,,,"ward")) ->  | E115: =INDIRECT(ADDRESS(record2014,8+$A$106+70,,,"ward")) ->  | F115: =INDIRECT(ADDRESS(record2014,8+$A$106+105,,,"ward")) ->  | G115: =IF(C115=2014,IF(E115>F114,"é",IF(F115<E114,"ê","ó")),0) ->  | H115: =IF(C115=2014,IF(E115>F113,"é",IF(F115<E113,"ê","ó")),0) ->  | I115: =IF(C115=2014,IF(E115>F112,"é",IF(F115<E112,"ê","ó")),0) ->  | J115: =IF(C115=2014,IF(E115>F111,"é",IF(F115<E111,"ê","ó")),0) ->  | K115: =IF(C115=2014,IF(E115>F110,"é",IF(F115<E110,"ê","ó")),0) ->  | L115: =IF(C115=2014,IF(E115>F109,"é",IF(F115<E109,"ê","ó")),0) ->  | M115: =IF(C115=2014,IF(E115>F108,"é",IF(F115<E108,"ê","ó")),0) ->  | N115: =IF(C115=2014,IF(E115>F107,"é",IF(F115<E107,"ê","ó")),0) ->  | O115: =IF(C115=2014,IF(E115>F106,"é",IF(F115<E106,"ê","ó")),0) -> 
A116: 12 | B116: Easton | C116: 2005 | D116: =INDIRECT(ADDRESS(record2005,8+A116,,,"ward")) ->  | E116: =INDIRECT(ADDRESS(record2005,8+A116+70,,,"ward")) ->  | F116: =INDIRECT(ADDRESS(record2005,8+A116+105,,,"ward")) -> 
C117: 2006 | D117: =INDIRECT(ADDRESS(record2006,8+A116,,,"ward")) ->  | E117: =INDIRECT(ADDRESS(record2006,8+A116+70,,,"ward")) ->  | F117: =INDIRECT(ADDRESS(record2006,8+A116+105,,,"ward")) ->  | G117: =IF(E117>F116,"é",IF(F117<E116,"ê","ó")) -> 
C118: 2007 | D118: =INDIRECT(ADDRESS(record2007,8+A116,,,"ward")) ->  | E118: =INDIRECT(ADDRESS(record2007,8+A116+70,,,"ward")) ->  | F118: =INDIRECT(ADDRESS(record2007,8+A116+105,,,"ward")) ->  | G118: =IF(E118>F117,"é",IF(F118<E117,"ê","ó")) ->  | H118: =IF(E118>F116,"é",IF(F118<E116,"ê","ó")) -> 
C119: 2008 | D119: =INDIRECT(ADDRESS(record2008,8+A116,,,"ward")) ->  | E119: =INDIRECT(ADDRESS(record2008,8+A116+70,,,"ward")) ->  | F119: =INDIRECT(ADDRESS(record2008,8+A116+105,,,"ward")) ->  | G119: =IF(C119=2008,IF(E119>F118,"é",IF(F119<E118,"ê","ó")),0) ->  | H119: =IF(C119=2008,IF(E119>F117,"é",IF(F119<E117,"ê","ó")),0) ->  | I119: =IF(C119=2008,IF(E119>F116,"é",IF(F119<E116,"ê","ó")),0) -> 
C120: 2009 | D120: =INDIRECT(ADDRESS(record2009,8+A116,,,"ward")) ->  | E120: =INDIRECT(ADDRESS(record2009,8+A116+70,,,"ward")) ->  | F120: =INDIRECT(ADDRESS(record2009,8+A116+105,,,"ward")) ->  | G120: =IF(C120=2009,IF(E120>F119,"é",IF(F120<E119,"ê","ó")),0) ->  | H120: =IF(C120=2009,IF(E120>F118,"é",IF(F120<E118,"ê","ó")),0) ->  | I120: =IF(C120=2009,IF(E120>F117,"é",IF(F120<E117,"ê","ó")),0) ->  | J120: =IF(C120=2009,IF(E120>F116,"é",IF(F120<E116,"ê","ó")),0) -> 
C121: 2010 | D121: =INDIRECT(ADDRESS(record2010,8+A116,,,"ward")) ->  | E121: =INDIRECT(ADDRESS(record2010,8+A116+70,,,"ward")) ->  | F121: =INDIRECT(ADDRESS(record2010,8+A116+105,,,"ward")) ->  | G121: =IF(C121=2010,IF(E121>F120,"é",IF(F121<E120,"ê","ó")),0) ->  | H121: =IF(C121=2010,IF(E121>F119,"é",IF(F121<E119,"ê","ó")),0) ->  | I121: =IF(C121=2010,IF(E121>F118,"é",IF(F121<E118,"ê","ó")),0) ->  | J121: =IF(C121=2010,IF(E121>F117,"é",IF(F121<E117,"ê","ó")),0) ->  | K121: =IF(C121=2010,IF(E121>F116,"é",IF(F121<E116,"ê","ó")),0) -> 
C122: 2011 | D122: =INDIRECT(ADDRESS(record2011,8+$A$116,,,"ward")) ->  | E122: =INDIRECT(ADDRESS(record2011,8+$A$116+70,,,"ward")) ->  | F122: =INDIRECT(ADDRESS(record2011,8+$A$116+105,,,"ward")) ->  | G122: =IF(C122=2011,IF(E122>F121,"é",IF(F122<E121,"ê","ó")),0) ->  | H122: =IF(C122=2011,IF(E122>F120,"é",IF(F122<E120,"ê","ó")),0) ->  | I122: =IF(C122=2011,IF(E122>F119,"é",IF(F122<E119,"ê","ó")),0) ->  | J122: =IF(C122=2011,IF(E122>F118,"é",IF(F122<E118,"ê","ó")),0) ->  | K122: =IF(C122=2011,IF(E122>F117,"é",IF(F122<E117,"ê","ó")),0) ->  | L122: =IF(C122=2011,IF(E122>F116,"é",IF(F122<E116,"ê","ó")),0) -> 
C123: 2012 | D123: =INDIRECT(ADDRESS(record2012,8+$A$116,,,"ward")) ->  | E123: =INDIRECT(ADDRESS(record2012,8+$A$116+70,,,"ward")) ->  | F123: =INDIRECT(ADDRESS(record2012,8+$A$116+105,,,"ward")) ->  | G123: =IF(C123=2012,IF(E123>F122,"é",IF(F123<E122,"ê","ó")),0) ->  | H123: =IF(C123=2012,IF(E123>F121,"é",IF(F123<E121,"ê","ó")),0) ->  | I123: =IF(C123=2012,IF(E123>F120,"é",IF(F123<E120,"ê","ó")),0) ->  | J123: =IF(C123=2012,IF(E123>F119,"é",IF(F123<E119,"ê","ó")),0) ->  | K123: =IF(C123=2012,IF(E123>F118,"é",IF(F123<E118,"ê","ó")),0) ->  | L123: =IF(C123=2012,IF(E123>F117,"é",IF(F123<E117,"ê","ó")),0) ->  | M123: =IF(C123=2012,IF(E123>F116,"é",IF(F123<E116,"ê","ó")),0) -> 
C124: 2013 | D124: =INDIRECT(ADDRESS(record2013,8+$A$116,,,"ward")) ->  | E124: =INDIRECT(ADDRESS(record2013,8+$A$116+70,,,"ward")) ->  | F124: =INDIRECT(ADDRESS(record2013,8+$A$116+105,,,"ward")) ->  | G124: =IF(C124=2013,IF(E124>F123,"é",IF(F124<E123,"ê","ó")),0) ->  | H124: =IF(C124=2013,IF(E124>F122,"é",IF(F124<E122,"ê","ó")),0) ->  | I124: =IF(C124=2013,IF(E124>F121,"é",IF(F124<E121,"ê","ó")),0) ->  | J124: =IF(C124=2013,IF(E124>F120,"é",IF(F124<E120,"ê","ó")),0) ->  | K124: =IF(C124=2013,IF(E124>F119,"é",IF(F124<E119,"ê","ó")),0) ->  | L124: =IF(C124=2013,IF(E124>F118,"é",IF(F124<E118,"ê","ó")),0) ->  | M124: =IF(C124=2013,IF(E124>F117,"é",IF(F124<E117,"ê","ó")),0) ->  | N124: =IF(C124=2013,IF(E124>F116,"é",IF(F124<E116,"ê","ó")),0) -> 
C125: 2014 | D125: =INDIRECT(ADDRESS(record2014,8+$A$116,,,"ward")) ->  | E125: =INDIRECT(ADDRESS(record2014,8+$A$116+70,,,"ward")) ->  | F125: =INDIRECT(ADDRESS(record2014,8+$A$116+105,,,"ward")) ->  | G125: =IF(C125=2014,IF(E125>F124,"é",IF(F125<E124,"ê","ó")),0) ->  | H125: =IF(C125=2014,IF(E125>F123,"é",IF(F125<E123,"ê","ó")),0) ->  | I125: =IF(C125=2014,IF(E125>F122,"é",IF(F125<E122,"ê","ó")),0) ->  | J125: =IF(C125=2014,IF(E125>F121,"é",IF(F125<E121,"ê","ó")),0) ->  | K125: =IF(C125=2014,IF(E125>F120,"é",IF(F125<E120,"ê","ó")),0) ->  | L125: =IF(C125=2014,IF(E125>F119,"é",IF(F125<E119,"ê","ó")),0) ->  | M125: =IF(C125=2014,IF(E125>F118,"é",IF(F125<E118,"ê","ó")),0) ->  | N125: =IF(C125=2014,IF(E125>F117,"é",IF(F125<E117,"ê","ó")),0) ->  | O125: =IF(C125=2014,IF(E125>F116,"é",IF(F125<E116,"ê","ó")),0) -> 
A126: 13 | B126: Eastville | C126: 2005 | D126: =INDIRECT(ADDRESS(record2005,8+A126,,,"ward")) ->  | E126: =INDIRECT(ADDRESS(record2005,8+A126+70,,,"ward")) ->  | F126: =INDIRECT(ADDRESS(record2005,8+A126+105,,,"ward")) -> 
C127: 2006 | D127: =INDIRECT(ADDRESS(record2006,8+A126,,,"ward")) ->  | E127: =INDIRECT(ADDRESS(record2006,8+A126+70,,,"ward")) ->  | F127: =INDIRECT(ADDRESS(record2006,8+A126+105,,,"ward")) ->  | G127: =IF(E127>F126,"é",IF(F127<E126,"ê","ó")) -> 
C128: 2007 | D128: =INDIRECT(ADDRESS(record2007,8+A126,,,"ward")) ->  | E128: =INDIRECT(ADDRESS(record2007,8+A126+70,,,"ward")) ->  | F128: =INDIRECT(ADDRESS(record2007,8+A126+105,,,"ward")) ->  | G128: =IF(E128>F127,"é",IF(F128<E127,"ê","ó")) ->  | H128: =IF(E128>F126,"é",IF(F128<E126,"ê","ó")) -> 
C129: 2008 | D129: =INDIRECT(ADDRESS(record2008,8+A126,,,"ward")) ->  | E129: =INDIRECT(ADDRESS(record2008,8+A126+70,,,"ward")) ->  | F129: =INDIRECT(ADDRESS(record2008,8+A126+105,,,"ward")) ->  | G129: =IF(C129=2008,IF(E129>F128,"é",IF(F129<E128,"ê","ó")),0) ->  | H129: =IF(C129=2008,IF(E129>F127,"é",IF(F129<E127,"ê","ó")),0) ->  | I129: =IF(C129=2008,IF(E129>F126,"é",IF(F129<E126,"ê","ó")),0) -> 
C130: 2009 | D130: =INDIRECT(ADDRESS(record2009,8+A126,,,"ward")) ->  | E130: =INDIRECT(ADDRESS(record2009,8+A126+70,,,"ward")) ->  | F130: =INDIRECT(ADDRESS(record2009,8+A126+105,,,"ward")) ->  | G130: =IF(C130=2009,IF(E130>F129,"é",IF(F130<E129,"ê","ó")),0) ->  | H130: =IF(C130=2009,IF(E130>F128,"é",IF(F130<E128,"ê","ó")),0) ->  | I130: =IF(C130=2009,IF(E130>F127,"é",IF(F130<E127,"ê","ó")),0) ->  | J130: =IF(C130=2009,IF(E130>F126,"é",IF(F130<E126,"ê","ó")),0) -> 
C131: 2010 | D131: =INDIRECT(ADDRESS(record2010,8+A126,,,"ward")) ->  | E131: =INDIRECT(ADDRESS(record2010,8+A126+70,,,"ward")) ->  | F131: =INDIRECT(ADDRESS(record2010,8+A126+105,,,"ward")) ->  | G131: =IF(C131=2010,IF(E131>F130,"é",IF(F131<E130,"ê","ó")),0) ->  | H131: =IF(C131=2010,IF(E131>F129,"é",IF(F131<E129,"ê","ó")),0) ->  | I131: =IF(C131=2010,IF(E131>F128,"é",IF(F131<E128,"ê","ó")),0) ->  | J131: =IF(C131=2010,IF(E131>F127,"é",IF(F131<E127,"ê","ó")),0) ->  | K131: =IF(C131=2010,IF(E131>F126,"é",IF(F131<E126,"ê","ó")),0) -> 
C132: 2011 | D132: =INDIRECT(ADDRESS(record2011,8+$A$126,,,"ward")) ->  | E132: =INDIRECT(ADDRESS(record2011,8+$A$126+70,,,"ward")) ->  | F132: =INDIRECT(ADDRESS(record2011,8+$A$126+105,,,"ward")) ->  | G132: =IF(C132=2011,IF(E132>F131,"é",IF(F132<E131,"ê","ó")),0) ->  | H132: =IF(C132=2011,IF(E132>F130,"é",IF(F132<E130,"ê","ó")),0) ->  | I132: =IF(C132=2011,IF(E132>F129,"é",IF(F132<E129,"ê","ó")),0) ->  | J132: =IF(C132=2011,IF(E132>F128,"é",IF(F132<E128,"ê","ó")),0) ->  | K132: =IF(C132=2011,IF(E132>F127,"é",IF(F132<E127,"ê","ó")),0) ->  | L132: =IF(C132=2011,IF(E132>F126,"é",IF(F132<E126,"ê","ó")),0) -> 
C133: 2012 | D133: =INDIRECT(ADDRESS(record2012,8+$A$126,,,"ward")) ->  | E133: =INDIRECT(ADDRESS(record2012,8+$A$126+70,,,"ward")) ->  | F133: =INDIRECT(ADDRESS(record2012,8+$A$126+105,,,"ward")) ->  | G133: =IF(C133=2012,IF(E133>F132,"é",IF(F133<E132,"ê","ó")),0) ->  | H133: =IF(C133=2012,IF(E133>F131,"é",IF(F133<E131,"ê","ó")),0) ->  | I133: =IF(C133=2012,IF(E133>F130,"é",IF(F133<E130,"ê","ó")),0) ->  | J133: =IF(C133=2012,IF(E133>F129,"é",IF(F133<E129,"ê","ó")),0) ->  | K133: =IF(C133=2012,IF(E133>F128,"é",IF(F133<E128,"ê","ó")),0) ->  | L133: =IF(C133=2012,IF(E133>F127,"é",IF(F133<E127,"ê","ó")),0) ->  | M133: =IF(C133=2012,IF(E133>F126,"é",IF(F133<E126,"ê","ó")),0) -> 
C134: 2013 | D134: =INDIRECT(ADDRESS(record2013,8+$A$126,,,"ward")) ->  | E134: =INDIRECT(ADDRESS(record2013,8+$A$126+70,,,"ward")) ->  | F134: =INDIRECT(ADDRESS(record2013,8+$A$126+105,,,"ward")) ->  | G134: =IF(C134=2013,IF(E134>F133,"é",IF(F134<E133,"ê","ó")),0) ->  | H134: =IF(C134=2013,IF(E134>F132,"é",IF(F134<E132,"ê","ó")),0) ->  | I134: =IF(C134=2013,IF(E134>F131,"é",IF(F134<E131,"ê","ó")),0) ->  | J134: =IF(C134=2013,IF(E134>F130,"é",IF(F134<E130,"ê","ó")),0) ->  | K134: =IF(C134=2013,IF(E134>F129,"é",IF(F134<E129,"ê","ó")),0) ->  | L134: =IF(C134=2013,IF(E134>F128,"é",IF(F134<E128,"ê","ó")),0) ->  | M134: =IF(C134=2013,IF(E134>F127,"é",IF(F134<E127,"ê","ó")),0) ->  | N134: =IF(C134=2013,IF(E134>F126,"é",IF(F134<E126,"ê","ó")),0) ->  | V134: =D134-E134 ->  | W134: =F134-D134 -> 
C135: 2014 | D135: =INDIRECT(ADDRESS(record2014,8+$A$126,,,"ward")) ->  | E135: =INDIRECT(ADDRESS(record2014,8+$A$126+70,,,"ward")) ->  | F135: =INDIRECT(ADDRESS(record2014,8+$A$126+105,,,"ward")) ->  | G135: =IF(C135=2014,IF(E135>F134,"é",IF(F135<E134,"ê","ó")),0) ->  | H135: =IF(C135=2014,IF(E135>F133,"é",IF(F135<E133,"ê","ó")),0) ->  | I135: =IF(C135=2014,IF(E135>F132,"é",IF(F135<E132,"ê","ó")),0) ->  | J135: =IF(C135=2014,IF(E135>F131,"é",IF(F135<E131,"ê","ó")),0) ->  | K135: =IF(C135=2014,IF(E135>F130,"é",IF(F135<E130,"ê","ó")),0) ->  | L135: =IF(C135=2014,IF(E135>F129,"é",IF(F135<E129,"ê","ó")),0) ->  | M135: =IF(C135=2014,IF(E135>F128,"é",IF(F135<E128,"ê","ó")),0) ->  | N135: =IF(C135=2014,IF(E135>F127,"é",IF(F135<E127,"ê","ó")),0) ->  | O135: =IF(C135=2014,IF(E135>F126,"é",IF(F135<E126,"ê","ó")),0) -> 
A136: 14 | B136: Filwood | C136: 2005 | D136: =INDIRECT(ADDRESS(record2005,8+A136,,,"ward")) ->  | E136: =INDIRECT(ADDRESS(record2005,8+A136+70,,,"ward")) ->  | F136: =INDIRECT(ADDRESS(record2005,8+A136+105,,,"ward")) -> 
C137: 2006 | D137: =INDIRECT(ADDRESS(record2006,8+A136,,,"ward")) ->  | E137: =INDIRECT(ADDRESS(record2006,8+A136+70,,,"ward")) ->  | F137: =INDIRECT(ADDRESS(record2006,8+A136+105,,,"ward")) ->  | G137: =IF(E137>F136,"é",IF(F137<E136,"ê","ó")) -> 
C138: 2007 | D138: =INDIRECT(ADDRESS(record2007,8+A136,,,"ward")) ->  | E138: =INDIRECT(ADDRESS(record2007,8+A136+70,,,"ward")) ->  | F138: =INDIRECT(ADDRESS(record2007,8+A136+105,,,"ward")) ->  | G138: =IF(E138>F137,"é",IF(F138<E137,"ê","ó")) ->  | H138: =IF(E138>F136,"é",IF(F138<E136,"ê","ó")) -> 
C139: 2008 | D139: =INDIRECT(ADDRESS(record2008,8+A136,,,"ward")) ->  | E139: =INDIRECT(ADDRESS(record2008,8+A136+70,,,"ward")) ->  | F139: =INDIRECT(ADDRESS(record2008,8+A136+105,,,"ward")) ->  | G139: =IF(C139=2008,IF(E139>F138,"é",IF(F139<E138,"ê","ó")),0) ->  | H139: =IF(C139=2008,IF(E139>F137,"é",IF(F139<E137,"ê","ó")),0) ->  | I139: =IF(C139=2008,IF(E139>F136,"é",IF(F139<E136,"ê","ó")),0) -> 
C140: 2009 | D140: =INDIRECT(ADDRESS(record2009,8+A136,,,"ward")) ->  | E140: =INDIRECT(ADDRESS(record2009,8+A136+70,,,"ward")) ->  | F140: =INDIRECT(ADDRESS(record2009,8+A136+105,,,"ward")) ->  | G140: =IF(C140=2009,IF(E140>F139,"é",IF(F140<E139,"ê","ó")),0) ->  | H140: =IF(C140=2009,IF(E140>F138,"é",IF(F140<E138,"ê","ó")),0) ->  | I140: =IF(C140=2009,IF(E140>F137,"é",IF(F140<E137,"ê","ó")),0) ->  | J140: =IF(C140=2009,IF(E140>F136,"é",IF(F140<E136,"ê","ó")),0) -> 
C141: 2010 | D141: =INDIRECT(ADDRESS(record2010,8+A136,,,"ward")) ->  | E141: =INDIRECT(ADDRESS(record2010,8+A136+70,,,"ward")) ->  | F141: =INDIRECT(ADDRESS(record2010,8+A136+105,,,"ward")) ->  | G141: =IF(C141=2010,IF(E141>F140,"é",IF(F141<E140,"ê","ó")),0) ->  | H141: =IF(C141=2010,IF(E141>F139,"é",IF(F141<E139,"ê","ó")),0) ->  | I141: =IF(C141=2010,IF(E141>F138,"é",IF(F141<E138,"ê","ó")),0) ->  | J141: =IF(C141=2010,IF(E141>F137,"é",IF(F141<E137,"ê","ó")),0) ->  | K141: =IF(C141=2010,IF(E141>F136,"é",IF(F141<E136,"ê","ó")),0) -> 
C142: 2011 | D142: =INDIRECT(ADDRESS(record2011,8+$A$136,,,"ward")) ->  | E142: =INDIRECT(ADDRESS(record2011,8+$A$136+70,,,"ward")) ->  | F142: =INDIRECT(ADDRESS(record2011,8+$A$136+105,,,"ward")) ->  | G142: =IF(C142=2011,IF(E142>F141,"é",IF(F142<E141,"ê","ó")),0) ->  | H142: =IF(C142=2011,IF(E142>F140,"é",IF(F142<E140,"ê","ó")),0) ->  | I142: =IF(C142=2011,IF(E142>F139,"é",IF(F142<E139,"ê","ó")),0) ->  | J142: =IF(C142=2011,IF(E142>F138,"é",IF(F142<E138,"ê","ó")),0) ->  | K142: =IF(C142=2011,IF(E142>F137,"é",IF(F142<E137,"ê","ó")),0) ->  | L142: =IF(C142=2011,IF(E142>F136,"é",IF(F142<E136,"ê","ó")),0) -> 
C143: 2012 | D143: =INDIRECT(ADDRESS(record2012,8+$A$136,,,"ward")) ->  | E143: =INDIRECT(ADDRESS(record2012,8+$A$136+70,,,"ward")) ->  | F143: =INDIRECT(ADDRESS(record2012,8+$A$136+105,,,"ward")) ->  | G143: =IF(C143=2012,IF(E143>F142,"é",IF(F143<E142,"ê","ó")),0) ->  | H143: =IF(C143=2012,IF(E143>F141,"é",IF(F143<E141,"ê","ó")),0) ->  | I143: =IF(C143=2012,IF(E143>F140,"é",IF(F143<E140,"ê","ó")),0) ->  | J143: =IF(C143=2012,IF(E143>F139,"é",IF(F143<E139,"ê","ó")),0) ->  | K143: =IF(C143=2012,IF(E143>F138,"é",IF(F143<E138,"ê","ó")),0) ->  | L143: =IF(C143=2012,IF(E143>F137,"é",IF(F143<E137,"ê","ó")),0) ->  | M143: =IF(C143=2012,IF(E143>F136,"é",IF(F143<E136,"ê","ó")),0) -> 
C144: 2013 | D144: =INDIRECT(ADDRESS(record2013,8+$A$136,,,"ward")) ->  | E144: =INDIRECT(ADDRESS(record2013,8+$A$136+70,,,"ward")) ->  | F144: =INDIRECT(ADDRESS(record2013,8+$A$136+105,,,"ward")) ->  | G144: =IF(C144=2013,IF(E144>F143,"é",IF(F144<E143,"ê","ó")),0) ->  | H144: =IF(C144=2013,IF(E144>F142,"é",IF(F144<E142,"ê","ó")),0) ->  | I144: =IF(C144=2013,IF(E144>F141,"é",IF(F144<E141,"ê","ó")),0) ->  | J144: =IF(C144=2013,IF(E144>F140,"é",IF(F144<E140,"ê","ó")),0) ->  | K144: =IF(C144=2013,IF(E144>F139,"é",IF(F144<E139,"ê","ó")),0) ->  | L144: =IF(C144=2013,IF(E144>F138,"é",IF(F144<E138,"ê","ó")),0) ->  | M144: =IF(C144=2013,IF(E144>F137,"é",IF(F144<E137,"ê","ó")),0) ->  | N144: =IF(C144=2013,IF(E144>F136,"é",IF(F144<E136,"ê","ó")),0) -> 
C145: 2014 | D145: =INDIRECT(ADDRESS(record2014,8+$A$136,,,"ward")) ->  | E145: =INDIRECT(ADDRESS(record2014,8+$A$136+70,,,"ward")) ->  | F145: =INDIRECT(ADDRESS(record2014,8+$A$136+105,,,"ward")) ->  | G145: =IF(C145=2014,IF(E145>F144,"é",IF(F145<E144,"ê","ó")),0) ->  | H145: =IF(C145=2014,IF(E145>F143,"é",IF(F145<E143,"ê","ó")),0) ->  | I145: =IF(C145=2014,IF(E145>F142,"é",IF(F145<E142,"ê","ó")),0) ->  | J145: =IF(C145=2014,IF(E145>F141,"é",IF(F145<E141,"ê","ó")),0) ->  | K145: =IF(C145=2014,IF(E145>F140,"é",IF(F145<E140,"ê","ó")),0) ->  | L145: =IF(C145=2014,IF(E145>F139,"é",IF(F145<E139,"ê","ó")),0) ->  | M145: =IF(C145=2014,IF(E145>F138,"é",IF(F145<E138,"ê","ó")),0) ->  | N145: =IF(C145=2014,IF(E145>F137,"é",IF(F145<E137,"ê","ó")),0) ->  | O145: =IF(C145=2014,IF(E145>F136,"é",IF(F145<E136,"ê","ó")),0) -> 
A146: 15 | B146: Frome Vale | C146: 2005 | D146: =INDIRECT(ADDRESS(record2005,8+A146,,,"ward")) ->  | E146: =INDIRECT(ADDRESS(record2005,8+A146+70,,,"ward")) ->  | F146: =INDIRECT(ADDRESS(record2005,8+A146+105,,,"ward")) -> 
C147: 2006 | D147: =INDIRECT(ADDRESS(record2006,8+A146,,,"ward")) ->  | E147: =INDIRECT(ADDRESS(record2006,8+A146+70,,,"ward")) ->  | F147: =INDIRECT(ADDRESS(record2006,8+A146+105,,,"ward")) ->  | G147: =IF(E147>F146,"é",IF(F147<E146,"ê","ó")) -> 
C148: 2007 | D148: =INDIRECT(ADDRESS(record2007,8+A146,,,"ward")) ->  | E148: =INDIRECT(ADDRESS(record2007,8+A146+70,,,"ward")) ->  | F148: =INDIRECT(ADDRESS(record2007,8+A146+105,,,"ward")) ->  | G148: =IF(E148>F147,"é",IF(F148<E147,"ê","ó")) ->  | H148: =IF(E148>F146,"é",IF(F148<E146,"ê","ó")) -> 
C149: 2008 | D149: =INDIRECT(ADDRESS(record2008,8+A146,,,"ward")) ->  | E149: =INDIRECT(ADDRESS(record2008,8+A146+70,,,"ward")) ->  | F149: =INDIRECT(ADDRESS(record2008,8+A146+105,,,"ward")) ->  | G149: =IF(C149=2008,IF(E149>F148,"é",IF(F149<E148,"ê","ó")),0) ->  | H149: =IF(C149=2008,IF(E149>F147,"é",IF(F149<E147,"ê","ó")),0) ->  | I149: =IF(C149=2008,IF(E149>F146,"é",IF(F149<E146,"ê","ó")),0) -> 
C150: 2009 | D150: =INDIRECT(ADDRESS(record2009,8+A146,,,"ward")) ->  | E150: =INDIRECT(ADDRESS(record2009,8+A146+70,,,"ward")) ->  | F150: =INDIRECT(ADDRESS(record2009,8+A146+105,,,"ward")) ->  | G150: =IF(C150=2009,IF(E150>F149,"é",IF(F150<E149,"ê","ó")),0) ->  | H150: =IF(C150=2009,IF(E150>F148,"é",IF(F150<E148,"ê","ó")),0) ->  | I150: =IF(C150=2009,IF(E150>F147,"é",IF(F150<E147,"ê","ó")),0) ->  | J150: =IF(C150=2009,IF(E150>F146,"é",IF(F150<E146,"ê","ó")),0) -> 
C151: 2010 | D151: =INDIRECT(ADDRESS(record2010,8+A146,,,"ward")) ->  | E151: =INDIRECT(ADDRESS(record2010,8+A146+70,,,"ward")) ->  | F151: =INDIRECT(ADDRESS(record2010,8+A146+105,,,"ward")) ->  | G151: =IF(C151=2010,IF(E151>F150,"é",IF(F151<E150,"ê","ó")),0) ->  | H151: =IF(C151=2010,IF(E151>F149,"é",IF(F151<E149,"ê","ó")),0) ->  | I151: =IF(C151=2010,IF(E151>F148,"é",IF(F151<E148,"ê","ó")),0) ->  | J151: =IF(C151=2010,IF(E151>F147,"é",IF(F151<E147,"ê","ó")),0) ->  | K151: =IF(C151=2010,IF(E151>F146,"é",IF(F151<E146,"ê","ó")),0) -> 
C152: 2011 | D152: =INDIRECT(ADDRESS(record2011,8+$A$146,,,"ward")) ->  | E152: =INDIRECT(ADDRESS(record2011,8+$A$146+70,,,"ward")) ->  | F152: =INDIRECT(ADDRESS(record2011,8+$A$146+105,,,"ward")) ->  | G152: =IF(C152=2011,IF(E152>F151,"é",IF(F152<E151,"ê","ó")),0) ->  | H152: =IF(C152=2011,IF(E152>F150,"é",IF(F152<E150,"ê","ó")),0) ->  | I152: =IF(C152=2011,IF(E152>F149,"é",IF(F152<E149,"ê","ó")),0) ->  | J152: =IF(C152=2011,IF(E152>F148,"é",IF(F152<E148,"ê","ó")),0) ->  | K152: =IF(C152=2011,IF(E152>F147,"é",IF(F152<E147,"ê","ó")),0) ->  | L152: =IF(C152=2011,IF(E152>F146,"é",IF(F152<E146,"ê","ó")),0) -> 
C153: 2012 | D153: =INDIRECT(ADDRESS(record2012,8+$A$146,,,"ward")) ->  | E153: =INDIRECT(ADDRESS(record2012,8+$A$146+70,,,"ward")) ->  | F153: =INDIRECT(ADDRESS(record2012,8+$A$146+105,,,"ward")) ->  | G153: =IF(C153=2012,IF(E153>F152,"é",IF(F153<E152,"ê","ó")),0) ->  | H153: =IF(C153=2012,IF(E153>F151,"é",IF(F153<E151,"ê","ó")),0) ->  | I153: =IF(C153=2012,IF(E153>F150,"é",IF(F153<E150,"ê","ó")),0) ->  | J153: =IF(C153=2012,IF(E153>F149,"é",IF(F153<E149,"ê","ó")),0) ->  | K153: =IF(C153=2012,IF(E153>F148,"é",IF(F153<E148,"ê","ó")),0) ->  | L153: =IF(C153=2012,IF(E153>F147,"é",IF(F153<E147,"ê","ó")),0) ->  | M153: =IF(C153=2012,IF(E153>F146,"é",IF(F153<E146,"ê","ó")),0) -> 
C154: 2013 | D154: =INDIRECT(ADDRESS(record2013,8+$A$146,,,"ward")) ->  | E154: =INDIRECT(ADDRESS(record2013,8+$A$146+70,,,"ward")) ->  | F154: =INDIRECT(ADDRESS(record2013,8+$A$146+105,,,"ward")) ->  | G154: =IF(C154=2013,IF(E154>F153,"é",IF(F154<E153,"ê","ó")),0) ->  | H154: =IF(C154=2013,IF(E154>F152,"é",IF(F154<E152,"ê","ó")),0) ->  | I154: =IF(C154=2013,IF(E154>F151,"é",IF(F154<E151,"ê","ó")),0) ->  | J154: =IF(C154=2013,IF(E154>F150,"é",IF(F154<E150,"ê","ó")),0) ->  | K154: =IF(C154=2013,IF(E154>F149,"é",IF(F154<E149,"ê","ó")),0) ->  | L154: =IF(C154=2013,IF(E154>F148,"é",IF(F154<E148,"ê","ó")),0) ->  | M154: =IF(C154=2013,IF(E154>F147,"é",IF(F154<E147,"ê","ó")),0) ->  | N154: =IF(C154=2013,IF(E154>F146,"é",IF(F154<E146,"ê","ó")),0) -> 
C155: 2014 | D155: =INDIRECT(ADDRESS(record2014,8+$A$146,,,"ward")) ->  | E155: =INDIRECT(ADDRESS(record2014,8+$A$146+70,,,"ward")) ->  | F155: =INDIRECT(ADDRESS(record2014,8+$A$146+105,,,"ward")) ->  | G155: =IF(C155=2014,IF(E155>F154,"é",IF(F155<E154,"ê","ó")),0) ->  | H155: =IF(C155=2014,IF(E155>F153,"é",IF(F155<E153,"ê","ó")),0) ->  | I155: =IF(C155=2014,IF(E155>F152,"é",IF(F155<E152,"ê","ó")),0) ->  | J155: =IF(C155=2014,IF(E155>F151,"é",IF(F155<E151,"ê","ó")),0) ->  | K155: =IF(C155=2014,IF(E155>F150,"é",IF(F155<E150,"ê","ó")),0) ->  | L155: =IF(C155=2014,IF(E155>F149,"é",IF(F155<E149,"ê","ó")),0) ->  | M155: =IF(C155=2014,IF(E155>F148,"é",IF(F155<E148,"ê","ó")),0) ->  | N155: =IF(C155=2014,IF(E155>F147,"é",IF(F155<E147,"ê","ó")),0) ->  | O155: =IF(C155=2014,IF(E155>F146,"é",IF(F155<E146,"ê","ó")),0) -> 
A156: 16 | B156: Hartcliffe | C156: 2005 | D156: =INDIRECT(ADDRESS(record2005,8+A156,,,"ward")) ->  | E156: =INDIRECT(ADDRESS(record2005,8+A156+70,,,"ward")) ->  | F156: =INDIRECT(ADDRESS(record2005,8+A156+105,,,"ward")) -> 
C157: 2006 | D157: =INDIRECT(ADDRESS(record2006,8+A156,,,"ward")) ->  | E157: =INDIRECT(ADDRESS(record2006,8+A156+70,,,"ward")) ->  | F157: =INDIRECT(ADDRESS(record2006,8+A156+105,,,"ward")) ->  | G157: =IF(E157>F156,"é",IF(F157<E156,"ê","ó")) -> 
C158: 2007 | D158: =INDIRECT(ADDRESS(record2007,8+A156,,,"ward")) ->  | E158: =INDIRECT(ADDRESS(record2007,8+A156+70,,,"ward")) ->  | F158: =INDIRECT(ADDRESS(record2007,8+A156+105,,,"ward")) ->  | G158: =IF(E158>F157,"é",IF(F158<E157,"ê","ó")) ->  | H158: =IF(E158>F156,"é",IF(F158<E156,"ê","ó")) -> 
C159: 2008 | D159: =INDIRECT(ADDRESS(record2008,8+A156,,,"ward")) ->  | E159: =INDIRECT(ADDRESS(record2008,8+A156+70,,,"ward")) ->  | F159: =INDIRECT(ADDRESS(record2008,8+A156+105,,,"ward")) ->  | G159: =IF(C159=2008,IF(E159>F158,"é",IF(F159<E158,"ê","ó")),0) ->  | H159: =IF(C159=2008,IF(E159>F157,"é",IF(F159<E157,"ê","ó")),0) ->  | I159: =IF(C159=2008,IF(E159>F156,"é",IF(F159<E156,"ê","ó")),0) -> 
C160: 2009 | D160: =INDIRECT(ADDRESS(record2009,8+A156,,,"ward")) ->  | E160: =INDIRECT(ADDRESS(record2009,8+A156+70,,,"ward")) ->  | F160: =INDIRECT(ADDRESS(record2009,8+A156+105,,,"ward")) ->  | G160: =IF(C160=2009,IF(E160>F159,"é",IF(F160<E159,"ê","ó")),0) ->  | H160: =IF(C160=2009,IF(E160>F158,"é",IF(F160<E158,"ê","ó")),0) ->  | I160: =IF(C160=2009,IF(E160>F157,"é",IF(F160<E157,"ê","ó")),0) ->  | J160: =IF(C160=2009,IF(E160>F156,"é",IF(F160<E156,"ê","ó")),0) -> 
C161: 2010 | D161: =INDIRECT(ADDRESS(record2010,8+A156,,,"ward")) ->  | E161: =INDIRECT(ADDRESS(record2010,8+A156+70,,,"ward")) ->  | F161: =INDIRECT(ADDRESS(record2010,8+A156+105,,,"ward")) ->  | G161: =IF(C161=2010,IF(E161>F160,"é",IF(F161<E160,"ê","ó")),0) ->  | H161: =IF(C161=2010,IF(E161>F159,"é",IF(F161<E159,"ê","ó")),0) ->  | I161: =IF(C161=2010,IF(E161>F158,"é",IF(F161<E158,"ê","ó")),0) ->  | J161: =IF(C161=2010,IF(E161>F157,"é",IF(F161<E157,"ê","ó")),0) ->  | K161: =IF(C161=2010,IF(E161>F156,"é",IF(F161<E156,"ê","ó")),0) -> 
C162: 2011 | D162: =INDIRECT(ADDRESS(record2011,8+$A$156,,,"ward")) ->  | E162: =INDIRECT(ADDRESS(record2011,8+$A$156+70,,,"ward")) ->  | F162: =INDIRECT(ADDRESS(record2011,8+$A$156+105,,,"ward")) ->  | G162: =IF(C162=2011,IF(E162>F161,"é",IF(F162<E161,"ê","ó")),0) ->  | H162: =IF(C162=2011,IF(E162>F160,"é",IF(F162<E160,"ê","ó")),0) ->  | I162: =IF(C162=2011,IF(E162>F159,"é",IF(F162<E159,"ê","ó")),0) ->  | J162: =IF(C162=2011,IF(E162>F158,"é",IF(F162<E158,"ê","ó")),0) ->  | K162: =IF(C162=2011,IF(E162>F157,"é",IF(F162<E157,"ê","ó")),0) ->  | L162: =IF(C162=2011,IF(E162>F156,"é",IF(F162<E156,"ê","ó")),0) -> 
C163: 2012 | D163: =INDIRECT(ADDRESS(record2012,8+$A$156,,,"ward")) ->  | E163: =INDIRECT(ADDRESS(record2012,8+$A$156+70,,,"ward")) ->  | F163: =INDIRECT(ADDRESS(record2012,8+$A$156+105,,,"ward")) ->  | G163: =IF(C163=2012,IF(E163>F162,"é",IF(F163<E162,"ê","ó")),0) ->  | H163: =IF(C163=2012,IF(E163>F161,"é",IF(F163<E161,"ê","ó")),0) ->  | I163: =IF(C163=2012,IF(E163>F160,"é",IF(F163<E160,"ê","ó")),0) ->  | J163: =IF(C163=2012,IF(E163>F159,"é",IF(F163<E159,"ê","ó")),0) ->  | K163: =IF(C163=2012,IF(E163>F158,"é",IF(F163<E158,"ê","ó")),0) ->  | L163: =IF(C163=2012,IF(E163>F157,"é",IF(F163<E157,"ê","ó")),0) ->  | M163: =IF(C163=2012,IF(E163>F156,"é",IF(F163<E156,"ê","ó")),0) -> 
C164: 2013 | D164: =INDIRECT(ADDRESS(record2013,8+$A$156,,,"ward")) ->  | E164: =INDIRECT(ADDRESS(record2013,8+$A$156+70,,,"ward")) ->  | F164: =INDIRECT(ADDRESS(record2013,8+$A$156+105,,,"ward")) ->  | G164: =IF(C164=2013,IF(E164>F163,"é",IF(F164<E163,"ê","ó")),0) ->  | H164: =IF(C164=2013,IF(E164>F162,"é",IF(F164<E162,"ê","ó")),0) ->  | I164: =IF(C164=2013,IF(E164>F161,"é",IF(F164<E161,"ê","ó")),0) ->  | J164: =IF(C164=2013,IF(E164>F160,"é",IF(F164<E160,"ê","ó")),0) ->  | K164: =IF(C164=2013,IF(E164>F159,"é",IF(F164<E159,"ê","ó")),0) ->  | L164: =IF(C164=2013,IF(E164>F158,"é",IF(F164<E158,"ê","ó")),0) ->  | M164: =IF(C164=2013,IF(E164>F157,"é",IF(F164<E157,"ê","ó")),0) ->  | N164: =IF(C164=2013,IF(E164>F156,"é",IF(F164<E156,"ê","ó")),0) -> 
C165: 2014 | D165: =INDIRECT(ADDRESS(record2014,8+$A$156,,,"ward")) ->  | E165: =INDIRECT(ADDRESS(record2014,8+$A$156+70,,,"ward")) ->  | F165: =INDIRECT(ADDRESS(record2014,8+$A$156+105,,,"ward")) ->  | G165: =IF(C165=2014,IF(E165>F164,"é",IF(F165<E164,"ê","ó")),0) ->  | H165: =IF(C165=2014,IF(E165>F163,"é",IF(F165<E163,"ê","ó")),0) ->  | I165: =IF(C165=2014,IF(E165>F162,"é",IF(F165<E162,"ê","ó")),0) ->  | J165: =IF(C165=2014,IF(E165>F161,"é",IF(F165<E161,"ê","ó")),0) ->  | K165: =IF(C165=2014,IF(E165>F160,"é",IF(F165<E160,"ê","ó")),0) ->  | L165: =IF(C165=2014,IF(E165>F159,"é",IF(F165<E159,"ê","ó")),0) ->  | M165: =IF(C165=2014,IF(E165>F158,"é",IF(F165<E158,"ê","ó")),0) ->  | N165: =IF(C165=2014,IF(E165>F157,"é",IF(F165<E157,"ê","ó")),0) ->  | O165: =IF(C165=2014,IF(E165>F156,"é",IF(F165<E156,"ê","ó")),0) -> 
A166: 17 | B166: Henbury | C166: 2005 | D166: =INDIRECT(ADDRESS(record2005,8+A166,,,"ward")) ->  | E166: =INDIRECT(ADDRESS(record2005,8+A166+70,,,"ward")) ->  | F166: =INDIRECT(ADDRESS(record2005,8+A166+105,,,"ward")) -> 
C167: 2006 | D167: =INDIRECT(ADDRESS(record2006,8+A166,,,"ward")) ->  | E167: =INDIRECT(ADDRESS(record2006,8+A166+70,,,"ward")) ->  | F167: =INDIRECT(ADDRESS(record2006,8+A166+105,,,"ward")) ->  | G167: =IF(E167>F166,"é",IF(F167<E166,"ê","ó")) -> 
C168: 2007 | D168: =INDIRECT(ADDRESS(record2007,8+A166,,,"ward")) ->  | E168: =INDIRECT(ADDRESS(record2007,8+A166+70,,,"ward")) ->  | F168: =INDIRECT(ADDRESS(record2007,8+A166+105,,,"ward")) ->  | G168: =IF(E168>F167,"é",IF(F168<E167,"ê","ó")) ->  | H168: =IF(E168>F166,"é",IF(F168<E166,"ê","ó")) -> 
C169: 2008 | D169: =INDIRECT(ADDRESS(record2008,8+A166,,,"ward")) ->  | E169: =INDIRECT(ADDRESS(record2008,8+A166+70,,,"ward")) ->  | F169: =INDIRECT(ADDRESS(record2008,8+A166+105,,,"ward")) ->  | G169: =IF(C169=2008,IF(E169>F168,"é",IF(F169<E168,"ê","ó")),0) ->  | H169: =IF(C169=2008,IF(E169>F167,"é",IF(F169<E167,"ê","ó")),0) ->  | I169: =IF(C169=2008,IF(E169>F166,"é",IF(F169<E166,"ê","ó")),0) -> 
C170: 2009 | D170: =INDIRECT(ADDRESS(record2009,8+A166,,,"ward")) ->  | E170: =INDIRECT(ADDRESS(record2009,8+A166+70,,,"ward")) ->  | F170: =INDIRECT(ADDRESS(record2009,8+A166+105,,,"ward")) ->  | G170: =IF(C170=2009,IF(E170>F169,"é",IF(F170<E169,"ê","ó")),0) ->  | H170: =IF(C170=2009,IF(E170>F168,"é",IF(F170<E168,"ê","ó")),0) ->  | I170: =IF(C170=2009,IF(E170>F167,"é",IF(F170<E167,"ê","ó")),0) ->  | J170: =IF(C170=2009,IF(E170>F166,"é",IF(F170<E166,"ê","ó")),0) -> 
C171: 2010 | D171: =INDIRECT(ADDRESS(record2010,8+A166,,,"ward")) ->  | E171: =INDIRECT(ADDRESS(record2010,8+A166+70,,,"ward")) ->  | F171: =INDIRECT(ADDRESS(record2010,8+A166+105,,,"ward")) ->  | G171: =IF(C171=2010,IF(E171>F170,"é",IF(F171<E170,"ê","ó")),0) ->  | H171: =IF(C171=2010,IF(E171>F169,"é",IF(F171<E169,"ê","ó")),0) ->  | I171: =IF(C171=2010,IF(E171>F168,"é",IF(F171<E168,"ê","ó")),0) ->  | J171: =IF(C171=2010,IF(E171>F167,"é",IF(F171<E167,"ê","ó")),0) ->  | K171: =IF(C171=2010,IF(E171>F166,"é",IF(F171<E166,"ê","ó")),0) -> 
C172: 2011 | D172: =INDIRECT(ADDRESS(record2011,8+$A$166,,,"ward")) ->  | E172: =INDIRECT(ADDRESS(record2011,8+$A$166+70,,,"ward")) ->  | F172: =INDIRECT(ADDRESS(record2011,8+$A$166+105,,,"ward")) ->  | G172: =IF(C172=2011,IF(E172>F171,"é",IF(F172<E171,"ê","ó")),0) ->  | H172: =IF(C172=2011,IF(E172>F170,"é",IF(F172<E170,"ê","ó")),0) ->  | I172: =IF(C172=2011,IF(E172>F169,"é",IF(F172<E169,"ê","ó")),0) ->  | J172: =IF(C172=2011,IF(E172>F168,"é",IF(F172<E168,"ê","ó")),0) ->  | K172: =IF(C172=2011,IF(E172>F167,"é",IF(F172<E167,"ê","ó")),0) ->  | L172: =IF(C172=2011,IF(E172>F166,"é",IF(F172<E166,"ê","ó")),0) -> 
C173: 2012 | D173: =INDIRECT(ADDRESS(record2012,8+$A$166,,,"ward")) ->  | E173: =INDIRECT(ADDRESS(record2012,8+$A$166+70,,,"ward")) ->  | F173: =INDIRECT(ADDRESS(record2012,8+$A$166+105,,,"ward")) ->  | G173: =IF(C173=2012,IF(E173>F172,"é",IF(F173<E172,"ê","ó")),0) ->  | H173: =IF(C173=2012,IF(E173>F171,"é",IF(F173<E171,"ê","ó")),0) ->  | I173: =IF(C173=2012,IF(E173>F170,"é",IF(F173<E170,"ê","ó")),0) ->  | J173: =IF(C173=2012,IF(E173>F169,"é",IF(F173<E169,"ê","ó")),0) ->  | K173: =IF(C173=2012,IF(E173>F168,"é",IF(F173<E168,"ê","ó")),0) ->  | L173: =IF(C173=2012,IF(E173>F167,"é",IF(F173<E167,"ê","ó")),0) ->  | M173: =IF(C173=2012,IF(E173>F166,"é",IF(F173<E166,"ê","ó")),0) -> 
C174: 2013 | D174: =INDIRECT(ADDRESS(record2013,8+$A$166,,,"ward")) ->  | E174: =INDIRECT(ADDRESS(record2013,8+$A$166+70,,,"ward")) ->  | F174: =INDIRECT(ADDRESS(record2013,8+$A$166+105,,,"ward")) ->  | G174: =IF(C174=2013,IF(E174>F173,"é",IF(F174<E173,"ê","ó")),0) ->  | H174: =IF(C174=2013,IF(E174>F172,"é",IF(F174<E172,"ê","ó")),0) ->  | I174: =IF(C174=2013,IF(E174>F171,"é",IF(F174<E171,"ê","ó")),0) ->  | J174: =IF(C174=2013,IF(E174>F170,"é",IF(F174<E170,"ê","ó")),0) ->  | K174: =IF(C174=2013,IF(E174>F169,"é",IF(F174<E169,"ê","ó")),0) ->  | L174: =IF(C174=2013,IF(E174>F168,"é",IF(F174<E168,"ê","ó")),0) ->  | M174: =IF(C174=2013,IF(E174>F167,"é",IF(F174<E167,"ê","ó")),0) ->  | N174: =IF(C174=2013,IF(E174>F166,"é",IF(F174<E166,"ê","ó")),0) -> 
C175: 2014 | D175: =INDIRECT(ADDRESS(record2014,8+$A$166,,,"ward")) ->  | E175: =INDIRECT(ADDRESS(record2014,8+$A$166+70,,,"ward")) ->  | F175: =INDIRECT(ADDRESS(record2014,8+$A$166+105,,,"ward")) ->  | G175: =IF(C175=2014,IF(E175>F174,"é",IF(F175<E174,"ê","ó")),0) ->  | H175: =IF(C175=2014,IF(E175>F173,"é",IF(F175<E173,"ê","ó")),0) ->  | I175: =IF(C175=2014,IF(E175>F172,"é",IF(F175<E172,"ê","ó")),0) ->  | J175: =IF(C175=2014,IF(E175>F171,"é",IF(F175<E171,"ê","ó")),0) ->  | K175: =IF(C175=2014,IF(E175>F170,"é",IF(F175<E170,"ê","ó")),0) ->  | L175: =IF(C175=2014,IF(E175>F169,"é",IF(F175<E169,"ê","ó")),0) ->  | M175: =IF(C175=2014,IF(E175>F168,"é",IF(F175<E168,"ê","ó")),0) ->  | N175: =IF(C175=2014,IF(E175>F167,"é",IF(F175<E167,"ê","ó")),0) ->  | O175: =IF(C175=2014,IF(E175>F166,"é",IF(F175<E166,"ê","ó")),0) -> 
A176: 18 | B176: Hengrove | C176: 2005 | D176: =INDIRECT(ADDRESS(record2005,8+A176,,,"ward")) ->  | E176: =INDIRECT(ADDRESS(record2005,8+A176+70,,,"ward")) ->  | F176: =INDIRECT(ADDRESS(record2005,8+A176+105,,,"ward")) -> 
C177: 2006 | D177: =INDIRECT(ADDRESS(record2006,8+A176,,,"ward")) ->  | E177: =INDIRECT(ADDRESS(record2006,8+A176+70,,,"ward")) ->  | F177: =INDIRECT(ADDRESS(record2006,8+A176+105,,,"ward")) ->  | G177: =IF(E177>F176,"é",IF(F177<E176,"ê","ó")) -> 
C178: 2007 | D178: =INDIRECT(ADDRESS(record2007,8+A176,,,"ward")) ->  | E178: =INDIRECT(ADDRESS(record2007,8+A176+70,,,"ward")) ->  | F178: =INDIRECT(ADDRESS(record2007,8+A176+105,,,"ward")) ->  | G178: =IF(E178>F177,"é",IF(F178<E177,"ê","ó")) ->  | H178: =IF(E178>F176,"é",IF(F178<E176,"ê","ó")) -> 
C179: 2008 | D179: =INDIRECT(ADDRESS(record2008,8+A176,,,"ward")) ->  | E179: =INDIRECT(ADDRESS(record2008,8+A176+70,,,"ward")) ->  | F179: =INDIRECT(ADDRESS(record2008,8+A176+105,,,"ward")) ->  | G179: =IF(C179=2008,IF(E179>F178,"é",IF(F179<E178,"ê","ó")),0) ->  | H179: =IF(C179=2008,IF(E179>F177,"é",IF(F179<E177,"ê","ó")),0) ->  | I179: =IF(C179=2008,IF(E179>F176,"é",IF(F179<E176,"ê","ó")),0) -> 
C180: 2009 | D180: =INDIRECT(ADDRESS(record2009,8+A176,,,"ward")) ->  | E180: =INDIRECT(ADDRESS(record2009,8+A176+70,,,"ward")) ->  | F180: =INDIRECT(ADDRESS(record2009,8+A176+105,,,"ward")) ->  | G180: =IF(C180=2009,IF(E180>F179,"é",IF(F180<E179,"ê","ó")),0) ->  | H180: =IF(C180=2009,IF(E180>F178,"é",IF(F180<E178,"ê","ó")),0) ->  | I180: =IF(C180=2009,IF(E180>F177,"é",IF(F180<E177,"ê","ó")),0) ->  | J180: =IF(C180=2009,IF(E180>F176,"é",IF(F180<E176,"ê","ó")),0) -> 
C181: 2010 | D181: =INDIRECT(ADDRESS(record2010,8+A176,,,"ward")) ->  | E181: =INDIRECT(ADDRESS(record2010,8+A176+70,,,"ward")) ->  | F181: =INDIRECT(ADDRESS(record2010,8+A176+105,,,"ward")) ->  | G181: =IF(C181=2010,IF(E181>F180,"é",IF(F181<E180,"ê","ó")),0) ->  | H181: =IF(C181=2010,IF(E181>F179,"é",IF(F181<E179,"ê","ó")),0) ->  | I181: =IF(C181=2010,IF(E181>F178,"é",IF(F181<E178,"ê","ó")),0) ->  | J181: =IF(C181=2010,IF(E181>F177,"é",IF(F181<E177,"ê","ó")),0) ->  | K181: =IF(C181=2010,IF(E181>F176,"é",IF(F181<E176,"ê","ó")),0) -> 
C182: 2011 | D182: =INDIRECT(ADDRESS(record2011,8+$A$176,,,"ward")) ->  | E182: =INDIRECT(ADDRESS(record2011,8+$A$176+70,,,"ward")) ->  | F182: =INDIRECT(ADDRESS(record2011,8+$A$176+105,,,"ward")) ->  | G182: =IF(C182=2011,IF(E182>F181,"é",IF(F182<E181,"ê","ó")),0) ->  | H182: =IF(C182=2011,IF(E182>F180,"é",IF(F182<E180,"ê","ó")),0) ->  | I182: =IF(C182=2011,IF(E182>F179,"é",IF(F182<E179,"ê","ó")),0) ->  | J182: =IF(C182=2011,IF(E182>F178,"é",IF(F182<E178,"ê","ó")),0) ->  | K182: =IF(C182=2011,IF(E182>F177,"é",IF(F182<E177,"ê","ó")),0) ->  | L182: =IF(C182=2011,IF(E182>F176,"é",IF(F182<E176,"ê","ó")),0) -> 
C183: 2012 | D183: =INDIRECT(ADDRESS(record2012,8+$A$176,,,"ward")) ->  | E183: =INDIRECT(ADDRESS(record2012,8+$A$176+70,,,"ward")) ->  | F183: =INDIRECT(ADDRESS(record2012,8+$A$176+105,,,"ward")) ->  | G183: =IF(C183=2012,IF(E183>F182,"é",IF(F183<E182,"ê","ó")),0) ->  | H183: =IF(C183=2012,IF(E183>F181,"é",IF(F183<E181,"ê","ó")),0) ->  | I183: =IF(C183=2012,IF(E183>F180,"é",IF(F183<E180,"ê","ó")),0) ->  | J183: =IF(C183=2012,IF(E183>F179,"é",IF(F183<E179,"ê","ó")),0) ->  | K183: =IF(C183=2012,IF(E183>F178,"é",IF(F183<E178,"ê","ó")),0) ->  | L183: =IF(C183=2012,IF(E183>F177,"é",IF(F183<E177,"ê","ó")),0) ->  | M183: =IF(C183=2012,IF(E183>F176,"é",IF(F183<E176,"ê","ó")),0) -> 
C184: 2013 | D184: =INDIRECT(ADDRESS(record2013,8+$A$176,,,"ward")) ->  | E184: =INDIRECT(ADDRESS(record2013,8+$A$176+70,,,"ward")) ->  | F184: =INDIRECT(ADDRESS(record2013,8+$A$176+105,,,"ward")) ->  | G184: =IF(C184=2013,IF(E184>F183,"é",IF(F184<E183,"ê","ó")),0) ->  | H184: =IF(C184=2013,IF(E184>F182,"é",IF(F184<E182,"ê","ó")),0) ->  | I184: =IF(C184=2013,IF(E184>F181,"é",IF(F184<E181,"ê","ó")),0) ->  | J184: =IF(C184=2013,IF(E184>F180,"é",IF(F184<E180,"ê","ó")),0) ->  | K184: =IF(C184=2013,IF(E184>F179,"é",IF(F184<E179,"ê","ó")),0) ->  | L184: =IF(C184=2013,IF(E184>F178,"é",IF(F184<E178,"ê","ó")),0) ->  | M184: =IF(C184=2013,IF(E184>F177,"é",IF(F184<E177,"ê","ó")),0) ->  | N184: =IF(C184=2013,IF(E184>F176,"é",IF(F184<E176,"ê","ó")),0) -> 
C185: 2014 | D185: =INDIRECT(ADDRESS(record2014,8+$A$176,,,"ward")) ->  | E185: =INDIRECT(ADDRESS(record2014,8+$A$176+70,,,"ward")) ->  | F185: =INDIRECT(ADDRESS(record2014,8+$A$176+105,,,"ward")) ->  | G185: =IF(C185=2014,IF(E185>F184,"é",IF(F185<E184,"ê","ó")),0) ->  | H185: =IF(C185=2014,IF(E185>F183,"é",IF(F185<E183,"ê","ó")),0) ->  | I185: =IF(C185=2014,IF(E185>F182,"é",IF(F185<E182,"ê","ó")),0) ->  | J185: =IF(C185=2014,IF(E185>F181,"é",IF(F185<E181,"ê","ó")),0) ->  | K185: =IF(C185=2014,IF(E185>F180,"é",IF(F185<E180,"ê","ó")),0) ->  | L185: =IF(C185=2014,IF(E185>F179,"é",IF(F185<E179,"ê","ó")),0) ->  | M185: =IF(C185=2014,IF(E185>F178,"é",IF(F185<E178,"ê","ó")),0) ->  | N185: =IF(C185=2014,IF(E185>F177,"é",IF(F185<E177,"ê","ó")),0) ->  | O185: =IF(C185=2014,IF(E185>F176,"é",IF(F185<E176,"ê","ó")),0) -> 
A186: 19 | B186: Henleaze | C186: 2005 | D186: =INDIRECT(ADDRESS(record2005,8+A186,,,"ward")) ->  | E186: =INDIRECT(ADDRESS(record2005,8+A186+70,,,"ward")) ->  | F186: =INDIRECT(ADDRESS(record2005,8+A186+105,,,"ward")) -> 
C187: 2006 | D187: =INDIRECT(ADDRESS(record2006,8+A186,,,"ward")) ->  | E187: =INDIRECT(ADDRESS(record2006,8+A186+70,,,"ward")) ->  | F187: =INDIRECT(ADDRESS(record2006,8+A186+105,,,"ward")) ->  | G187: =IF(E187>F186,"é",IF(F187<E186,"ê","ó")) -> 
C188: 2007 | D188: =INDIRECT(ADDRESS(record2007,8+A186,,,"ward")) ->  | E188: =INDIRECT(ADDRESS(record2007,8+A186+70,,,"ward")) ->  | F188: =INDIRECT(ADDRESS(record2007,8+A186+105,,,"ward")) ->  | G188: =IF(E188>F187,"é",IF(F188<E187,"ê","ó")) ->  | H188: =IF(E188>F186,"é",IF(F188<E186,"ê","ó")) -> 
C189: 2008 | D189: =INDIRECT(ADDRESS(record2008,8+A186,,,"ward")) ->  | E189: =INDIRECT(ADDRESS(record2008,8+A186+70,,,"ward")) ->  | F189: =INDIRECT(ADDRESS(record2008,8+A186+105,,,"ward")) ->  | G189: =IF(C189=2008,IF(E189>F188,"é",IF(F189<E188,"ê","ó")),0) ->  | H189: =IF(C189=2008,IF(E189>F187,"é",IF(F189<E187,"ê","ó")),0) ->  | I189: =IF(C189=2008,IF(E189>F186,"é",IF(F189<E186,"ê","ó")),0) -> 
C190: 2009 | D190: =INDIRECT(ADDRESS(record2009,8+A186,,,"ward")) ->  | E190: =INDIRECT(ADDRESS(record2009,8+A186+70,,,"ward")) ->  | F190: =INDIRECT(ADDRESS(record2009,8+A186+105,,,"ward")) ->  | G190: =IF(C190=2009,IF(E190>F189,"é",IF(F190<E189,"ê","ó")),0) ->  | H190: =IF(C190=2009,IF(E190>F188,"é",IF(F190<E188,"ê","ó")),0) ->  | I190: =IF(C190=2009,IF(E190>F187,"é",IF(F190<E187,"ê","ó")),0) ->  | J190: =IF(C190=2009,IF(E190>F186,"é",IF(F190<E186,"ê","ó")),0) -> 
C191: 2010 | D191: =INDIRECT(ADDRESS(record2010,8+A186,,,"ward")) ->  | E191: =INDIRECT(ADDRESS(record2010,8+A186+70,,,"ward")) ->  | F191: =INDIRECT(ADDRESS(record2010,8+A186+105,,,"ward")) ->  | G191: =IF(C191=2010,IF(E191>F190,"é",IF(F191<E190,"ê","ó")),0) ->  | H191: =IF(C191=2010,IF(E191>F189,"é",IF(F191<E189,"ê","ó")),0) ->  | I191: =IF(C191=2010,IF(E191>F188,"é",IF(F191<E188,"ê","ó")),0) ->  | J191: =IF(C191=2010,IF(E191>F187,"é",IF(F191<E187,"ê","ó")),0) ->  | K191: =IF(C191=2010,IF(E191>F186,"é",IF(F191<E186,"ê","ó")),0) -> 
C192: 2011 | D192: =INDIRECT(ADDRESS(record2011,8+$A$186,,,"ward")) ->  | E192: =INDIRECT(ADDRESS(record2011,8+$A$186+70,,,"ward")) ->  | F192: =INDIRECT(ADDRESS(record2011,8+$A$186+105,,,"ward")) ->  | G192: =IF(C192=2011,IF(E192>F191,"é",IF(F192<E191,"ê","ó")),0) ->  | H192: =IF(C192=2011,IF(E192>F190,"é",IF(F192<E190,"ê","ó")),0) ->  | I192: =IF(C192=2011,IF(E192>F189,"é",IF(F192<E189,"ê","ó")),0) ->  | J192: =IF(C192=2011,IF(E192>F188,"é",IF(F192<E188,"ê","ó")),0) ->  | K192: =IF(C192=2011,IF(E192>F187,"é",IF(F192<E187,"ê","ó")),0) ->  | L192: =IF(C192=2011,IF(E192>F186,"é",IF(F192<E186,"ê","ó")),0) -> 
C193: 2012 | D193: =INDIRECT(ADDRESS(record2012,8+$A$186,,,"ward")) ->  | E193: =INDIRECT(ADDRESS(record2012,8+$A$186+70,,,"ward")) ->  | F193: =INDIRECT(ADDRESS(record2012,8+$A$186+105,,,"ward")) ->  | G193: =IF(C193=2012,IF(E193>F192,"é",IF(F193<E192,"ê","ó")),0) ->  | H193: =IF(C193=2012,IF(E193>F191,"é",IF(F193<E191,"ê","ó")),0) ->  | I193: =IF(C193=2012,IF(E193>F190,"é",IF(F193<E190,"ê","ó")),0) ->  | J193: =IF(C193=2012,IF(E193>F189,"é",IF(F193<E189,"ê","ó")),0) ->  | K193: =IF(C193=2012,IF(E193>F188,"é",IF(F193<E188,"ê","ó")),0) ->  | L193: =IF(C193=2012,IF(E193>F187,"é",IF(F193<E187,"ê","ó")),0) ->  | M193: =IF(C193=2012,IF(E193>F186,"é",IF(F193<E186,"ê","ó")),0) -> 
C194: 2013 | D194: =INDIRECT(ADDRESS(record2013,8+$A$186,,,"ward")) ->  | E194: =INDIRECT(ADDRESS(record2013,8+$A$186+70,,,"ward")) ->  | F194: =INDIRECT(ADDRESS(record2013,8+$A$186+105,,,"ward")) ->  | G194: =IF(C194=2013,IF(E194>F193,"é",IF(F194<E193,"ê","ó")),0) ->  | H194: =IF(C194=2013,IF(E194>F192,"é",IF(F194<E192,"ê","ó")),0) ->  | I194: =IF(C194=2013,IF(E194>F191,"é",IF(F194<E191,"ê","ó")),0) ->  | J194: =IF(C194=2013,IF(E194>F190,"é",IF(F194<E190,"ê","ó")),0) ->  | K194: =IF(C194=2013,IF(E194>F189,"é",IF(F194<E189,"ê","ó")),0) ->  | L194: =IF(C194=2013,IF(E194>F188,"é",IF(F194<E188,"ê","ó")),0) ->  | M194: =IF(C194=2013,IF(E194>F187,"é",IF(F194<E187,"ê","ó")),0) ->  | N194: =IF(C194=2013,IF(E194>F186,"é",IF(F194<E186,"ê","ó")),0) -> 
C195: 2014 | D195: =INDIRECT(ADDRESS(record2014,8+$A$186,,,"ward")) ->  | E195: =INDIRECT(ADDRESS(record2014,8+$A$186+70,,,"ward")) ->  | F195: =INDIRECT(ADDRESS(record2014,8+$A$186+105,,,"ward")) ->  | G195: =IF(C195=2014,IF(E195>F194,"é",IF(F195<E194,"ê","ó")),0) ->  | H195: =IF(C195=2014,IF(E195>F193,"é",IF(F195<E193,"ê","ó")),0) ->  | I195: =IF(C195=2014,IF(E195>F192,"é",IF(F195<E192,"ê","ó")),0) ->  | J195: =IF(C195=2014,IF(E195>F191,"é",IF(F195<E191,"ê","ó")),0) ->  | K195: =IF(C195=2014,IF(E195>F190,"é",IF(F195<E190,"ê","ó")),0) ->  | L195: =IF(C195=2014,IF(E195>F189,"é",IF(F195<E189,"ê","ó")),0) ->  | M195: =IF(C195=2014,IF(E195>F188,"é",IF(F195<E188,"ê","ó")),0) ->  | N195: =IF(C195=2014,IF(E195>F187,"é",IF(F195<E187,"ê","ó")),0) ->  | O195: =IF(C195=2014,IF(E195>F186,"é",IF(F195<E186,"ê","ó")),0) -> 
A196: 20 | B196: Hillfields | C196: 2005 | D196: =INDIRECT(ADDRESS(record2005,8+A196,,,"ward")) ->  | E196: =INDIRECT(ADDRESS(record2005,8+A196+70,,,"ward")) ->  | F196: =INDIRECT(ADDRESS(record2005,8+A196+105,,,"ward")) -> 
C197: 2006 | D197: =INDIRECT(ADDRESS(record2006,8+A196,,,"ward")) ->  | E197: =INDIRECT(ADDRESS(record2006,8+A196+70,,,"ward")) ->  | F197: =INDIRECT(ADDRESS(record2006,8+A196+105,,,"ward")) ->  | G197: =IF(E197>F196,"é",IF(F197<E196,"ê","ó")) -> 
C198: 2007 | D198: =INDIRECT(ADDRESS(record2007,8+A196,,,"ward")) ->  | E198: =INDIRECT(ADDRESS(record2007,8+A196+70,,,"ward")) ->  | F198: =INDIRECT(ADDRESS(record2007,8+A196+105,,,"ward")) ->  | G198: =IF(E198>F197,"é",IF(F198<E197,"ê","ó")) ->  | H198: =IF(E198>F196,"é",IF(F198<E196,"ê","ó")) ->  | V198: =D198-E198 ->  | W198: =F198-D198 -> 
C199: 2008 | D199: =INDIRECT(ADDRESS(record2008,8+A196,,,"ward")) ->  | E199: =INDIRECT(ADDRESS(record2008,8+A196+70,,,"ward")) ->  | F199: =INDIRECT(ADDRESS(record2008,8+A196+105,,,"ward")) ->  | G199: =IF(C199=2008,IF(E199>F198,"é",IF(F199<E198,"ê","ó")),0) ->  | H199: =IF(C199=2008,IF(E199>F197,"é",IF(F199<E197,"ê","ó")),0) ->  | I199: =IF(C199=2008,IF(E199>F196,"é",IF(F199<E196,"ê","ó")),0) -> 
C200: 2009 | D200: =INDIRECT(ADDRESS(record2009,8+A196,,,"ward")) ->  | E200: =INDIRECT(ADDRESS(record2009,8+A196+70,,,"ward")) ->  | F200: =INDIRECT(ADDRESS(record2009,8+A196+105,,,"ward")) ->  | G200: =IF(C200=2009,IF(E200>F199,"é",IF(F200<E199,"ê","ó")),0) ->  | H200: =IF(C200=2009,IF(E200>F198,"é",IF(F200<E198,"ê","ó")),0) ->  | I200: =IF(C200=2009,IF(E200>F197,"é",IF(F200<E197,"ê","ó")),0) ->  | J200: =IF(C200=2009,IF(E200>F196,"é",IF(F200<E196,"ê","ó")),0) -> 
... 190 more rows

Sheet NPA breakdown (hidden)
B1: Go to instructions | D1: Go to list of indicators | F1: Go to Summary page | I1: Go to equalities breakdown
O2: up | P2: - | Q2: down
O3: é | P3: ó | Q3: ê | R3: 0
B4: =workings!H3 -> % respondents who think the state of repair of roads has got worse | U4: Error bars for graphs
D5: % | E5: LC | F5: UC | G5: 2 yr trend | H5: 3 yr trend | I5: 4 yr trend | J5: 5 yr trend | K5: 6 yr trend | L5: 7 yr trend | U5: -ve | V5: +
A6: 1 | B6: NP01 | C6: 2008 | D6: =INDIRECT(ADDRESS(record2008,8+A6,,,"NPA")) ->  | E6: =INDIRECT(ADDRESS(record2008,8+A6+28,,,"NPA")) ->  | F6: =INDIRECT(ADDRESS(record2008,8+A6+42,,,"NPA")) ->  | U6: =D6-E6 ->  | V6: =F6-D6 -> 
B7: Avonmouth and Kingsweston | C7: 2009 | D7: =INDIRECT(ADDRESS(record2009,8+A6,,,"NPA")) ->  | E7: =INDIRECT(ADDRESS(record2009,8+A6+28,,,"NPA")) ->  | F7: =INDIRECT(ADDRESS(record2009,8+A6+42,,,"NPA")) ->  | G7: =IF(C7=2009,IF(E7>F6,"é",IF(F7<E6,"ê","ó")),0) ->  | U7: =D7-E7 ->  | V7: =F7-D7 -> 
C8: 2010 | D8: =INDIRECT(ADDRESS(record2010,8+A6,,,"NPA")) ->  | E8: =INDIRECT(ADDRESS(record2010,8+A6+28,,,"NPA")) ->  | F8: =INDIRECT(ADDRESS(record2010,8+A6+42,,,"NPA")) ->  | G8: =IF(C8=2010,IF(E8>F7,"é",IF(F8<E7,"ê","ó")),0) ->  | H8: =IF(C8=2010,IF(E8>F6,"é",IF(F8<E6,"ê","ó")),0) -> 
C9: 2011 | D9: =INDIRECT(ADDRESS(record2011,8+A6,,,"NPA")) ->  | E9: =INDIRECT(ADDRESS(record2011,8+A6+28,,,"NPA")) ->  | F9: =INDIRECT(ADDRESS(record2011,8+A6+42,,,"NPA")) ->  | G9: =IF(C9=2011,IF(E9>F8,"é",IF(F9<E8,"ê","ó")),0) ->  | H9: =IF(C9=2011,IF(E9>F7,"é",IF(F9<E7,"ê","ó")),0) ->  | I9: =IF(C9=2011,IF(E9>F6,"é",IF(F9<E6,"ê","ó")),0) -> 
C10: 2012 | D10: =INDIRECT(ADDRESS(record2012,8+A6,,,"NPA")) ->  | E10: =INDIRECT(ADDRESS(record2012,8+A6+28,,,"NPA")) ->  | F10: =INDIRECT(ADDRESS(record2012,8+A6+42,,,"NPA")) ->  | G10: =IF(C10=2012,IF(E10>F9,"é",IF(F10<E9,"ê","ó")),0) ->  | H10: =IF(C10=2012,IF(E10>F8,"é",IF(F10<E8,"ê","ó")),0) ->  | I10: =IF(C10=2012,IF(E10>F7,"é",IF(F10<E7,"ê","ó")),0) ->  | J10: =IF(C10=2012,IF(E10>F6,"é",IF(F10<E6,"ê","ó")),0) -> 
C11: 2013 | D11: =INDIRECT(ADDRESS(record2013,8+A6,,,"NPA")) ->  | E11: =INDIRECT(ADDRESS(record2013,8+A6+28,,,"NPA")) ->  | F11: =INDIRECT(ADDRESS(record2013,8+A6+42,,,"NPA")) ->  | G11: =IF(C11=2013,IF(E11>F10,"é",IF(F11<E10,"ê","ó")),0) ->  | H11: =IF(C11=2013,IF(E11>F9,"é",IF(F11<E9,"ê","ó")),0) ->  | I11: =IF(C11=2013,IF(E11>F8,"é",IF(F11<E8,"ê","ó")),0) ->  | J11: =IF(C11=2013,IF(E11>F7,"é",IF(F11<E7,"ê","ó")),0) ->  | K11: =IF(C11=2013,IF(E11>F6,"é",IF(F11<E6,"ê","ó")),0) -> 
C12: 2014 | D12: =INDIRECT(ADDRESS(record2014,8+A6,,,"NPA")) ->  | E12: =INDIRECT(ADDRESS(record2014,8+A6+28,,,"NPA")) ->  | F12: =INDIRECT(ADDRESS(record2014,8+A6+42,,,"NPA")) ->  | G12: =IF(C12=2014,IF(E12>F11,"é",IF(F12<E11,"ê","ó")),0) ->  | H12: =IF(C12=2014,IF(E12>F10,"é",IF(F12<E10,"ê","ó")),0) ->  | I12: =IF(C12=2014,IF(E12>F9,"é",IF(F12<E9,"ê","ó")),0) ->  | J12: =IF(C12=2014,IF(E12>F8,"é",IF(F12<E8,"ê","ó")),0) ->  | K12: =IF(C12=2014,IF(E12>F7,"é",IF(F12<E7,"ê","ó")),0) ->  | L12: =IF(C12=2014,IF(E12>F6,"é",IF(F12<E6,"ê","ó")),0) -> 
A13: 2 | B13: NP02 | C13: 2008 | D13: =INDIRECT(ADDRESS(record2008,8+A13,,,"NPA")) ->  | E13: =INDIRECT(ADDRESS(record2008,8+A13+28,,,"NPA")) ->  | F13: =INDIRECT(ADDRESS(record2008,8+A13+42,,,"NPA")) -> 
B14: Henbury and Southmead | C14: 2009 | D14: =INDIRECT(ADDRESS(record2009,8+A13,,,"NPA")) ->  | E14: =INDIRECT(ADDRESS(record2009,8+A13+28,,,"NPA")) ->  | F14: =INDIRECT(ADDRESS(record2009,8+A13+42,,,"NPA")) ->  | G14: =IF(C14=2009,IF(E14>F13,"é",IF(F14<E13,"ê","ó")),0) -> 
C15: 2010 | D15: =INDIRECT(ADDRESS(record2010,8+A13,,,"NPA")) ->  | E15: =INDIRECT(ADDRESS(record2010,8+A13+28,,,"NPA")) ->  | F15: =INDIRECT(ADDRESS(record2010,8+A13+42,,,"NPA")) ->  | G15: =IF(C15=2010,IF(E15>F14,"é",IF(F15<E14,"ê","ó")),0) ->  | H15: =IF(C15=2010,IF(E15>F13,"é",IF(F15<E13,"ê","ó")),0) -> 
C16: 2011 | D16: =INDIRECT(ADDRESS(record2011,8+A13,,,"NPA")) ->  | E16: =INDIRECT(ADDRESS(record2011,8+A13+28,,,"NPA")) ->  | F16: =INDIRECT(ADDRESS(record2011,8+A13+42,,,"NPA")) ->  | G16: =IF(C16=2011,IF(E16>F15,"é",IF(F16<E15,"ê","ó")),0) ->  | H16: =IF(C16=2011,IF(E16>F14,"é",IF(F16<E14,"ê","ó")),0) ->  | I16: =IF(C16=2011,IF(E16>F13,"é",IF(F16<E13,"ê","ó")),0) -> 
C17: 2012 | D17: =INDIRECT(ADDRESS(record2012,8+A13,,,"NPA")) ->  | E17: =INDIRECT(ADDRESS(record2012,8+A13+28,,,"NPA")) ->  | F17: =INDIRECT(ADDRESS(record2012,8+A13+42,,,"NPA")) ->  | G17: =IF(C17=2012,IF(E17>F16,"é",IF(F17<E16,"ê","ó")),0) ->  | H17: =IF(C17=2012,IF(E17>F15,"é",IF(F17<E15,"ê","ó")),0) ->  | I17: =IF(C17=2012,IF(E17>F14,"é",IF(F17<E14,"ê","ó")),0) ->  | J17: =IF(C17=2012,IF(E17>F13,"é",IF(F17<E13,"ê","ó")),0) -> 
C18: 2013 | D18: =INDIRECT(ADDRESS(record2013,8+A13,,,"NPA")) ->  | E18: =INDIRECT(ADDRESS(record2013,8+A13+28,,,"NPA")) ->  | F18: =INDIRECT(ADDRESS(record2013,8+A13+42,,,"NPA")) ->  | G18: =IF(C18=2013,IF(E18>F17,"é",IF(F18<E17,"ê","ó")),0) ->  | H18: =IF(C18=2013,IF(E18>F16,"é",IF(F18<E16,"ê","ó")),0) ->  | I18: =IF(C18=2013,IF(E18>F15,"é",IF(F18<E15,"ê","ó")),0) ->  | J18: =IF(C18=2013,IF(E18>F14,"é",IF(F18<E14,"ê","ó")),0) ->  | K18: =IF(C18=2013,IF(E18>F13,"é",IF(F18<E13,"ê","ó")),0) -> 
C19: 2014 | D19: =INDIRECT(ADDRESS(record2014,8+A13,,,"NPA")) ->  | E19: =INDIRECT(ADDRESS(record2014,8+A13+28,,,"NPA")) ->  | F19: =INDIRECT(ADDRESS(record2014,8+A13+42,,,"NPA")) ->  | G19: =IF(C19=2014,IF(E19>F18,"é",IF(F19<E18,"ê","ó")),0) ->  | H19: =IF(C19=2014,IF(E19>F17,"é",IF(F19<E17,"ê","ó")),0) ->  | I19: =IF(C19=2014,IF(E19>F16,"é",IF(F19<E16,"ê","ó")),0) ->  | J19: =IF(C19=2014,IF(E19>F15,"é",IF(F19<E15,"ê","ó")),0) ->  | K19: =IF(C19=2014,IF(E19>F14,"é",IF(F19<E14,"ê","ó")),0) ->  | L19: =IF(C19=2014,IF(E19>F13,"é",IF(F19<E13,"ê","ó")),0) -> 
A20: 3 | B20: NP03 | C20: 2008 | D20: =INDIRECT(ADDRESS(record2008,8+A20,,,"NPA")) ->  | E20: =INDIRECT(ADDRESS(record2008,8+A20+28,,,"NPA")) ->  | F20: =INDIRECT(ADDRESS(record2008,8+A20+42,,,"NPA")) -> 
B21: Henleaze, Stoke Bishop and Westbury-on-Trym | C21: 2009 | D21: =INDIRECT(ADDRESS(record2009,8+A20,,,"NPA")) ->  | E21: =INDIRECT(ADDRESS(record2009,8+A20+28,,,"NPA")) ->  | F21: =INDIRECT(ADDRESS(record2009,8+A20+42,,,"NPA")) ->  | G21: =IF(C21=2009,IF(E21>F20,"é",IF(F21<E20,"ê","ó")),0) -> 
C22: 2010 | D22: =INDIRECT(ADDRESS(record2010,8+A20,,,"NPA")) ->  | E22: =INDIRECT(ADDRESS(record2010,8+A20+28,,,"NPA")) ->  | F22: =INDIRECT(ADDRESS(record2010,8+A20+42,,,"NPA")) ->  | G22: =IF(C22=2010,IF(E22>F21,"é",IF(F22<E21,"ê","ó")),0) ->  | H22: =IF(C22=2010,IF(E22>F20,"é",IF(F22<E20,"ê","ó")),0) -> 
C23: 2011 | D23: =INDIRECT(ADDRESS(record2011,8+A20,,,"NPA")) ->  | E23: =INDIRECT(ADDRESS(record2011,8+A20+28,,,"NPA")) ->  | F23: =INDIRECT(ADDRESS(record2011,8+A20+42,,,"NPA")) ->  | G23: =IF(C23=2011,IF(E23>F22,"é",IF(F23<E22,"ê","ó")),0) ->  | H23: =IF(C23=2011,IF(E23>F21,"é",IF(F23<E21,"ê","ó")),0) ->  | I23: =IF(C23=2011,IF(E23>F20,"é",IF(F23<E20,"ê","ó")),0) -> 
C24: 2012 | D24: =INDIRECT(ADDRESS(record2012,8+A20,,,"NPA")) ->  | E24: =INDIRECT(ADDRESS(record2012,8+A20+28,,,"NPA")) ->  | F24: =INDIRECT(ADDRESS(record2012,8+A20+42,,,"NPA")) ->  | G24: =IF(C24=2012,IF(E24>F23,"é",IF(F24<E23,"ê","ó")),0) ->  | H24: =IF(C24=2012,IF(E24>F22,"é",IF(F24<E22,"ê","ó")),0) ->  | I24: =IF(C24=2012,IF(E24>F21,"é",IF(F24<E21,"ê","ó")),0) ->  | J24: =IF(C24=2012,IF(E24>F20,"é",IF(F24<E20,"ê","ó")),0) -> 
C25: 2013 | D25: =INDIRECT(ADDRESS(record2013,8+A20,,,"NPA")) ->  | E25: =INDIRECT(ADDRESS(record2013,8+A20+28,,,"NPA")) ->  | F25: =INDIRECT(ADDRESS(record2013,8+A20+42,,,"NPA")) ->  | G25: =IF(C25=2013,IF(E25>F24,"é",IF(F25<E24,"ê","ó")),0) ->  | H25: =IF(C25=2013,IF(E25>F23,"é",IF(F25<E23,"ê","ó")),0) ->  | I25: =IF(C25=2013,IF(E25>F22,"é",IF(F25<E22,"ê","ó")),0) ->  | J25: =IF(C25=2013,IF(E25>F21,"é",IF(F25<E21,"ê","ó")),0) ->  | K25: =IF(C25=2013,IF(E25>F20,"é",IF(F25<E20,"ê","ó")),0) -> 
C26: 2014 | D26: =INDIRECT(ADDRESS(record2014,8+A20,,,"NPA")) ->  | E26: =INDIRECT(ADDRESS(record2014,8+A20+28,,,"NPA")) ->  | F26: =INDIRECT(ADDRESS(record2014,8+A20+42,,,"NPA")) ->  | G26: =IF(C26=2014,IF(E26>F25,"é",IF(F26<E25,"ê","ó")),0) ->  | H26: =IF(C26=2014,IF(E26>F24,"é",IF(F26<E24,"ê","ó")),0) ->  | I26: =IF(C26=2014,IF(E26>F23,"é",IF(F26<E23,"ê","ó")),0) ->  | J26: =IF(C26=2014,IF(E26>F22,"é",IF(F26<E22,"ê","ó")),0) ->  | K26: =IF(C26=2014,IF(E26>F21,"é",IF(F26<E21,"ê","ó")),0) ->  | L26: =IF(C26=2014,IF(E26>F20,"é",IF(F26<E20,"ê","ó")),0) -> 
A27: 4 | B27: NP04 | C27: 2008 | D27: =INDIRECT(ADDRESS(record2008,8+A27,,,"NPA")) ->  | E27: =INDIRECT(ADDRESS(record2008,8+A27+28,,,"NPA")) ->  | F27: =INDIRECT(ADDRESS(record2008,8+A27+42,,,"NPA")) -> 
B28: Horfield and Lockleaze | C28: 2009 | D28: =INDIRECT(ADDRESS(record2009,8+A27,,,"NPA")) ->  | E28: =INDIRECT(ADDRESS(record2009,8+A27+28,,,"NPA")) ->  | F28: =INDIRECT(ADDRESS(record2009,8+A27+42,,,"NPA")) ->  | G28: =IF(C28=2009,IF(E28>F27,"é",IF(F28<E27,"ê","ó")),0) -> 
C29: 2010 | D29: =INDIRECT(ADDRESS(record2010,8+A27,,,"NPA")) ->  | E29: =INDIRECT(ADDRESS(record2010,8+A27+28,,,"NPA")) ->  | F29: =INDIRECT(ADDRESS(record2010,8+A27+42,,,"NPA")) ->  | G29: =IF(C29=2010,IF(E29>F28,"é",IF(F29<E28,"ê","ó")),0) ->  | H29: =IF(C29=2010,IF(E29>F27,"é",IF(F29<E27,"ê","ó")),0) -> 
C30: 2011 | D30: =INDIRECT(ADDRESS(record2011,8+A27,,,"NPA")) ->  | E30: =INDIRECT(ADDRESS(record2011,8+A27+28,,,"NPA")) ->  | F30: =INDIRECT(ADDRESS(record2011,8+A27+42,,,"NPA")) ->  | G30: =IF(C30=2011,IF(E30>F29,"é",IF(F30<E29,"ê","ó")),0) ->  | H30: =IF(C30=2011,IF(E30>F28,"é",IF(F30<E28,"ê","ó")),0) ->  | I30: =IF(C30=2011,IF(E30>F27,"é",IF(F30<E27,"ê","ó")),0) -> 
C31: 2012 | D31: =INDIRECT(ADDRESS(record2012,8+A27,,,"NPA")) ->  | E31: =INDIRECT(ADDRESS(record2012,8+A27+28,,,"NPA")) ->  | F31: =INDIRECT(ADDRESS(record2012,8+A27+42,,,"NPA")) ->  | G31: =IF(C31=2012,IF(E31>F30,"é",IF(F31<E30,"ê","ó")),0) ->  | H31: =IF(C31=2012,IF(E31>F29,"é",IF(F31<E29,"ê","ó")),0) ->  | I31: =IF(C31=2012,IF(E31>F28,"é",IF(F31<E28,"ê","ó")),0) ->  | J31: =IF(C31=2012,IF(E31>F27,"é",IF(F31<E27,"ê","ó")),0) -> 
C32: 2013 | D32: =INDIRECT(ADDRESS(record2013,8+A27,,,"NPA")) ->  | E32: =INDIRECT(ADDRESS(record2013,8+A27+28,,,"NPA")) ->  | F32: =INDIRECT(ADDRESS(record2013,8+A27+42,,,"NPA")) ->  | G32: =IF(C32=2013,IF(E32>F31,"é",IF(F32<E31,"ê","ó")),0) ->  | H32: =IF(C32=2013,IF(E32>F30,"é",IF(F32<E30,"ê","ó")),0) ->  | I32: =IF(C32=2013,IF(E32>F29,"é",IF(F32<E29,"ê","ó")),0) ->  | J32: =IF(C32=2013,IF(E32>F28,"é",IF(F32<E28,"ê","ó")),0) ->  | K32: =IF(C32=2013,IF(E32>F27,"é",IF(F32<E27,"ê","ó")),0) -> 
C33: 2014 | D33: =INDIRECT(ADDRESS(record2014,8+A27,,,"NPA")) ->  | E33: =INDIRECT(ADDRESS(record2014,8+A27+28,,,"NPA")) ->  | F33: =INDIRECT(ADDRESS(record2014,8+A27+42,,,"NPA")) ->  | G33: =IF(C33=2014,IF(E33>F32,"é",IF(F33<E32,"ê","ó")),0) ->  | H33: =IF(C33=2014,IF(E33>F31,"é",IF(F33<E31,"ê","ó")),0) ->  | I33: =IF(C33=2014,IF(E33>F30,"é",IF(F33<E30,"ê","ó")),0) ->  | J33: =IF(C33=2014,IF(E33>F29,"é",IF(F33<E29,"ê","ó")),0) ->  | K33: =IF(C33=2014,IF(E33>F28,"é",IF(F33<E28,"ê","ó")),0) ->  | L33: =IF(C33=2014,IF(E33>F27,"é",IF(F33<E27,"ê","ó")),0) -> 
A34: 5 | B34: NP05 | C34: 2008 | D34: =INDIRECT(ADDRESS(record2008,8+A34,,,"NPA")) ->  | E34: =INDIRECT(ADDRESS(record2008,8+A34+28,,,"NPA")) ->  | F34: =INDIRECT(ADDRESS(record2008,8+A34+42,,,"NPA")) -> 
B35: Eastville, Hillfields and Frome Vale | C35: 2009 | D35: =INDIRECT(ADDRESS(record2009,8+A34,,,"NPA")) ->  | E35: =INDIRECT(ADDRESS(record2009,8+A34+28,,,"NPA")) ->  | F35: =INDIRECT(ADDRESS(record2009,8+A34+42,,,"NPA")) ->  | G35: =IF(C35=2009,IF(E35>F34,"é",IF(F35<E34,"ê","ó")),0) -> 
C36: 2010 | D36: =INDIRECT(ADDRESS(record2010,8+A34,,,"NPA")) ->  | E36: =INDIRECT(ADDRESS(record2010,8+A34+28,,,"NPA")) ->  | F36: =INDIRECT(ADDRESS(record2010,8+A34+42,,,"NPA")) ->  | G36: =IF(C36=2010,IF(E36>F35,"é",IF(F36<E35,"ê","ó")),0) ->  | H36: =IF(C36=2010,IF(E36>F34,"é",IF(F36<E34,"ê","ó")),0) -> 
C37: 2011 | D37: =INDIRECT(ADDRESS(record2011,8+A34,,,"NPA")) ->  | E37: =INDIRECT(ADDRESS(record2011,8+A34+28,,,"NPA")) ->  | F37: =INDIRECT(ADDRESS(record2011,8+A34+42,,,"NPA")) ->  | G37: =IF(C37=2011,IF(E37>F36,"é",IF(F37<E36,"ê","ó")),0) ->  | H37: =IF(C37=2011,IF(E37>F35,"é",IF(F37<E35,"ê","ó")),0) ->  | I37: =IF(C37=2011,IF(E37>F34,"é",IF(F37<E34,"ê","ó")),0) -> 
C38: 2012 | D38: =INDIRECT(ADDRESS(record2012,8+A34,,,"NPA")) ->  | E38: =INDIRECT(ADDRESS(record2012,8+A34+28,,,"NPA")) ->  | F38: =INDIRECT(ADDRESS(record2012,8+A34+42,,,"NPA")) ->  | G38: =IF(C38=2012,IF(E38>F37,"é",IF(F38<E37,"ê","ó")),0) ->  | H38: =IF(C38=2012,IF(E38>F36,"é",IF(F38<E36,"ê","ó")),0) ->  | I38: =IF(C38=2012,IF(E38>F35,"é",IF(F38<E35,"ê","ó")),0) ->  | J38: =IF(C38=2012,IF(E38>F34,"é",IF(F38<E34,"ê","ó")),0) -> 
C39: 2013 | D39: =INDIRECT(ADDRESS(record2013,8+A34,,,"NPA")) ->  | E39: =INDIRECT(ADDRESS(record2013,8+A34+28,,,"NPA")) ->  | F39: =INDIRECT(ADDRESS(record2013,8+A34+42,,,"NPA")) ->  | G39: =IF(C39=2013,IF(E39>F38,"é",IF(F39<E38,"ê","ó")),0) ->  | H39: =IF(C39=2013,IF(E39>F37,"é",IF(F39<E37,"ê","ó")),0) ->  | I39: =IF(C39=2013,IF(E39>F36,"é",IF(F39<E36,"ê","ó")),0) ->  | J39: =IF(C39=2013,IF(E39>F35,"é",IF(F39<E35,"ê","ó")),0) ->  | K39: =IF(C39=2013,IF(E39>F34,"é",IF(F39<E34,"ê","ó")),0) -> 
C40: 2014 | D40: =INDIRECT(ADDRESS(record2014,8+A34,,,"NPA")) ->  | E40: =INDIRECT(ADDRESS(record2014,8+A34+28,,,"NPA")) ->  | F40: =INDIRECT(ADDRESS(record2014,8+A34+42,,,"NPA")) ->  | G40: =IF(C40=2014,IF(E40>F39,"é",IF(F40<E39,"ê","ó")),0) ->  | H40: =IF(C40=2014,IF(E40>F38,"é",IF(F40<E38,"ê","ó")),0) ->  | I40: =IF(C40=2014,IF(E40>F37,"é",IF(F40<E37,"ê","ó")),0) ->  | J40: =IF(C40=2014,IF(E40>F36,"é",IF(F40<E36,"ê","ó")),0) ->  | K40: =IF(C40=2014,IF(E40>F35,"é",IF(F40<E35,"ê","ó")),0) ->  | L40: =IF(C40=2014,IF(E40>F34,"é",IF(F40<E34,"ê","ó")),0) -> 
A41: 6 | B41: NP06 | C41: 2008 | D41: =INDIRECT(ADDRESS(record2008,8+A41,,,"NPA")) ->  | E41: =INDIRECT(ADDRESS(record2008,8+A41+28,,,"NPA")) ->  | F41: =INDIRECT(ADDRESS(record2008,8+A41+42,,,"NPA")) -> 
B42: Bishopston, Cotham and Redland | C42: 2009 | D42: =INDIRECT(ADDRESS(record2009,8+A41,,,"NPA")) ->  | E42: =INDIRECT(ADDRESS(record2009,8+A41+28,,,"NPA")) ->  | F42: =INDIRECT(ADDRESS(record2009,8+A41+42,,,"NPA")) ->  | G42: =IF(C42=2009,IF(E42>F41,"é",IF(F42<E41,"ê","ó")),0) -> 
C43: 2010 | D43: =INDIRECT(ADDRESS(record2010,8+A41,,,"NPA")) ->  | E43: =INDIRECT(ADDRESS(record2010,8+A41+28,,,"NPA")) ->  | F43: =INDIRECT(ADDRESS(record2010,8+A41+42,,,"NPA")) ->  | G43: =IF(C43=2010,IF(E43>F42,"é",IF(F43<E42,"ê","ó")),0) ->  | H43: =IF(C43=2010,IF(E43>F41,"é",IF(F43<E41,"ê","ó")),0) -> 
C44: 2011 | D44: =INDIRECT(ADDRESS(record2011,8+A41,,,"NPA")) ->  | E44: =INDIRECT(ADDRESS(record2011,8+A41+28,,,"NPA")) ->  | F44: =INDIRECT(ADDRESS(record2011,8+A41+42,,,"NPA")) ->  | G44: =IF(C44=2011,IF(E44>F43,"é",IF(F44<E43,"ê","ó")),0) ->  | H44: =IF(C44=2011,IF(E44>F42,"é",IF(F44<E42,"ê","ó")),0) ->  | I44: =IF(C44=2011,IF(E44>F41,"é",IF(F44<E41,"ê","ó")),0) -> 
C45: 2012 | D45: =INDIRECT(ADDRESS(record2012,8+A41,,,"NPA")) ->  | E45: =INDIRECT(ADDRESS(record2012,8+A41+28,,,"NPA")) ->  | F45: =INDIRECT(ADDRESS(record2012,8+A41+42,,,"NPA")) ->  | G45: =IF(C45=2012,IF(E45>F44,"é",IF(F45<E44,"ê","ó")),0) ->  | H45: =IF(C45=2012,IF(E45>F43,"é",IF(F45<E43,"ê","ó")),0) ->  | I45: =IF(C45=2012,IF(E45>F42,"é",IF(F45<E42,"ê","ó")),0) ->  | J45: =IF(C45=2012,IF(E45>F41,"é",IF(F45<E41,"ê","ó")),0) -> 
C46: 2013 | D46: =INDIRECT(ADDRESS(record2013,8+A41,,,"NPA")) ->  | E46: =INDIRECT(ADDRESS(record2013,8+A41+28,,,"NPA")) ->  | F46: =INDIRECT(ADDRESS(record2013,8+A41+42,,,"NPA")) ->  | G46: =IF(C46=2013,IF(E46>F45,"é",IF(F46<E45,"ê","ó")),0) ->  | H46: =IF(C46=2013,IF(E46>F44,"é",IF(F46<E44,"ê","ó")),0) ->  | I46: =IF(C46=2013,IF(E46>F43,"é",IF(F46<E43,"ê","ó")),0) ->  | J46: =IF(C46=2013,IF(E46>F42,"é",IF(F46<E42,"ê","ó")),0) ->  | K46: =IF(C46=2013,IF(E46>F41,"é",IF(F46<E41,"ê","ó")),0) -> 
C47: 2014 | D47: =INDIRECT(ADDRESS(record2014,8+A41,,,"NPA")) ->  | E47: =INDIRECT(ADDRESS(record2014,8+A41+28,,,"NPA")) ->  | F47: =INDIRECT(ADDRESS(record2014,8+A41+42,,,"NPA")) ->  | G47: =IF(C47=2014,IF(E47>F46,"é",IF(F47<E46,"ê","ó")),0) ->  | H47: =IF(C47=2014,IF(E47>F45,"é",IF(F47<E45,"ê","ó")),0) ->  | I47: =IF(C47=2014,IF(E47>F44,"é",IF(F47<E44,"ê","ó")),0) ->  | J47: =IF(C47=2014,IF(E47>F43,"é",IF(F47<E43,"ê","ó")),0) ->  | K47: =IF(C47=2014,IF(E47>F42,"é",IF(F47<E42,"ê","ó")),0) ->  | L47: =IF(C47=2014,IF(E47>F41,"é",IF(F47<E41,"ê","ó")),0) -> 
A48: 7 | B48: NP07 | C48: 2008 | D48: =INDIRECT(ADDRESS(record2008,8+A48,,,"NPA")) ->  | E48: =INDIRECT(ADDRESS(record2008,8+A48+28,,,"NPA")) ->  | F48: =INDIRECT(ADDRESS(record2008,8+A48+42,,,"NPA")) -> 
B49: Cabot, Clifton and Clifton East | C49: 2009 | D49: =INDIRECT(ADDRESS(record2009,8+A48,,,"NPA")) ->  | E49: =INDIRECT(ADDRESS(record2009,8+A48+28,,,"NPA")) ->  | F49: =INDIRECT(ADDRESS(record2009,8+A48+42,,,"NPA")) ->  | G49: =IF(C49=2009,IF(E49>F48,"é",IF(F49<E48,"ê","ó")),0) -> 
C50: 2010 | D50: =INDIRECT(ADDRESS(record2010,8+A48,,,"NPA")) ->  | E50: =INDIRECT(ADDRESS(record2010,8+A48+28,,,"NPA")) ->  | F50: =INDIRECT(ADDRESS(record2010,8+A48+42,,,"NPA")) ->  | G50: =IF(C50=2010,IF(E50>F49,"é",IF(F50<E49,"ê","ó")),0) ->  | H50: =IF(C50=2010,IF(E50>F48,"é",IF(F50<E48,"ê","ó")),0) -> 
C51: 2011 | D51: =INDIRECT(ADDRESS(record2011,8+A48,,,"NPA")) ->  | E51: =INDIRECT(ADDRESS(record2011,8+A48+28,,,"NPA")) ->  | F51: =INDIRECT(ADDRESS(record2011,8+A48+42,,,"NPA")) ->  | G51: =IF(C51=2011,IF(E51>F50,"é",IF(F51<E50,"ê","ó")),0) ->  | H51: =IF(C51=2011,IF(E51>F49,"é",IF(F51<E49,"ê","ó")),0) ->  | I51: =IF(C51=2011,IF(E51>F48,"é",IF(F51<E48,"ê","ó")),0) -> 
C52: 2012 | D52: =INDIRECT(ADDRESS(record2012,8+A48,,,"NPA")) ->  | E52: =INDIRECT(ADDRESS(record2012,8+A48+28,,,"NPA")) ->  | F52: =INDIRECT(ADDRESS(record2012,8+A48+42,,,"NPA")) ->  | G52: =IF(C52=2012,IF(E52>F51,"é",IF(F52<E51,"ê","ó")),0) ->  | H52: =IF(C52=2012,IF(E52>F50,"é",IF(F52<E50,"ê","ó")),0) ->  | I52: =IF(C52=2012,IF(E52>F49,"é",IF(F52<E49,"ê","ó")),0) ->  | J52: =IF(C52=2012,IF(E52>F48,"é",IF(F52<E48,"ê","ó")),0) -> 
C53: 2013 | D53: =INDIRECT(ADDRESS(record2013,8+A48,,,"NPA")) ->  | E53: =INDIRECT(ADDRESS(record2013,8+A48+28,,,"NPA")) ->  | F53: =INDIRECT(ADDRESS(record2013,8+A48+42,,,"NPA")) ->  | G53: =IF(C53=2013,IF(E53>F52,"é",IF(F53<E52,"ê","ó")),0) ->  | H53: =IF(C53=2013,IF(E53>F51,"é",IF(F53<E51,"ê","ó")),0) ->  | I53: =IF(C53=2013,IF(E53>F50,"é",IF(F53<E50,"ê","ó")),0) ->  | J53: =IF(C53=2013,IF(E53>F49,"é",IF(F53<E49,"ê","ó")),0) ->  | K53: =IF(C53=2013,IF(E53>F48,"é",IF(F53<E48,"ê","ó")),0) -> 
C54: 2014 | D54: =INDIRECT(ADDRESS(record2014,8+A48,,,"NPA")) ->  | E54: =INDIRECT(ADDRESS(record2014,8+A48+28,,,"NPA")) ->  | F54: =INDIRECT(ADDRESS(record2014,8+A48+42,,,"NPA")) ->  | G54: =IF(C54=2014,IF(E54>F53,"é",IF(F54<E53,"ê","ó")),0) ->  | H54: =IF(C54=2014,IF(E54>F52,"é",IF(F54<E52,"ê","ó")),0) ->  | I54: =IF(C54=2014,IF(E54>F51,"é",IF(F54<E51,"ê","ó")),0) ->  | J54: =IF(C54=2014,IF(E54>F50,"é",IF(F54<E50,"ê","ó")),0) ->  | K54: =IF(C54=2014,IF(E54>F49,"é",IF(F54<E49,"ê","ó")),0) ->  | L54: =IF(C54=2014,IF(E54>F48,"é",IF(F54<E48,"ê","ó")),0) -> 
A55: 8 | B55: NP08 | C55: 2008 | D55: =INDIRECT(ADDRESS(record2008,8+A55,,,"NPA")) ->  | E55: =INDIRECT(ADDRESS(record2008,8+A55+28,,,"NPA")) ->  | F55: =INDIRECT(ADDRESS(record2008,8+A55+42,,,"NPA")) -> 
B56: Ashley, Easton and Lawrence Hill | C56: 2009 | D56: =INDIRECT(ADDRESS(record2009,8+A55,,,"NPA")) ->  | E56: =INDIRECT(ADDRESS(record2009,8+A55+28,,,"NPA")) ->  | F56: =INDIRECT(ADDRESS(record2009,8+A55+42,,,"NPA")) ->  | G56: =IF(C56=2009,IF(E56>F55,"é",IF(F56<E55,"ê","ó")),0) -> 
C57: 2010 | D57: =INDIRECT(ADDRESS(record2010,8+A55,,,"NPA")) ->  | E57: =INDIRECT(ADDRESS(record2010,8+A55+28,,,"NPA")) ->  | F57: =INDIRECT(ADDRESS(record2010,8+A55+42,,,"NPA")) ->  | G57: =IF(C57=2010,IF(E57>F56,"é",IF(F57<E56,"ê","ó")),0) ->  | H57: =IF(C57=2010,IF(E57>F55,"é",IF(F57<E55,"ê","ó")),0) -> 
C58: 2011 | D58: =INDIRECT(ADDRESS(record2011,8+A55,,,"NPA")) ->  | E58: =INDIRECT(ADDRESS(record2011,8+A55+28,,,"NPA")) ->  | F58: =INDIRECT(ADDRESS(record2011,8+A55+42,,,"NPA")) ->  | G58: =IF(C58=2011,IF(E58>F57,"é",IF(F58<E57,"ê","ó")),0) ->  | H58: =IF(C58=2011,IF(E58>F56,"é",IF(F58<E56,"ê","ó")),0) ->  | I58: =IF(C58=2011,IF(E58>F55,"é",IF(F58<E55,"ê","ó")),0) -> 
C59: 2012 | D59: =INDIRECT(ADDRESS(record2012,8+A55,,,"NPA")) ->  | E59: =INDIRECT(ADDRESS(record2012,8+A55+28,,,"NPA")) ->  | F59: =INDIRECT(ADDRESS(record2012,8+A55+42,,,"NPA")) ->  | G59: =IF(C59=2012,IF(E59>F58,"é",IF(F59<E58,"ê","ó")),0) ->  | H59: =IF(C59=2012,IF(E59>F57,"é",IF(F59<E57,"ê","ó")),0) ->  | I59: =IF(C59=2012,IF(E59>F56,"é",IF(F59<E56,"ê","ó")),0) ->  | J59: =IF(C59=2012,IF(E59>F55,"é",IF(F59<E55,"ê","ó")),0) -> 
C60: 2013 | D60: =INDIRECT(ADDRESS(record2013,8+A55,,,"NPA")) ->  | E60: =INDIRECT(ADDRESS(record2013,8+A55+28,,,"NPA")) ->  | F60: =INDIRECT(ADDRESS(record2013,8+A55+42,,,"NPA")) ->  | G60: =IF(C60=2013,IF(E60>F59,"é",IF(F60<E59,"ê","ó")),0) ->  | H60: =IF(C60=2013,IF(E60>F58,"é",IF(F60<E58,"ê","ó")),0) ->  | I60: =IF(C60=2013,IF(E60>F57,"é",IF(F60<E57,"ê","ó")),0) ->  | J60: =IF(C60=2013,IF(E60>F56,"é",IF(F60<E56,"ê","ó")),0) ->  | K60: =IF(C60=2013,IF(E60>F55,"é",IF(F60<E55,"ê","ó")),0) -> 
C61: 2014 | D61: =INDIRECT(ADDRESS(record2014,8+A55,,,"NPA")) ->  | E61: =INDIRECT(ADDRESS(record2014,8+A55+28,,,"NPA")) ->  | F61: =INDIRECT(ADDRESS(record2014,8+A55+42,,,"NPA")) ->  | G61: =IF(C61=2014,IF(E61>F60,"é",IF(F61<E60,"ê","ó")),0) ->  | H61: =IF(C61=2014,IF(E61>F59,"é",IF(F61<E59,"ê","ó")),0) ->  | I61: =IF(C61=2014,IF(E61>F58,"é",IF(F61<E58,"ê","ó")),0) ->  | J61: =IF(C61=2014,IF(E61>F57,"é",IF(F61<E57,"ê","ó")),0) ->  | K61: =IF(C61=2014,IF(E61>F56,"é",IF(F61<E56,"ê","ó")),0) ->  | L61: =IF(C61=2014,IF(E61>F55,"é",IF(F61<E55,"ê","ó")),0) -> 
A62: 9 | B62: NP09 | C62: 2008 | D62: =INDIRECT(ADDRESS(record2008,8+A62,,,"NPA")) ->  | E62: =INDIRECT(ADDRESS(record2008,8+A62+28,,,"NPA")) ->  | F62: =INDIRECT(ADDRESS(record2008,8+A62+42,,,"NPA")) -> 
B63: St George East and St George West | C63: 2009 | D63: =INDIRECT(ADDRESS(record2009,8+A62,,,"NPA")) ->  | E63: =INDIRECT(ADDRESS(record2009,8+A62+28,,,"NPA")) ->  | F63: =INDIRECT(ADDRESS(record2009,8+A62+42,,,"NPA")) ->  | G63: =IF(C63=2009,IF(E63>F62,"é",IF(F63<E62,"ê","ó")),0) -> 
C64: 2010 | D64: =INDIRECT(ADDRESS(record2010,8+A62,,,"NPA")) ->  | E64: =INDIRECT(ADDRESS(record2010,8+A62+28,,,"NPA")) ->  | F64: =INDIRECT(ADDRESS(record2010,8+A62+42,,,"NPA")) ->  | G64: =IF(C64=2010,IF(E64>F63,"é",IF(F64<E63,"ê","ó")),0) ->  | H64: =IF(C64=2010,IF(E64>F62,"é",IF(F64<E62,"ê","ó")),0) -> 
C65: 2011 | D65: =INDIRECT(ADDRESS(record2011,8+A62,,,"NPA")) ->  | E65: =INDIRECT(ADDRESS(record2011,8+A62+28,,,"NPA")) ->  | F65: =INDIRECT(ADDRESS(record2011,8+A62+42,,,"NPA")) ->  | G65: =IF(C65=2011,IF(E65>F64,"é",IF(F65<E64,"ê","ó")),0) ->  | H65: =IF(C65=2011,IF(E65>F63,"é",IF(F65<E63,"ê","ó")),0) ->  | I65: =IF(C65=2011,IF(E65>F62,"é",IF(F65<E62,"ê","ó")),0) -> 
C66: 2012 | D66: =INDIRECT(ADDRESS(record2012,8+A62,,,"NPA")) ->  | E66: =INDIRECT(ADDRESS(record2012,8+A62+28,,,"NPA")) ->  | F66: =INDIRECT(ADDRESS(record2012,8+A62+42,,,"NPA")) ->  | G66: =IF(C66=2012,IF(E66>F65,"é",IF(F66<E65,"ê","ó")),0) ->  | H66: =IF(C66=2012,IF(E66>F64,"é",IF(F66<E64,"ê","ó")),0) ->  | I66: =IF(C66=2012,IF(E66>F63,"é",IF(F66<E63,"ê","ó")),0) ->  | J66: =IF(C66=2012,IF(E66>F62,"é",IF(F66<E62,"ê","ó")),0) -> 
C67: 2013 | D67: =INDIRECT(ADDRESS(record2013,8+A62,,,"NPA")) ->  | E67: =INDIRECT(ADDRESS(record2013,8+A62+28,,,"NPA")) ->  | F67: =INDIRECT(ADDRESS(record2013,8+A62+42,,,"NPA")) ->  | G67: =IF(C67=2013,IF(E67>F66,"é",IF(F67<E66,"ê","ó")),0) ->  | H67: =IF(C67=2013,IF(E67>F65,"é",IF(F67<E65,"ê","ó")),0) ->  | I67: =IF(C67=2013,IF(E67>F64,"é",IF(F67<E64,"ê","ó")),0) ->  | J67: =IF(C67=2013,IF(E67>F63,"é",IF(F67<E63,"ê","ó")),0) ->  | K67: =IF(C67=2013,IF(E67>F62,"é",IF(F67<E62,"ê","ó")),0) -> 
C68: 2014 | D68: =INDIRECT(ADDRESS(record2014,8+A62,,,"NPA")) ->  | E68: =INDIRECT(ADDRESS(record2014,8+A62+28,,,"NPA")) ->  | F68: =INDIRECT(ADDRESS(record2014,8+A62+42,,,"NPA")) ->  | G68: =IF(C68=2014,IF(E68>F67,"é",IF(F68<E67,"ê","ó")),0) ->  | H68: =IF(C68=2014,IF(E68>F66,"é",IF(F68<E66,"ê","ó")),0) ->  | I68: =IF(C68=2014,IF(E68>F65,"é",IF(F68<E65,"ê","ó")),0) ->  | J68: =IF(C68=2014,IF(E68>F64,"é",IF(F68<E64,"ê","ó")),0) ->  | K68: =IF(C68=2014,IF(E68>F63,"é",IF(F68<E63,"ê","ó")),0) ->  | L68: =IF(C68=2014,IF(E68>F62,"é",IF(F68<E62,"ê","ó")),0) -> 
A69: 10 | B69: NP10 | C69: 2008 | D69: =INDIRECT(ADDRESS(record2008,8+A69,,,"NPA")) ->  | E69: =INDIRECT(ADDRESS(record2008,8+A69+28,,,"NPA")) ->  | F69: =INDIRECT(ADDRESS(record2008,8+A69+42,,,"NPA")) -> 
B70: Bedminster and Southville | C70: 2009 | D70: =INDIRECT(ADDRESS(record2009,8+A69,,,"NPA")) ->  | E70: =INDIRECT(ADDRESS(record2009,8+A69+28,,,"NPA")) ->  | F70: =INDIRECT(ADDRESS(record2009,8+A69+42,,,"NPA")) ->  | G70: =IF(C70=2009,IF(E70>F69,"é",IF(F70<E69,"ê","ó")),0) -> 
C71: 2010 | D71: =INDIRECT(ADDRESS(record2010,8+A69,,,"NPA")) ->  | E71: =INDIRECT(ADDRESS(record2010,8+A69+28,,,"NPA")) ->  | F71: =INDIRECT(ADDRESS(record2010,8+A69+42,,,"NPA")) ->  | G71: =IF(C71=2010,IF(E71>F70,"é",IF(F71<E70,"ê","ó")),0) ->  | H71: =IF(C71=2010,IF(E71>F69,"é",IF(F71<E69,"ê","ó")),0) ->  | U71: =D71-E71 ->  | V71: =F71-D71 -> 
C72: 2011 | D72: =INDIRECT(ADDRESS(record2011,8+A69,,,"NPA")) ->  | E72: =INDIRECT(ADDRESS(record2011,8+A69+28,,,"NPA")) ->  | F72: =INDIRECT(ADDRESS(record2011,8+A69+42,,,"NPA")) ->  | G72: =IF(C72=2011,IF(E72>F71,"é",IF(F72<E71,"ê","ó")),0) ->  | H72: =IF(C72=2011,IF(E72>F70,"é",IF(F72<E70,"ê","ó")),0) ->  | I72: =IF(C72=2011,IF(E72>F69,"é",IF(F72<E69,"ê","ó")),0) -> 
C73: 2012 | D73: =INDIRECT(ADDRESS(record2012,8+A69,,,"NPA")) ->  | E73: =INDIRECT(ADDRESS(record2012,8+A69+28,,,"NPA")) ->  | F73: =INDIRECT(ADDRESS(record2012,8+A69+42,,,"NPA")) ->  | G73: =IF(C73=2012,IF(E73>F72,"é",IF(F73<E72,"ê","ó")),0) ->  | H73: =IF(C73=2012,IF(E73>F71,"é",IF(F73<E71,"ê","ó")),0) ->  | I73: =IF(C73=2012,IF(E73>F70,"é",IF(F73<E70,"ê","ó")),0) ->  | J73: =IF(C73=2012,IF(E73>F69,"é",IF(F73<E69,"ê","ó")),0) -> 
C74: 2013 | D74: =INDIRECT(ADDRESS(record2013,8+A69,,,"NPA")) ->  | E74: =INDIRECT(ADDRESS(record2013,8+A69+28,,,"NPA")) ->  | F74: =INDIRECT(ADDRESS(record2013,8+A69+42,,,"NPA")) ->  | G74: =IF(C74=2013,IF(E74>F73,"é",IF(F74<E73,"ê","ó")),0) ->  | H74: =IF(C74=2013,IF(E74>F72,"é",IF(F74<E72,"ê","ó")),0) ->  | I74: =IF(C74=2013,IF(E74>F71,"é",IF(F74<E71,"ê","ó")),0) ->  | J74: =IF(C74=2013,IF(E74>F70,"é",IF(F74<E70,"ê","ó")),0) ->  | K74: =IF(C74=2013,IF(E74>F69,"é",IF(F74<E69,"ê","ó")),0) -> 
C75: 2014 | D75: =INDIRECT(ADDRESS(record2014,8+A69,,,"NPA")) ->  | E75: =INDIRECT(ADDRESS(record2014,8+A69+28,,,"NPA")) ->  | F75: =INDIRECT(ADDRESS(record2014,8+A69+42,,,"NPA")) ->  | G75: =IF(C75=2014,IF(E75>F74,"é",IF(F75<E74,"ê","ó")),0) ->  | H75: =IF(C75=2014,IF(E75>F73,"é",IF(F75<E73,"ê","ó")),0) ->  | I75: =IF(C75=2014,IF(E75>F72,"é",IF(F75<E72,"ê","ó")),0) ->  | J75: =IF(C75=2014,IF(E75>F71,"é",IF(F75<E71,"ê","ó")),0) ->  | K75: =IF(C75=2014,IF(E75>F70,"é",IF(F75<E70,"ê","ó")),0) ->  | L75: =IF(C75=2014,IF(E75>F69,"é",IF(F75<E69,"ê","ó")),0) -> 
A76: 11 | B76: NP11 | C76: 2008 | D76: =INDIRECT(ADDRESS(record2008,8+A76,,,"NPA")) ->  | E76: =INDIRECT(ADDRESS(record2008,8+A76+28,,,"NPA")) ->  | F76: =INDIRECT(ADDRESS(record2008,8+A76+42,,,"NPA")) -> 
B77: Filwood, Knowle and Windmill Hill | C77: 2009 | D77: =INDIRECT(ADDRESS(record2009,8+A76,,,"NPA")) ->  | E77: =INDIRECT(ADDRESS(record2009,8+A76+28,,,"NPA")) ->  | F77: =INDIRECT(ADDRESS(record2009,8+A76+42,,,"NPA")) ->  | G77: =IF(C77=2009,IF(E77>F76,"é",IF(F77<E76,"ê","ó")),0) -> 
C78: 2010 | D78: =INDIRECT(ADDRESS(record2010,8+A76,,,"NPA")) ->  | E78: =INDIRECT(ADDRESS(record2010,8+A76+28,,,"NPA")) ->  | F78: =INDIRECT(ADDRESS(record2010,8+A76+42,,,"NPA")) ->  | G78: =IF(C78=2010,IF(E78>F77,"é",IF(F78<E77,"ê","ó")),0) ->  | H78: =IF(C78=2010,IF(E78>F76,"é",IF(F78<E76,"ê","ó")),0) -> 
C79: 2011 | D79: =INDIRECT(ADDRESS(record2011,8+A76,,,"NPA")) ->  | E79: =INDIRECT(ADDRESS(record2011,8+A76+28,,,"NPA")) ->  | F79: =INDIRECT(ADDRESS(record2011,8+A76+42,,,"NPA")) ->  | G79: =IF(C79=2011,IF(E79>F78,"é",IF(F79<E78,"ê","ó")),0) ->  | H79: =IF(C79=2011,IF(E79>F77,"é",IF(F79<E77,"ê","ó")),0) ->  | I79: =IF(C79=2011,IF(E79>F76,"é",IF(F79<E76,"ê","ó")),0) -> 
C80: 2012 | D80: =INDIRECT(ADDRESS(record2012,8+A76,,,"NPA")) ->  | E80: =INDIRECT(ADDRESS(record2012,8+A76+28,,,"NPA")) ->  | F80: =INDIRECT(ADDRESS(record2012,8+A76+42,,,"NPA")) ->  | G80: =IF(C80=2012,IF(E80>F79,"é",IF(F80<E79,"ê","ó")),0) ->  | H80: =IF(C80=2012,IF(E80>F78,"é",IF(F80<E78,"ê","ó")),0) ->  | I80: =IF(C80=2012,IF(E80>F77,"é",IF(F80<E77,"ê","ó")),0) ->  | J80: =IF(C80=2012,IF(E80>F76,"é",IF(F80<E76,"ê","ó")),0) -> 
C81: 2013 | D81: =INDIRECT(ADDRESS(record2013,8+A76,,,"NPA")) ->  | E81: =INDIRECT(ADDRESS(record2013,8+A76+28,,,"NPA")) ->  | F81: =INDIRECT(ADDRESS(record2013,8+A76+42,,,"NPA")) ->  | G81: =IF(C81=2013,IF(E81>F80,"é",IF(F81<E80,"ê","ó")),0) ->  | H81: =IF(C81=2013,IF(E81>F79,"é",IF(F81<E79,"ê","ó")),0) ->  | I81: =IF(C81=2013,IF(E81>F78,"é",IF(F81<E78,"ê","ó")),0) ->  | J81: =IF(C81=2013,IF(E81>F77,"é",IF(F81<E77,"ê","ó")),0) ->  | K81: =IF(C81=2013,IF(E81>F76,"é",IF(F81<E76,"ê","ó")),0) -> 
C82: 2014 | D82: =INDIRECT(ADDRESS(record2014,8+A76,,,"NPA")) ->  | E82: =INDIRECT(ADDRESS(record2014,8+A76+28,,,"NPA")) ->  | F82: =INDIRECT(ADDRESS(record2014,8+A76+42,,,"NPA")) ->  | G82: =IF(C82=2014,IF(E82>F81,"é",IF(F82<E81,"ê","ó")),0) ->  | H82: =IF(C82=2014,IF(E82>F80,"é",IF(F82<E80,"ê","ó")),0) ->  | I82: =IF(C82=2014,IF(E82>F79,"é",IF(F82<E79,"ê","ó")),0) ->  | J82: =IF(C82=2014,IF(E82>F78,"é",IF(F82<E78,"ê","ó")),0) ->  | K82: =IF(C82=2014,IF(E82>F77,"é",IF(F82<E77,"ê","ó")),0) ->  | L82: =IF(C82=2014,IF(E82>F76,"é",IF(F82<E76,"ê","ó")),0) -> 
A83: 12 | B83: NP12 | C83: 2008 | D83: =INDIRECT(ADDRESS(record2008,8+A83,,,"NPA")) ->  | E83: =INDIRECT(ADDRESS(record2008,8+A83+28,,,"NPA")) ->  | F83: =INDIRECT(ADDRESS(record2008,8+A83+42,,,"NPA")) -> 
B84: Brislington East and Brislington West | C84: 2009 | D84: =INDIRECT(ADDRESS(record2009,8+A83,,,"NPA")) ->  | E84: =INDIRECT(ADDRESS(record2009,8+A83+28,,,"NPA")) ->  | F84: =INDIRECT(ADDRESS(record2009,8+A83+42,,,"NPA")) ->  | G84: =IF(C84=2009,IF(E84>F83,"é",IF(F84<E83,"ê","ó")),0) -> 
C85: 2010 | D85: =INDIRECT(ADDRESS(record2010,8+A83,,,"NPA")) ->  | E85: =INDIRECT(ADDRESS(record2010,8+A83+28,,,"NPA")) ->  | F85: =INDIRECT(ADDRESS(record2010,8+A83+42,,,"NPA")) ->  | G85: =IF(C85=2010,IF(E85>F84,"é",IF(F85<E84,"ê","ó")),0) ->  | H85: =IF(C85=2010,IF(E85>F83,"é",IF(F85<E83,"ê","ó")),0) -> 
C86: 2011 | D86: =INDIRECT(ADDRESS(record2011,8+A83,,,"NPA")) ->  | E86: =INDIRECT(ADDRESS(record2011,8+A83+28,,,"NPA")) ->  | F86: =INDIRECT(ADDRESS(record2011,8+A83+42,,,"NPA")) ->  | G86: =IF(C86=2011,IF(E86>F85,"é",IF(F86<E85,"ê","ó")),0) ->  | H86: =IF(C86=2011,IF(E86>F84,"é",IF(F86<E84,"ê","ó")),0) ->  | I86: =IF(C86=2011,IF(E86>F83,"é",IF(F86<E83,"ê","ó")),0) -> 
C87: 2012 | D87: =INDIRECT(ADDRESS(record2012,8+A83,,,"NPA")) ->  | E87: =INDIRECT(ADDRESS(record2012,8+A83+28,,,"NPA")) ->  | F87: =INDIRECT(ADDRESS(record2012,8+A83+42,,,"NPA")) ->  | G87: =IF(C87=2012,IF(E87>F86,"é",IF(F87<E86,"ê","ó")),0) ->  | H87: =IF(C87=2012,IF(E87>F85,"é",IF(F87<E85,"ê","ó")),0) ->  | I87: =IF(C87=2012,IF(E87>F84,"é",IF(F87<E84,"ê","ó")),0) ->  | J87: =IF(C87=2012,IF(E87>F83,"é",IF(F87<E83,"ê","ó")),0) -> 
C88: 2013 | D88: =INDIRECT(ADDRESS(record2013,8+A83,,,"NPA")) ->  | E88: =INDIRECT(ADDRESS(record2013,8+A83+28,,,"NPA")) ->  | F88: =INDIRECT(ADDRESS(record2013,8+A83+42,,,"NPA")) ->  | G88: =IF(C88=2013,IF(E88>F87,"é",IF(F88<E87,"ê","ó")),0) ->  | H88: =IF(C88=2013,IF(E88>F86,"é",IF(F88<E86,"ê","ó")),0) ->  | I88: =IF(C88=2013,IF(E88>F85,"é",IF(F88<E85,"ê","ó")),0) ->  | J88: =IF(C88=2013,IF(E88>F84,"é",IF(F88<E84,"ê","ó")),0) ->  | K88: =IF(C88=2013,IF(E88>F83,"é",IF(F88<E83,"ê","ó")),0) -> 
C89: 2014 | D89: =INDIRECT(ADDRESS(record2014,8+A83,,,"NPA")) ->  | E89: =INDIRECT(ADDRESS(record2014,8+A83+28,,,"NPA")) ->  | F89: =INDIRECT(ADDRESS(record2014,8+A83+42,,,"NPA")) ->  | G89: =IF(C89=2014,IF(E89>F88,"é",IF(F89<E88,"ê","ó")),0) ->  | H89: =IF(C89=2014,IF(E89>F87,"é",IF(F89<E87,"ê","ó")),0) ->  | I89: =IF(C89=2014,IF(E89>F86,"é",IF(F89<E86,"ê","ó")),0) ->  | J89: =IF(C89=2014,IF(E89>F85,"é",IF(F89<E85,"ê","ó")),0) ->  | K89: =IF(C89=2014,IF(E89>F84,"é",IF(F89<E84,"ê","ó")),0) ->  | L89: =IF(C89=2014,IF(E89>F83,"é",IF(F89<E83,"ê","ó")),0) -> 
A90: 13 | B90: NP13 | C90: 2008 | D90: =INDIRECT(ADDRESS(record2008,8+A90,,,"NPA")) ->  | E90: =INDIRECT(ADDRESS(record2008,8+A90+28,,,"NPA")) ->  | F90: =INDIRECT(ADDRESS(record2008,8+A90+42,,,"NPA")) -> 
B91: Bishopsworth, Hartcliffe and Whitchurch Park | C91: 2009 | D91: =INDIRECT(ADDRESS(record2009,8+A90,,,"NPA")) ->  | E91: =INDIRECT(ADDRESS(record2009,8+A90+28,,,"NPA")) ->  | F91: =INDIRECT(ADDRESS(record2009,8+A90+42,,,"NPA")) ->  | G91: =IF(C91=2009,IF(E91>F90,"é",IF(F91<E90,"ê","ó")),0) -> 
C92: 2010 | D92: =INDIRECT(ADDRESS(record2010,8+A90,,,"NPA")) ->  | E92: =INDIRECT(ADDRESS(record2010,8+A90+28,,,"NPA")) ->  | F92: =INDIRECT(ADDRESS(record2010,8+A90+42,,,"NPA")) ->  | G92: =IF(C92=2010,IF(E92>F91,"é",IF(F92<E91,"ê","ó")),0) ->  | H92: =IF(C92=2010,IF(E92>F90,"é",IF(F92<E90,"ê","ó")),0) -> 
C93: 2011 | D93: =INDIRECT(ADDRESS(record2011,8+A90,,,"NPA")) ->  | E93: =INDIRECT(ADDRESS(record2011,8+A90+28,,,"NPA")) ->  | F93: =INDIRECT(ADDRESS(record2011,8+A90+42,,,"NPA")) ->  | G93: =IF(C93=2011,IF(E93>F92,"é",IF(F93<E92,"ê","ó")),0) ->  | H93: =IF(C93=2011,IF(E93>F91,"é",IF(F93<E91,"ê","ó")),0) ->  | I93: =IF(C93=2011,IF(E93>F90,"é",IF(F93<E90,"ê","ó")),0) -> 
C94: 2012 | D94: =INDIRECT(ADDRESS(record2012,8+A90,,,"NPA")) ->  | E94: =INDIRECT(ADDRESS(record2012,8+A90+28,,,"NPA")) ->  | F94: =INDIRECT(ADDRESS(record2012,8+A90+42,,,"NPA")) ->  | G94: =IF(C94=2012,IF(E94>F93,"é",IF(F94<E93,"ê","ó")),0) ->  | H94: =IF(C94=2012,IF(E94>F92,"é",IF(F94<E92,"ê","ó")),0) ->  | I94: =IF(C94=2012,IF(E94>F91,"é",IF(F94<E91,"ê","ó")),0) ->  | J94: =IF(C94=2012,IF(E94>F90,"é",IF(F94<E90,"ê","ó")),0) -> 
C95: 2013 | D95: =INDIRECT(ADDRESS(record2013,8+A90,,,"NPA")) ->  | E95: =INDIRECT(ADDRESS(record2013,8+A90+28,,,"NPA")) ->  | F95: =INDIRECT(ADDRESS(record2013,8+A90+42,,,"NPA")) ->  | G95: =IF(C95=2013,IF(E95>F94,"é",IF(F95<E94,"ê","ó")),0) ->  | H95: =IF(C95=2013,IF(E95>F93,"é",IF(F95<E93,"ê","ó")),0) ->  | I95: =IF(C95=2013,IF(E95>F92,"é",IF(F95<E92,"ê","ó")),0) ->  | J95: =IF(C95=2013,IF(E95>F91,"é",IF(F95<E91,"ê","ó")),0) ->  | K95: =IF(C95=2013,IF(E95>F90,"é",IF(F95<E90,"ê","ó")),0) -> 
C96: 2014 | D96: =INDIRECT(ADDRESS(record2014,8+A90,,,"NPA")) ->  | E96: =INDIRECT(ADDRESS(record2014,8+A90+28,,,"NPA")) ->  | F96: =INDIRECT(ADDRESS(record2014,8+A90+42,,,"NPA")) ->  | G96: =IF(C96=2014,IF(E96>F95,"é",IF(F96<E95,"ê","ó")),0) ->  | H96: =IF(C96=2014,IF(E96>F94,"é",IF(F96<E94,"ê","ó")),0) ->  | I96: =IF(C96=2014,IF(E96>F93,"é",IF(F96<E93,"ê","ó")),0) ->  | J96: =IF(C96=2014,IF(E96>F92,"é",IF(F96<E92,"ê","ó")),0) ->  | K96: =IF(C96=2014,IF(E96>F91,"é",IF(F96<E91,"ê","ó")),0) ->  | L96: =IF(C96=2014,IF(E96>F90,"é",IF(F96<E90,"ê","ó")),0) -> 
A97: 14 | B97: NP14 | C97: 2008 | D97: =INDIRECT(ADDRESS(record2008,8+A97,,,"NPA")) ->  | E97: =INDIRECT(ADDRESS(record2008,8+A97+28,,,"NPA")) ->  | F97: =INDIRECT(ADDRESS(record2008,8+A97+42,,,"NPA")) -> 
B98: Hengrove and Stockwood | C98: 2009 | D98: =INDIRECT(ADDRESS(record2009,8+A97,,,"NPA")) ->  | E98: =INDIRECT(ADDRESS(record2009,8+A97+28,,,"NPA")) ->  | F98: =INDIRECT(ADDRESS(record2009,8+A97+42,,,"NPA")) ->  | G98: =IF(C98=2009,IF(E98>F97,"é",IF(F98<E97,"ê","ó")),0) -> 
C99: 2010 | D99: =INDIRECT(ADDRESS(record2010,8+A97,,,"NPA")) ->  | E99: =INDIRECT(ADDRESS(record2010,8+A97+28,,,"NPA")) ->  | F99: =INDIRECT(ADDRESS(record2010,8+A97+42,,,"NPA")) ->  | G99: =IF(C99=2010,IF(E99>F98,"é",IF(F99<E98,"ê","ó")),0) ->  | H99: =IF(C99=2010,IF(E99>F97,"é",IF(F99<E97,"ê","ó")),0) -> 
C100: 2011 | D100: =INDIRECT(ADDRESS(record2011,8+A97,,,"NPA")) ->  | E100: =INDIRECT(ADDRESS(record2011,8+A97+28,,,"NPA")) ->  | F100: =INDIRECT(ADDRESS(record2011,8+A97+42,,,"NPA")) ->  | G100: =IF(C100=2011,IF(E100>F99,"é",IF(F100<E99,"ê","ó")),0) ->  | H100: =IF(C100=2011,IF(E100>F98,"é",IF(F100<E98,"ê","ó")),0) ->  | I100: =IF(C100=2011,IF(E100>F97,"é",IF(F100<E97,"ê","ó")),0) -> 
C101: 2012 | D101: =INDIRECT(ADDRESS(record2012,8+A97,,,"NPA")) ->  | E101: =INDIRECT(ADDRESS(record2012,8+A97+28,,,"NPA")) ->  | F101: =INDIRECT(ADDRESS(record2012,8+A97+42,,,"NPA")) ->  | G101: =IF(C101=2012,IF(E101>F100,"é",IF(F101<E100,"ê","ó")),0) ->  | H101: =IF(C101=2012,IF(E101>F99,"é",IF(F101<E99,"ê","ó")),0) ->  | I101: =IF(C101=2012,IF(E101>F98,"é",IF(F101<E98,"ê","ó")),0) ->  | J101: =IF(C101=2012,IF(E101>F97,"é",IF(F101<E97,"ê","ó")),0) -> 
C102: 2013 | D102: =INDIRECT(ADDRESS(record2013,8+A97,,,"NPA")) ->  | E102: =INDIRECT(ADDRESS(record2013,8+A97+28,,,"NPA")) ->  | F102: =INDIRECT(ADDRESS(record2013,8+A97+42,,,"NPA")) ->  | G102: =IF(C102=2013,IF(E102>F101,"é",IF(F102<E101,"ê","ó")),0) ->  | H102: =IF(C102=2013,IF(E102>F100,"é",IF(F102<E100,"ê","ó")),0) ->  | I102: =IF(C102=2013,IF(E102>F99,"é",IF(F102<E99,"ê","ó")),0) ->  | J102: =IF(C102=2013,IF(E102>F98,"é",IF(F102<E98,"ê","ó")),0) ->  | K102: =IF(C102=2013,IF(E102>F97,"é",IF(F102<E97,"ê","ó")),0) -> 
C103: 2014 | D103: =INDIRECT(ADDRESS(record2014,8+A97,,,"NPA")) ->  | E103: =INDIRECT(ADDRESS(record2014,8+A97+28,,,"NPA")) ->  | F103: =INDIRECT(ADDRESS(record2014,8+A97+42,,,"NPA")) ->  | G103: =IF(C103=2014,IF(E103>F102,"é",IF(F103<E102,"ê","ó")),0) ->  | H103: =IF(C103=2014,IF(E103>F101,"é",IF(F103<E101,"ê","ó")),0) ->  | I103: =IF(C103=2014,IF(E103>F100,"é",IF(F103<E100,"ê","ó")),0) ->  | J103: =IF(C103=2014,IF(E103>F99,"é",IF(F103<E99,"ê","ó")),0) ->  | K103: =IF(C103=2014,IF(E103>F98,"é",IF(F103<E98,"ê","ó")),0) ->  | L103: =IF(C103=2014,IF(E103>F97,"é",IF(F103<E97,"ê","ó")),0) -> 

Sheet page for report (hidden)
B1: Click here to go to Indicators | D1: Return to the instructions | H1: Go to equalities breakdown | L1: Go to ward summary | N1: Go to N P areas | R1: This page is for copying into the QOL report as it does not have the titles in the graphs.
B2: Use this page to produce the QOL report | R2: The copy page macro copies the whole page so that it can be pasted as a bitmap into Word
B3: =workings!H3 -> % respondents who think the state of repair of roads has got worse
B4: Ward | C4: % | E4: +/- | F4: lower confidence limit | G4: upper confidence limit
B5: Ashley | C5: =IF(MAX(workings!$L$9:$L$42)>5,ROUND(workings!H9,0),workings!H9) -> 26 | E5: =workings!L9 -> 9.303173987 | F5: =IF(workings!J9<0,0,workings!J9) -> 18.23935581 | G5: =IF(workings!K9>100,100,workings!K9) -> 36.36170599
B6: Avonmouth & Lawrence Weston | C6: =IF(MAX(workings!$L$9:$L$42)>5,ROUND(workings!H10,0),workings!H10) -> 39 | E6: =workings!L10 -> 10.44375674 | F6: =IF(workings!J10<0,0,workings!J10) -> 29.81813702 | G6: =IF(workings!K10>100,100,workings!K10) -> 50.02036811
B7: Bedminster | C7: =IF(MAX(workings!$L$9:$L$42)>5,ROUND(workings!H11,0),workings!H11) -> 31 | E7: =workings!L11 -> 11.1504571 | F7: =IF(workings!J11<0,0,workings!J11) -> 21.05593508 | G7: =IF(workings!K11>100,100,workings!K11) -> 42.64459115
B8: Bishopston & Ashley Down | C8: =IF(MAX(workings!$L$9:$L$42)>5,ROUND(workings!H12,0),workings!H12) -> 47 | E8: =workings!L12 -> 11.9613936 | F8: =IF(workings!J12<0,0,workings!J12) -> 35.59254797 | G8: =IF(workings!K12>100,100,workings!K12) -> 58.61809318
B9: Bishopsworth | C9: =IF(MAX(workings!$L$9:$L$42)>5,ROUND(workings!H13,0),workings!H13) -> 62 | E9: =workings!L13 -> 12.91116448 | F9: =IF(workings!J13<0,0,workings!J13) -> 48.83610546 | G9: =IF(workings!K13>100,100,workings!K13) -> 73.64926221
B10: Brislington East | C10: =IF(MAX(workings!$L$9:$L$42)>5,ROUND(workings!H14,0),workings!H14) -> 47 | E10: =workings!L14 -> 11.32171303 | F10: =IF(workings!J14<0,0,workings!J14) -> 35.78605628 | G10: =IF(workings!K14>100,100,workings!K14) -> 57.62106593
B11: Brislington West | C11: =IF(MAX(workings!$L$9:$L$42)>5,ROUND(workings!H15,0),workings!H15) -> 39 | E11: =workings!L15 -> 12.74553864 | F11: =IF(workings!J15<0,0,workings!J15) -> 27.36030141 | G11: =IF(workings!K15>100,100,workings!K15) -> 51.86167277 | V11: 25 | W11: 25 | X11: 183
B12: Central | C12: =IF(MAX(workings!$L$9:$L$42)>5,ROUND(workings!H16,0),workings!H16) -> 22 | E12: =workings!L16 -> 11.44882863 | F12: =IF(workings!J16<0,0,workings!J16) -> 12.69420385 | G12: =IF(workings!K16>100,100,workings!K16) -> 35.07182124
B13: Clifton | C13: =IF(MAX(workings!$L$9:$L$42)>5,ROUND(workings!H17,0),workings!H17) -> 32 | E13: =workings!L17 -> 13.15609496 | F13: =IF(workings!J17<0,0,workings!J17) -> 21.03279407 | G13: =IF(workings!K17>100,100,workings!K17) -> 46.35560518 | V13: 254 | W13: 211 | X13: 126
B14: Clifton Down | C14: =IF(MAX(workings!$L$9:$L$42)>5,ROUND(workings!H18,0),workings!H18) -> 26 | E14: =workings!L18 -> 12.90716325 | F14: =IF(workings!J18<0,0,workings!J18) -> 15.42260332 | G14: =IF(workings!K18>100,100,workings!K18) -> 40.42666977
B15: Cotham | C15: =IF(MAX(workings!$L$9:$L$42)>5,ROUND(workings!H19,0),workings!H19) -> 24 | E15: =workings!L19 -> 11.75330539 | F15: =IF(workings!J19<0,0,workings!J19) -> 14.32373914 | G15: =IF(workings!K19>100,100,workings!K19) -> 37.20419763 | V15: 154 | W15: 183 | X15: 41
B16: Easton | C16: =IF(MAX(workings!$L$9:$L$42)>5,ROUND(workings!H20,0),workings!H20) -> 31 | E16: =workings!L20 -> 9.408419112 | F16: =IF(workings!J20<0,0,workings!J20) -> 22.95134023 | G16: =IF(workings!K20>100,100,workings!K20) -> 41.22793488
B17: Eastville | C17: =IF(MAX(workings!$L$9:$L$42)>5,ROUND(workings!H21,0),workings!H21) -> 34 | E17: =workings!L21 -> 10.42820375 | F17: =IF(workings!J21<0,0,workings!J21) -> 24.86687422 | G17: =IF(workings!K21>100,100,workings!K21) -> 45.06214617 | V17: 197 | W17: 87 | X17: 13
B18: Filwood | C18: =IF(MAX(workings!$L$9:$L$42)>5,ROUND(workings!H22,0),workings!H22) -> 45 | E18: =workings!L22 -> 11.31045735 | F18: =IF(workings!J22<0,0,workings!J22) -> 34.38148038 | G18: =IF(workings!K22>100,100,workings!K22) -> 56.19724536
B19: Frome Vale | C19: =IF(MAX(workings!$L$9:$L$42)>5,ROUND(workings!H23,0),workings!H23) -> 38 | E19: =workings!L23 -> 12.326396 | F19: =IF(workings!J23<0,0,workings!J23) -> 27.01808612 | G19: =IF(workings!K23>100,100,workings!K23) -> 50.74710324 | V19: 94 | W19: 33 | X19: 2
B20: Hartcliffe & Withywood | C20: =IF(MAX(workings!$L$9:$L$42)>5,ROUND(workings!H24,0),workings!H24) -> 54 | E20: =workings!L24 -> 11.0062219 | F20: =IF(workings!J24<0,0,workings!J24) -> 43.09836996 | G20: =IF(workings!K24>100,100,workings!K24) -> 64.34399238
B21: Henbury & Brentry | C21: =IF(MAX(workings!$L$9:$L$42)>5,ROUND(workings!H25,0),workings!H25) -> 36 | E21: =workings!L25 -> 10.5688318 | F21: =IF(workings!J25<0,0,workings!J25) -> 26.26625954 | G21: =IF(workings!K25>100,100,workings!K25) -> 46.71831518
B22: Hengrove & Whitchurch Park | C22: =IF(MAX(workings!$L$9:$L$42)>5,ROUND(workings!H26,0),workings!H26) -> 55 | E22: =workings!L26 -> 10.98602949 | F22: =IF(workings!J26<0,0,workings!J26) -> 44.17895675 | G22: =IF(workings!K26>100,100,workings!K26) -> 65.38807271
B23: Hillfields | C23: =IF(MAX(workings!$L$9:$L$42)>5,ROUND(workings!H27,0),workings!H27) -> 36 | E23: =workings!L27 -> 11.67039719 | F23: =IF(workings!J27<0,0,workings!J27) -> 25.87044942 | G23: =IF(workings!K27>100,100,workings!K27) -> 48.38801319
B24: Horfield | C24: =IF(MAX(workings!$L$9:$L$42)>5,ROUND(workings!H28,0),workings!H28) -> 43 | E24: =workings!L28 -> 13.32952132 | F24: =IF(workings!J28<0,0,workings!J28) -> 30.26871832 | G24: =IF(workings!K28>100,100,workings!K28) -> 55.82877189
B25: Hotwells & Harbourside | C25: =IF(MAX(workings!$L$9:$L$42)>5,ROUND(workings!H29,0),workings!H29) -> 33 | E25: =workings!L29 -> 13.29781012 | F25: =IF(workings!J29<0,0,workings!J29) -> 21.51702908 | G25: =IF(workings!K29>100,100,workings!K29) -> 47.09321455 | R25: `
B26: Knowle | C26: =IF(MAX(workings!$L$9:$L$42)>5,ROUND(workings!H30,0),workings!H30) -> 58 | E26: =workings!L30 -> 10.94347946 | F26: =IF(workings!J30<0,0,workings!J30) -> 47.38142644 | G26: =IF(workings!K30>100,100,workings!K30) -> 68.51695764
B27: Lawrence Hill | C27: =IF(MAX(workings!$L$9:$L$42)>5,ROUND(workings!H31,0),workings!H31) -> 30 | E27: =workings!L31 -> 9.774240802 | F27: =IF(workings!J31<0,0,workings!J31) -> 21.20784137 | G27: =IF(workings!K31>100,100,workings!K31) -> 40.19406675
B28: Lockleaze | C28: =IF(MAX(workings!$L$9:$L$42)>5,ROUND(workings!H32,0),workings!H32) -> 42 | E28: =workings!L32 -> 11.70012228 | F28: =IF(workings!J32<0,0,workings!J32) -> 30.89963572 | G28: =IF(workings!K32>100,100,workings!K32) -> 53.4492131
B29: Redland | C29: =IF(MAX(workings!$L$9:$L$42)>5,ROUND(workings!H33,0),workings!H33) -> 38 | E29: =workings!L33 -> 9.976270979 | F29: =IF(workings!J33<0,0,workings!J33) -> 28.52343458 | G29: =IF(workings!K33>100,100,workings!K33) -> 47.84863102
B30: St George Central | C30: =IF(MAX(workings!$L$9:$L$42)>5,ROUND(workings!H34,0),workings!H34) -> 50 | E30: =workings!L34 -> 10.56464572 | F30: =IF(workings!J34<0,0,workings!J34) -> 39.93505883 | G30: =IF(workings!K34>100,100,workings!K34) -> 60.35081048
B31: St George Troopers Hill | C31: =IF(MAX(workings!$L$9:$L$42)>5,ROUND(workings!H35,0),workings!H35) -> 40 | E31: =workings!L35 -> 16.39437676 | F31: =IF(workings!J35<0,0,workings!J35) -> 25.08734378 | G31: =IF(workings!K35>100,100,workings!K35) -> 56.20538441
B32: St George West | C32: =IF(MAX(workings!$L$9:$L$42)>5,ROUND(workings!H36,0),workings!H36) -> 56 | E32: =workings!L36 -> 11.12244516 | F32: =IF(workings!J36<0,0,workings!J36) -> 44.53322931 | G32: =IF(workings!K36>100,100,workings!K36) -> 65.99841253
B33: Southmead | C33: =IF(MAX(workings!$L$9:$L$42)>5,ROUND(workings!H37,0),workings!H37) -> 48 | E33: =workings!L37 -> 12.29323683 | F33: =IF(workings!J37<0,0,workings!J37) -> 36.18062257 | G33: =IF(workings!K37>100,100,workings!K37) -> 59.82044351
B34: Southville | C34: =IF(MAX(workings!$L$9:$L$42)>5,ROUND(workings!H38,0),workings!H38) -> 40 | E34: =workings!L38 -> 10.3875625 | F34: =IF(workings!J38<0,0,workings!J38) -> 30.27668141 | G34: =IF(workings!K38>100,100,workings!K38) -> 50.37182108
B35: Stockwood | C35: =IF(MAX(workings!$L$9:$L$42)>5,ROUND(workings!H39,0),workings!H39) -> 52 | E35: =workings!L39 -> 16.98599955 | F35: =IF(workings!J39<0,0,workings!J39) -> 36.02473846 | G35: =IF(workings!K39>100,100,workings!K39) -> 68.14174337
B36: Stoke Bishop | C36: =IF(MAX(workings!$L$9:$L$42)>5,ROUND(workings!H40,0),workings!H40) -> 32 | E36: =workings!L40 -> 10.11336342 | F36: =IF(workings!J40<0,0,workings!J40) -> 23.1528897 | G36: =IF(workings!K40>100,100,workings!K40) -> 42.76546033
B37: Westbury-on-Trym & Henleaze | C37: =IF(MAX(workings!$L$9:$L$42)>5,ROUND(workings!H41,0),workings!H41) -> 43 | E37: =workings!L41 -> 7.612297024 | F37: =IF(workings!J41<0,0,workings!J41) -> 35.74136163 | G37: =IF(workings!K41>100,100,workings!K41) -> 50.55396581
B38: Windmill Hill | C38: =IF(MAX(workings!$L$9:$L$42)>5,ROUND(workings!H42,0),workings!H42) -> 50 | E38: =workings!L42 -> 11.83585482 | F38: =IF(workings!J42<0,0,workings!J42) -> 38.46024314 | G38: =IF(workings!K42>100,100,workings!K42) -> 61.25114321
B40: BRISTOL | C40: =IF(E40>5,ROUND(VLOOKUP(workings!$H$1,Indicators!$A$2:$K$774,9,FALSE),0),ROUND(VLOOKUP(workings!$H$1,Indicators!$A$2:$K$774,9,FALSE),1)) -> 40.1 | E40: =VLOOKUP(workings!$H$1,Indicators!$A$2:$O$774,13,FALSE) -> 2 | F40: =VLOOKUP(workings!$H$1,Indicators!$A$2:$O$774,11,FALSE) -> 38.2 | G40: =VLOOKUP(workings!$H$1,Indicators!$A$2:$O$774,12,FALSE) -> 42.1
B41: Question number | F41: =workings!H5 -> rQ3c
B42: Sample size | F42: =(workings!$H$8) -> 3523 | S42: All
B43: Year | F43: =(workings!$H$4) -> 2015 | S43: Priority neighbourhoods
B44: Priority neighbourhoods | C44: =IF(E44>5,ROUND(VLOOKUP(workings!$H$1,nra!$A$2:$O$2898,9,FALSE),0),ROUND(VLOOKUP(workings!$H$1,nra!$A$2:$O$2898,9,FALSE),1)) -> 40.4 | E44: =VLOOKUP(workings!$H$1,nra!$A$2:$O$2898,13,FALSE) -> 4.474579087 | F44: =VLOOKUP(workings!$H$1,nra!$A$2:$O$2898,11,FALSE) -> 36.03442615 | G44: =VLOOKUP(workings!$H$1,nra!$A$2:$O$2898,12,FALSE) -> 44.98358432 | S44: Older people
B45: Older people | C45: =IF(E45>5,ROUND(VLOOKUP(workings!$H$1,older50!$A$2:$O$2898,9,FALSE),0),ROUND(VLOOKUP(workings!$H$1,older50!$A$2:$O$2898,9,FALSE),1)) -> 47.9 | E45: =VLOOKUP(workings!$H$1,older50!$A$2:$O$2898,13,FALSE) -> 2.3 | F45: =VLOOKUP(workings!$H$1,older50!$A$2:$O$2898,11,FALSE) -> 45.6 | G45: =VLOOKUP(workings!$H$1,older50!$A$2:$O$2898,12,FALSE) -> 50.1 | S45: Disabled people
B46: Disabled people | C46: =IF(E46>5,ROUND(VLOOKUP(workings!$H$1,disabled!$A$2:$O$2898,9,FALSE),0),ROUND(VLOOKUP(workings!$H$1,disabled!$A$2:$O$2898,9,FALSE),1)) -> 51 | E46: =VLOOKUP(workings!$H$1,disabled!$A$2:$O$2898,13,FALSE) -> 5.5 | F46: =VLOOKUP(workings!$H$1,disabled!$A$2:$O$2898,11,FALSE) -> 45.42430359 | G46: =VLOOKUP(workings!$H$1,disabled!$A$2:$O$2898,12,FALSE) -> 56.38250423 | S46: BME
B47: BME | C47: =IF(E47>5,ROUND(VLOOKUP(workings!$H$1,bme!$A$2:$O$2898,9,FALSE),0),ROUND(VLOOKUP(workings!$H$1,bme!$A$2:$O$2898,9,FALSE),1)) -> 24 | E47: =VLOOKUP(workings!$H$1,bme!$A$2:$O$2898,13,FALSE) -> 6.3 | F47: =VLOOKUP(workings!$H$1,bme!$A$2:$O$2898,11,FALSE) -> 18.4257152 | G47: =VLOOKUP(workings!$H$1,bme!$A$2:$O$2898,12,FALSE) -> 31.08621126 | S47: Carer
B48: Carer | C48: =IF(E48>5,ROUND(VLOOKUP(workings!$H$1,carer!$A$2:$O$2896,9,FALSE),0),ROUND(VLOOKUP(workings!$H$1,carer!$A$2:$O$2896,9,FALSE),1)) -> 50 | E48: =VLOOKUP(workings!$H$1,carer!$A$2:$O$2896,13,FALSE) -> 8.265674661 | F48: =VLOOKUP(workings!$H$1,carer!$A$2:$O$2896,11,FALSE) -> 45.58167901 | G48: =VLOOKUP(workings!$H$1,carer!$A$2:$O$2896,12,FALSE) -> 53.84735367 | S48: LGBT
B49: LGBT | C49: =IF(E49>5,ROUND(VLOOKUP(workings!$H$1,lgb!$A$2:$O$2898,9,FALSE),0),ROUND(VLOOKUP(workings!$H$1,lgb!$A$2:$O$2898,9,FALSE),1)) -> 51 | E49: =VLOOKUP(workings!$H$1,lgb!$A$2:$O$2898,13,FALSE) -> 10.37746994 | F49: =VLOOKUP(workings!$H$1,lgb!$A$2:$O$2898,11,FALSE) -> 40.36088069 | G49: =VLOOKUP(workings!$H$1,lgb!$A$2:$O$2898,12,FALSE) -> 61.11582057 | S49: Male
B50: Male | C50: =IF(E50>5,ROUND(VLOOKUP(workings!$H$1,sex!$A$2:$O$2898,9,FALSE),0),ROUND(VLOOKUP(workings!$H$1,sex!$A$2:$O$2898,9,FALSE),1)) -> 42.6 | E50: =VLOOKUP(workings!$H$1,sex!$A$2:$R$2898,13,FALSE) -> 3.121409908 | F50: =VLOOKUP(workings!$H$1,sex!$A$2:$R$2898,11,FALSE) -> 39.49637885 | G50: =VLOOKUP(workings!$H$1,sex!$A$2:$R$2898,12,FALSE) -> 45.73919867 | S50: Female
B51: Female | C51: =IF(E51>5,ROUND(VLOOKUP(workings!$H$1,sex!$A$2:$O$2898,14,FALSE),0),ROUND(VLOOKUP(workings!$H$1,sex!$A$2:$O$2898,14,FALSE),1)) -> 37.7 | E51: =VLOOKUP(workings!$H$1,sex!$A$2:$R$2898,18,FALSE) -> 2.377965762 | F51: =VLOOKUP(workings!$H$1,sex!$A$2:$R$2898,16,FALSE) -> 35.34246509 | G51: =VLOOKUP(workings!$H$1,sex!$A$2:$R$2898,17,FALSE) -> 40.09839661 | S51: Christian
B52: Christian | C52: =IF(E52>5,ROUND(VLOOKUP(workings!$H$1,faith!$A$2:$O$2898,11,FALSE),0),(VLOOKUP(workings!$H$1,faith!$A$2:$O$2898,11,FALSE))) -> 43.63688641 | E52: =VLOOKUP(workings!$H$1,faith!$A$2:$AU$2898,43,FALSE) -> 0 | F52: =VLOOKUP(workings!$H$1,faith!$A$2:$AU$2898,27,FALSE) -> 41.2374916 | G52: =VLOOKUP(workings!$H$1,faith!$A$2:$AU$2898,35,FALSE) -> 46.0664446 | S52: Muslim
B53: Muslim | C53: =IF(E53>5,ROUND(VLOOKUP(workings!$H$1,faith!$A$2:$O$2898,14,FALSE),0),(VLOOKUP(workings!$H$1,faith!$A$2:$O$2898,14,FALSE))) -> 22.46596633 | E53: =VLOOKUP(workings!$H$1,faith!$A$2:$AU$2898,46,FALSE) -> 0 | F53: =VLOOKUP(workings!$H$1,faith!$A$2:$AU$2898,30,FALSE) -> 11.21438566 | G53: =VLOOKUP(workings!$H$1,faith!$A$2:$AU$2898,38,FALSE) -> 39.92949677 | S53: No faith
B54: No faith | C54: =IF(E54>5,ROUND(VLOOKUP(workings!$H$1,faith!$A$2:$O$2898,9,FALSE),0),(VLOOKUP(workings!$H$1,faith!$A$2:$O$2898,9,FALSE))) -> 43.00315535 | E54: =VLOOKUP(workings!$H$1,faith!$A$2:$AU$2898,41,FALSE) -> 0 | F54: =VLOOKUP(workings!$H$1,faith!$A$2:$AU$2898,25,FALSE) -> 40.37234625 | G54: =VLOOKUP(workings!$H$1,faith!$A$2:$AU$2898,33,FALSE) -> 45.6740818

Sheet older50 (hidden)
C2: title | D2: year | E2: no | F2: filename | G2: criterion | H2: obs | I2: Proportion | J2: Std. Err. | K2: lower conf | L2: upper conf | M2: +/-
A3: 0 | C3: x | E3: x | F3: x | G3: x | H3: x | I3: x | J3: x | K3: x | L3: x | M3: x
A4: 1 | C4: =Indicators!#REF! ->  | D4: 2005 | E4: 13 | F4: q13a - dog fouling qol2005 | G4: problem | H4: 6265 | I4: 72.1 | J4: 0.9 | K4: 70.4 | L4: 73.8 | M4: 1.7
A5: 2 | C5: =Indicators!#REF! ->  | D5: 2005 | E5: 13 | F5: q13b - street litter qol2005 | G5: problem | H5: 6431 | I5: 79.8 | J5: 0.8 | K5: 78.3 | L5: 81.3 | M5: 1.5
A6: 3 | C6: =Indicators!#REF! ->  | D6: 2005 | E6: 13 | F6: q13c - graffitti qol2005 | G6: problem | H6: 6067 | I6: 50.1 | J6: 1 | K6: 48.2 | L6: 52 | M6: 1.9
A7: 4 | C7: =Indicators!#REF! ->  | D7: 2005 | E7: 13 | F7: q13e - state of local river or stream qol2005 | G7: problem | H7: 3521 | I7: 50.6 | J7: 1.3 | K7: 48.1 | L7: 53.2 | M7: 2.5
A8: 5 | C8: =Indicators!#REF! ->  | D8: 2005 | E8: 13 | F8: q13g - air quality and traffic pollution qol2005 | G8: problem | H8: 5896 | I8: 69.2 | J8: 0.9 | K8: 67.4 | L8: 70.9 | M8: 1.8
A9: 6 | C9: =Indicators!#REF! ->  | D9: 2005 | E9: 13h | I9: 67.1 | K9: 65.3 | L9: 68.8 | M9: 1.7
A10: 7 | C10: =Indicators!#REF! ->  | D10: 2005 | E10: 13 | F10: q13i - neglected or derelict buildings or land qol2005 | G10: problem | H10: 5241 | I10: 34.8 | J10: 1 | K10: 32.8 | L10: 36.7 | M10: 2
A11: 8 | C11: =Indicators!#REF! ->  | D11: 2005 | E11: 13 | F11: q13j - insensitive development qol2005 | G11: problem | H11: 4910 | I11: 40.8 | J11: 1.1 | K11: 38.6 | L11: 42.9 | M11: 2.2
A12: 9 | C12: =Indicators!#REF! ->  | D12: 2005 | E12: 13 | F12: q13k - vandalism qol2005 | G12: problem | H12: 5997 | I12: 69.8 | J12: 0.9 | K12: 68.1 | L12: 71.6 | M12: 1.7
A13: 10 | C13: =Indicators!#REF! ->  | D13: 2005 | E13: 13 | F13: q13l - your own personal safety qol2005 | G13: problem | H13: 6140 | I13: 45.2 | J13: 0.9 | K13: 43.3 | L13: 47 | M13: 1.9
A14: 11 | C14: =Indicators!#REF! ->  | D14: 2005 | E14: 14 | F14: q14a - road traffic noise qol2005 | G14: problem | H14: 6289 | I14: 48.7 | J14: 1 | K14: 46.8 | L14: 50.6 | M14: 1.9
A15: 12 | C15: =Indicators!#REF! ->  | D15: 2005 | E15: 14 | F15: q14f - neighbours noise qol2005 | G15: problem | H15: 6164 | I15: 25.5 | J15: 0.8 | K15: 23.9 | L15: 27.2 | M15: 1.6
A16: 13 | C16: =Indicators!#REF! ->  | D16: 2005 | E16: 14 | F16: q14h - fireworks noise qol2005 | G16: problem | H16: 6111 | I16: 52.8 | J16: 1 | K16: 50.9 | L16: 54.7 | M16: 1.9
A17: 14 | C17: =Indicators!#REF! ->  | D17: 2005 | E17: 17 | F17: q17b - satisfied with availability and cost of housing | G17: satisfied | H17: 4708 | I17: 41.8 | J17: 1.2 | K17: 39.4 | L17: 44.1 | M17: 2.4
A18: 15 | C18: =Indicators!#REF! ->  | D18: 2005 | E18: 17 | F18: q17d - satisfied with appearance of streets, public spaces | G18: satisfied | H18: 6230 | I18: 53.3 | J18: 0.9 | K18: 51.5 | L18: 55.2 | M18: 1.8
A19: 16 | C19: =Indicators!#REF! ->  | D19: 2005 | E19: 17 | F19: q17c - satisfied with jobs | G19: satisfied | H19: 3896 | I19: 30.3 | J19: 1.3 | K19: 27.7 | L19: 32.9 | M19: 2.6
A20: 17 | C20: =Indicators!#REF! ->  | D20: 2005 | E20: 17 | F20: q17e - satisfied with appearance of new buildings | G20: satisfied | H20: 5158 | I20: 54.3 | J20: 1.1 | K20: 52.1 | L20: 56.5 | M20: 2.2
A21: 18 | C21: =Indicators!#REF! ->  | D21: 2005 | E21: 17 | F21: q17f - satisfied with social services | G21: satisfied | H21: 4111 | I21: 52.8 | J21: 1.2 | K21: 50.5 | L21: 55.1 | M21: 2.3
A22: 19 | C22: =Indicators!#REF! ->  | D22: 2005 | E22: 17 | F22: q17g - satisfied with health services | G22: satisfied | H22: 6085 | I22: 77.9 | J22: 0.8 | K22: 76.4 | L22: 79.5 | M22: 1.5
A23: 20 | C23: =Indicators!#REF! ->  | D23: 2005 | E23: 17 | F23: q17m - satisfied with academic standard of schools | G23: satisfied | H23: 3662 | I23: 55.2 | J23: 1.4 | K23: 52.5 | L23: 58 | M23: 2.7
A24: 21 | C24: =Indicators!#REF! ->  | D24: 2005 | E24: 17 | I24: 72.72347 | K24: 71.06233 | L24: 74.38462 | M24: 1.66115
A25: 22 | C25: =Indicators!#REF! ->  | D25: 2005 | E25: 17 | I25: 71.9 | K25: 70.2 | L25: 73.6 | M25: 1.7
A26: 23 | C26: =Indicators!#REF! ->  | D26: 2005 | E26: 17 | I26: 58.8 | K26: 56.5 | L26: 61.1 | M26: 2.3
A27: 24 | C27: =Indicators!#REF! ->  | D27: 2005 | E27: 17 | I27: 20.5 | K27: 18.8 | L27: 22.2 | M27: 1.7
A28: 25 | C28: =Indicators!#REF! ->  | D28: 2005 | E28: 17 | I28: 53.92 | K28: 52 | L28: 55.84 | M28: 1.92
A29: 26 | C29: =Indicators!#REF! ->  | D29: 2005 | E29: 18 | F29: q18 - events attended in Bristol | G29: _prop_2 | H29: 6472 | I29: 39.2 | J29: 0.9 | K29: 37.4 | L29: 41 | M29: 1.8
A30: 27 | C30: =Indicators!#REF! ->  | D30: 2005 | E30: 19 | F30: q19 - satisfaction with outdoor events | G30: satisfied | H30: 6464 | I30: 68.3 | J30: 0.9 | K30: 66.6 | L30: 70 | M30: 1.7
A31: 28 | C31: =Indicators!#REF! ->  | D31: 2005 | E31: 2 | F31: q2 - satisfied with local area | G31: satisfied | H31: 6226 | I31: 77.1 | J31: 0.8 | K31: 75.6 | L31: 78.6 | M31: 1.5
A32: 29 | C32: =Indicators!#REF! ->  | D32: 2005 | E32: 22 | F32: q22 - participation in active sport | G32: _prop_2 | H32: 6408 | I32: 30.4 | J32: 0.9 | K32: 28.7 | L32: 32.1 | M32: 1.7
A33: 30 | C33: =Indicators!#REF! ->  | D33: 2005 | E33: 23 | F33: q23 - exercise at least 5 times a week | G33: yes | H33: 6484 | I33: 34.7 | J33: 0.9 | K33: 33 | L33: 36.5 | M33: 1.7
A34: 31 | C34: =Indicators!#REF! ->  | D34: 2005 | E34: xxx | I34: 47.06949 | K34: 46.09769 | L34: 48.04128 | M34: 1
A35: 32 | C35: =Indicators!#REF! ->  | D35: 2005 | E35: 24 | I35: 65.6 | K35: 63 | L35: 68.1 | M35: 2.5
A36: 33 | C36: =Indicators!#REF! ->  | D36: 2005 | E36: 24 | I36: 58.8 | K36: 56.1 | L36: 61.4 | M36: 2.6
A37: 34 | C37: =Indicators!#REF! ->  | D37: 2005 | E37: 24 | I37: 6.8 | K37: 5.4 | L37: 8.2 | M37: 1.4
A38: 35 | C38: =Indicators!#REF! ->  | D38: 2005 | E38: 24 | I38: 2.3 | K38: 1.5 | L38: 3 | M38: 0.7
A39: 36 | C39: =Indicators!#REF! ->  | D39: 2005 | E39: 24 | I39: 14.7 | K39: 12.8 | L39: 16.6 | M39: 1.9
A40: 37 | C40: =Indicators!#REF! ->  | D40: 2005 | E40: 24 | I40: 0.7 | K40: 0.2 | L40: 1.1 | M40: 0.4
A41: 38 | C41: =Indicators!#REF! ->  | D41: 2005 | E41: 24 | I41: 1.2 | K41: 0.6 | L41: 1.8 | M41: 0.6
A42: 39 | C42: =Indicators!#REF! ->  | D42: 2005 | E42: 24 | I42: 0.5 | K42: 0.1 | L42: 1 | M42: 0.5
A43: 40 | C43: =Indicators!#REF! ->  | D43: 2005 | E43: 24 | I43: 12 | K43: 10.3 | L43: 13.7 | M43: 1.7
A44: 41 | C44: =Indicators!#REF! ->  | D44: 2005 | E44: 24 | I44: 17 | K44: 14.9 | L44: 19 | M44: 2
A45: 42 | C45: =Indicators!#REF! ->  | D45: 2005 | E45: 24 | I45: 3.1 | K45: 2.2 | L45: 4.1 | M45: 1
A46: 43 | C46: =Indicators!#REF! ->  | D46: 2005 | E46: 3 | F46: q3 - neighbourhood better or worse over past 2 years | G46: better | H46: 6237 | I46: 10.1 | J46: 0.6 | K46: 9 | L46: 11.2 | M46: 1.1
A47: 44 | C47: =Indicators!#REF! ->  | D47: 2005 | E47: 3 | F47: q3 - neighbourhood better or worse over past 2 years | G47: worse | H47: 6237 | I47: 31.2 | J47: 0.9 | K47: 29.5 | L47: 32.9 | M47: 1.7
A48: 45 | C48: =Indicators!#REF! ->  | D48: 2005 | E48: 34 | F48: q34 - electricity with green tariff | G48: yes | H48: 6335 | I48: 5 | J48: 0.4 | K48: 4.2 | L48: 5.8 | M48: 0.8
A49: 46 | C49: =Indicators!#REF! ->  | D49: 2005 | E49: 37 | G49: no | I49: 8.4 | J49: 0.5 | K49: 7.3 | L49: 9.4 | M49: 1
A50: 47 | C50: =Indicators!#REF! ->  | D50: 2005 | E50: 37 | F50: q37a - loft insulation qol2005 | G50: yes | H50: 6363 | I50: 79.6 | J50: 0.7 | K50: 78.1 | L50: 81 | M50: 1.5
A51: 48 | C51: =Indicators!#REF! ->  | D51: 2005 | E51: 37 | F51: q37b - cavity wall insulation qol2005 | G51: yes | H51: 5861 | I51: 32.4 | J51: 0.9 | K51: 30.7 | L51: 34.2 | M51: 1.7
A52: 49 | C52: =Indicators!#REF! ->  | D52: 2005 | E52: 38 | F52: q38d - purchase locally grown food | G52: usually | H52: 6002 | I52: 39.9 | J52: 1 | K52: 38 | L52: 41.8 | M52: 1.9
A53: 50 | C53: =Indicators!#REF! ->  | D53: 2005 | E53: 38 | F53: q38f - energy efficient light bulbs qol2005 | G53: usually | H53: 6292 | I53: 57.1 | J53: 0.9 | K53: 55.3 | L53: 59 | M53: 1.8
A54: 51 | C54: =Indicators!#REF! ->  | D54: 2005 | E54: 43 | F54: q43 - Happiness | G54: happy | H54: 6540 | I54: 90.9 | J54: 0.5 | K54: 89.9 | L54: 91.9 | M54: 1
A55: 52 | C55: =Indicators!#REF! ->  | D55: 2005 | E55: 44 | F55: q44 - mean life satisfaction | G55: q44 | H55: 6464 | I55: 7.522476 | J55: 0.0371124 | K55: 7.449723 | L55: 7.59523 | M55: 0.072754
A56: 53 | C56: =Indicators!#REF! ->  | D56: 2005 | E56: 44 | F56: q44 - percent satisfied with life | G56: satisfied | H56: 6464 | I56: 74.8 | J56: 0.8 | K56: 73.2 | L56: 76.3 | M56: 1.6
A57: 54 | C57: =Indicators!#REF! ->  | D57: 2005 | E57: 46 | F57: q46 - limiting long-term illness qol2005 | G57: yes | H57: 6525 | I57: 46.5 | J57: 0.9 | K57: 44.7 | L57: 48.3 | M57: 1.8
A58: 55 | C58: =Indicators!#REF! ->  | D58: 2005 | E58: 48 | F58: q48 - general health past 12 months | G58: good | H58: 6577 | I58: 83.1 | K58: 81.8 | L58: 84.4 | M58: 1.3
A59: 56 | C59: =Indicators!#REF! ->  | D59: 2005 | E59: 49 | F59: q49a - someone in household smokes | G59: yes | H59: 6560 | I59: 25.4 | J59: 0.8 | K59: 23.8 | L59: 26.9 | M59: 1.6
A60: 57 | C60: =Indicators!#REF! ->  | D60: 2005 | E60: 49 | F60: q49ai - I smoke | G60: yes | H60: 6560 | I60: 15.7 | J60: 0.6 | K60: 14.4 | L60: 17 | M60: 1.3
A61: 58 | C61: =Indicators!#REF! ->  | D61: 2005 | E61: 49 | F61: q49b - households with someone who smokes regularly within the home | G61: yes | H61: 6360 | I61: 16.3 | J61: 0.7 | K61: 15 | L61: 17.6 | M61: 1.3
A62: 59 | C62: =Indicators!#REF! ->  | D62: 2005 | E62: 4 | I62: 88.9 | K62: 87.8 | L62: 90 | M62: 1.1
A63: 60 | C63: =Indicators!#REF! ->  | D63: 2005 | E63: 4 | I63: 87.8 | K63: 86.7 | L63: 89 | M63: 1.2
A64: 61 | C64: =Indicators!#REF! ->  | D64: 2005 | E64: 4 | I64: 83.3 | K64: 82 | L64: 84.7 | M64: 1.4
A65: 62 | C65: =Indicators!#REF! ->  | D65: 2005 | E65: 4 | I65: 86.6 | K65: 85.3 | L65: 87.8 | M65: 1.2
A66: 63 | C66: =Indicators!#REF! ->  | D66: 2005 | E66: 4 | I66: 77.8 | K66: 75.9 | L66: 79.6 | M66: 1.8
A67: 64 | C67: =Indicators!#REF! ->  | D67: 2005 | E67: 4 | I67: 59.75 | K67: 57.57 | L67: 61.93 | M67: 2.18
A68: 65 | C68: =Indicators!#REF! ->  | D68: 2005 | E68: 4 | I68: 53 | K68: 51.2 | L68: 54.9 | M68: 1.9
A69: 66 | C69: =Indicators!#REF! ->  | D69: 2005 | E69: 4 | I69: 62.9 | K69: 60.2 | L69: 65.7 | M69: 2.8
A70: 67 | C70: =Indicators!#REF! ->  | D70: 2005 | E70: 4 | F70: q4d - easy access to doctor | G70: easy | H70: 6421 | I70: 85.9 | J70: 0.6 | K70: 84.6 | L70: 87.1 | M70: 1.3
A71: 68 | C71: =Indicators!#REF! ->  | D71: 2005 | E71: 4 | F71: q4e - easy access to hospital | G71: easy | H71: 6324 | I71: 59.8 | J71: 0.9 | K71: 58.1 | L71: 61.6 | M71: 1.7
A72: 69 | C72: =Indicators!#REF! ->  | D72: 2005 | E72: 4 | F72: q4h - easy access to sports or leisure centre | G72: easy | H72: 5444 | I72: 62.2 | J72: 1 | K72: 60.1 | L72: 64.2 | M72: 2.1
A73: 70 | C73: =Indicators!#REF! ->  | D73: 2005 | E73: 4 | F73: q4l - easy access to childcare | G73: easy | H73: 2163 | I73: 52.6 | J73: 2 | K73: 48.6 | L73: 56.5 | M73: 4
A74: 71 | C74: =Indicators!#REF! ->  | D74: 2005 | E74: 4 | F74: q4m - easy access to local employment | G74: easy | H74: 3927 | I74: 64.5 | J74: 1.4 | K74: 61.8 | L74: 67.3 | M74: 2.7
A75: 72 | C75: =Indicators!#REF! ->  | D75: 2005 | E75: 51 | F75: q51 - overall sleep quality past month | G75: _prop_1 | H75: 6556 | I75: 76.4 | J75: 1.6 | K75: 73.2 | L75: 79.4 | M75: 3.2
A76: 73 | C76: =Indicators!#REF! ->  | D76: 2005 | E76: 53 | F76: q53 - eat at least 5 portions of fruit and veg | G76: _prop_2 | H76: 6390 | I76: 53 | J76: 0.9 | K76: 51.2 | L76: 54.8 | M76: 1.8
A77: 74 | C77: =Indicators!#REF! ->  | D77: 2005 | E77: 54 | F77: q54 - obese qol2005 | G77: Obese | H77: 5400 | I77: 16.5 | J77: 0.7 | K77: 15.1 | L77: 18 | M77: 1.4
A78: 75 | C78: =Indicators!#REF! ->  | D78: 2005 | E78: 54 | F78: q54 - overweight qol2005 | G78: _prop_2 | H78: 5400 | I78: 55.4 | J78: 1 | K78: 53.4 | L78: 57.3 | M78: 2
A79: 76 | C79: =Indicators!#REF! ->  | D79: 2005 | E79: 55 | F79: q55a - housing status qol2005 | G79: _prop_1 | H79: 6569 | I79: 78.3 | J79: 0.7 | K79: 76.9 | L79: 79.8 | M79: 1.4
A80: 77 | C80: =Indicators!#REF! ->  | D80: 2005 | E80: 56 | F80: q56 - adults with no qualifications | G80: _prop_2 | H80: 6250 | I80: 47.4 | J80: 0.9 | K80: 45.6 | L80: 49.2 | M80: 1.8
A81: 78 | C81: =Indicators!#REF! ->  | D81: 2005 | E81: 57 | F81: q57a - employed full-time qol2005 | G81: yes | H81: 6463 | I81: 20.6 | J81: 0.8 | K81: 19.2 | L81: 22.1 | M81: 1.4
A82: 79 | C82: =Indicators!#REF! ->  | D82: 2005 | E82: 5 | F82: q5a - I can influence decisions that affect my local area | G82: agree | H82: 6221 | I82: 27 | J82: 0.9 | K82: 25.3 | L82: 28.7 | M82: 1.7
A83: 80 | C83: =Indicators!#REF! ->  | D83: 2005 | E83: 5 | F83: q5b - people can influence decisions | G83: agree | H83: 6251 | I83: 51.1 | J83: 1 | K83: 49.2 | L83: 52.9 | M83: 1.9
A84: 81 | C84: =Indicators!#REF! ->  | D84: 2005 | E84: 5 | F84: q5c - people from different backgrounds get on well together | G84: agree | H84: 6225 | I84: 54.6 | J84: 1 | K84: 52.7 | L84: 56.4 | M84: 1.9
A85: 82 | C85: =Indicators!#REF! ->  | D85: 2005 | E85: 5 | F85: q5d - ethnic differences are respected | G85: agree | H85: 6196 | I85: 54.7 | J85: 1 | K85: 52.8 | L85: 56.6 | M85: 1.9
A86: 83 | C86: =Indicators!#REF! ->  | D86: 2005 | E86: 5 | F86: q5e - I trust many or most people locally | G86: agree | H86: 6336 | I86: 68 | J86: 0.9 | K86: 66.3 | L86: 69.7 | M86: 1.7
A87: 84 | C87: =Indicators!#REF! ->  | D87: 2005 | E87: 5 | F87: q5f - I feel I belong to my neighbourhood | G87: agree | H87: 6330 | I87: 69.3 | J87: 0.9 | K87: 67.6 | L87: 71 | M87: 1.7
A88: 85 | C88: =Indicators!#REF! ->  | D88: 2005 | E88: 5 | F88: q5g - locally antisocial behaviour is a problem | G88: agree | H88: 6279 | I88: 51.4 | J88: 0.9 | K88: 49.5 | L88: 53.2 | M88: 1.9
A89: 86 | C89: =Indicators!#REF! ->  | D89: 2005 | E89: 5h | I89: 46.09519 | K89: 44.27116 | L89: 47.91922 | M89: 1.82403
A90: 87 | C90: =Indicators!#REF! ->  | D90: 2005 | E90: 6 | F90: q6 - involved in community or voluntary organisation | G90: yes | H90: 6290 | I90: 25 | J90: 0.8 | K90: 23.4 | L90: 26.6 | M90: 1.6
A91: 88 | C91: =Indicators!#REF! ->  | D91: 2005 | E91: 7 | F91: q7a - feel safe outdoors after dark | G91: _prop_2 | H91: 6373 | I91: 44.9 | J91: 0.9 | K91: 43.1 | L91: 46.8 | M91: 1.8
A92: 89 | C92: =Indicators!#REF! ->  | D92: 2005 | E92: 7 | F92: q7b - feel safe indoors after dark | G92: _prop_2 | H92: 6419 | I92: 83.8 | J92: 0.7 | K92: 82.5 | L92: 85.1 | M92: 1.3
A93: 90 | C93: =Indicators!#REF! ->  | D93: 2005 | E93: 7 | F93: q7c - feel safe outdoors during the day | G93: _prop_2 | H93: 6414 | I93: 84.1 | J93: 0.7 | K93: 82.8 | L93: 85.4 | M93: 1.3
A94: 91 | C94: =Indicators!#REF! ->  | D94: 2005 | E94: 7 | F94: q7d - feel safe indoors during the day | G94: _prop_2 | H94: 6427 | I94: 92.4 | J94: 0.5 | K94: 91.5 | L94: 93.4 | M94: 0.9
A95: 92 | C95: =Indicators!#REF! ->  | D95: 2005 | E95: 8 | F95: crime past 3yrs | G95: worse | H95: 6365 | I95: 36.2 | J95: 0.9 | K95: 34.5 | L95: 37.9 | M95: 1.7
A96: 93 | C96: =Indicators!#REF! ->  | D96: 2005 | E96: 17 | I96: 25.62192 | K96: 23.03556 | L96: 28.20829 | M96: 2.6
A97: 94 | C97: =Indicators!#REF! ->  | D97: 2005 | E97: 17 | I97: 15.5659 | K97: 13.53562 | L97: 17.59617 | M97: 2
A98: 95 | C98: =Indicators!#REF! ->  | D98: 2005 | E98: 17 | H98: 5345 | I98: 37.41928 | K98: 35.35199 | L98: 39.48658 | M98: 2.1
A99: 96 | C99: =Indicators!#REF! ->  | D99: 2005 | E99: 17 | H99: 3532 | I99: 28.85054 | K99: 26.82304 | L99: 30.87804 | M99: 2
A100: 97 | C100: =Indicators!#REF! ->  | D100: 2005 | E100: 17 | H100: 2849 | I100: 16.21487 | K100: 14.25669 | L100: 18.17305 | M100: 2
A101: 98 | C101: =Indicators!#REF! ->  | D101: 2005 | E101: 27 | F101: q27 - frequency of park visits.log | I101: 27.64414 | K101: 25.94987 | L101: 29.33841 | M101: 1.7
A102: 99 | C102: =Indicators!#REF! ->  | D102: 2006 | E102: 2 | F102: rq2 - 2006 | G102: satisfied | H102: 4481 | I102: 76.1 | J102: 1 | K102: 74.1 | L102: 78.1 | M102: 2
A103: 100 | C103: =Indicators!#REF! ->  | D103: 2006 | E103: 3 | F103: q3 - 2006 | G103: better | H103: 4495 | I103: 10.3 | J103: 1 | K103: 8.4 | L103: 12.3 | M103: 1.9
A104: 101 | C104: =Indicators!#REF! ->  | D104: 2006 | E104: 3 | F104: q3 - 2006 | G104: worse | H104: 4495 | I104: 36.5 | J104: 1.2 | K104: 34.2 | L104: 38.8 | M104: 2.3
A105: 102 | C105: =Indicators!#REF! ->  | D105: 2006 | E105: 4a | F105: rq4a - 2006 | G105: easy | H105: 4464 | I105: 90.5 | J105: 0.7 | K105: 89.1 | L105: 91.9 | M105: 1.4
A106: 103 | C106: =Indicators!#REF! ->  | D106: 2006 | E106: 4b | F106: rq4b - 2006 | G106: easy | H106: 4479 | I106: 91.3 | J106: 0.7 | K106: 90 | L106: 92.6 | M106: 1.3
A107: 104 | C107: =Indicators!#REF! ->  | D107: 2006 | E107: 4c | F107: rq4c - 2006 | G107: easy | H107: 4476 | I107: 84.1 | J107: 0.9 | K107: 82.4 | L107: 85.8 | M107: 1.7
A108: 105 | C108: =Indicators!#REF! ->  | D108: 2006 | E108: 4d | F108: rq4d - 2006 | G108: easy | H108: 4499 | I108: 88.1 | J108: 0.8 | K108: 86.6 | L108: 89.7 | M108: 1.5
A109: 106 | C109: =Indicators!#REF! ->  | D109: 2006 | E109: 4e | F109: rq4e - 2006 | G109: easy | H109: 4445 | I109: 62.3 | J109: 1.4 | K109: 59.7 | L109: 65 | M109: 2.6
A110: 107 | C110: =Indicators!#REF! ->  | D110: 2006 | E110: 4f | F110: rq4f - 2006 | G110: easy | H110: 4390 | I110: 88.3 | J110: 0.8 | K110: 86.8 | L110: 89.8 | M110: 1.5
A111: 108 | C111: =Indicators!#REF! ->  | D111: 2006 | E111: 4g | F111: rq4g - 2006 | G111: easy | H111: 3343 | I111: 76.8 | J111: 1.2 | K111: 74.4 | L111: 79.2 | M111: 2.4
A112: 109 | C112: =Indicators!#REF! ->  | D112: 2006 | E112: 4h | F112: rq4h - 2006 | G112: easy | H112: 3928 | I112: 59.5 | J112: 1.6 | K112: 56.4 | L112: 62.6 | M112: 3.1
A113: 110 | C113: =Indicators!#REF! ->  | D113: 2006 | E113: 4i | F113: rq4i - 2006 | G113: easy | H113: 3691 | I113: 58.7 | J113: 1.7 | K113: 55.4 | L113: 61.9 | M113: 3.3
A114: 111 | C114: =Indicators!#REF! ->  | D114: 2006 | E114: 4j | F114: rq4j - 2006 | G114: easy | H114: 3803 | I114: 55.9 | J114: 1.3 | K114: 53.2 | L114: 58.5 | M114: 2.7
A115: 112 | C115: =Indicators!#REF! ->  | D115: 2006 | E115: 4k | F115: rq4k - 2006 | G115: easy | H115: 1645 | I115: 50.5 | J115: 2.9 | K115: 44.8 | L115: 56.2 | M115: 5.7
A116: 113 | C116: =Indicators!#REF! ->  | D116: 2006 | E116: 4l | F116: rq4l - 2006 | G116: easy | H116: 2886 | I116: 62.6 | J116: 1.8 | K116: 59.1 | L116: 66.1 | M116: 3.5
A117: 114 | C117: =Indicators!#REF! ->  | D117: 2006 | E117: 4m | F117: rq4m - 2006 | G117: easy | H117: 2651 | I117: 60.2 | J117: 1.8 | K117: 56.6 | L117: 63.8 | M117: 3.6
A118: 115 | C118: =Indicators!#REF! ->  | D118: 2006 | E118: 5 | F118: rq5 - 2006 | G118: _prop_2 | H118: 4316 | I118: 11.1 | J118: 0.8 | K118: 9.5 | L118: 12.6 | M118: 1.6
A119: 116 | C119: =Indicators!#REF! ->  | D119: 2006 | E119: 5 | F119: rq5a - 2006 | G119: _prop_2 | H119: 4483 | I119: 23.5 | J119: 1.1 | K119: 21.5 | L119: 25.6 | M119: 2
A120: 117 | C120: =Indicators!#REF! ->  | D120: 2006 | E120: 6a | F120: q6a - 2006 | G120: yes | H120: 4499 | I120: 17.8 | J120: 0.9 | K120: 16 | L120: 19.7 | M120: 1.8
A121: 118 | C121: =Indicators!#REF! ->  | D121: 2006 | E121: 6b | F121: q6b - 2006 | G121: yes | H121: 1682 | I121: 45 | J121: 2.2 | K121: 40.6 | L121: 49.4 | M121: 4.4
A122: 119 | C122: =Indicators!#REF! ->  | D122: 2006 | E122: 7a | F122: q7a - 2006 | G122: yes | H122: 4170 | I122: 7.8 | J122: 1 | K122: 5.8 | L122: 9.7 | M122: 2
A123: 120 | C123: =Indicators!#REF! ->  | D123: 2006 | E123: 7b | F123: q7b - 2006 | G123: yes | H123: 4030 | I123: 2.5 | J123: 0.4 | K123: 1.7 | L123: 3.3 | M123: 0.8
A124: 121 | C124: =Indicators!#REF! ->  | D124: 2006 | E124: 7c | F124: q7c - 2006 | G124: yes | H124: 4056 | I124: 0.7 | J124: 0.2 | K124: 0.3 | L124: 1.1 | M124: 0.4
A125: 122 | C125: =Indicators!#REF! ->  | D125: 2006 | E125: 7d | F125: q7d - 2006 | G125: yes | H125: 4045 | I125: 0.9 | J125: 0.2 | K125: 0.4 | L125: 1.3 | M125: 0.5
A126: 123 | C126: =Indicators!#REF! ->  | D126: 2006 | E126: 7e | F126: q7e - 2006 | G126: yes | H126: 4083 | I126: 1.9 | J126: 0.3 | K126: 1.3 | L126: 2.6 | M126: 0.6
A127: 124 | C127: =Indicators!#REF! ->  | D127: 2006 | E127: 8 | F127: rq8 - 2006 | G127: worse | H127: 4416 | I127: 37.7 | J127: 1.2 | K127: 35.3 | L127: 40.1 | M127: 2.4
A128: 125 | C128: =Indicators!#REF! ->  | D128: 2006 | E128: 9a | F128: rq9a - 2006 | G128: _prop_2 | H128: 4465 | I128: 43.7 | J128: 1.4 | K128: 41 | L128: 46.5 | M128: 2.7
A129: 126 | C129: =Indicators!#REF! ->  | D129: 2006 | E129: 9b | F129: rq9b - 2006 | G129: _prop_2 | H129: 4462 | I129: 85.3 | J129: 0.9 | K129: 83.6 | L129: 87 | M129: 1.7
A130: 127 | C130: =Indicators!#REF! ->  | D130: 2006 | E130: 9c | F130: rq9c - 2006 | G130: _prop_2 | H130: 4463 | I130: 84.7 | J130: 1.2 | K130: 82.4 | L130: 87 | M130: 2.3
A131: 128 | C131: =Indicators!#REF! ->  | D131: 2006 | E131: 9d | F131: rq9d - 2006 | G131: _prop_2 | H131: 4458 | I131: 92.2 | J131: 0.6 | K131: 91 | L131: 93.5 | M131: 1.2
A132: 129 | C132: =Indicators!#REF! ->  | D132: 2006 | E132: 10a | F132: rq10a_2 - 2006 | G132: _prop_1 | H132: 4444 | I132: 66.4 | J132: 1.4 | K132: 63.8 | L132: 69.1 | M132: 2.6
A133: 130 | C133: =Indicators!#REF! ->  | D133: 2006 | E133: 10a | F133: rq10a_2 - 2006 | G133: _prop_2 | H133: 4444 | I133: 23.3 | J133: 1.1 | K133: 21.2 | L133: 25.3 | M133: 2.1
A134: 131 | C134: =Indicators!#REF! ->  | D134: 2006 | E134: 10a | F134: rq10a_2 - 2006 | G134: _prop_3 | H134: 4444 | I134: 3.1 | J134: 0.8 | K134: 1.4 | L134: 4.7 | M134: 1.7
A135: 132 | C135: =Indicators!#REF! ->  | D135: 2006 | E135: 10a | F135: rq10a_2 - 2006 | G135: _prop_4 | H135: 4444 | I135: 1.9 | J135: 0.3 | K135: 1.3 | L135: 2.6 | M135: 0.6
A136: 133 | C136: =Indicators!#REF! ->  | D136: 2006 | E136: 10a | F136: rq10a_2 - 2006 | G136: never | H136: 4444 | I136: 5.3 | J136: 0.5 | K136: 4.3 | L136: 6.4 | M136: 1
A137: 134 | C137: =Indicators!#REF! ->  | D137: 2006 | E137: 10a | F137: rq10a_4 - 2006 | G137: _prop_1 | H137: 4433 | I137: 67.2 | J137: 1.4 | K137: 64.5 | L137: 69.8 | M137: 2.7
A138: 135 | C138: =Indicators!#REF! ->  | D138: 2006 | E138: 10a | F138: rq10a_4 - 2006 | G138: _prop_2 | H138: 4433 | I138: 22.7 | J138: 1.1 | K138: 20.7 | L138: 24.8 | M138: 2
A139: 136 | C139: =Indicators!#REF! ->  | D139: 2006 | E139: 10a | F139: rq10a_4 - 2006 | G139: _prop_3 | H139: 4433 | I139: 3.2 | J139: 0.8 | K139: 1.5 | L139: 4.8 | M139: 1.7
A140: 137 | C140: =Indicators!#REF! ->  | D140: 2006 | E140: 10a | F140: rq10a_4 - 2006 | G140: _prop_4 | H140: 4433 | I140: 2 | J140: 0.3 | K140: 1.3 | L140: 2.6 | M140: 0.7
A141: 138 | C141: =Indicators!#REF! ->  | D141: 2006 | E141: 10a | F141: rq10a_4 - 2006 | G141: never | H141: 4433 | I141: 4.9 | J141: 0.5 | K141: 3.9 | L141: 6 | M141: 1
A142: 139 | C142: =Indicators!#REF! ->  | D142: 2006 | E142: 10b | F142: rq10b_2 - 2006 | G142: _prop_1 | H142: 4449 | I142: 42.8 | J142: 1.3 | K142: 40.3 | L142: 45.2 | M142: 2.5
A143: 140 | C143: =Indicators!#REF! ->  | D143: 2006 | E143: 10b | F143: rq10b_2 - 2006 | G143: _prop_2 | H143: 4449 | I143: 47.2 | J143: 1.4 | K143: 44.4 | L143: 50 | M143: 2.8
A144: 141 | C144: =Indicators!#REF! ->  | D144: 2006 | E144: 10b | F144: rq10b_2 - 2006 | G144: _prop_3 | H144: 4449 | I144: 5.4 | J144: 0.6 | K144: 4.3 | L144: 6.5 | M144: 1.1
A145: 142 | C145: =Indicators!#REF! ->  | D145: 2006 | E145: 10b | F145: rq10b_2 - 2006 | G145: _prop_4 | H145: 4449 | I145: 4.4 | J145: 0.9 | K145: 2.6 | L145: 6.1 | M145: 1.8
A146: 143 | C146: =Indicators!#REF! ->  | D146: 2006 | E146: 10b | F146: rq10b_2 - 2006 | G146: never | H146: 4449 | I146: 0.3 | J146: 0.1 | K146: 0 | L146: 0.5 | M146: 0.3
A147: 144 | C147: =Indicators!#REF! ->  | D147: 2006 | E147: 10b | F147: rq10b_4 - 2006 | G147: _prop_1 | H147: 4436 | I147: 44.1 | J147: 1.3 | K147: 41.6 | L147: 46.6 | M147: 2.5
A148: 145 | C148: =Indicators!#REF! ->  | D148: 2006 | E148: 10b | F148: rq10b_4 - 2006 | G148: _prop_2 | H148: 4436 | I148: 46.3 | J148: 1.4 | K148: 43.5 | L148: 49.1 | M148: 2.8
A149: 146 | C149: =Indicators!#REF! ->  | D149: 2006 | E149: 10b | F149: rq10b_4 - 2006 | G149: _prop_3 | H149: 4436 | I149: 5.4 | J149: 0.6 | K149: 4.3 | L149: 6.5 | M149: 1.1
A150: 147 | C150: =Indicators!#REF! ->  | D150: 2006 | E150: 10b | F150: rq10b_4 - 2006 | G150: _prop_4 | H150: 4436 | I150: 4.1 | J150: 0.9 | K150: 2.3 | L150: 5.8 | M150: 1.8
A151: 148 | C151: =Indicators!#REF! ->  | D151: 2006 | E151: 10b | F151: rq10b_4 - 2006 | G151: never | H151: 4436 | I151: 0.2 | J151: 0.1 | K151: 0 | L151: 0.4 | M151: 0.2
A152: 149 | C152: =Indicators!#REF! ->  | D152: 2006 | E152: 11a | F152: rq11a - 2006 | G152: agree | H152: 4449 | I152: 26.8 | J152: 1.3 | K152: 24.2 | L152: 29.4 | M152: 2.6
A153: 150 | C153: =Indicators!#REF! ->  | D153: 2006 | E153: 11b | F153: rq11b - 2006 | G153: agree | H153: 4443 | I153: 52.6 | J153: 1.3 | K153: 50.1 | L153: 55.2 | M153: 2.5
A154: 151 | C154: =Indicators!#REF! ->  | D154: 2006 | E154: 11c | F154: rq11c - 2006 | G154: agree | H154: 4412 | I154: 19.6 | J154: 1.2 | K154: 17.2 | L154: 22 | M154: 2.4
A155: 152 | C155: =Indicators!#REF! ->  | D155: 2006 | E155: 11d | F155: rq11d - 2006 | G155: agree | H155: 4425 | I155: 55.8 | J155: 1.4 | K155: 52.9 | L155: 58.6 | M155: 2.9
A156: 153 | C156: =Indicators!#REF! ->  | D156: 2006 | E156: 11e | F156: rq11e - 2006 | G156: agree | H156: 4391 | I156: 53.4 | J156: 1.4 | K156: 50.5 | L156: 56.2 | M156: 2.9
A157: 154 | C157: =Indicators!#REF! ->  | D157: 2006 | E157: 11f | F157: rq11f - 2006 | G157: agree | H157: 4429 | I157: 61 | J157: 1.4 | K157: 58.3 | L157: 63.7 | M157: 2.7
A158: 155 | C158: =Indicators!#REF! ->  | D158: 2006 | E158: 11g | F158: rq11g - 2006 | G158: agree | H158: 4407 | I158: 42.4 | J158: 1.4 | K158: 39.7 | L158: 45.2 | M158: 2.7
A159: 156 | C159: =Indicators!#REF! ->  | D159: 2006 | E159: 11h | F159: rq11h - 2006 | G159: agree | H159: 4466 | I159: 66.7 | J159: 1.3 | K159: 64.1 | L159: 69.3 | M159: 2.6
A160: 157 | C160: =Indicators!#REF! ->  | D160: 2006 | E160: 11i | F160: rq11i - 2006 | G160: agree | H160: 4449 | I160: 64.5 | J160: 1.4 | K160: 61.7 | L160: 67.2 | M160: 2.8
A161: 158 | C161: =Indicators!#REF! ->  | D161: 2006 | E161: 11j | F161: rq11j - 2006 | G161: agree | H161: 4422 | I161: 43.1 | J161: 1.4 | K161: 40.3 | L161: 45.8 | M161: 2.8
A162: 159 | C162: =Indicators!#REF! ->  | D162: 2006 | E162: 11k | F162: rq11k - 2006 | G162: agree | H162: 4453 | I162: 29.3 | J162: 1.3 | K162: 26.8 | L162: 31.9 | M162: 2.5
A163: 160 | C163: =Indicators!#REF! ->  | D163: 2006 | E163: 11l | F163: rq11l - 2006 | G163: agree | H163: 4469 | I163: 38.5 | J163: 1.3 | K163: 35.9 | L163: 41.2 | M163: 2.6
A164: 161 | C164: =Indicators!#REF! ->  | D164: 2006 | E164: Combination | F164: livescore - 2006 | G164: livescore | H164: 4517 | I164: 50.1 | J164: 0.6 | K164: 48.8 | L164: 51.4 | M164: 1.3
A165: 162 | C165: =Indicators!#REF! ->  | D165: 2006 | E165: 12a | F165: rq12a - 2006 | G165: problem | H165: 4406 | I165: 49 | J165: 1.4 | K165: 46.2 | L165: 51.9 | M165: 2.8
A166: 163 | C166: =Indicators!#REF! ->  | D166: 2006 | E166: 12b | F166: rq12b - 2006 | G166: problem | H166: 4373 | I166: 28.6 | J166: 1.3 | K166: 26 | L166: 31.2 | M166: 2.6
A167: 164 | C167: =Indicators!#REF! ->  | D167: 2006 | E167: 12c | F167: rq12c - 2006 | G167: problem | H167: 4305 | I167: 49 | J167: 1.3 | K167: 46.4 | L167: 51.6 | M167: 2.6
A168: 165 | C168: =Indicators!#REF! ->  | D168: 2006 | E168: 12d | F168: rq12d - 2006 | G168: problem | H168: 4172 | I168: 21.7 | J168: 1.3 | K168: 19.2 | L168: 24.2 | M168: 2.5
A169: 166 | C169: =Indicators!#REF! ->  | D169: 2006 | E169: 13a | F169: rq13a - 2006 | G169: problem | H169: 4438 | I169: 65.3 | J169: 1.4 | K169: 62.6 | L169: 68 | M169: 2.7
A170: 167 | C170: =Indicators!#REF! ->  | D170: 2006 | E170: 13b | F170: rq13b - 2006 | G170: problem | H170: 4516 | I170: 79.5 | J170: 1 | K170: 77.6 | L170: 81.4 | M170: 1.9
A171: 168 | C171: =Indicators!#REF! ->  | D171: 2006 | E171: 13c | F171: rq13c - 2006 | G171: problem | H171: 4325 | I171: 46.2 | J171: 1.4 | K171: 43.4 | L171: 49 | M171: 2.8
A172: 169 | C172: =Indicators!#REF! ->  | D172: 2006 | E172: 13d | F172: rq13d - 2006 | G172: problem | H172: 2344 | I172: 49.7 | J172: 1.8 | K172: 46.1 | L172: 53.2 | M172: 3.6
A173: 170 | C173: =Indicators!#REF! ->  | D173: 2006 | E173: 13e | F173: rq13e - 2006 | G173: problem | H173: 3757 | I173: 42.9 | J173: 1.5 | K173: 40 | L173: 45.9 | M173: 2.9
A174: 171 | C174: =Indicators!#REF! ->  | D174: 2006 | E174: 13f | F174: rq13f - 2006 | G174: problem | H174: 4109 | I174: 56.3 | J174: 1.4 | K174: 53.5 | L174: 59.1 | M174: 2.8
A175: 172 | C175: =Indicators!#REF! ->  | D175: 2006 | E175: 13g | F175: rq13g - 2006 | G175: problem | H175: 4234 | I175: 67.9 | J175: 1.4 | K175: 65.2 | L175: 70.7 | M175: 2.7
A176: 173 | C176: =Indicators!#REF! ->  | D176: 2006 | E176: 13h | F176: rq13h - 2006 | G176: problem | H176: 4414 | I176: 64.1 | J176: 1.4 | K176: 61.4 | L176: 66.8 | M176: 2.7
A177: 174 | C177: =Indicators!#REF! ->  | D177: 2006 | E177: 13i | F177: rq13i - 2006 | G177: problem | H177: 3832 | I177: 31.8 | J177: 1.3 | K177: 29.3 | L177: 34.3 | M177: 2.5
A178: 175 | C178: =Indicators!#REF! ->  | D178: 2006 | E178: 13j | F178: rq13j - 2006 | G178: problem | H178: 3638 | I178: 39.8 | J178: 1.4 | K178: 37 | L178: 42.5 | M178: 2.8
A179: 176 | C179: =Indicators!#REF! ->  | D179: 2006 | E179: 13k | F179: rq13k - 2006 | G179: problem | H179: 4251 | I179: 60.5 | J179: 1.4 | K179: 57.8 | L179: 63.3 | M179: 2.7
A180: 177 | C180: =Indicators!#REF! ->  | D180: 2006 | E180: 13l | F180: rq13l - 2006 | G180: problem | H180: 4357 | I180: 37 | J180: 1.4 | K180: 34.3 | L180: 39.8 | M180: 2.7
A181: 178 | C181: =Indicators!#REF! ->  | D181: 2006 | E181: 13m | F181: rq13m - 2006 | G181: problem | H181: 3727 | I181: 51.8 | J181: 1.6 | K181: 48.7 | L181: 55 | M181: 3.1
A182: 179 | C182: =Indicators!#REF! ->  | D182: 2006 | E182: 13n | F182: rq13n - 2006 | G182: problem | H182: 3467 | I182: 35.6 | J182: 1.5 | K182: 32.7 | L182: 38.4 | M182: 2.9
A183: 180 | C183: =Indicators!#REF! ->  | D183: 2006 | E183: 14a | F183: rq14a - 2006 | G183: satisfied | H183: 3543 | I183: 45.6 | J183: 1.8 | K183: 42.1 | L183: 49.1 | M183: 3.5
A184: 181 | C184: =Indicators!#REF! ->  | D184: 2006 | E184: 14b | F184: rq14b - 2006 | G184: satisfied | H184: 2977 | I184: 31.2 | J184: 1.8 | K184: 27.6 | L184: 34.8 | M184: 3.6
A185: 182 | C185: =Indicators!#REF! ->  | D185: 2006 | E185: 14c | F185: rq14c - 2006 | G185: satisfied | H185: 4403 | I185: 51.5 | J185: 1.3 | K185: 48.9 | L185: 54 | M185: 2.6
A186: 183 | C186: =Indicators!#REF! ->  | D186: 2006 | E186: 14d | F186: rq14d - 2006 | G186: satisfied | H186: 3835 | I186: 54.2 | J186: 1.5 | K186: 51.3 | L186: 57 | M186: 2.9
A187: 184 | C187: =Indicators!#REF! ->  | D187: 2006 | E187: 14e | F187: rq14e - 2006 | G187: satisfied | H187: 4359 | I187: 48.8 | J187: 1.5 | K187: 45.9 | L187: 51.7 | M187: 2.9
A188: 185 | C188: =Indicators!#REF! ->  | D188: 2006 | E188: 14f | F188: rq14f - 2006 | G188: satisfied | H188: 4303 | I188: 48.2 | J188: 1.5 | K188: 45.3 | L188: 51.1 | M188: 2.9
A189: 186 | C189: =Indicators!#REF! ->  | D189: 2006 | E189: 14g | F189: rq14g - 2006 | G189: satisfied | H189: 2615 | I189: 46.2 | J189: 2.1 | K189: 42.1 | L189: 50.3 | M189: 4.1
A190: 187 | C190: =Indicators!#REF! ->  | D190: 2006 | E190: 14h | F190: rq14h - 2006 | G190: satisfied | H190: 4394 | I190: 82.9 | J190: 1.2 | K190: 80.6 | L190: 85.3 | M190: 2.3
A191: 188 | C191: =Indicators!#REF! ->  | D191: 2006 | E191: 14i | F191: rq14i - 2006 | G191: satisfied | H191: 4318 | I191: 76.6 | J191: 1.1 | K191: 74.5 | L191: 78.6 | M191: 2.1
A192: 189 | C192: =Indicators!#REF! ->  | D192: 2006 | E192: 14j | F192: rq14j - 2006 | G192: satisfied | H192: 4327 | I192: 75 | J192: 1.1 | K192: 72.9 | L192: 77.1 | M192: 2.1
A193: 190 | C193: =Indicators!#REF! ->  | D193: 2006 | E193: 14k | F193: rq14k - 2006 | G193: satisfied | H193: 3169 | I193: 58.7 | J193: 1.6 | K193: 55.5 | L193: 61.8 | M193: 3.2
A194: 191 | C194: =Indicators!#REF! ->  | D194: 2006 | E194: 14l | F194: rq14l - 2006 | G194: satisfied | H194: 3419 | I194: 20.5 | J194: 1.2 | K194: 18.1 | L194: 22.8 | M194: 2.4
A195: 192 | C195: =Indicators!#REF! ->  | D195: 2006 | E195: 14m | F195: rq14m - 2006 | G195: satisfied | H195: 4127 | I195: 54.4 | J195: 1.5 | K195: 51.5 | L195: 57.2 | M195: 2.9
A196: 193 | C196: =Indicators!#REF! ->  | D196: 2006 | E196: 14n | F196: rq14n - 2006 | G196: satisfied | H196: 4033 | I196: 43.9 | J196: 1.5 | K196: 40.9 | L196: 46.8 | M196: 3
A197: 194 | C197: =Indicators!#REF! ->  | D197: 2006 | E197: 14o | F197: rq14o - 2006 | G197: satisfied | H197: 2688 | I197: 48.5 | J197: 1.8 | K197: 45 | L197: 51.9 | M197: 3.5
A198: 195 | C198: =Indicators!#REF! ->  | D198: 2006 | E198: 14p | F198: rq14p - 2006 | G198: satisfied | H198: 2311 | I198: 24.1 | J198: 1.6 | K198: 20.9 | L198: 27.2 | M198: 3.2
A199: 196 | C199: =Indicators!#REF! ->  | D199: 2006 | E199: 14q | F199: rq14q - 2006 | G199: satisfied | H199: 2347 | I199: 15.6 | J199: 1.3 | K199: 13 | L199: 18.1 | M199: 2.6
A200: 197 | C200: =Indicators!#REF! ->  | D200: 2006 | E200: 14r | F200: rq14r - 2006 | G200: satisfied | H200: 3866 | I200: 35.4 | J200: 1.3 | K200: 32.8 | L200: 38.1 | M200: 2.6
A201: 198 | C201: =Indicators!#REF! ->  | D201: 2006 | E201: 14s | F201: rq14s - 2006 | G201: satisfied | H201: 2336 | I201: 27 | J201: 1.4 | K201: 24.3 | L201: 29.7 | M201: 2.7
... 2247 more rows

Sheet nra (hidden)
C2: title | D2: year | E2: no | F2: filename | G2: criterion | H2: obs | I2: Proportion | J2: Std. Err. | K2: lower conf | L2: upper conf | M2: +/-
A3: 0 | C3: x | E3: x | F3: x | G3: x | H3: x | I3: x | J3: x | K3: x | L3: x | M3: x
A4: 1 | C4: =Indicators!#REF! ->  | D4: 2005 | E4: 13 | F4: q13a - dog fouling qol2005 | G4: problem | H4: 6382 | I4: 78.1 | J4: 1 | K4: 76.2 | L4: 79.9 | M4: 1.9
A5: 2 | C5: =Indicators!#REF! ->  | D5: 2005 | E5: 13 | F5: q13b - street litter qol2005 | G5: problem | H5: 6555 | I5: 88.7 | J5: 0.7 | K5: 87.4 | L5: 90.1 | M5: 1.3
A6: 3 | C6: =Indicators!#REF! ->  | D6: 2005 | E6: 13 | F6: q13c - graffitti qol2005 | G6: problem | H6: 6172 | I6: 63.6 | J6: 1.1 | K6: 61.4 | L6: 65.8 | M6: 2.2
A7: 4 | C7: =Indicators!#REF! ->  | D7: 2005 | E7: 13 | F7: q13e - state of local river or stream qol2005 | G7: problem | H7: 3581 | I7: 65.1 | J7: 1.5 | K7: 62.1 | L7: 68 | M7: 3
A8: 5 | C8: =Indicators!#REF! ->  | D8: 2005 | E8: 13 | F8: q13g - air quality and traffic pollution qol2005 | G8: problem | H8: 5996 | I8: 70.9 | J8: 1 | K8: 68.8 | L8: 72.9 | M8: 2.1
A9: 6 | C9: =Indicators!#REF! ->  | D9: 2005 | E9: 13h | I9: 71.5 | K9: 69.5 | L9: 73.6 | M9: 2.1
A10: 7 | C10: =Indicators!#REF! ->  | D10: 2005 | E10: 13 | F10: q13i - neglected or derelict buildings or land qol2005 | G10: problem | H10: 5328 | I10: 62.8 | J10: 1.2 | K10: 60.4 | L10: 65.1 | M10: 2.4
A11: 8 | C11: =Indicators!#REF! ->  | D11: 2005 | E11: 13 | F11: q13j - insensitive development qol2005 | G11: problem | H11: 4992 | I11: 45.5 | J11: 1.3 | K11: 42.9 | L11: 48.1 | M11: 2.6
A12: 9 | C12: =Indicators!#REF! ->  | D12: 2005 | E12: 13 | F12: q13k - vandalism qol2005 | G12: problem | H12: 6098 | I12: 83.1 | J12: 0.9 | K12: 81.4 | L12: 84.8 | M12: 1.7
A13: 10 | C13: =Indicators!#REF! ->  | D13: 2005 | E13: 13 | F13: q13l - your own personal safety qol2005 | G13: problem | H13: 6253 | I13: 60.2 | J13: 1.1 | K13: 58 | L13: 62.4 | M13: 2.2
A14: 11 | C14: =Indicators!#REF! ->  | D14: 2005 | E14: 14 | F14: q14a - road traffic noise qol2005 | G14: problem | H14: 6409 | I14: 50.9 | J14: 1.1 | K14: 48.7 | L14: 53.1 | M14: 2.2
A15: 12 | C15: =Indicators!#REF! ->  | D15: 2005 | E15: 14 | F15: q14f - neighbours noise qol2005 | G15: problem | H15: 6276 | I15: 40.6 | J15: 1.1 | K15: 38.3 | L15: 42.8 | M15: 2.3
A16: 13 | C16: =Indicators!#REF! ->  | D16: 2005 | E16: 14 | F16: q14h - fireworks noise qol2005 | G16: problem | H16: 6230 | I16: 52.8 | J16: 1.2 | K16: 50.5 | L16: 55.1 | M16: 2.3
A17: 14 | C17: =Indicators!#REF! ->  | D17: 2005 | E17: 17 | F17: q17b - satisfied with availability and cost of housing | G17: satisfied | H17: 4782 | I17: 39.2 | J17: 2 | K17: 35.3 | L17: 43.1 | M17: 3.9
A18: 15 | C18: =Indicators!#REF! ->  | D18: 2005 | E18: 17 | F18: q17d - satisfied with appearance of streets, public spaces | G18: satisfied | H18: 6342 | I18: 36.2 | K18: 34.1 | L18: 38.4 | M18: 2.2
A19: 16 | C19: =Indicators!#REF! ->  | D19: 2005 | E19: 17 | F19: q17c - satisfied with jobs | G19: satisfied | H19: 3962 | I19: 22.2 | K19: 19.8 | L19: 24.7 | M19: 2.5
A20: 17 | C20: =Indicators!#REF! ->  | D20: 2005 | E20: 17 | F20: q17e - satisfied with appearance of new buildings | G20: satisfied | H20: 5242 | I20: 51.5 | K20: 49 | L20: 54 | M20: 2.5
A21: 18 | C21: =Indicators!#REF! ->  | D21: 2005 | E21: 17 | F21: q17f - satisfied with social services | G21: satisfied | H21: 4187 | I21: 44.6 | J21: 2 | K21: 41.9 | L21: 47.3 | M21: 2.7
A22: 19 | C22: =Indicators!#REF! ->  | D22: 2005 | E22: 17 | F22: q17g - satisfied with health services | G22: satisfied | H22: 6193 | I22: 72.6 | J22: 1.5 | K22: 70.6 | L22: 74.6 | M22: 2
A23: 20 | C23: =Indicators!#REF! ->  | D23: 2005 | E23: 17 | F23: q17m - satisfied with academic standard of schools | G23: satisfied | H23: 3722 | I23: 52.8 | J23: 2.2 | K23: 48.4 | L23: 57.2 | M23: 4.4
A24: 21 | C24: =Indicators!#REF! ->  | D24: 2005 | E24: 17 | I24: 55 | K24: 52.8 | L24: 57.3 | M24: 2.3
A25: 22 | C25: =Indicators!#REF! ->  | D25: 2005 | E25: 17 | I25: 54.6 | K25: 52.3 | L25: 56.9 | M25: 2.3
A26: 23 | C26: =Indicators!#REF! ->  | D26: 2005 | E26: 17 | I26: 40.8 | K26: 38.1 | L26: 43.5 | M26: 2.7
A27: 24 | C27: =Indicators!#REF! ->  | D27: 2005 | E27: 17 | I27: 12.4 | K27: 10.6 | L27: 14.1 | M27: 1.7
A28: 25 | C28: =Indicators!#REF! ->  | D28: 2005 | E28: 17 | I28: 47.2 | K28: 44.9 | L28: 49.6 | M28: 2.4
A29: 26 | C29: =Indicators!#REF! ->  | D29: 2005 | E29: 18 | F29: q18 - events attended in Bristol | G29: _prop_2 | H29: 6595 | I29: 37.9 | J29: 1.1 | K29: 35.8 | L29: 40 | M29: 2.1
A30: 27 | C30: =Indicators!#REF! ->  | D30: 2005 | E30: 19 | F30: q19 - satisfaction with outdoor events | G30: satisfied | H30: 6586 | I30: 64.4 | J30: 1.6 | K30: 61.3 | L30: 67.5 | M30: 3.1
A31: 28 | C31: =Indicators!#REF! ->  | D31: 2005 | E31: 2 | F31: q2 - satisfied with local area | G31: satisfied | H31: 6354 | I31: 61.5 | J31: 1.6 | K31: 59.3 | L31: 63.7 | M31: 2.2
A32: 29 | C32: =Indicators!#REF! ->  | D32: 2005 | E32: 22 | F32: q22 - participation in active sport | G32: _prop_2 | H32: 6519 | I32: 33.4 | J32: 1.6 | K32: 30.3 | L32: 36.4 | M32: 3.1
A33: 30 | C33: =Indicators!#REF! ->  | D33: 2005 | E33: 23 | F33: q23 - exercise at least 5 times a week | G33: yes | H33: 6601 | I33: 36.3 | J33: 1.6 | K33: 34.2 | L33: 38.5 | M33: 2.2
A34: 31 | C34: =Indicators!#REF! ->  | D34: 2005 | E34: xxx | I34: 36.8 | K34: 35.12821 | L34: 38.64301 | M34: 1.7
A35: 32 | C35: =Indicators!#REF! ->  | D35: 2005 | E35: 24 | I35: 57.7 | K35: 55 | L35: 60.5 | M35: 2.8
A36: 33 | C36: =Indicators!#REF! ->  | D36: 2005 | E36: 24 | I36: 49.4 | K36: 46.6 | L36: 52.2 | M36: 2.8
A37: 34 | C37: =Indicators!#REF! ->  | D37: 2005 | E37: 24 | I37: 8.4 | K37: 6.8 | L37: 9.9 | M37: 1.5
A38: 35 | C38: =Indicators!#REF! ->  | D38: 2005 | E38: 24 | I38: 7.2 | K38: 5.8 | L38: 8.6 | M38: 1.4
A39: 36 | C39: =Indicators!#REF! ->  | D39: 2005 | E39: 24 | I39: 14.4 | K39: 12.3 | L39: 16.4 | M39: 2
A40: 37 | C40: =Indicators!#REF! ->  | D40: 2005 | E40: 24 | I40: 0.6 | K40: 0.2 | L40: 1.1 | M40: 0.5
A41: 38 | C41: =Indicators!#REF! ->  | D41: 2005 | E41: 24 | I41: 1.3 | K41: 0.7 | L41: 1.9 | M41: 0.6
A42: 39 | C42: =Indicators!#REF! ->  | D42: 2005 | E42: 24 | I42: 0.5 | K42: 0.1 | L42: 0.9 | M42: 0.4
A43: 40 | C43: =Indicators!#REF! ->  | D43: 2005 | E43: 24 | I43: 15.3 | K43: 13.2 | L43: 17.3 | M43: 2
A44: 41 | C44: =Indicators!#REF! ->  | D44: 2005 | E44: 24 | I44: 21.6 | K44: 19.3 | L44: 23.9 | M44: 2.3
A45: 42 | C45: =Indicators!#REF! ->  | D45: 2005 | E45: 24 | I45: 3 | K45: 2 | L45: 4 | M45: 1
A46: 43 | C46: =Indicators!#REF! ->  | D46: 2005 | E46: 3 | F46: q3 - neighbourhood better or worse over past 2 years | G46: better | H46: 6368 | I46: 14.7 | J46: 1.2 | K46: 12.3 | L46: 17.1 | M46: 2.4
A47: 44 | C47: =Indicators!#REF! ->  | D47: 2005 | E47: 3 | F47: q3 - neighbourhood better or worse over past 2 years | G47: worse | H47: 6368 | I47: 31.1 | J47: 1.6 | K47: 28.1 | L47: 34.2 | M47: 3
A48: 45 | C48: =Indicators!#REF! ->  | D48: 2005 | E48: 34 | F48: q34 - electricity with green tariff | G48: yes | H48: 6439 | I48: 5.4 | J48: 0.5 | K48: 4.4 | L48: 6.4 | M48: 1
A49: 46 | C49: =Indicators!#REF! ->  | D49: 2005 | E49: 37 | G49: no | I49: 9.5 | J49: 0.7 | K49: 8.2 | L49: 10.8 | M49: 1.3
A50: 47 | C50: =Indicators!#REF! ->  | D50: 2005 | E50: 37 | F50: q37a - loft insulation qol2005 | G50: yes | H50: 6476 | I50: 72.2 | J50: 1 | K50: 70.2 | L50: 74.1 | M50: 2
A51: 48 | C51: =Indicators!#REF! ->  | D51: 2005 | E51: 37 | F51: q37b - cavity wall insulation qol2005 | G51: yes | H51: 5953 | I51: 38.4 | J51: 1.1 | K51: 36.3 | L51: 40.6 | M51: 2.1
A52: 49 | C52: =Indicators!#REF! ->  | D52: 2005 | E52: 38 | F52: q38d - purchase locally grown food | G52: usually | H52: 6097 | I52: 12.9 | J52: 0.4 | K52: 12 | L52: 13.8 | M52: 0.9
A53: 50 | C53: =Indicators!#REF! ->  | D53: 2005 | E53: 38 | F53: q38f - energy efficient light bulbs qol2005 | G53: usually | H53: 6395 | I53: 62.1 | J53: 1.1 | K53: 59.9 | L53: 64.3 | M53: 2.2
A54: 51 | C54: =Indicators!#REF! ->  | D54: 2005 | E54: 43 | F54: q43 - Happiness | G54: happy | H54: 6612 | I54: 86.8 | J54: 1.1 | K54: 84.6 | L54: 89 | M54: 2.2
A55: 52 | C55: =Indicators!#REF! ->  | D55: 2005 | E55: 44 | F55: q44 - mean life satisfaction | G55: q44 | H55: 6532 | I55: 7.158823 | J55: 0.0705814 | K55: 7.02046 | L55: 7.297186 | M55: 0.138363
A56: 53 | C56: =Indicators!#REF! ->  | D56: 2005 | E56: 44 | F56: q44 - percent satisfied with life | G56: satisfied | H56: 6532 | I56: 68.1 | J56: 1.6 | K56: 65.1 | L56: 71.2 | M56: 3
A57: 54 | C57: =Indicators!#REF! ->  | D57: 2005 | E57: 46 | F57: q46 - limiting long-term illness qol2005 | G57: yes | H57: 6595 | I57: 38.6 | J57: 1.1 | K57: 36.5 | L57: 40.8 | M57: 2.1
A58: 55 | C58: =Indicators!#REF! ->  | D58: 2005 | E58: 48 | F58: q48 - general health past 12 months | G58: good | H58: 6656 | I58: 81.4 | K58: 79.7 | L58: 83.1 | M58: 1.7
A59: 56 | C59: =Indicators!#REF! ->  | D59: 2005 | E59: 49 | F59: q49a - someone in household smokes | G59: yes | H59: 6638 | I59: 41.7 | J59: 0.1 | K59: 39.5 | L59: 43.9 | M59: 2.2
A60: 57 | C60: =Indicators!#REF! ->  | D60: 2005 | E60: 49 | F60: q49ai - I smoke | G60: yes | H60: 6638 | I60: 28 | J60: 1 | K60: 26.1 | L60: 30 | M60: 1.9
A61: 58 | C61: =Indicators!#REF! ->  | D61: 2005 | E61: 49 | F61: q49b - households with someone who smokes regularly within the home | G61: yes | H61: 6434 | I61: 28.9 | J61: 1 | K61: 26.9 | L61: 31 | M61: 2
A62: 59 | C62: =Indicators!#REF! ->  | D62: 2005 | E62: 4 | I62: 87.7 | K62: 86.3 | L62: 89.2 | M62: 1.5
A63: 60 | C63: =Indicators!#REF! ->  | D63: 2005 | E63: 4 | I63: 83.9 | K63: 82.3 | L63: 85.6 | M63: 1.7
A64: 61 | C64: =Indicators!#REF! ->  | D64: 2005 | E64: 4 | I64: 89.5 | K64: 88.1 | L64: 90.8 | M64: 1.3
A65: 62 | C65: =Indicators!#REF! ->  | D65: 2005 | E65: 4 | I65: 81 | K65: 79.3 | L65: 82.8 | M65: 1.8
A66: 63 | C66: =Indicators!#REF! ->  | D66: 2005 | E66: 4 | I66: 71 | K66: 68.6 | L66: 73.3 | M66: 2.3
